Workbook

Sheet Design the Power Module
A1: TPSM63610/E 3V‒36VIN, 1V‒20VOUT Power Module Design Tool
O2: http://www.ti.com/product/lm5175
A3: About | C3: xx | F3: = Input Box | O3: TERMS OF USE
A5: Step 1: Operating Specifications
D6: Input Voltage – Min, VIN(min) | E6: 12 | F6: V
D7: Input Voltage – Nom, VIN(nom) | E7: 24 | F7: V
D8: Input Voltage – Max, VIN(max) | E8: 36 | F8: V
D9: Output Voltage, VOUT | E9: 5 | F9: V
D10: Full Load Output Current, IOUT | E10: 8 | F10: A
D11: Switching Frequency, FSW | E11: 1000 | F11: kHz
D12: Frequency Set Resistor, RT | E12: ='Variable Management'!C341 -> 15.8 | F12: ='Variable Management'!E341 -> kΩ
D13: Ambient Temperature, TA | E13: 25 | F13: °C
A15: Step 2: Buck Inductor
D16: Inductor Pk-Pk Ripple Current at VIN(nom) | E16: ='Variable Management'!B60 -> 2.442175015 | F16: Apk-pk
D17: DIL as a % of Full Load at VIN(nom) | E17: ='Variable Management'!D60*100 -> 30.52718769 | F17: %
D18: Peak Inductor Current at VIN(max) and Full Load | E18: ='Variable Management'!B99 -> 9.334522849 | F18: Apk
D19: Peak Inductor Current Limit | E19: =Ipk_OCP -> 13.8 | F19: Apk
A21: Step 3: Output Capacitors
D22: Desired Output Voltage Ripple | E22: 50 | F22: mVpk-pk
D23: Effective COUT Value to Meet Ripple Spec | E23: ='Variable Management'!B113 -> 6.105437537 | F23: µF
D24: Desired Crossover Frequency | E24: 50 | F24: =" kHz " -> kHz
D25: Effective COUT Value to Meet Crossover Spec | E25: ='Variable Management'!B206 -> 83.76575962 | F25: µF
D26: Output Capacitance (derated), COUT | E26: 72 | F26: µF
D27: Output Cap ESR (Max) to Meet Ripple Spec | E27: ='Variable Management'!B117 -> 20.39981121 | F27: mΩ
D28: Output Capacitor ESR | E28: 2 | F28: mΩ
D29: Resulting Output Voltage Ripple (max) | E29: ='Variable Management'!B119*1000 -> 6.467883618 | F29: mVpk-pk
D30: Output Capacitor RMS Current (max) | E30: ='Variable Management'!B106 -> 0.7704871261 | F30: A (rms)
A32: Step 4: Input Capacitors
D33: Input Voltage Ripple Spec | E33: 150 | F33: mVpk-pk
D34: Minimum Input Capacitance | E34: ='Variable Management'!B136 -> 13.33333333 | F34: µF
D35: Input Capacitance (derated), CIN | E35: 25 | F35: µF
D36: Maximum Permitted ESR | E36: ='Variable Management'!B141 -> 7.499044261 | F36: mΩ
D37: Input Capacitor ESR | E37: 1 | F37: mΩ
D38: Resulting Input Voltage Ripple (max) | E38: ='Variable Management'!B146*1000 -> 89.33452285 | F38: mVpk-pk
D39: Input Capacitor RMS Current (max) | E39: ='Variable Management'!B129 -> 3.981729994 | F39: A (rms)
L40: =CHOOSE(SCH_MODE, "", "** For Single-Output Operation in 2-Phase Mode, tie MODE to VDDA and use FB1 to set VOUT **", "** For Single-Output Operation in 3-Phase Mode, tie both MODE pins to VDDA. Use FB1 of master IC to set VOUT. Connect FB2 of master IC to AGND. Connect FB2 of slave IC to VDDA to configure it as a slave **", "** For Single-Output Operation in 4-Phase Mode, tie both MODE pins to VDDA. Use FB1 of master IC to set VOUT. Connect FB2 of master IC to AGND. Connect FB2 of slave IC to VDDA to configure it as a slave **") -> 
A41: Step 5: Feedback Network
D42: Upper Feedback Resistance RFBT | E42: 100 | F42: kΩ | L42: =CHOOSE(SCH_MODE, "", "** For Single-Output Operation in 2-Phase Mode, tie MODE to VDDA and use FB1 to set VOUT **", "** For Single-Output Operation in 3-Phase Mode, tie both MODE pins to VDDA. Use FB1 of master IC to set VOUT. Connect FB2 of master IC to AGND. Connect FB2 of slave IC to VDDA to configure it as a slave **", "** For Single-Output Operation in 4-Phase Mode, tie both MODE pins to VDDA. Use FB1 of master IC to set VOUT. Connect FB2 of master IC to AGND. Connect FB2 of slave IC to VDDA to configure it as a slave **") -> 
D43: Lower Feedback Resistance, RFBB | E43: =IF(Vout=Vref,"SHORT",Rfb2_u/1000) -> 24.9 | F43: =IF(Vout=Vref,"","kΩ") -> kΩ
D44: Feedforward Capacitance, CFF | E44: 10 | F44: pF
A46: Step 6: VIN UVLO
D47: Desired VIN UVLO Turn-On Threshold | E47: 6 | F47: V
D48: UVLO Divider Upper Resistance, RENT | E48: 187 | F48: kΩ
D49: UVLO Divider Lower Resistance (E96), RENB | E49: =Renb_u/1000 -> 49.9 | F49: =IF(Vout=Vref,"","kΩ") -> kΩ
D50: Actual VIN UVLO Turn-On Threshold | E50: =1.263/E49*(E48+E49) -> 5.996086172 | F50: V
D51: Actual VIN UVLO Turn-Off Threshold | E51: =E50*0.72 -> 4.317182044 | F51: V
A53: Step 7: Power Loss & Thermals
D54: Total Power Dissipation | E54: ='Efficiency Calculations'!AT109 -> 3.581333239 | F54: W
D55: Junction Temperature (estimate) | E55: ='Variable Management'!B285 -> 89.46399829 | F55: °C
E56: =CHOOSE(Ext_VCC, "", "* Tie VLDOIN to GND") -> 

Sheet Schematic & BOM
A34: ="VIN = "&VIN_min&" V to "&VIN_max&" V, VOUT = "&Vout&" V, IOUT = "&Iout&" A, Fsw = "&Fsw/1000&" kHz" -> VIN = 12 V to 36 V, VOUT = 5 V, IOUT = 8 A, Fsw = 1000 kHz
A35: High-Efficiency Synchronous Buck Power Module BOM
A36: Count | B36: Ref Des | C36: Value | D36: Description | H36: Size | I36: Part Number | J36: MFR
A37: =ROUNDUP('Design the Power Module'!E35/10,0) -> 3 | B37: CIN1, CIN2 | C37: 10 | D37: =C37 -> 10 | H37: 1210 | I37: Std | J37: Std
A38: 2 | B38: COUT | C38: 22 | D38: =C38 -> 22 | H38: 1210 | I38: Std | J38: Std
A39: 1 | B39: CVCC | C39: 1 | D39: =C39 -> 1 | H39: 0402 | I39: Std | J39: Std
A40: 1 | B40: CSYNC | C40: 1 | D40: =C40 -> 1 | H40: 0402 | I40: Std | J40: Std
A41: 1 | B41: CFF | C41: ='Variable Management'!D299 -> 10 | D41: =C41 -> 10 | H41: 0402 | I41: Std | J41: Std
A42: 1 | B42: LO | C42: ='Design the Power Module'!#REF! ->  | D42: ="Buck Inductor, "&Lf*1000000&" µH, "&Rdcr*1000&" mΩ, >"&ROUNDUP(Ipk_OCP*1.05,0)&" A" -> Buck Inductor, 1.6689 µH, 13.2 mΩ, >15 A | H42: -- | I42: -- | J42: Various
A43: 1 | B43: RRT | C43: ='Design the Power Module'!E12 -> 15.8 | D43: =C43 -> 15.8 | H43: 0402 | I43: Std | J43: Std
A44: 1 | B44: RFBT | C44: ='Design the Power Module'!E42 -> 100 | D44: 100 | H44: 0402 | I44: Std | J44: Std
A45: 1 | B45: RFBB | C45: ='Design the Power Module'!E43 -> 24.9 | D45: 24.9 | H45: 0402 | I45: Std | J45: Std
A46: 1 | B46: RENT | C46: ='Variable Management'!D302 -> 187 | D46: 187 | H46: 0402 | I46: Std | J46: Std
A47: 1 | B47: RENB | C47: ='Variable Management'!D303 -> 49.9 | D47: 49.9 | H47: 0402 | I47: Std | J47: Std
A48: 1 | B48: RPGOOD | C48: 100 | D48: 100 | H48: 0402 | I48: Std | J48: Std
A49: 1 | B49: U1 | C49: ='Variable Management'!N19 -> TPSM63610 | D49: =CHOOSE(GPN, "IC, TPSM63610 Synchronous Buck Power Module, 3V–36V Input, 10A Output", "IC, TPSM63604 Synchronous Buck Power Module, 3V–36V Input, 4A Output", "IC, TPSM63603 Synchronous Buck Power Module, 3V–36V Input, 3A Output", "IC, TPSM63602 Synchronous Buck Power Module, 3V–36V Input, 2A Output") -> IC, TPSM63610 Synchronous Buck Power Module, 3V–36V Input, 10A Output | H49: =CHOOSE(GPN, "B3QFN", "B3QFN", "B0QFN", "B0QFN") -> B3QFN | I49: =CHOOSE(VARIANT, "TPSM63610RDLR", "TPSM63604RDLR", "TPSM63603RDHR", "TPSM63602RDHR", "TPSM63603V5RDHR", "TPSM63603V3RDHR") -> TPSM63610RDLR | J49: TI
A52: NOTES:
A53: ** Effective input and output capacitances should be appropriately derated for applied voltage and temperature, particularly with ceramics **

Sheet Variable Management
A1: EXCEL Variables Names/Calculations
B2: Input from user =
B3: Output =
B4: Constant
A5: Variable Name | B5: Value | C5: STD Units | E5: Notes | I5: Iteration
A6: Step 1: Operational Specs
A7: VIN_min | B7: ='Design the Power Module'!E6 -> 12 | C7: V | D7: Minimum input voltage | I7: 1
A8: VIN_nom | B8: ='Design the Power Module'!E7 -> 24 | C8: V | D8: Nominal input voltage | K8: Use CFF | L8: 1 | N8: TPSM63606 3.3Vout | O8: =IF(Vout = 3.3, 1, 0) -> 0 | T8: Dual Outputs | U8: 1 | W8: FPWM | X8: 1 | Z8: =CHOOSE(SCH_MODE, "Bode Plot (Ch1)", "Bode Plot - 2 Ph", "Bode Plot - 3 Ph", "Bode Plot - 4 Ph") -> Bode Plot (Ch1) | AA8: 1
A9: VIN_max | B9: ='Design the Power Module'!E8 -> 36 | C9: V | D9: Maximum input voltage | K9: No CFF | L9: 2 | N9: TPSM63603 5Vout | O9: =IF(Vout = 5, 1, 0) -> 1 | T9: Single Output – 2 Phases | U9: 2 | W9: DEM | X9: 2 | Z9: =IF(MODE=1, "Bode Plot (Ch2)", "N/A - Do Not Use") -> Bode Plot (Ch2) | AA9: 2
L10: 2 | N10: TPSM63603 Fixed Vout | O10: =IF(AND(GPN=3,Vout=3.3),3,IF(AND(GPN=3,Vout=5),2,1)) -> 1 | P10: 1 = No, 2 = 5V, 3 = 3.3V | T10: Single Output – 3 Phases | U10: 3 | W10: FPWM/DEM | X10: 2 | Z10: BODE_PLOT_TYPE | AA10: 1
A11: Vout | B11: ='Design the Power Module'!E9 -> 5 | C11: V | D11: Output voltage | K11: NO_FF_CAP | L11: =IF(L10=2, TRUE, FALSE) -> TRUE | O11: =AND(GPN=3, OR(O8,O9)) -> FALSE | T11: Single Output – 4 Phases | U11: 4
A12: Iout | B12: ='Design the Power Module'!E10 -> 8 | C12: A | D12: Output current | F12: Iout-max | G12: 8 | H12: A | I12: 1 | T12: Single/Dual Yes/No | U12: 1
I13: 1 | T13: MODE (Single/Dual), DUAL = 1, SINGLE = 2 | U13: =IF(U12=1, 1, 2) -> 1 | W13: External BIAS | X13: 1
A14: Rout | B14: =Vout/Iout -> 0.625 | C14: W | D14: Load resistance | T14: SINGLE OUTPUT (1 = YES) | U14: =IF(U12=1, 2, 1) -> 2 | W14: No External BIAS | X14: 2
A15: Pout | B15: =Vout*Iout -> 40 | C15: W | D15: Output power | N15: TPSM63610 10A module | O15: 1 | T15: Number of Phases | U15: =SCH_MODE -> 1 | W15: Ext_VCC | X15: 1
N16: TPSM63608 8A module | O16: 2
A17: Efficiency | B17: 0.9 | D17: Estimate of efficiency | L17: =Vout -> 5 | N17: TPSM63603 3A module | O17: 3
A18: Pin | B18: =Pout/Efficiency -> 44.44444444 | C18: W | D18: Calculate input power assuming finite efficiency | N18: TPSM63602 2A module | O18: 4
L19: GPN | N19: =CHOOSE(GPN, "TPSM63610", "TPSM63608") -> TPSM63610 | O19: 1 | W19: 2.2 MHz Fsw Setting | X19: 1
A20: Iin_Vinmin | B20: =Pin/VIN_min -> 3.703703704 | C20: A | W20: 440 kHz Fsw Setting | X20: 2
A21: Iin_Vinnom | B21: =Pin/VIN_nom -> 1.851851852 | C21: A | D21: Input currents at min, nom, max Vin | H21: =AND(OSC=1, OR(Fsw/1000>2530, Fsw/1000<1800)) -> FALSE | K21: Variant | L21: VARIANT | N21: =CHOOSE(VARIANT, "TPSM63610", "TPSM63608") -> TPSM63610 | O21: =IF(AND(GPN=3,Vout=5),5,IF(AND(GPN=3,Vout=3.3),6,GPN)) -> 1 | W21: OSC | X21: 2
A22: Iin_Vinmax | B22: =Pin/VIN_max -> 1.234567901 | C22: A | H22: =AND(OSC=2, OR(Fsw/1000>500, Fsw/1000<300)) -> TRUE
H23: =OR(H21,H22) -> TRUE
A24: Fsw | B24: ='Design the Power Module'!E11*1000 -> 1000000 | C24: Hz | D24: Nominal switching frequency - determines RT resistor
A25: RT resistor to AGND | B25: =16.4/(Fsw/1000000)-0.633 -> 15.767 | C25: kΩ | I25: 1
A26: Tsw | B26: =1/Fsw -> 1e-06 | C26: sec | D26: Switching period
A27: Max crossover frequency = 20% Fsw | B27: =Fsw*0.2/1000 -> 200 | C27: kHz | F27: Min Crossover | G27: 10 | K27: Adjustable | L27: 1
A28: Vref | B28: 1 | C28: V | D28: Reference voltage | K28: 5V | L28: 2
A29: Rt | B29: ='Standard Value Calculator'!O12/1000 -> 15.8 | C29: kΩ | D29: Frequency set resistor | F29: =IF(OR((Fsw=440000),(Fsw=2200000)),"N/A",Rfadj/1000) -> 0.0158 | K29: 3.3V | L29: 3
K30: Adjustable_NoRT | L30: 4 | O30: TPSM63603V5
K31: 5V_NoRT | L31: 5 | O31: TPSM63603V3
K32: 3.3V_NoRT | L32: 6
A33: Step 2: Buck Inductor | B33: Channel 1 | K33: Schematic setting | L33: =IF(No_RT, IF(Vout=3.3, 6, IF(Vout=5, 5, 4)),IF(Vout=3.3, 3, IF(Vout=5, 2, 1))) -> 5
A34: Don1 | B34: =Vout/VIN_nom -> 0.2083333333 | F34: Ideal Duty Cycle at VIN(nom)
A35: Doff1 | B35: =1-34:34 -> 0.7916666667 | F35: Ideal 1- Duty Cycle at VIN(nom)
A37: D_Vinmin | B37: =Vout/VIN_min -> 0.4166666667
A38: D_Vinnom | B38: =Vout/VIN_nom -> 0.2083333333
A39: D_Vinmax | B39: =Vout/VIN_max -> 0.1388888889 | K39: Maylayer inductor for TPSM63610
A41: L_Vinnom | B41: =(VIN_nom-Vout)*D1_Vinnom/(Fsw*Iout*0.35) -> 1.413690476e-06 | C41: H | F41: Calculated inductance for 35% ripple at VIN(nom) | K41: Current (A) | L41: L (uH)
A42: L_slopecomp | C42: H | F42: Calculated inductance based on one times inductor downslope | K42: 0 | L42: 2.2
K43: 1 | L43: 2.18
A44: Lopt | B44: =B41 -> 1.413690476e-06 | C44: H | F44: min of calculated inductances at VIN(min) and VIN(nom) | K44: 2 | L44: 2.15
K45: 3 | L45: 2.1
A46: L_actual_TPSM63610 | B46: =-0.0031*Iout^2-0.0448*Iout+2.2257 -> 1.6689 | C46: uH | F46: Calculate MagLayers inductance based on entered load current value (8A) | K46: 4 | L46: 2
K47: 5 | L47: 1.9
A48: Lo | B48: =B46*0.000001 -> 1.6689e-06 | C48: H | F48: Chosen inductance | K48: 6 | L48: 1.8
A49: Rdcr | B49: 0.0132 | C49: W | F49: Chosen inductor DCR | K49: 7 | L49: 1.75
K50: 8 | L50: 1.7
A51: Don2 | B51: =(Vout+Iout*(Rdcr+Rdson2))/(Vin+Iout*(Rdson2-Rdson1)) -> 0.2176470588
A52: Doff2 | B52: =1-_Don2 -> 0.7823529412
A54: D_Vinmin_2 | B54: =(Vout+Iout*(Rdcr+Rdson2))/(VIN_min+Iout*(Rdson2-Rdson1)) -> 0.436461126 | D54: =Vout/VIN_min -> 0.4166666667 | F54: Duty cycles adjusted for DCR/Rdson voltage drops
A55: D_Vinnom_2 | B55: =(Vout+Iout*(Rdcr+Rdson2))/(VIN_nom+Iout*(Rdson2-Rdson1)) -> 0.2176470588 | D55: =Vout/VIN_nom -> 0.2083333333
A56: D_Vinmax_2 | B56: =(Vout+Iout*(Rdcr+Rdson2))/(VIN_max+Iout*(Rdson2-Rdson1)) -> 0.1449688335 | D56: =Vout/VIN_max -> 0.1388888889 | F56: =(Ts-0.000000085)/Ts -> 0.915 | G56: Dmax = [Ts-toff(min)]/Ts
A59: Iripple_Vinmin | B59: =(VIN_min-Vout-Iout*(Rdcr+Rdson1))*D1_Vinmin_2/(Fsw*Lf) -> 1.759130037 | C59: A | D59: =B59/Iout -> 0.2198912546 | F59: Ripple calculations include DCR and Rdson
A60: Iripple_Vinnom | B60: =(VIN_nom-Vout-Iout*(Rdcr+Rdson1))*D1_Vinnom_2/(Fsw*Lf) -> 2.442175015 | C60: A | D60: =B60/Iout -> 0.3052718769 | F60: % ripple current at Vin-nom
A61: Iripple_Vinmax | B61: =(VIN_max-Vout-Iout*(Rdcr+Rdson1))*D1_Vinmax_2/(Fsw*Lf) -> 2.669045698 | C61: A | D61: =B61/Iout -> 0.3336307122 | F61: Max inductor ripple current - it's at Vin-max
A63: Iinductor_rms_Vinmin | B63: =SQRT(Iout^2+(Iripple_Vinmin^2)/12) -> 8.016101185 | C63: A
A64: Iinductor_rms_Vinnom | B64: =SQRT(Iout^2+(Iripple_Vinnom^2)/12) -> 8.031003563 | C64: A
A65: Iinudctor_rms_Vinmax | B65: =SQRT(Iout^2+(Iripple_Vinmax^2)/12) -> 8.037017507 | C65: A
E66: TPSM63604/06 | F66: TPSM63602/03 | G66: => Result based on GPN
A67: Core loss estimate - Vin(min) | B67: =kcore*Iripple_Vinmin^kcore1*(Fsw/1000)^kcore2 -> 0.1743396263 | C67: W | D67: kcore | E67: 6e-08 | F67: =0.000000042*0.5 -> 2.1e-08 | G67: =CHOOSE(GPN, E67, E67, F67, F67) -> 6e-08 | H67: Core loss constant
A68: Core loss estimate - Vin(nom) | B68: =CHOOSE(GPN, kcore*Iripple_Vinnom^kcore1*(Fsw/1000)^kcore2, kcore*Iripple_Vinnom^kcore1*(Fsw/1000)^kcore2, 0.5*kcore*Iripple_Vinnom^kcore1*(Fsw/1000)^kcore2, 0.5*kcore*Iripple_Vinnom^kcore1*(Fsw/1000)^kcore2) -> 0.3959070267 | C68: W | D68: kcore1 | E68: 2.5 | F68: 2.5 | G68: =CHOOSE(GPN, E68, E68, F68, F68) -> 2.5 | H68: Ripple current exponent
A69: Core loss estimate - Vin(max) | B69: =kcore*Iripple_Vinmax^kcore1*(Fsw/1000)^kcore2 -> 0.4943576674 | C69: W | D69: kcore2 | E69: 1.95 | F69: 1.95 | G69: =CHOOSE(GPN, E69, E69, F69, F69) -> 1.95 | H69: Fsw exponent
D70: Pcore = kcore*(deltaI)^kcore1*(Fsw)^kcore2
D71: Note: ** core loss for 2A/3A versions scaled by 50% for smaller 2520 core size**
A75: Inductor copper temperature | B75: 125 | C75: °C
A76: Inductor DCR at hot | B76: =Rdcr*(1+Ltc*(B75-25))*1000 -> 18.3876 | C76: mW
A79: Step 2b: Sense Resistors, Slope Comp, Current Limit
A81: Ilimit_inductor_Vinmin | B81: =Ipk_OCP -> 13.8 | C81: A | F81: Peak inductor current at current limit inception
A82: Ilimit_inductor_Vinnom | B82: =Ipk_OCP -> 13.8 | C82: A
A83: Ilimit_inductor_Vinmax | B83: =Ipk_OCP -> 13.8 | C83: A
A85: CS threshold_min | B85: 0.068 | C85: V | D85: not applicable here
A86: CS threshold | B86: 0.075 | C86: V
A87: CS threshold_max | B87: 0.082 | C87: V
A89: Rs | B89: 0.021 | C89: W | F89: Current sense resistance Rs = high-side MOSFET Rdson
A91: Current limit setpoint - peak | B91: 13.8 | C91: A | F91: Peak current limit (trimmed at ATE) = min inductor sat current at hot
A93: Iout_OCP_Vinmin | B93: =Ipk_OCP-Iripple_Vinmin/2 -> 12.92043498 | C93: A | F93: Current limit setpoints (i.e. IOUT) assuming no CS delay
A94: Iout_OCP_Vinnom | B94: =Ipk_OCP-Iripple_Vinnom/2 -> 12.57891249 | C94: A
A95: Iout_OCP_Vinmax | B95: =Ipk_OCP-Iripple_Vinmax/2 -> 12.46547715 | C95: A
A97: Ipk_full-load_Vinmin | B97: =Iout+Iripple_Vinmin/2 -> 8.879565018 | C97: A
A98: Ipk_full-load_Vinnom | B98: =Iout+Iripple_Vinnom/2 -> 9.221087507 | C98: A
A99: Ipk_full-load_Vinmax | B99: =Iout+Iripple_Vinmax/2 -> 9.334522849 | C99: A
A102: Step 3: Output Capacitor
A103: Icoutrms_VINmin | B103: =Iripple_Vinmin/SQRT(12) -> 0.5078171001 | C103: A | F103: Output cap RMS current
A104: Icoutrms_VINnom | B104: =Iripple_Vinnom/SQRT(12) -> 0.7049952011 | C104: A
A105: Icoutrms_VINmax | B105: =Iripple_Vinmax/SQRT(12) -> 0.7704871261 | C105: A
A106: Max Cout rms current | B106: =MAX(B103:B105) -> 0.7704871261 | C106: A
A108: Vripple1 | B108: ='Design the Power Module'!E22/1000 -> 0.05 | C108: V | F108: Output voltage ripple spec(pk-pk)
A110: Output Ripple Spec (pk-pk) | B110: =Vo1_ripple*1000 -> 50 | C110: mV | F110: Vout ripple spec at Vin(nom)
A112: Coutmin | B112: =Iripple_Vinnom/(Fsw*8*Vo1_ripple) -> 6.105437537e-06 | C112: F | F112: Minimum output capacitnace | H112: =Vo2_ripple -> 0 | I112: 1
A113: Reported Coutmin | B113: =IF(Cout_min*1000000<2, 2.2,Cout_min*1000000) -> 6.105437537 | C113: uF
A114: Cout | B114: ='Design the Power Module'!E26/1000000 -> 7.2e-05 | C114: F | F114: Chosen output capacitance | I114: 1
A115: Resrmax | B115: =SQRT((Vo1_ripple/Iripple_Vinnom)^2-(1/(Fsw*Cout*8))^2) -> 0.02039981121 | C115: W | F115: Max ESR before ripple exceeds Vripple1 | I115: 1
A117: Reported Cout ESR max | B117: =IF(OR(CoutEsrMax>0.3, CoutEsrMax<0, (ISERROR(CoutEsrMax))), "N/A", CoutEsrMax*1000) -> 20.39981121 | C117: mΩ
A118: CoutEsr | B118: ='Design the Power Module'!E28/1000 -> 0.002 | C118: W | F118: Chosen ESR | I118: 1 | K118: =ISERROR(CoutEsrMax) -> FALSE | L118: =ISERROR(B117) -> FALSE
A119: Vripple | B119: =Iripple_Vinnom*SQRT(Cout_ESR^2+(1/(8*Fsw*Cout))^2) -> 0.006467883618 | C119: Vp-p | L119: =OR(CoutEsrMax>0.3,CoutEsrMax<0) -> FALSE
K120: =OR(TRUE, FALSE, TRUE) -> TRUE
A121: Step 4: Input Capacitor
A123: Icinrms_VINmin | B123: =SQRT(D1_Vinmin_2*(Iout^2*(1-D1_Vinmin_2)+Iripple_Vinmin^2/12)) -> 3.981729994 | C123: A | F123: Calculate input cap rms current | N123: A
A124: Icinrms_VINnom | B124: =SQRT(D1_Vinnom_2*(Iout^2*(1-D1_Vinnom_2)+Iripple_Vinnom^2/12)) -> 3.317512746 | C124: A
A125: Icinrms_VINmax | B125: =SQRT(D1_Vinmax_2*(Iout^2*(1-D1_Vinmax_2)+Iripple_Vinmax^2/12)) -> 2.831791754 | C125: A
A126: Max Cin rms current | B126: =MAX(B123:B125) -> 3.981729994 | C126: A
A128: Icinrms - max at D = 0.5 | B128: =Iout/2 -> 4 | C128: A
A129: Final result | B129: =IF(VIN_min<2*Vout, Iout/2, B123) -> 3.981729994 | C129: A | D129: …report this
A131: Vinripple1 | B131: ='Design the Power Module'!E33/1000 -> 0.15 | C131: Vp-p | F131: Input voltage ripple spec (pk-pk)
F132: =Number_of_Phases -> 1
A133: Cinmin_Vinmax | B133: =Iout*D1_Vinmax*(1-D1_Vinmax)/(Vinripple1*Fsw) -> 6.378600823e-06 | C133: F | F133: Calculate cap at Vinmax and 50% duty cycle (Vin = 2*Vout)
A134: Cinmin_50%D | B134: =Iout*0.5*(1-0.5)/(Vinripple1*Fsw) -> 1.333333333e-05 | C134: F | F134: Buck 50% typically worst case
A135: Cinmin | B135: =IF(VIN_max<2*Vout, B133,B134) -> 1.333333333e-05 | C135: F
A136: Reported Cinmin | B136: =IF(Cinmin*1000000<4.7, 4.7,Cinmin*1000000) -> 13.33333333 | C136: uF | F136: …report this
A137: Cin | B137: ='Design the Power Module'!E35/1000000 -> 2.5e-05 | C137: F | F137: Input capacitance
A138: CinEsrMax_Vinmax | B138: =-(Iout*D1_Vinmax*(1-D1_Vinmax)/(Cin*Fsw)-Vinripple1)/(Iout+Iripple_Vinmax/2) -> 0.011969374 | C138: W
A139: CinEsrMax_50%D | B139: =-(Iout*0.5*(1-0.5)/(Cin*Fsw)-Vinripple1)/(Iout+Iripple_Vinmax/2) -> 0.007499044261 | C139: W | F139: Calculate ESR at Vinmax and 50% duty cycle (Vin = 2*Vout)
A140: CinEsrMax | B140: =IF(VIN_max<2*Vout, B138,B139) -> 0.007499044261 | C140: W
A141: Reported Cin ESR max | B141: =IF(OR(CinEsrMax>0.3, CinEsrMax<0), "N/A",CinEsrMax*1000) -> 7.499044261 | C141: mΩ | F141: …report this
A142: RCinEsr | B142: ='Design the Power Module'!E37/1000 -> 0.001 | C142: W | F142: Input capacitance series resistance (ESR)
A144: Vinripple2_Vinmax | B144: =Iout*D1_Vinmax_2*(1-D1_Vinmax_2)/(Cin*Fsw)+(Iout +Iripple_Vinmax/2)*RCinEsr -> 0.04899944151 | C144: Vp-p
A145: Vinripple2_50%D | B145: =Iout*0.5*(1-0.5)/(Cin*Fsw)+(Iout +Iripple_Vinmax/2)*RCinEsr -> 0.08933452285 | C145: Vp-p | F145: Calculate ripple at Vinmax and 50% duty cycle (Vin = 2*Vout)
A146: Vinripple2 | B146: =IF(VIN_max<2*Vout, B144,B145) -> 0.08933452285 | C146: Vp-p | F146: …report highest of these
B148: =Iout*D1_Vinmax_2*(1-D1_Vinmax_2)/(Cin*Fsw) -> 0.03966491866 | C148: Vp-p
A150: Step ?: Other Components - MODE
A152: RPG1/2 | B152: 100 | C152: kΩ
A153: RFB1/2 | C153: W | E153: Tie to VDDA or AGND for 3.3V/5V output, respectively.
A154: R_MODE | C154: W | E154: Tie to VDDA or AGND for Single/Dual operation, respectively.
A155: R_DEMB | C155: W | E155: Tie to VDDA or AGND for FPWM/DEM, respectively.
A158: Step 5: Feedback Network and Internal Compensation
A159: Pi | B159: 3.14159265 | D159: p
A160: CS Amp Gain (effective value) | B160: 3.414 | F160: Effective CS gain - depending on control architecture
A161: Ri | B161: =(6000)*(0.000019) -> 0.114 | C161: W | F161: Current Sense effective resistance = shunt resistor Rs * CS amp gain = 6k * 19e-6
A163: Se_ext | B163: =B167/Ri*1000 -> 2791068.581 | C163: A/s | F163: Slope Comp Slope - referred to inductor current
A164: Sn | B164: =(Vin-Vout)/Lf -> 11384744.44 | C164: A/s | F164: On-time Slope
A165: Sf | B165: =Vout/Lf -> 2995985.38 | C165: A/s | F165: Off-time Slope
A167: Se_int | B167: =Fsw/220*70/1000 -> 318.1818182 | C167: mV/μs | F167: Slope Comp Slope - referred to IC
A168: Sn_int | B168: =Sn*Ri/1000 -> 1297.860866 | C168: mV/μs | F168: Upslope
A169: Sf_int | B169: =Sf*Ri/1000 -> 341.5423333 | C169: mV/μs | F169: Downslope
A171: mc_buck | B171: =1+Se_ext/Sn -> 1.24515865 | F171: mc = 1 + Se/Sn for peak current-mode buck
A172: k_buck | B172: =mc_buck*(1-D1_Vinnom_2) -> 0.9741535322 | F172: mc*(1-d)
A174: mc | B174: =1+Se_ext/Sn -> 1.24515865
A175: k | B175: =mc_buck*(1-D1_Vinnom_2) -> 0.9741535322
A176: Q | B176: =1/Pi/(k-0.5) -> 0.6713223986 | F176: 1/(Pi*(k-0.5)) | H176: Q = 2/Pi = 0.636 gives ideal one-cycle damping
A178: Error Amp (EA)
A179: gm | B179: =0.000015 -> 1.5e-05 | C179: S | F179: Error Amp Transconductance
A180: GBW | B180: 6 | C180: MHz | F180: EA gain-bandwidth product
A181: Cbw | B181: =gm/(2*Pi*GBW*1000000) -> 3.978873582e-13 | C181: F | F181: EA effective bandwidth limiting capacitance = gm/(2*Pi*GBW)
A183: RoEA | B183: =1210/(0.00001023) -> 118279569.9 | C183: W | F183: EA output resistance
A184: AEA | B184: =gm*RoEA -> 1774.193548 | C184: V/V | F184: EA DC gain = gm*RoEA
A185: Afb | B185: =Vref/Vout -> 0.2 | C185: V/V | F185: Feedback gain from Vout to FB
A186: Acs | B186: =1/Ri -> 8.771929825 | F186: Acs = 1/Ri
A187: Am_buck | B187: =(Ro/Number_of_Phases)/Ri/((1+Ro/Number_of_Phases*(k-0.5)/(Fsw*Lf))) -> 4.655738391
A188: Am | B188: =Ro/Ri/((1+Ro*(k-0.5)/(Fsw*Lf))) -> 4.655738391 | F188: Buck modulator gain
A190: Scaling factor to calculate Rcomp - buck | B190: =2*Pi*Ri/gm -> 47752.20828 | F190: 2*Pi*Ri/gm -- scaling factor to calculate Rcomp given desired buck crossover frequency
A191: DC Gain is Adc = AEA*Afb*Am
A193: Rout | B193: =Rout -> 0.625 | C193: W | F193: Output Resistance (Load)
A195: Fp_load_buck | B195: =1/(2*Pi*Ro*Cout)+(k-0.5)/(2*Pi*Fsw*Lf*Cout) -> 4164.800619 | C195: Hz | F195: Buck dominant pole frequency -- note slope comp influence
A196: Fp_dominant | B196: =Fload_u -> 4164.800619 | C196: Hz
A197: Cbw | B197: =Cbw -> 3.978873582e-13 | C197: F | F197: Cbw
A198: Fp_EA | B198: =1/(2*Pi*(RoEA+Rcea1_u)*Cc1ea_u) -> 72.28070353 | C198: Hz | F198: Error Amp LF pole -- related to amplifier ouptut resistance and comp cap
A199: Fp_HF | B199: =1/(2*Pi*Rcea1_u*(Cc2ea_u+Cbw)) -> 177254.9105 | C199: Hz | F199: Error Amp HF pole cancels zero related to Output Cap ESR
A200: Fesr | B200: =1/(2*Pi*Cout*Cout_ESR) -> 1105242.662 | C200: Hz | F200: Cout ESR zero frequency
A201: F_mod | B201: =Fsw/2 -> 500000 | C201: Hz | F201: Zero-order sample-and-hold effects of current-mode control modeled as double pole at Fsw/2
A202: Fz_ff | B202: =IF(NO_FF_CAP=TRUE, 1000000000, 1/(2*Pi*Rfb2_u*Cff_u*0.000000000001)) -> 1000000000 | C202: Hz
A203: Fp_ff | B203: =IF(NO_FF_CAP=TRUE, 1000000000, 1/(2*Pi*Rfb4_u*Cff_u*0.000000000001)) -> 1000000000 | C203: Hz
A205: Desired Crossover Frequency | B205: ='Design the Power Module'!E24*1000 -> 50000 | C205: Hz
A206: Cout - for the Fc spec | B206: =Rcea1_u/Fcross/(2*Pi*Ri/(gm*Afb))*1000000 -> 83.76575962 | C206: uF | F206: Output cap to meet the crossover frequeny spec
A207: Rcea1 | B207: =Fcross*Cout*2*Pi*Ri/(gm*Afb) -> 859539.749 | C207: W | F207: This component will largely determine the crossover frequency | K207: =Fcross/Fp_dominant/(gm*Afb*Am) -> 859539.749
A208: Cc1ea, Cc3ea | B208: =10/(Rcea1*Fcross*2*Pi) -> 3.703259645e-11 | C208: F | F208: This along with Rcea1 will set a zero at Fcrossover/5 to optimize phase margin
A209: Cc2ea, Cc4ea | B209: =MAX(1/(Rcea1*2*Pi*Fesr)-Cbw, 1/(Rcea1*2*Pi*(Fsw/2))-Cbw) -> -2.756139373e-14 | C209: F | F209: This along with Rcea1 places a pole at the output cap ESR zero
A212: Rcea1_u | B212: 1000000 | C212: W | F212: =1/(Rcea1*2*Pi*(Fsw/2))-Cbw -> -2.756139373e-14
A213: Cc1ea_u | B213: 1.846e-11 | C213: F
A214: Cc2ea_u | B214: 5e-13 | C214: F
A216: Resulting Pole/Zero Locations | F216: =Cout -> 7.2e-05 | G216: =Cout_ESR -> 0.002
A217: Fz1 | B217: =1/(2*Pi*Rcea1_u*Cc1ea_u) -> 8621.611228 | C217: Hz | F217: This zero is set at or close to the dominant load pole
A218: Fp2 | B218: =1/(2*Pi*Rcea1_u*(Cc1ea_u*(Cc2ea_u+Cbw)/(Cc1ea_u+Cc2ea_u+Cbw))) -> 185876.5217 | C218: Hz | F218: This pole cancels the zero from the Output Cap ESR
A220: Rfb1 | B220: ='Design the Power Module'!E42*1000 -> 100000 | C220: W | F220: Upper Feedback Resistance - chosen by user
A221: Rfb2 | B221: =IF(Vout=Vref,0,(((Vref/Vout)*B220)/(1-(Vref/Vout)))) -> 25000 | C221: W | D221: =Rfb2_u -> 24900 | F221: Lower Feedback Resistance
A222: Rfb2_u | B222: =IF(Vout=Vref,"N/A",'Standard Value Calculator'!O11) -> 24900 | C222: W | F222: Std Value Upper Feedback Resistance
A223: Cff | B223: =1/(2*Pi*200000)/Rfb1_ -> 7.957747164e-12 | C223: F | D223: =1/(1/Rfb1_+1/Rfb2_u) -> 19935.94876 | E223: W | F223: Based on a 200kHz zero frequency
A224: Cff_u | B224: =IF('Design the Power Module'!E44<0.1, 0.1, 'Design the Power Module'!E44) -> 10 | C224: pF
A227: Step 6: UVLO Divider
A228: VIN UVLO turn-on voltage | B228: ='Design the Power Module'!E47 -> 6 | C228: V
A229: VIN UVLO turn-off voltage | B229: ='Design the Power Module'!E51 -> 4.317182044 | C229: V
A230: Rent | B230: ='Design the Power Module'!E48*1000 -> 187000 | C230: W
A231: Renb | B231: =B230*(1.263/(B228-1.263)) -> 49858.77137 | C231: W
A232: Renb_u | B232: ='Standard Value Calculator'!O7 -> 49900 | C232: W
A234: Step 7: Efficiency
A235: VAR | B235: 0
A236: Design
A237: Ta | B237: ='Design the Power Module'!E13 -> 25 | C237: °C | D237: Ambient Temperature
A238: Components
A239: LTc | B239: =3930/1000000 -> 0.00393 | C239: %/°C | D239: Inductor DCR Temp Co
A240: θCA | B240: 22 | C240: °C/W | D240: Inductor Core-to-Ambient Thermal Resistance
A241: RCinEsr | B241: =RCinEsr -> 0.001 | C241: W | D241: Input Capacitor ESR
A243: Controller Characteristics
A244: VCC | B244: 3.3 | C244: V
A245: Top Driver
A246: RdsonDRT | B246: 0.5 | C246: W | D246: Drain-Source Resistance of Pullup High-side FET Driver
A247: RdsonDRT2 | B247: 0.5 | C247: W | D247: Drain-Source Resistance of Pulldown High-side FET Driver
A248: Bottom Driver
A249: RdsonDRB | B249: 0.5 | C249: W | D249: Drain-Source Resistance of Pullup Low-side FET Driver
A250: RdsonDRB2 | B250: 0.5 | C250: W | D250: Drain-Source Resistance of Pulldown Low-side FET Driver
... 74 more rows

Sheet Sheet1

Sheet MOSFET Parameters
A3: MOSFET Parameters
E4: Internal Power MOSFETs
E5: High-side | F5: Low-side
D6: On-State Resistance, RDS(on) | E6: 21 | F6: 13 | G6: mΩ
D7: Total Gate Charge, QG | E7: 6 | F7: 12 | G7: nC
D8: Gate-Drain Charge, QGD | E8: 2 | F8: 4 | G8: nC
D9: Gate-Source Charge, QGS | E9: 2 | F9: 4 | G9: nC
D10: Output Charge, QOSS | F10: 4 | G10: nC
D11: Output Capacitance, COSS | E11: 200 | F11: 400 | G11: pF
D12: Gate Resistance, RGATE | E12: 1 | F12: 1 | G12: Ω
D13: Transconductance, gFS | E13: 100 | F13: 100 | G13: S
D14: Gate-Source Miller Plateau Voltage, VTH | E14: 1.5 | F14: 1.5 | G14: V
D15: Body Diode Forward Voltage, VBD | E15: 0.7 | F15: 0.7 | G15: V
D16: Body Diode Rev Recovery Charge, QRR | F16: 3 | G16: nC
D17: Thermal Resistance, θJA | E17: 22 | F17: 22 | G17: °C/W

Sheet Schematic Management
A1: =VARIANT -> 1 | N1: 3.3V or 5V fixed (FB1/2)
A2: =CHOOSE(VARIANT, "TPSM63606", "TPSM63604", "TPSM63603", "TPSM63602", "TPSM63603V5", "TPSM63603V3") -> TPSM63606 | J2: With/without dither (DITH) | N2: With/without VOUT connected to VCCX
J3: FPWM or DEM (DEMB)
J4: Shunt or inductor DCR current sensing

Sheet Stability Calculations (hidden)
A2: Divider Network & EA Poles/Zeros | E2: Modulator | J2: Power Stage Poles/Zeros | M2: Complex Pole Pair | P2: Total System
B3: Afb1 | C3: =Afb -> 0.2 | D3: V/V | E3: Acs | F3: =Acs -> 8.771929825 | G3: A/V | H3: gm | I3: =gm -> 1.5e-05 | J3: z_ESR | K3: =Fesr -> 1105242.662 | L3: Hz | M3: p3 | N3: =Fsw/2 -> 500000 | O3: Hz | P3: Adc | Q3: =Am*Afb*AEA -> 1652.036203 | R3: V/V
B4: EA zero, z1 | C4: =Fz1_u -> 8621.611228 | D4: Hz | E4: Am | F4: =Am -> 4.655738391 | G4: V/V | J4: p_dom | K4: =Fp_dominant -> 4164.800619 | L4: Hz | M4: pterm1 | N4: =Q*pole3 -> 335661.1993 | P4: Crossover | Q4: =AI7 -> 55.274 | R4: kHz
B5: EA pole, p1 | C5: =Fp1_u -> 72.28070353 | D5: Hz | E5: Q | F5: =Q -> 0.6713223986 | M5: pterm2 | N5: =pole3^2 -> 250000000000 | P5: Phase Margin | Q5: =AI9 -> 52.13595324 | R5: °
B6: Aea | C6: =AEA -> 1774.193548 | D6: V/V | E6: mc | F6: =mc -> 1.24515865 | H6: FF zero, z5 | I6: =Fz_ff -> 1000000000 | P6: radconv | Q6: =180/Pi -> 57.29577958 | AH6: XOVER SEARCH
B7: EA pole, p2 | C7: =Fp2_u -> 177254.9105 | D7: Hz | E7: k | F7: =k -> 0.9741535322 | H7: FF pole, p5 | I7: =Fp_ff -> 1000000000 | AH7: xover | AI7: =SUM(AH12:AH613)/1000 -> 55.274
AH9: phase margin | AI9: =SUM(AI13:AI613) -> 52.13595324
A10: Freq (Hz) | C10: Power Stage | I10: Error Amplifier | P10: FF Network | S10: Sampling Double Pole | U10: System Response | AB10: ERROR AMP Response | AE10: PLANT Response
C11: p_dom | E11: z_ESR | G11: z_RHP | I11: p1 | K11: z1 | M11: p2 | O11: z3 | Q11: p3 | S11: p3
C12: Gain(V/V) | D12: Phase(rad) | E12: Gain(V/V) | F12: Phase(rad) | G12: Gain(V/V) | H12: Phase(rad) | I12: Gain(V/V) | J12: Phase(rad) | K12: Gain(V/V) | L12: Phase(rad) | M12: Gain(V/V) | N12: Phase(rad) | O12: Gain(V/V) | P12: Phase(rad) | Q12: Gain(V/V) | R12: Phase(rad) | S12: Gain(V/V) | T12: Phase(rad) | U12: Gain (dB) | V12: Phase (°) | W12: Phase Margin (°) | Z12: Fsquare | AB12: Gain(dB) | AC12: Phase(Deg) | AE12: Gain(dB) | AF12: Phase(Deg)
A13: 1 | B13: =A13/1000 -> 0.001 | C13: =SQRT(1+(A13/pole1)^2) -> 1.000000029 | D13: =ATAN(A13/pole1) -> 0.0002401075279 | E13: =SQRT(1+(A13/Zero1)^2) -> 1 | F13: =ATAN(A13/Zero1) -> 9.047786832e-07 | G13: =IF(VIN_nom>Vout, 1, SQRT(1+(A13/z_RHP)^2)) -> 1 | H13: =IF(VIN_nom>Vout, 0, -ATAN(A13/z_RHP)) -> 0 | I13: =SQRT(1+(A13/Pole2)^2) -> 1.000095698 | J13: =ATAN(A13/Pole2) -> 0.01383406852 | K13: =SQRT(1+(A13/Zero2)^2) -> 1.000000007 | L13: =ATAN(A13/Zero2) -> 0.0001159876001 | M13: =SQRT(1+(A13/pole4)^2) -> 1 | N13: =ATAN(A13/pole4) -> 5.64159265e-06 | O13: =SQRT(1+(A13/Zero3)^2) -> 1 | P13: =ATAN(A13/Zero3) -> 1e-09 | Q13: =SQRT(1+(A13/pole5)^2) -> 1 | R13: =ATAN(A13/pole5) -> 1e-09 | S13: =SQRT((1-(Z13/pterm2))^2+(A13/pterm1)^2) -> 1 | T13: =IF((ATAN((A13/pterm1)/(1-A13^2/pterm2))>0),ATAN((A13/pterm1)/(1-A13^2/pterm2)),PI()+ATAN((A13/pterm1)/(1-A13^2/pterm2))) -> 2.979194504e-06 | U13: =20*LOG10(((E13*K13*G13*O13)/(C13*I13*S13*M13*Q13))*Adc) -> 64.35955983 | V13: =((F13+L13+H13+R13)-(D13+J13+T13+N13+T13))*radconv -> -0.8003580214 | W13: =IF(V13>0,V13,V13+180) -> 179.199642 | Y13: =IF(U13<0,A13,1000000000) -> 1000000000 | Z13: =A13^2 -> 1 | AB13: =20*LOG10((K13/(I13*M13))*AEA) -> 64.97918879 | AC13: =(L13-(J13+N13))*radconv -> -0.7863113802 | AE13: =20*LOG10((E13*G13/(C13*S13))*Acs*Am) -> 32.2216741 | AF13: =(F13+H13-(D13+T13))*radconv -> -0.01387600326 | AH13: =SUM((U14<0)*(U13>0))*A13 -> 0 | AI13: =IF(AH13>0,W11,0) -> 0
A14: 1.0965 | B14: =A14/1000 -> 0.0010965 | C14: 1.000000035 | D14: 0.0002632779033 | E14: 1 | F14: 9.920898261e-07 | G14: 1 | H14: 0 | I14: 1.000115058 | J14: 0.01516886037 | K14: 1.000000008 | L14: 0.0001271804034 | M14: 1 | N14: 6.186006341e-06 | O14: 1 | P14: 1.0965e-09 | Q14: 1 | R14: 1.0965e-09 | S14: 1 | T14: 3.266686773e-06 | U14: 64.35939165 | V14: -0.877581354 | W14: 179.1224186 | Y14: 1000000000 | Z14: 1.20231225 | AB14: 64.97902066 | AC14: -0.8621792119 | AE14: 32.22167405 | AF14: -0.01521503752 | AH14: 0 | AI14: 0
A15: 1.2023 | B15: 0.0012023 | C15: 1.000000042 | D15: 0.0002886812783 | E15: 1 | F15: 1.087815411e-06 | G15: 1 | H15: 0 | I15: 1.000138331 | J15: 0.01663222789 | K15: 1.00000001 | L15: 0.0001394518913 | M15: 1 | N15: 6.782886843e-06 | O15: 1 | P15: 1.2023e-09 | Q15: 1 | R15: 1.2023e-09 | S15: 1 | T15: 3.581885552e-06 | U15: 64.35918948 | V15: -0.9622433659 | W15: 179.0377566 | Y15: 1000000000 | Z15: 1.44552529 | AB15: 64.97881855 | AC15: -0.9453550893 | AE15: 32.22167399 | AF15: -0.01668311858 | AH15: 0 | AI15: 0
A16: 1.3183 | B16: 0.0013183 | C16: 1.00000005 | D16: 0.0003165337495 | E16: 1 | F16: 1.192769738e-06 | G16: 1 | H16: 0 | I16: 1.00016631 | J16: 0.01823659412 | K16: 1.000000012 | L16: 0.0001529064527 | M16: 1 | N16: 7.43731159e-06 | O16: 1 | P16: 1.3183e-09 | Q16: 1 | R16: 1.3183e-09 | S16: 1 | T16: 3.927472114e-06 | U16: 64.35894645 | V16: -1.055062796 | W16: 178.9449372 | Y16: 1000000000 | Z16: 1.73791489 | AB16: 64.97857559 | AC16: -1.036545109 | AE16: 32.22167392 | AF16: -0.01829273485 | AH16: 0 | AI16: 0
A17: 1.4454 | B17: 0.0014454 | C17: 1.00000006 | D17: 0.0003470514135 | E17: 1 | F17: 1.307767109e-06 | G17: 1 | H17: 0 | I17: 1.000199921 | J17: 0.0199943735 | K17: 1.000000014 | L17: 0.0001676484764 | M17: 1 | N17: 8.154358016e-06 | O17: 1 | P17: 1.4454e-09 | Q17: 1 | R17: 1.4454e-09 | S17: 1 | T17: 4.306127736e-06 | U17: 64.35865449 | V17: -1.156757892 | W17: 178.8432421 | Y17: 1000000000 | Z17: 2.08918116 | AB17: 64.97828372 | AC17: -1.136454877 | AE17: 32.22167383 | AF17: -0.0200563747 | AH17: 0 | AI17: 0
A18: 1.5849 | B18: 0.0015849 | C18: 1.000000072 | D18: 0.0003805464099 | E18: 1 | F18: 1.433983735e-06 | G18: 1 | H18: 0 | I18: 1.000240368 | J18: 0.02192350091 | K18: 1.000000017 | L18: 0.0001838287462 | M18: 1 | N18: 8.941360191e-06 | O18: 1 | P18: 1.5849e-09 | Q18: 1 | R18: 1.5849e-09 | S18: 1 | T18: 4.721725369e-06 | U18: 64.35830316 | V18: -1.268366288 | W18: 178.7316337 | Y18: 1000000000 | Z18: 2.51190801 | AB18: 64.9779325 | AC18: -1.246103767 | AE18: 32.22167372 | AF18: -0.02199207694 | AH18: 0 | AI18: 0
A19: 1.7378 | B19: 0.0017378 | C19: 1.000000087 | D19: 0.0004172588457 | E19: 1 | F19: 1.572324396e-06 | G19: 1 | H19: 0 | I19: 1.000288976 | J19: 0.0240377472 | K19: 1.00000002 | L19: 0.0002015632497 | M19: 1 | N19: 9.803959707e-06 | O19: 1 | P19: 1.7378e-09 | Q19: 1 | R19: 1.7378e-09 | S19: 1 | T19: 5.177244208e-06 | U19: 64.35788097 | V19: -1.39068472 | W19: 178.6093153 | Y19: 1000000000 | Z19: 3.01994884 | AB19: 64.97751044 | AC19: -1.366274467 | AE19: 32.2216736 | AF19: -0.02411371754 | AH19: 0 | AI19: 0
A20: 1.9055 | B20: 0.0019055 | C20: 1.000000105 | D20: 0.0004575248712 | E20: 1 | F20: 1.724055781e-06 | G20: 1 | H20: 0 | I20: 1.00034743 | J20: 0.02635639475 | K20: 1.000000024 | L20: 0.0002210143694 | M20: 1 | N20: 1.075005479e-05 | O20: 1 | P20: 1.9055e-09 | Q20: 1 | R20: 1.9055e-09 | S20: 1 | T20: 5.676855127e-06 | U20: 64.35737329 | V20: -1.5248288 | W20: 178.4751712 | Y20: 1000000000 | Z20: 3.63093025 | AB20: 64.97700291 | AC20: -1.498062926 | AE20: 32.22167344 | AF20: -0.02644072289 | AH20: 0 | AI20: 0
A21: 2.0893 | B21: 0.0020893 | C21: 1.000000126 | D21: 0.0005016566255 | E21: 1 | F21: 1.890354103e-06 | G21: 1 | H21: 0 | I21: 1.000417673 | J21: 0.02889731707 | K21: 1.000000029 | L21: 0.0002423328893 | M21: 1 | N21: 1.178697952e-05 | O21: 1 | P21: 2.0893e-09 | Q21: 1 | R21: 2.0893e-09 | S21: 1 | T21: 6.224431076e-06 | U21: 64.35676327 | V21: -1.671832647 | W21: 178.3281674 | Y21: 1000000000 | Z21: 4.36517449 | AB21: 64.97639307 | AC21: -1.642485001 | AE21: 32.22167326 | AF21: -0.02899113176 | AH21: 0 | AI21: 0
A22: 2.2909 | B22: 0.0022909 | C22: 1.000000151 | D22: 0.0005500622907 | E22: 1 | F22: 2.072757485e-06 | G22: 1 | H22: 0 | I22: 1.000502144 | J22: 0.0316838831 | K22: 1.000000035 | L22: 0.000265715988 | M22: 1 | N22: 1.29243246e-05 | O22: 1 | P22: 2.2909e-09 | Q22: 1 | R22: 2.2909e-09 | S22: 1 | T22: 6.825036688e-06 | U22: 64.35602972 | V22: -1.833048335 | W22: 178.1669517 | Y22: 1000000000 | Z22: 5.24822281 | AB22: 64.97565974 | AC22: -1.800868887 | AE22: 32.22167304 | AF22: -0.0317885333 | AH22: 0 | AI22: 0
A23: 2.5119 | B23: 0.0025119 | C23: 1.000000182 | D23: 0.0006031260377 | E23: 1 | F23: 2.272713574e-06 | G23: 1 | H23: 0 | I23: 1.000603669 | J23: 0.03473803381 | K23: 1.000000042 | L23: 0.0002913492458 | M23: 1 | N23: 1.417111658e-05 | O23: 1 | P23: 2.5119e-09 | Q23: 1 | R23: 2.5119e-09 | S23: 1 | T23: 7.483438674e-06 | U23: 64.35514817 | V23: -2.009745346 | W23: 177.9902547 | Y23: 1000000000 | Z23: 6.30964161 | AB23: 64.97477846 | AC23: -1.974461591 | AE23: 32.22167277 | AF23: -0.03485512907 | AH23: 0 | AI23: 0
A24: 2.7542 | B24: 0.0027542 | C24: 1.000000219 | D24: 0.0006613040696 | E24: 1 | F24: 2.491941449e-06 | G24: 1 | H24: 0 | I24: 1.000725703 | J24: 0.03808579684 | K24: 1.000000051 | L24: 0.0003194530388 | M24: 1 | N24: 1.553807448e-05 | O24: 1 | P24: 2.7542e-09 | Q24: 1 | R24: 2.7542e-09 | S24: 1 | T24: 8.205297502e-06 | U24: 64.35408866 | V24: -2.20342963 | W24: 177.7965704 | Y24: 1000000000 | Z24: 7.58561764 | AB24: 64.97371927 | AC24: -2.164742376 | AE24: 32.22167245 | AF24: -0.03821728339 | AH24: 0 | AI24: 0
A25: 3.02 | B25: 0.00302 | C25: 1.000000263 | D25: 0.000725124621 | E25: 1 | F25: 2.732431623e-06 | G25: 1 | H25: 0 | I25: 1.000872468 | J25: 0.04175726515 | K25: 1.000000061 | L25: 0.0003502825396 | M25: 1 | N25: 1.70376098e-05 | O25: 1 | P25: 3.02e-09 | Q25: 1 | R25: 3.02e-09 | S25: 1 | T25: 8.997167401e-06 | U25: 64.35281459 | V25: -2.415842382 | W25: 177.5841576 | Y25: 1000000000 | Z25: 9.1204 | AB25: 64.97244558 | AC25: -2.373421532 | AE25: 32.22167207 | AF25: -0.04190552337 | AH25: 0 | AI25: 0
A26: 3.3113 | B26: 0.0033113 | C26: 1.000000316 | D26: 0.0007950679048 | E26: 1 | F26: 2.995993654e-06 | G26: 1 | H26: 0 | I26: 1.001048805 | J26: 0.04577966547 | K26: 1.000000074 | L26: 0.0003840697231 | M26: 1 | N26: 1.868100574e-05 | O26: 1 | P26: 3.3113e-09 | Q26: 1 | R26: 3.3113e-09 | S26: 1 | T26: 9.86500676e-06 | U26: 64.35128407 | V26: -2.648559025 | W26: 177.351441 | Y26: 1000000000 | Z26: 10.96470769 | AB26: 64.97091552 | AC26: -2.60204639 | AE26: 32.22167161 | AF26: -0.04594760088 | AH26: 0 | AI26: 0
A27: 3.6308 | B27: 0.0036308 | C27: 1.00000038 | D27: 0.0008717822081 | E27: 1 | F27: 3.285070443e-06 | G27: 1 | H27: 0 | I27: 1.001260829 | J27: 0.05018975515 | K27: 1.000000089 | L27: 0.0004211277555 | M27: 1 | N27: 2.048349459e-05 | O27: 1 | P27: 3.6308e-09 | Q27: 1 | R27: 3.6308e-09 | S27: 1 | T27: 1.08168594e-05 | U27: 64.34944415 | V27: -2.903706456 | W27: 177.0962935 | Y27: 1000000000 | Z27: 13.18270864 | AB27: 64.96907616 | AC27: -2.852705923 | AE27: 32.22167105 | AF27: -0.05038098096 | AH27: 0 | AI27: 0
A28: 3.9811 | B28: 0.0039811 | C28: 1.000000457 | D28: 0.0009558918064 | E28: 1 | F28: 3.602014416e-06 | G28: 1 | H28: 0 | I28: 1.001515662 | J28: 0.05502272945 | K28: 1.000000107 | L28: 0.0004617582041 | M28: 1 | N28: 2.24597445e-05 | O28: 1 | P28: 3.9811e-09 | Q28: 1 | R28: 3.9811e-09 | S28: 1 | T28: 1.186047124e-05 | U28: 64.34723325 | V28: -3.183321298 | W28: 176.8166787 | Y28: 1000000000 | Z28: 15.84915721 | AB28: 64.96686593 | AC28: -3.127400231 | AE28: 32.22167039 | AF28: -0.05524174097 | AH28: 0 | AI28: 0
A29: 4.3652 | B29: 0.0043652 | C29: 1.000000549 | D29: 0.001048117017 | E29: 1 | F29: 3.949539908e-06 | G29: 1 | H29: 0 | I29: 1.001821957 | J29: 0.06031906723 | K29: 1.000000128 | L29: 0.000506309031 | M29: 1 | N29: 2.462668023e-05 | O29: 1 | P29: 4.3652e-09 | Q29: 1 | R29: 4.3652e-09 | S29: 1 | T29: 1.300477985e-05 | U29: 64.34457663 | V29: -3.489745992 | W29: 176.510254 | Y29: 1000000000 | Z29: 19.05497104 | AB29: 64.96421011 | AC29: -3.428429615 | AE29: 32.22166958 | AF29: -0.06057150861 | AH29: 0 | AI29: 0
A30: 4.7863 | B30: 0.0047863 | C30: 1.00000066 | D30: 0.001149226177 | E30: 1 | F30: 4.330542211e-06 | G30: 1 | H30: 0 | I30: 1.002190029 | J30: 0.06612169463 | K30: 1.000000154 | L30: 0.0005551513959 | M30: 1 | N30: 2.700235489e-05 | O30: 1 | P30: 4.7863e-09 | Q30: 1 | R30: 4.7863e-09 | S30: 1 | T30: 1.425931865e-05 | U30: 64.34138526 | V30: -3.825464741 | W30: 176.1745353 | Y30: 1000000000 | Z30: 22.90866769 | AB30: 64.9610197 | AC30: -3.75823333 | AE30: 32.22166862 | AF30: -0.0664146867 | AH30: 0 | AI30: 0
A31: 5.2481 | B31: 0.0052481 | C31: 1.000000794 | D31: 0.001260107674 | E31: 1 | F31: 4.748369007e-06 | G31: 1 | H31: 0 | I31: 1.002632438 | J31: 0.07248001864 | K31: 1.000000185 | L31: 0.0006087144517 | M31: 1 | N31: 2.960764238e-05 | O31: 1 | P31: 5.2481e-09 | Q31: 1 | R31: 5.2481e-09 | S31: 1 | T31: 1.563511067e-05 | U31: 64.33755089 | V31: -4.193336937 | W31: 175.8066631 | Y31: 1000000000 | Z31: 27.54255361 | AB31: 64.95718649 | AC31: -4.119618796 | AE31: 32.22166746 | AF31: -0.0728226159 | AH31: 0 | AI31: 0
A32: 5.7544 | B32: 0.0057544 | C32: 1.000000955 | D32: 0.001381673906 | E32: 1 | F32: 5.206458455e-06 | G32: 1 | H32: 0 | I32: 1.003164017 | J32: 0.07944428495 | K32: 1.000000223 | L32: 0.00066743895 | M32: 1.000000001 | N32: 3.246398073e-05 | O32: 1 | P32: 5.7544e-09 | Q32: 1 | R32: 5.7544e-09 | S32: 1 | T32: 1.714347685e-05 | U32: 64.33294593 | V32: -4.596270797 | W32: 175.4037292 | Y32: 1000000000 | Z32: 33.11311936 | AB32: 64.95258292 | AC32: -4.515440853 | AE32: 32.22166606 | AF32: -0.07984802433 | AH32: 0 | AI32: 0
A33: 6.3096 | B33: 0.0063096 | C33: 1.000001148 | D33: 0.001514981328 | E33: 1 | F33: 5.708791579e-06 | G33: 1 | H33: 0 | I33: 1.003802804 | J33: 0.08707228957 | K33: 1.000000268 | L33: 0.0007318352343 | M33: 1.000000001 | N33: 3.559619297e-05 | O33: 1 | P33: 6.3096e-09 | Q33: 1 | R33: 6.3096e-09 | S33: 1 | T33: 1.879752564e-05 | U33: 64.32741547 | V33: -5.037611775 | W33: 174.9623882 | Y33: 1000000000 | Z33: 39.81105216 | AB33: 64.94705414 | AC33: -4.948983152 | AE33: 32.22166439 | AF33: -0.08755196545 | AH33: 0 | AI33: 0
A34: 6.9183 | B34: 0.0069183 | C34: 1.00000138 | D34: 0.001661134414 | E34: 1 | F34: 6.259530364e-06 | G34: 1 | H34: 0 | I34: 1.004570174 | J34: 0.0954236513 | K34: 1.000000322 | L34: 0.0008024368453 | M34: 1.000000001 | N34: 3.903023041e-05 | O34: 1 | P34: 6.9183e-09 | Q34: 1 | R34: 6.9183e-09 | S34: 1 | T34: 2.061096134e-05 | U34: 64.32077642 | V34: -5.520811306 | W34: 174.4791887 | Y34: 1000000000 | Z34: 47.86287489 | AB34: 64.94041711 | AC34: -5.423632514 | AE34: 32.22166237 | AF34: -0.09599826767 | AH34: 0 | AI34: 0
A35: 7.5858 | B35: 0.0075858 | C35: 1.000001659 | D35: 0.001821405706 | E35: 1 | F35: 6.863470135e-06 | G35: 1 | H35: 0 | I35: 1.005492083 | J35: 0.1045663838 | K35: 1.000000387 | L35: 0.0008798585139 | M35: 1.000000001 | N35: 4.27959935e-05 | O35: 1 | P35: 7.5858e-09 | Q35: 1 | R35: 7.5858e-09 | S35: 1 | T35: 2.259957367e-05 | U35: 64.31280705 | V35: -6.049807227 | W35: 173.9501928 | Y35: 1000000000 | Z35: 57.54436164 | AB35: 64.93245016 | AC35: -5.943252329 | AE35: 32.22165995 | AF35: -0.1052604722 | AH35: 0 | AI35: 0
A36: 8.3176 | B36: 0.0083176 | C36: 1.000001994 | D36: 0.001997115757 | E36: 1 | F36: 7.525587175e-06 | G36: 1 | H36: 0 | I36: 1.006599191 | J36: 0.1145696551 | K36: 1.000000465 | L36: 0.0009647381678 | M36: 1.000000001 | N36: 4.692451099e-05 | O36: 1 | P36: 8.3176e-09 | Q36: 1 | R36: 8.3176e-09 | S36: 1 | T36: 2.477974821e-05 | U36: 64.30324638 | V36: -6.628605047 | W36: 173.371395 | Y36: 1000000000 | Z36: 69.18246976 | AB36: 64.92289241 | AC36: -6.511770853 | AE36: 32.22165703 | AF36: -0.1154148948 | AH36: 0 | AI36: 0
A37: 9.1201 | B37: 0.0091201 | C37: 1.000002398 | D37: 0.002189801207 | E37: 1 | F37: 8.251672068e-06 | G37: 1 | H37: 0 | I37: 1.007928776 | J37: 0.1255128697 | K37: 1.000000559 | L37: 0.001057818122 | M37: 1.000000001 | N37: 5.145188908e-05 | O37: 1 | P37: 9.1201e-09 | Q37: 1 | R37: 9.1201e-09 | S37: 1 | T37: 2.717055179e-05 | U37: 64.29177834 | V37: -7.261803752 | W37: 172.7381962 | Y37: 1000000000 | Z37: 83.17622401 | AB37: 64.91142787 | AC37: -7.133697177 | AE37: 32.22165353 | AF37: -0.1265503392 | AH37: 0 | AI37: 0
A38: 10 | B38: 0.01 | C38: 1.000002883 | D38: 0.002401070711 | E38: 1 | F38: 9.047786832e-06 | G38: 1 | H38: 0 | I38: 1.009524931 | J38: 0.1374768148 | K38: 1.000000673 | L38: 0.001159875486 | M38: 1.000000002 | N38: 5.641592644e-05 | O38: 1 | P38: 1e-08 | Q38: 1 | R38: 1e-08 | S38: 1 | T38: 2.979194504e-05 | U38: 64.27803102 | V38: -7.954083856 | W38: 172.0459161 | Y38: 1000000000 | Z38: 100 | AB38: 64.89768477 | AC38: -7.813617705 | AE38: 32.22164932 | AF38: -0.1387597709 | AH38: 0 | AI38: 0
A39: 10.965 | B39: 0.010965 | C39: 1.000003466 | D39: 0.002632773011 | E39: 1 | F39: 9.920898261e-06 | G39: 1 | H39: 0 | I39: 1.011441033 | J39: 0.1505523569 | K39: 1.000000809 | L39: 0.001271803355 | M39: 1.000000002 | N39: 6.186006333e-05 | O39: 1 | P39: 1.0965e-08 | Q39: 1 | R39: 1.0965e-08 | S39: 1 | T39: 3.266686774e-05 | U39: 64.26155675 | V39: -8.710711085 | W39: 171.2892889 | Y39: 1000000000 | Z39: 120.231225 | AB39: 64.88121555 | AC39: -8.556690009 | AE39: 32.22164425 | AF39: -0.1521500302 | AH39: 0 | AI39: 0
A40: 12.023 | B40: 0.012023 | C40: 1.000004167 | D40: 0.002886804844 | E40: 1 | F40: 1.087815411e-05 | G40: 1 | H40: 0 | I40: 1.013739712 | J40: 0.1648285042 | K40: 1.000000972 | L40: 0.001394518019 | M40: 1.000000002 | N40: 6.782886833e-05 | O40: 1 | P40: 1.2023e-08 | Q40: 1 | R40: 1.2023e-08 | S40: 1 | T40: 3.581885552e-05 | U40: 64.24183425 | V40: -9.536846266 | W40: 170.4631537 | Y40: 1000000000 | Z40: 144.552529 | AB40: 64.86149915 | AC40: -9.367963955 | AE40: 32.22163816 | AF40: -0.166830731 | AH40: 0 | AI40: 0
A41: 13.183 | B41: 0.013183 | C41: 1.00000501 | D41: 0.003165327029 | E41: 1 | F41: 1.192769738e-05 | G41: 1 | H41: 0 | I41: 1.016496292 | J41: 0.1804032482 | K41: 1.000001169 | L41: 0.001529063348 | M41: 1.000000003 | N41: 7.437311577e-05 | O41: 1 | P41: 1.3183e-08 | Q41: 1 | R41: 1.3183e-08 | S41: 1 | T41: 3.927472115e-05 | U41: 64.21824185 | V41: -10.4381734 | W41: 169.5618266 | Y41: 1000000000 | Z41: 173.791489 | AB41: 64.83791407 | AC41: -10.25299713 | AE41: 32.22163084 | AF41: -0.1829267488 | AH41: 0 | AI41: 0
A42: 14.454 | B42: 0.014454 | C42: 1.000006022 | D42: 0.003470500341 | E42: 1 | F42: 1.307767109e-05 | G42: 1 | H42: 0 | I42: 1.019798095 | J42: 0.1973670822 | K42: 1.000001405 | L42: 0.001676483209 | M42: 1.000000003 | N42: 8.154357998e-05 | O42: 1 | P42: 1.4454e-08 | Q42: 1 | R42: 1.4454e-08 | S42: 1 | T42: 4.306127736e-05 | U42: 64.19006715 | V42: -11.41994689 | W42: 168.5800531 | Y42: 1000000000 | Z42: 208.918116 | AB42: 64.80974816 | AC42: -11.21691753 | AE42: 32.22162205 | AF42: -0.2005629567 | AH42: 0 | AI42: 0
A43: 15.849 | B43: 0.015849 | C43: 1.000007241 | D43: 0.003805445913 | E43: 1 | F43: 1.433983735e-05 | G43: 1 | H43: 0 | I43: 1.023757488 | J43: 0.2158540331 | K43: 1.00000169 | L43: 0.001838285412 | M43: 1.000000004 | N43: 8.941360167e-05 | O43: 1 | P43: 1.5849e-08 | Q43: 1 | R43: 1.5849e-08 | S43: 1 | T43: 4.72172537e-05 | U43: 64.15640113 | V43: -12.4899463 | W43: 167.5100537 | Y43: 1000000000 | Z43: 251.190801 | AB43: 64.77609273 | AC43: -12.26732213 | AE43: 32.22161146 | AF43: -0.2199197274 | AH43: 0 | AI43: 0
A44: 17.378 | B44: 0.017378 | C44: 1.000008705 | D44: 0.004172564484 | E44: 1 | F44: 1.572324396e-05 | G44: 1 | H44: 0 | I44: 1.028495792 | J44: 0.2359456423 | K44: 1.000002031 | L44: 0.002015629794 | M44: 1.000000005 | N44: 9.803959676e-05 | O44: 1 | P44: 1.7378e-08 | Q44: 1 | R44: 1.7378e-08 | S44: 1 | T44: 5.17724421e-05 | U44: 64.11628281 | V44: -13.65292084 | W44: 166.3470792 | Y44: 1000000000 | Z44: 301.994884 | AB44: 64.73598713 | AC44: -13.40881969 | AE44: 32.22159874 | AF44: -0.2411358019 | AH44: 0 | AI44: 0
A45: 19.055 | B45: 0.019055 | C45: 1.000010466 | D45: 0.004575217108 | E45: 1 | F45: 1.724055781e-05 | G45: 1 | H45: 0 | I45: 1.03416543 | J45: 0.257760511 | K45: 1.000002442 | L45: 0.002210140132 | M45: 1.000000006 | N45: 0.0001075005475 | O45: 1 | P45: 1.9055e-08 | Q45: 1 | R45: 1.9055e-08 | S45: 1 | T45: 5.676855129e-05 | U45: 64.06852114 | V45: -14.91577397 | W45: 165.084226 | Y45: 1000000000 | Z45: 363.093025 | AB45: 64.68824075 | AC45: -14.64811705 | AE45: 32.22158344 | AF45: -0.2644054181 | AH45: 0 | AI45: =IF(AH45>0,W43,0) -> 0
A46: 20.893 | B46: 0.020893 | C46: 1.000012583 | D46: 0.005016524595 | E46: 1 | F46: 1.890354103e-05 | G46: 1 | H46: 0 | I46: 1.04093804 | J46: 0.28138425 | K46: 1.000002936 | L46: 0.002423324196 | M46: 1.000000007 | N46: 0.0001178697947 | O46: 1 | P46: 2.0893e-08 | Q46: 1 | R46: 2.0893e-08 | S46: 1 | T46: 6.224431079e-05 | U46: 64.01180976 | V46: -16.28351123 | W46: 163.7164888 | Y46: 1000000000 | Z46: 436.517449 | AB46: 64.63154776 | AC46: -15.99003716 | AE46: 32.22156506 | AF46: -0.2899089306 | AH46: 0 | AI46: 0
A47: 22.909 | B47: 0.022909 | C47: 1.000015128 | D47: 0.005500567986 | E47: 1 | F47: 2.072757485e-05 | G47: 1 | H47: 0 | I47: 1.049025294 | J47: 0.3069291703 | K47: 1.00000353 | L47: 0.002657153689 | M47: 1.000000008 | N47: 0.0001292432453 | O47: 1 | P47: 2.2909e-08 | Q47: 1 | R47: 2.2909e-08 | S47: 1 | T47: 6.825036692e-05 | U47: 63.9445712 | V47: -17.76269882 | W47: 162.2373012 | Y47: 1000000000 | Z47: 524.822281 | AB47: 64.56433131 | AC47: -17.44090749 | AE47: 32.22154295 | AF47: -0.3178821863 | AH47: 0 | AI47: 0
A48: 25.119 | B48: 0.025119 | C48: 1.000018188 | D48: 0.006031187979 | E48: 1 | F48: 2.272713574e-05 | G48: 1 | H48: 0 | I48: 1.058664369 | J48: 0.3344638814 | K48: 1.000004244 | L48: 0.002913484297 | M48: 1.00000001 | N48: 0.0001417111648 | O48: 1 | P48: 2.5119e-08 | Q48: 1 | R48: 2.5119e-08 | S48: 1 | T48: 7.483438679e-05 | U48: 63.86510408 | V48: -19.35739132 | W48: 160.6426087 | Y48: 1000000000 | Z48: 630.964161 | AB48: 64.48489076 | AC48: -19.00455793 | AE48: 32.22151638 | AF48: -0.3485471426 | AH48: 0 | AI48: 0
A49: 27.542 | B49: 0.027542 | C49: 1.000021866 | D49: 0.006612945261 | E49: 1 | F49: 2.491941449e-05 | G49: 1 | H49: 0 | I49: 1.070136989 | J49: 0.3640574109 | K49: 1.000005102 | L49: 0.00319451963 | M49: 1.000000012 | N49: 0.0001553807435 | O49: 1 | P49: 2.7542e-08 | Q49: 1 | R49: 2.7542e-08 | S49: 1 | T49: 8.205297508e-05 | U49: 63.77145798 | V49: -21.07169041 | W49: 158.9283096 | Y49: 1000000000 | Z49: 758.561764 | AB49: 64.39127661 | AC49: -20.68482334 | AE49: 32.22148443 | AF49: -0.3821673659 | AH49: 0 | AI49: 0
A50: 30.2 | B50: 0.0302 | C50: 1.00002629 | D50: 0.007251120394 | E50: 1 | F50: 2.732431623e-05 | G50: 1 | H50: 0 | I50: 1.08377572 | J50: 0.3957696281 | K50: 1.000006135 | L50: 0.003502811213 | M50: 1.000000015 | N50: 0.0001703760964 | O50: 1 | P50: 3.02e-08 | Q50: 1 | R50: 3.02e-08 | S50: 1 | T50: 8.99716741e-05 | U50: 63.66142767 | V50: -22.9091962 | W50: 157.0908038 | Y50: 1000000000 | Z50: 912.04 | AB50: 64.28128473 | AC50: -22.48499491 | AE50: 32.22144601 | AF50: -0.419048025 | AH50: 0 | AI50: 0
A51: 33.113 | B51: 0.033113 | C51: 1.000031606 | D51: 0.0079505132 | E51: 1 | F51: 2.995993653e-05 | G51: 1 | H51: 0 | I51: 1.099941337 | J51: 0.4295832689 | K51: 1.000007375 | L51: 0.003840678535 | M51: 1.000000017 | N51: 0.0001868100552 | O51: 1 | P51: 3.3113e-08 | Q51: 1 | R51: 3.3113e-08 | S51: 1 | T51: 9.865006771e-05 | U51: 63.53279012 | V51: -24.86907388 | W51: 155.1309261 | Y51: 1000000000 | Z51: 1096.470769 | AB51: 64.15269335 | AC51: -24.40395704 | AE51: 32.22139983 | AF51: -0.4594665065 | AH51: 0 | AI51: 0
A52: 36.308 | B52: 0.036308 | C52: 1.000038 | D52: 0.008717603447 | E52: 1.000000001 | F52: 3.285070442e-05 | G52: 1 | H52: 0 | I52: 1.119073181 | J52: 0.4655014111 | K52: 1.000008867 | L52: 0.004211252909 | M52: 1.000000021 | N52: 0.0002048349431 | O52: 1 | P52: 3.6308e-08 | Q52: 1 | R52: 3.6308e-08 | S52: 1.000000001 | T52: 0.0001081685942 | U52: 63.38296823 | V52: -26.95170821 | W52: 153.0482918 | Y52: 1000000000 | Z52: 1318.270864 | AB52: 64.00292699 | AC52: -26.4417154 | AE52: 32.2213443 | AF52: -0.5037972828 | AH52: 0 | AI52: 0
A53: 39.811 | B53: 0.039811 | C53: 1.000045685 | D53: 0.00955862985 | E53: 1.000000001 | F53: 3.602014414e-05 | G53: 1 | H53: 0 | I53: 1.141648885 | J53: 0.5034443471 | K53: 1.000010661 | L53: 0.004617549551 | M53: 1.000000025 | N53: 0.0002245974412 | O53: 1 | P53: 3.9811e-08 | Q53: 1 | R53: 3.9811e-08 | S53: 1.000000001 | T53: 0.0001186047126 | U53: 63.20943564 | V53: -29.15273289 | W53: 150.8472671 | Y53: 1000000000 | Z53: 1584.915721 | AB53: 63.82946116 | AC53: -28.59353873 | AE53: 32.22127754 | AF53: -0.5524008962 | AH53: 0 | AI53: 0
A54: 43.652 | B54: 0.043652 | C54: 1.000054926 | D54: 0.01048079023 | E54: 1.000000001 | F54: 3.949539906e-05 | G54: 1 | H54: 0 | I54: 1.168213737 | J54: 0.543299277 | K54: 1.000012817 | L54: 0.00506304748 | M54: 1.00000003 | N54: 0.0002462667974 | O54: 1 | P54: 4.3652e-08 | Q54: 1 | R54: 4.3652e-08 | S54: 1.000000001 | T54: 0.0001300477987 | U54: 63.00957903 | V54: -31.46591642 | W54: 148.5340836 | Y54: 1000000000 | Z54: 1905.497104 | AB54: 63.6296848 | AC54: -30.85277442 | AE54: 32.22119729 | AF54: -0.6056933172 | AH54: 0 | AI54: 0
A55: 47.863 | B55: 0.047863 | C55: 1.000066034 | D55: 0.01149176093 | E55: 1.000000001 | F55: 4.330542209e-05 | G55: 1 | H55: 0 | I55: 1.199368731 | J55: 0.5848915891 | K55: 1.00001541 | L55: 0.005551457499 | M55: 1.000000036 | N55: 0.0002700235424 | O55: 1 | P55: 4.7863e-08 | Q55: 1 | R55: 4.7863e-08 | S55: 1.000000001 | T55: 0.0001425931869 | U55: 62.78089675 | V55: -33.88150111 | W55: 146.1184989 | Y55: 1000000000 | Z55: 2290.866769 | AB55: 63.401099 | AC55: -33.20921569 | AE55: 32.22110081 | AF55: -0.6641181712 | AH55: 0 | AI55: 0
A56: 52.481 | B56: 0.052481 | C56: 1.000079391 | D56: 0.01260041651 | E56: 1.000000001 | F56: 4.748369004e-05 | G56: 1 | H56: 0 | I56: 1.235791508 | J56: 0.6280105428 | K56: 1.000018526 | L56: 0.006087070088 | M56: 1.000000044 | N56: 0.0002960764152 | O56: 1 | P56: 5.2481e-08 | Q56: 1 | R56: 5.2481e-08 | S56: 1.000000001 | T56: 0.0001563511072 | U56: 62.52095807 | V56: -36.38769772 | W56: 143.6123023 | Y56: 1000000000 | Z56: 2754.255361 | AB56: 63.14127632 | AC56: -35.65055414 | AE56: 32.2209848 | AF56: -0.7281883306 | AH56: 0 | AI56: 0
A57: 57.544 | B57: 0.057544 | C57: 1.000095447 | D57: 0.01381586873 | E57: 1.000000001 | F57: 5.20645845e-05 | G57: 1 | H57: 0 | I57: 1.278203642 | J57: 0.672369644 | K57: 1.000022273 | L57: 0.006674291385 | M57: 1.000000053 | N57: 0.000324639796 | O57: 1 | P57: 5.7544e-08 | Q57: 1 | R57: 5.7544e-08 | S57: 1.000000001 | T57: 0.0001714347691 | U57: 62.2277542 | V57: -38.96838425 | W57: 141.0316158 | Y57: 1000000000 | Z57: 3311.311936 | AB57: 62.84821191 | AC57: -38.16013468 | AE57: 32.22084535 | AF57: -0.7984303774 | AH57: 0 | AI57: 0
A58: 63.096 | B58: 0.063096 | C58: 1.000114752 | D58: 0.01514866598 | E58: 1.000000002 | F58: 5.708791573e-05 | G58: 1 | H58: 0 | I58: 1.327406086 | J58: 0.7176564498 | K58: 1.000026779 | L58: 0.007318223001 | M58: 1.000000063 | N58: 0.0003559619148 | O58: 1 | P58: 6.3096e-08 | Q58: 1 | R58: 6.3096e-08 | S58: 1.000000002 | T58: 0.0001879752572 | U58: 61.89955049 | V58: -41.60599808 | W58: 138.3940019 | Y58: 1000000000 | Z58: 3981.105216 | AB58: 62.52017587 | AC58: -40.71977758 | AE58: 32.22067769 | AF58: -0.8754539192 | AH58: 0 | AI58: 0
A59: 69.183 | B59: 0.069183 | C59: 1.000137959 | D59: 0.01660983178 | E59: 1.000000002 | F59: 6.259530356e-05 | G59: 1 | H59: 0 | I59: 1.38424114 | J59: 0.7635041477 | K59: 1.000032195 | L59: 0.00802419795 | M59: 1.000000076 | N59: 0.0003903022845 | O59: 1 | P59: 6.9183e-08 | Q59: 1 | R59: 6.9183e-08 | S59: 1.000000002 | T59: 0.0002061096144 | U59: 61.53523692 | V59: -44.27987662 | W59: 135.7201234 | Y59: 1000000000 | Z59: 4786.287489 | AB59: 62.15606384 | AC59: -43.30817535 | AE59: 32.22047614 | AF59: -0.9598960246 | AH59: 0 | AI59: 0
A60: 75.858 | B60: 0.075858 | C60: 1.000165863 | D60: 0.01821206341 | E60: 1.000000002 | F60: 6.863470124e-05 | G60: 1 | H60: 0 | I60: 1.449631979 | J60: 0.8095417618 | K60: 1.000038707 | L60: 0.008798360372 | M60: 1.000000092 | N60: 0.0004279599091 | O60: 1 | P60: 7.5858e-08 | Q60: 1 | R60: 7.5858e-08 | S60: 1.000000003 | T60: 0.000225995738 | U60: 61.13413084 | V60: -46.96917247 | W60: 133.0308275 | Y60: 1000000000 | Z60: 5754.436164 | AB60: 61.75520009 | AC60: -45.90373772 | AE60: 32.22023381 | AF60: -1.052490494 | AH60: 0 | AI60: 0
A61: 83.176 | B61: 0.083176 | C61: 1.000199404 | D61: 0.0199685296 | E61: 1.000000003 | F61: 7.525587161e-05 | G61: 1 | H61: 0 | I61: 1.524530452 | J61: 0.855369476 | K61: 1.000046535 | L61: 0.009647085387 | M61: 1.00000011 | N61: 0.0004692450758 | O61: 1 | P61: 8.3176e-08 | Q61: 1 | R61: 8.3176e-08 | S61: 1.000000003 | T61: 0.0002477974838 | U61: 60.69634054 | V61: -49.6514008 | W61: 130.3485992 | Y61: 1000000000 | Z61: 6918.246976 | AB61: 61.31770107 | AC61: -48.48320944 | AE61: 32.21994252 | AF61: -1.153998377 | AH61: 0 | AI61: 0
A62: 91.201 | B62: 0.091201 | C62: 1.000239733 | D62: 0.02189454786 | E62: 1.000000003 | F62: 8.25167205e-05 | G62: 1 | H62: 0 | I62: 1.609981917 | J62: 0.9006189758 | K62: 1.000055947 | L62: 0.01057779063 | M62: 1.000000132 | N62: 0.0005145188459 | O62: 1 | P62: 9.1201e-08 | Q62: 1 | R62: 9.1201e-08 | S62: 1.000000004 | T62: 0.0002717055203 | U62: 60.22237398 | V62: -52.30595058 | W62: 127.6940494 | Y62: 1000000000 | Z62: 8317.622401 | AB62: 60.84408474 | AC62: -51.02508332 | AE62: 32.2195923 | AF62: -1.265304908 | AH62: 0 | AI62: 0
A63: 100 | B63: 0.1 | C63: 1.000288217 | D63: 0.02400614065 | E63: 1.000000004 | F63: 9.047786807e-05 | G63: 1 | H63: 0 | I63: 1.70706143 | J63: 0.9449270536 | K63: 1.000067263 | L63: 0.01159823997 | M63: 1.000000159 | N63: 0.0005641592051 | O63: 1 | P63: 1e-07 | Q63: 1 | R63: 1e-07 | S63: 1.000000004 | T63: 0.0002979194535 | U63: 59.71348799 | V63: -54.91252579 | W63: 125.0874742 | Y63: 1000000000 | Z63: 10000 | AB63: 60.33561976 | AC63: -53.50812592 | AE63: 32.21917129 | AF63: -1.38733607 | AH63: 0 | AI63: 0
A64: 109.65 | B64: 0.10965 | C64: 1.000346516 | D64: 0.02632171041 | E64: 1.000000005 | F64: 9.920898229e-05 | G64: 1 | H64: 0 | I64: 1.816946959 | J64: 0.9879844479 | K64: 1.000080871 | L64: 0.01271735477 | M64: 1.000000191 | N64: 0.0006186005552 | O64: 1 | P64: 1.0965e-07 | Q64: 1 | R64: 1.0965e-07 | S64: 1.000000005 | T64: 0.0003266686814 | U64: 59.17123768 | V64: -57.45399745 | W64: 122.5460025 | Y64: 1000000000 | Z64: 12023.1225 | AB64: 59.79387567 | AC64: -55.9141316 | AE64: 32.21866507 | AF64: -1.521155398 | AH64: 0 | AI64: 0
A65: 120.23 | B65: 0.12023 | C65: 1.000416598 | D65: 0.02886011337 | E65: 1.000000006 | F65: 0.0001087815407 | G65: 1 | H65: 0 | I65: 1.940829795 | J65: 1.029504547 | K65: 1.000097229 | L65: 0.01394428536 | M65: 1.00000023 | N65: 0.0006782885803 | O65: 1 | P65: 1.2023e-07 | Q65: 1 | R65: 1.2023e-07 | S65: 1.000000006 | T65: 0.0003581885606 | U65: 58.59786691 | V65: -59.91454846 | W65: 120.0854515 | Y65: 1000000000 | Z65: 14455.2529 | AB65: 59.22111338 | AC65: -58.22617999 | AE65: 32.21805658 | AF65: -1.667852664 | AH65: 0 | AI65: 0
A66: 131.83 | B66: 0.13183 | C66: 1.000500843 | D66: 0.0316428108 | E66: 1.000000007 | F66: 0.0001192769732 | G66: 1 | H66: 0 | I66: 2.080017105 | J66: 1.069269065 | K66: 1.000116895 | L66: 0.01528945389 | M66: 1.000000277 | N66: 0.0007437310219 | O66: 1 | P66: 1.3183e-07 | Q66: 1 | R66: 1.3183e-07 | S66: 1.000000008 | T66: 0.0003927472185 | U66: 57.99571678 | V66: -62.28235954 | W66: 117.7176405 | Y66: 1000000000 | Z66: 17379.1489 | AB66: 58.61969466 | AC66: -60.43119613 | AE66: 32.21732517 | AF66: -1.828668204 | AH66: 0 | AI66: 0
A67: 144.54 | B67: 0.14454 | C67: 1.000602042 | D67: 0.03469121931 | E67: 1.000000009 | F67: 0.0001307767101 | G67: 1 | H67: 0 | I67: 2.235803083 | J67: 1.107089478 | K67: 1.00014052 | L67: 0.01676327742 | M67: 1.000000332 | N67: 0.0008154356209 | O67: 1 | P67: 1.4454e-07 | Q67: 1 | R67: 1.4454e-07 | S67: 1.000000009 | T67: 0.0004306127829 | U67: 57.36771006 | V67: -64.54731447 | W67: 115.4526855 | Y67: 1000000000 | Z67: 20891.8116 | AB67: 57.99256647 | AC67: -62.51781066 | AE67: 32.21644665 | AF67: -2.004839796 | AH67: 0 | AI67: 0
A68: 158.49 | B68: 0.15849 | C68: 1.000723816 | D68: 0.03803628908 | E68: 1.00000001 | F68: 0.0001433983725 | G68: 1 | H68: 0 | I68: 2.409966689 | J68: 1.142915629 | K68: 1.000168951 | L68: 0.01838080454 | M68: 1.0000004 | N68: 0.0008941357808 | O68: 1 | P68: 1.5849e-07 | Q68: 1 | R68: 1.5849e-07 | S68: 1.000000011 | T68: 0.0004721725492 | U68: 56.71534959 | V68: -66.70753025 | W68: 113.2924698 | Y68: 1000000000 | Z68: 25119.0801 | AB68: 57.34126301 | AC68: -64.48232963 | AE68: 32.21538964 | AF68: -2.198156208 | AH68: 0 | AI68: 0
A69: 173.78 | B69: 0.17378 | C69: 1.000870146 | D69: 0.04170169665 | E69: 1.000000012 | F69: 0.0001572324383 | G69: 1 | H69: 0 | I69: 2.60391233 | J69: 1.176631159 | K69: 1.000203118 | L69: 0.02015359622 | M69: 1.000000481 | N69: 0.0009803956566 | O69: 1 | P69: 1.7378e-07 | Q69: 1 | R69: 1.7378e-07 | S69: 1.000000013 | T69: 0.0005177244371 | U69: 56.04206924 | V69: -68.75709544 | W69: 111.2429046 | Y69: 1000000000 | Z69: 30199.4884 | AB69: 56.66925266 | AC69: -66.31745609 | AE69: 32.21411964 | AF69: -2.409985889 | AH69: 0 | AI69: 0
A70: 190.55 | B70: 0.19055 | C70: 1.001046098 | D70: 0.04572060594 | E70: 1.000000015 | F70: 0.0001724055764 | G70: 1 | H70: 0 | I70: 2.819541403 | J70: 1.208237788 | K70: 1.000244207 | L70: 0.0220978397 | M70: 1.000000578 | N70: 0.001075005065 | O70: 1 | P70: 1.9055e-07 | Q70: 1 | R70: 1.9055e-07 | S70: 1.000000016 | T70: 0.0005676855341 | U70: 55.34985601 | V70: -70.69716697 | W70: 109.302833 | Y70: 1000000000 | Z70: 36309.3025 | AB70: 55.97856627 | AC70: -68.02240626 | AE70: 32.2125928 | AF70: -2.642245633 | AH70: 0 | AI70: 0
A71: 208.93 | B71: 0.20893 | C71: 1.001257506 | D71: 0.05012364798 | E71: 1.000000018 | F71: 0.000189035408 | G71: 1 | H71: 0 | I71: 3.058627194 | J71: 1.237728215 | K71: 1.000293583 | L71: 0.02422854739 | M71: 1.000000695 | N71: 0.001178697406 | O71: 1 | P71: 2.0893e-07 | Q71: 1 | R71: 2.0893e-07 | S71: 1.000000019 | T71: 0.0006224431359 | U71: 54.64148821 | V71: -72.52830118 | W71: 107.4716988 | Y71: 1000000000 | Z71: 43651.7449 | AB71: 55.27203262 | AC71: -69.59594386 | AE71: 32.21075864 | AF71: -2.89670592 | AH71: 0 | AI71: 0
A72: 229.09 | B72: 0.22909 | C72: 1.0015117 | D72: 0.05495085792 | E72: 1.000000021 | F72: 0.0002072757456 | G72: 1 | H72: 0 | I72: 3.323463052 | J72: 1.265169552 | K72: 1.000352963 | L72: 0.02656534845 | M72: 1.000000835 | N72: 0.001292431741 | O72: 1 | P72: 2.2909e-07 | Q72: 1 | R72: 2.2909e-07 | S72: 1.000000023 | T72: 0.0006825037061 | U72: 53.91851155 | V72: -74.25561656 | W72: 105.7443834 | Y72: 1000000000 | Z72: 52482.2281 | AB72: 54.55126081 | AC72: -71.04084431 | AE72: 32.20855379 | AF72: -3.175680799 | AH72: 0 | AI72: 0
A73: 251.19 | B73: 0.25119 | C73: 1.001817155 | D73: 0.06023963901 | E73: 1.000000026 | F73: 0.0002272713535 | G73: 1 | H73: 0 | I73: 3.616216886 | J73: 1.290612735 | K73: 1.000424332 | L73: 0.02912668593 | M73: 1.000001004 | N73: 0.001417110709 | O73: 1 | P73: 2.5119e-07 | Q73: 1 | R73: 2.5119e-07 | S73: 1.000000028 | T73: 0.0007483439165 | U73: 53.18320871 | V73: -75.88321594 | W73: 104.1167841 | Y73: 1000000000 | Z73: 63096.4161 | AB73: 53.81860671 | AC73: -72.35902104 | AE73: 32.20590506 | AF73: -3.481332337 | AH73: 0 | AI73: 0
A74: 275.42 | B74: 0.27542 | C74: 1.002184231 | D74: 0.06603426754 | E74: 1.000000031 | F74: 0.0002491941398 | G74: 1 | H74: 0 | I74: 3.939456513 | J74: 1.3141459 | K74: 1.000510121 | L74: 0.03193444486 | M74: 1.000001207 | N74: 0.001553806197 | O74: 1 | P74: 2.7542e-07 | Q74: 1 | R74: 2.7542e-07 | S74: 1.000000033 | T74: 0.000820529815 | U74: 52.43713292 | V74: -77.41754852 | W74: 102.5824515 | Y74: 1000000000 | Z74: 75856.1764 | AB74: 53.07571294 | AC74: -73.55433145 | AE74: 32.20272304 | AF74: -3.816219961 | AH74: 0 | AI74: 0
A75: 302 | B75: 0.302 | C75: 1.002625583 | D75: 0.07238578264 | E75: 1.000000037 | F75: 0.0002732431555 | G75: 1 | H75: 0 | I75: 4.296158888 | J75: 1.33587542 | K75: 1.000613301 | L75: 0.03501393962 | M75: 1.000001451 | N75: 0.001703759332 | O75: 1 | P75: 3.02e-07 | Q75: 1 | R75: 3.02e-07 | S75: 1.00000004 | T75: 0.0008997168256 | U75: 51.68132168 | V75: -78.86631769 | W75: 101.1336823 | Y75: 1000000000 | Z75: 91204 | AB75: 52.32372605 | AC75: -74.63149088 | AE75: 32.1988987 | AF75: -4.183294144 | AH75: 0 | AI75: 0
A76: 331.13 | B76: 0.33113 | C76: 1.003155687 | D76: 0.07933991013 | E76: 1.000000045 | F76: 0.0002995993564 | G76: 1 | H76: 0 | I76: 4.689039818 | J76: 1.35588246 | K76: 1.000737276 | L76: 0.03838810624 | M76: 1.000001745 | N76: 0.001868098401 | O76: 1 | P76: 3.3113e-07 | Q76: 1 | R76: 3.3113e-07 | S76: 1.000000048 | T76: 0.0009865007886 | U76: 50.91773236 | V76: -80.23560215 | W76: 99.76439785 | Y76: 1000000000 | Z76: 109647.0769 | AB76: 51.56472788 | AC76: -75.59390024 | AE76: 32.19430754 | AF76: -4.585198556 | AH76: 0 | AI76: 0
A77: 363.08 | B77: 0.36308 | C77: =SQRT(1+(A77/pole1)^2) -> 1.00379283 | D77: =ATAN(A77/pole1) -> 0.08695839167 | E77: =SQRT(1+(A77/Zero1)^2) -> 1.000000054 | F77: =ATAN(A77/Zero1) -> 0.0003285070325 | G77: =IF(VIN_nom>Vout, 1, SQRT(1+(A77/z_RHP)^2)) -> 1 | H77: =IF(VIN_nom>Vout, 0, -ATAN(A77/z_RHP)) -> 0 | I77: =SQRT(1+(A77/Pole2)^2) -> 5.121765172 | J77: =ATAN(A77/Pole2) -> 1.374288884 | K77: =SQRT(1+(A77/Zero2)^2) -> 1.00088635 | L77: =ATAN(A77/Zero2) -> 0.04208790902 | M77: =SQRT(1+(A77/pole4)^2) -> 1.000002098 | N77: =ATAN(A77/pole4) -> 0.002048346595 | O77: =SQRT(1+(A77/Zero3)^2) -> 1 | P77: =ATAN(A77/Zero3) -> 3.6308e-07 | Q77: =SQRT(1+(A77/pole5)^2) -> 1 | R77: =ATAN(A77/pole5) -> 3.6308e-07 | S77: =SQRT((1-(Z77/pterm2))^2+(A77/pterm1)^2) -> 1.000000058 | T77: =IF((ATAN((A77/pterm1)/(1-A77^2/pterm2))>0),ATAN((A77/pterm1)/(1-A77^2/pterm2)),PI()+ATAN((A77/pterm1)/(1-A77^2/pterm2))) -> 0.001081686089 | U77: =20*LOG10(((E77*K77*G77*O77)/(C77*I77*S77*M77*Q77))*Adc) -> 50.14679324 | V77: =((F77+L77+H77+R77)-(D77+J77+T77+N77+T77))*radconv -> -81.53431311 | W77: =IF(V77>0,V77,V77+180) -> 98.46568689 | Y77: =IF(U77<0,A77,1000000000) -> 1000000000 | Z77: =A77^2 -> 131827.0864 | AB77: =20*LOG10((K77/(I77*M77))*AEA) -> 50.79930377 | AC77: =(L77-(J77+N77))*radconv -> -76.44685505 | AE77: =20*LOG10((E77*G77/(C77*S77))*Acs*Am) -> 32.18879253 | AF77: =(F77+H77-(D77+T77))*radconv -> -5.025502823 | AH77: =SUM((U78<0)*(U77>0))*A77 -> 0 | AI77: =IF(AH77>0,W75,0) -> 0
A78: 398.11 | B78: =A78/1000 -> 0.39811 | C78: 1.00455826 | D78: 0.09529965323 | E78: 1.000000065 | F78: 0.000360201426 | G78: 1 | H78: 0 | I78: 5.597876171 | J78: 1.391193118 | K78: 1.001065536 | L78: 0.04614304681 | M78: 1.000002522 | N78: 0.002245970673 | O78: 1 | P78: 3.9811e-07 | Q78: 1 | R78: 3.9811e-07 | S78: 1.000000069 | T78: 0.00118604732 | U78: 49.36965113 | V78: -82.76989517 | W78: 97.23010483 | Y78: 1000000000 | Z78: 158491.5721 | AB78: 50.02878246 | AC78: -77.19437707 | AE78: 32.18217174 | AF78: -5.50758541 | AH78: 0 | AI78: 0
A79: 436.52 | B79: 0.43652 | C79: 1.005477748 | D79: 0.104430447 | E79: 1.000000078 | F79: 0.0003949539703 | G79: 1 | H79: 0 | I79: 6.121464984 | J79: 1.406701293 | K79: 1.001280924 | L79: 0.05058770993 | M79: 1.000003032 | N79: 0.002462663045 | O79: 1 | P79: 4.3652e-07 | Q79: 1 | R79: 4.3652e-07 | S79: 1.000000083 | T79: 0.001300478243 | U79: 48.586927 | V79: -83.95047865 | W79: 96.04952135 | Y79: 1000000000 | Z79: 190549.7104 | AB79: 49.25400503 | AC79: -77.84068515 | AE79: 32.17422504 | AF79: -6.035306592 | AH79: 0 | AI79: 0
A80: 478.63 | B80: 0.47863 | C80: 1.006581949 | D80: 0.1144207037 | E80: 1.000000094 | F80: 0.0004330541941 | G80: 1 | H80: 0 | I80: 6.696904901 | J80: 1.420913057 | K80: 1.00153978 | L80: 0.05545821923 | M80: 1.000003646 | N80: 0.002700228927 | O80: 1 | P80: 4.7863e-07 | Q80: 1 | R80: 4.7863e-07 | S80: 1.0000001 | T80: 0.001425932205 | U80: 47.79925817 | V80: -85.08389476 | W80: 94.91610524 | Y80: 1000000000 | Z80: 229086.6769 | AB80: 48.47586969 | AC80: -78.38951115 | AE80: 32.16469154 | AF80: -6.61271114 | AH80: 0 | AI80: 0
A81: 524.81 | B81: 0.52481 | C81: 1.007908096 | D81: 0.1253501532 | E81: 1.000000113 | F81: 0.000474836865 | G81: 1 | H81: 0 | I81: 7.329260878 | J81: 1.433930015 | K81: 1.001850954 | L81: 0.06079643638 | M81: 1.000004383 | N81: 0.002960755587 | O81: 1 | P81: 5.2481e-07 | Q81: 1 | R81: 5.2481e-07 | S81: 1.000000121 | T81: 0.001563511516 | U81: 47.00679311 | V81: -86.17836143 | W81: 93.82163857 | Y81: 1000000000 | Z81: 275425.5361 | AB81: 47.69484056 | AC81: -78.84439768 | AE81: 32.15325561 | AF81: -7.244411213 | AH81: 0 | AI81: 0
A82: 575.44 | B82: 0.57544 | C82: 1.009500001 | D82: 0.1372981965 | E82: 1.000000136 | F82: 0.0005206457984 | G82: 1 | H82: 0 | I82: 8.023743203 | J82: 1.445841301 | K82: 1.002224899 | L82: 0.06664505986 | M82: 1.00000527 | N82: 0.00324638667 | O82: 1 | P82: 5.7544e-07 | Q82: 1 | R82: 5.7544e-07 | S82: 1.000000145 | T82: 0.001714348276 | U82: 46.20998223 | V82: -87.24132134 | W82: 92.75867866 | Y82: 1000000000 | Z82: 331131.1936 | AB82: 46.91173749 | AC82: -79.20812807 | AE82: 32.1395478 | AF82: -7.935001319 | AH82: 0 | AI82: 0
A83: 630.96 | B83: 0.63096 | C83: 1.011410757 | D83: 0.1503549045 | E83: 1.000000163 | F83: 0.0005708790959 | G83: 1 | H83: 0 | I83: 8.786392417 | J83: 1.456736823 | K83: 1.002674339 | L83: 0.07305330189 | M83: 1.000006335 | N83: 0.003559604264 | O83: 1 | P83: 6.3096e-07 | Q83: 1 | R83: 6.3096e-07 | S83: 1.000000174 | T83: 0.001879753343 | U83: 45.40877081 | V83: -88.28053656 | W83: 91.71946344 | Y83: 1000000000 | Z83: 398110.5216 | AB83: 46.12695098 | AC83: -79.48317635 | AE83: 32.12312289 | AF83: -8.689694436 | AH83: 0 | AI83: 0
A84: 691.83 | B84: 0.69183 | C84: 1.013702977 | D84: 0.1646105046 | E84: 1.000000196 | F84: 0.0006259529546 | G84: 1 | H84: 0 | I84: 9.623531225 | J84: 1.46669645 | K84: 1.00321436 | L84: 0.08007213299 | M84: 1.000007617 | N84: 0.003903003224 | O84: 1 | P84: 6.9183e-07 | Q84: 1 | R84: 6.9183e-07 | S84: 1.00000021 | T84: 0.002061097161 | U84: 44.60329609 | V84: -89.30311425 | W84: 90.69688575 | Y84: 1000000000 | Z84: 478628.7489 | AB84: 45.34113936 | AC84: -79.67134683 | AE84: 32.10345979 | AF84: -9.513714896 | AH84: 0 | AI84: 0
A85: 758.58 | B85: 0.75858 | C85: 1.016452291 | D85: 0.1801657493 | E85: 1.000000236 | F85: 0.0006863469057 | G85: 1 | H85: 0 | I85: 10.54245168 | J85: 1.475798911 | K85: 1.003863294 | L85: 0.08775987495 | M85: 1.000009157 | N85: 0.004279573226 | O85: 1 | P85: 7.5858e-07 | Q85: 1 | R85: 7.5858e-07 | S85: 1.000000252 | T85: 0.002259958721 | U85: 43.79323065 | V85: -90.31632113 | W85: 89.68367887 | Y85: 1000000000 | Z85: 575443.6164 | AB85: 44.55459949 | AC85: -79.77398012 | AE85: 32.07993423 | AF85: -10.41289838 | AH85: 0 | AI85: 0
A86: 831.76 | B86: 0.83176 | C86: 1.019747429 | D86: 0.1971184688 | E86: 1.000000283 | F86: 0.0007525585755 | G86: 1 | H86: 0 | I86: 11.55072767 | J86: 1.48411318 | K86: 1.004642824 | L86: 0.0961762065 | M86: 1.000011009 | N86: 0.004692416662 | O86: 1 | P86: 8.3176e-07 | Q86: 1 | R86: 8.3176e-07 | S86: 1.000000303 | T86: 0.002477976606 | U86: 42.97848986 | V86: -91.32663201 | W86: 88.67336799 | Y86: 1000000000 | Z86: 691824.6976 | AB86: 43.76797112 | AC86: -79.79178655 | AE86: 32.0518218 | AF86: -11.39291551 | AH86: 0 | AI86: 0
A87: 912.01 | B87: 0.91201 | C87: 1.023695485 | D87: 0.2155776351 | E87: 1.00000034 | F87: 0.0008251670196 | G87: 1 | H87: 0 | I87: 12.65717888 | J87: 1.491707354 | K87: 1.005579336 | L87: 0.1053899204 | M87: 1.000013236 | N87: 0.005145143511 | O87: 1 | P87: 9.1201e-07 | Q87: 1 | R87: 9.1201e-07 | S87: 1.000000364 | T87: 0.002717057533 | U87: 42.15844872 | V87: -92.3406428 | W87: 87.6593572 | Y87: 1000000000 | Z87: 831762.2401 | AB87: 42.98149339 | AC87: -79.72493313 | AE87: 32.01825839 | AF87: -12.460086 | AH87: 0 | AI87: 0
A88: 1000 | B88: 1 | C88: 1.028421911 | D88: 0.2356466542 | E88: 1.000000409 | F88: 0.0009047784363 | G88: 1 | H88: 0 | I88: 13.87104439 | J88: 1.498641107 | K88: 1.006704089 | L88: 0.1154716273 | M88: 1.000015914 | N88: 0.005641532798 | O88: 1 | P88: 1e-06 | Q88: 1 | R88: 1e-06 | S88: 1.000000438 | T88: 0.002979197606 | U88: 41.33267974 | V88: -93.36406202 | W88: 86.63593798 | Y88: 1000000000 | Z88: 1000000 | AB88: 42.19573512 | AC88: -79.57300965 | AE88: 31.97824769 | AF88: -13.62041422 | AH88: 0 | AI88: 0
A89: 1096.5 | B89: 1.0965 | C89: 1.034077008 | D89: 0.2574359533 | E89: 1.000000492 | F89: 0.0009920895006 | G89: 1 | H89: 0 | I89: 15.20294791 | J89: 1.504972086 | K89: 1.008054986 | L89: 0.1265012747 | M89: 1.000019133 | N89: 0.006185927437 | O89: 1 | P89: 1.0965e-06 | Q89: 1 | R89: 1.0965e-06 | S89: 1.000000526 | T89: 0.003266690864 | U89: 40.50029538 | V89: -94.40241077 | W89: 85.59758923 | Y89: 1000000000 | Z89: 1202312.25 | AB89: 41.41098202 | AC89: -79.3349873 | AE89: 31.93061642 | AF89: -14.8803187 | AH89: 0 | AI89: 0
A90: 1202.3 | B90: 1.2023 | C90: 1.040834706 | D90: 0.28104058 | E90: 1.000000592 | F90: 0.001087814982 | G90: 1 | H90: 0 | I90: 16.66379396 | J90: 1.510749906 | K90: 1.009676597 | L90: 0.1385583297 | M90: 1.000023004 | N90: 0.006782782825 | O90: 1 | P90: 1.2023e-06 | Q90: 1 | R90: 1.2023e-06 | S90: 1.000000633 | T90: 0.003581890944 | U90: 39.6607238 | V90: -95.45990843 | W90: 84.54009157 | Y90: 1000000000 | Z90: 1445525.29 | AB90: 40.62798816 | AC90: -79.00941093 | AE90: 31.8740387 | AF90: -16.24533915 | AH90: 0 | AI90: =IF(AH90>0,W90,0) -> 0
A91: 1318.3 | B91: 1.3183 | C91: 1.048901149 | D91: 0.3065555211 | E91: 1.000000711 | F91: 0.001192769172 | G91: 1 | H91: 0 | I91: 18.26600985 | J91: 1.516022448 | K91: 1.011622649 | L91: 0.1517312262 | M91: 1.000027656 | N91: 0.007437174467 | O91: 1 | P91: 1.3183e-06 | Q91: 1 | R91: 1.3183e-06 | S91: 1.000000761 | T91: 0.003927479223 | U91: 38.81295647 | V91: -96.54022521 | W91: 83.45977479 | Y91: 1000000000 | Z91: 1737914.89 | AB91: 39.84727683 | AC91: -78.59424785 | AE91: 31.8069827 | AF91: -17.72102491 | AH91: 0 | AI91: 0
A92: 1445.4 | B92: 1.4454 | C92: 1.058510601 | D92: 0.3340456175 | E92: 1.000000855 | F92: 0.001307766363 | G92: 1 | H92: 0 | I92: 20.02202643 | J92: 1.520830544 | K92: 1.013955626 | L92: 0.1661038009 | M92: 1.000033246 | N92: 0.008154177286 | O92: 1 | P92: 1.4454e-06 | Q92: 1 | R92: 1.4454e-06 | S92: 1.000000915 | T92: 0.004306137105 | U92: 37.95641606 | V92: -97.64516355 | W92: 82.35483645 | Y92: 1000000000 | Z92: 2089181.16 | AB92: 39.06994952 | AC92: -78.08732482 | AE92: 31.7277696 | AF92: -19.31119806 | AH92: 0 | AI92: 0
A93: 1584.9 | B93: 1.5849 | C93: 1.069960553 | D93: 0.3636244034 | E93: 1.000001028 | F93: 0.001433982752 | G93: 1 | H93: 0 | I93: 21.9498051 | J93: 1.525222061 | K93: 1.016756121 | L93: 0.1817990372 | M93: 1.000039973 | N93: 0.008941121921 | O93: 1 | P93: 1.5849e-06 | Q93: 1 | R93: 1.5849e-06 | S93: 1.0000011 | T93: 0.004721737721 | U93: 37.0884106 | V93: -98.77772099 | W93: 81.22227901 | Y93: 1000000000 | Z93: 2511908.01 | AB93: 38.29539526 | AC93: -77.484758 | AE93: 31.6343184 | AF93: -21.02251815 | AH93: 0 | AI93: 0
A94: 1737.8 | B94: 1.7378 | C94: 1.083561242 | D94: 0.3952956128 | E94: 1.000001236 | F94: 0.0015723231 | G94: 1 | H94: 0 | I94: 24.06316568 | J94: 1.529227064 | K94: 1.020111633 | L94: 0.1988982343 | M94: 1.000048058 | N94: 0.009803645614 | O94: 1 | P94: 1.7378e-06 | Q94: 1 | R94: 1.7378e-06 | S94: 1.000001322 | T94: 0.005177260492 | U94: 36.20880258 | V94: -99.93578852 | W94: 80.06421148 | Y94: 1000000000 | Z94: 3019948.84 | AB94: 37.52550128 | AC94: -76.78393491 | AE94: 31.52460436 | AF94: -22.855318 | AH94: 0 | AI94: 0
A95: 1905.5 | B95: 1.9055 | C95: 1.099694975 | D95: 0.4290939888 | E95: 1.000001486 | F95: 0.001724054073 | G95: 1 | H95: 0 | I95: 26.38145887 | J95: 1.532881834 | K95: 1.024132488 | L95: 0.2175176427 | M95: 1.00005778 | N95: 0.01074964072 | O95: 1 | P95: 1.9055e-06 | Q95: 1 | R95: 1.9055e-06 | S95: 1.00000159 | T95: 0.005676876593 | U95: 35.31559035 | V95: -101.1176324 | W95: 78.88236763 | Y95: 1000000000 | Z95: 3630930.25 | AB95: 36.76066476 | AC95: -75.98072583 | AE95: 31.39622865 | AF95: -24.81175465 | AH95: 0 | AI95: 0
A96: 2089.3 | B96: 2.0893 | C96: 1.118775854 | D96: 0.4649720647 | E96: 1.000001787 | F96: 0.001890351851 | G96: 1 | H96: 0 | I96: 28.92265602 | J96: 1.536214463 | K96: 1.028943746 | L96: 0.2377496478 | M96: 1.000069464 | N96: 0.0117864337 | O96: 1 | P96: 2.0893e-06 | Q96: 1 | R96: 2.0893e-06 | S96: 1.000001911 | T96: 0.006224459373 | U96: 34.40799428 | V96: -102.3176453 | W96: 77.6823547 | Y96: 1000000000 | Z96: 4365174.49 | AB96: 36.00248576 | AC96: -75.07186676 | AE96: 31.24681158 | AF96: -26.889263 | AH96: 0 | AI96: 0
A97: 2290.9 | B97: 2.2909 | C97: 1.141301268 | D97: 0.5028910762 | E97: 1.000002148 | F97: 0.002072754517 | G97: 1 | H97: 0 | I97: 31.7102612 | J97: 1.539255564 | K97: 1.034700435 | L97: 0.2597146247 | M97: 1.000083516 | N97: 0.01292360506 | O97: 1 | P97: 2.2909e-06 | Q97: 1 | R97: 2.2909e-06 | S97: 1.000002298 | T97: 0.006825073992 | U97: 33.48395478 | V97: -103.5295044 | W97: 76.47049556 | Y97: 1000000000 | Z97: 5248222.81 | AB97: 35.25159078 | AC97: -74.05276366 | AE97: 31.07366706 | AF97: -29.0858241 | AH97: 0 | AI97: 0
A98: 2511.9 | B98: 2.5119 | C98: 1.167801826 | D98: 0.5427149414 | E98: 1.000002583 | F98: 0.002272709661 | G98: 1 | H98: 0 | I98: 34.76639839 | J98: 1.542028954 | K98: 1.041577836 | L98: 0.2835015568 | M98: 1.000100405 | N98: 0.01417016807 | O98: 1 | P98: 2.5119e-06 | Q98: 1 | R98: 2.5119e-06 | S98: 1.000002763 | T98: 0.007483487848 | U98: 32.54277512 | V98: -104.7426588 | W98: 75.25734122 | Y98: 1000000000 | Z98: 6309641.61 | AB98: 34.50978839 | AC98: -72.92019918 | AE98: 30.87428979 | AF98: -31.39383125 | AH98: 0 | AI98: 0
A99: 2754.2 | B99: 2.7542 | C99: 1.198884148 | D99: 0.584280909 | E99: 1.000003105 | F99: 0.002491936291 | G99: 1 | H99: 0 | I99: 38.11734201 | J99: 1.544558539 | K99: 1.049785812 | L99: 0.3092067207 | M99: 1.000120709 | N99: 0.0155368242 | O99: 1 | P99: 2.7542e-06 | Q99: 1 | R99: 2.7542e-06 | S99: 1.000003321 | T99: 0.008205362323 | U99: 31.58335837 | V99: -105.9448001 | W99: 74.05519989 | Y99: 1000000000 | Z99: 7585617.64 | AB99: 33.77853331 | AC99: -71.67063991 | AE99: 30.64612812 | AF99: -33.80418537 | AH99: 0 | AI99: 0
A100: 3020 | B100: 3.02 | C100: 1.23523516 | D100: 0.627389956 | E100: 1.000003733 | F100: 0.002732424823 | G100: 1 | H100: 0 | I100: 41.79351766 | J100: 1.546866888 | K100: 1.05957438 | L100: 0.3369265156 | M100: 1.00014513 | N100: 0.01703596153 | O100: 1 | P100: 3.02e-06 | Q100: 1 | R100: 3.02e-06 | S100: 1.000003994 | T100: 0.008997252859 | U100: 30.60458601 | V100: -107.121642 | W100: 72.87835804 | Y100: 1000000000 | Z100: 9120400 | AB100: 33.05920988 | AC100: -70.30056555 | AE100: 30.38667919 | AF100: -36.30574483 | AH100: 0 | AI100: 0
A101: 3311.3 | B101: 3.3113 | C101: 1.277549701 | D101: 0.671726426 | E101: 1.000004488 | F101: 0.00299598469 | G101: 1 | H101: 0 | I101: 45.82258658 | J101: 1.548971295 | K101: 1.07121873 | L101: 0.3666984191 | M101: 1.000174475 | N101: 0.0186788331 | O101: 1 | P101: 3.3113e-06 | Q101: 1 | R101: 3.3113e-06 | S101: 1.000004801 | T101: 0.009865119408 | U101: 29.60728819 | V101: -108.2551661 | W101: 71.74483392 | Y101: 1000000000 | Z101: 10964707.69 | AB101: 32.35447572 | AC101: -68.80946442 | AE101: 30.09411554 | AF101: -38.88066167 | AH101: 0 | AI101: 0
A102: 3630.8 | B102: 3.6308 | C102: 1.326651651 | D102: 0.7170047501 | E102: 1.000005396 | F102: 0.003285058626 | G102: 1 | H102: 0 | I102: 50.24189336 | J102: 1.550891304 | K102: 1.08505696 | L102: 0.3985862762 | M102: 1.000209765 | N102: 0.02048063054 | O102: 1 | P102: 3.6308e-06 | Q102: 1 | R102: 3.6308e-06 | S102: 1.000005773 | T102: 0.01081700791 | U102: 28.59115889 | V102: -109.3281245 | W102: 70.67187554 | Y102: 1000000000 | Z102: 13182708.64 | AB102: 31.66592891 | AC102: -67.19566856 | AE102: 29.76653304 | AF102: -41.51289502 | AH102: 0 | AI102: 0
A103: 3981.1 | B103: 3.9811 | C103: 1.383376197 | D103: 0.7628506887 | E103: 1.000006487 | F103: 0.003601998838 | G103: 1 | H103: 0 | I103: 55.08740113 | J103: 1.552642359 | K103: 1.101462968 | L103: 0.4325889411 | M103: 1.000252188 | N103: 0.02245596911 | O103: 1 | P103: 3.9811e-06 | Q103: 1 | R103: 3.9811e-06 | S103: 1.000006941 | T103: 0.011860667 | U103: 27.55774342 | V103: -110.3216158 | W103: 69.67838421 | Y103: 1000000000 | Z103: 15849157.21 | AB103: 30.99618204 | AC103: -65.46096598 | AE103: 29.40286444 | AF103: -44.18131174 | AH103: 0 | AI103: 0
A104: 4365.2 | B104: 4.3652 | C104: 1.44863732 | D104: 0.8088873203 | E104: 1.000007799 | F104: 0.003949519372 | G104: 1 | H104: 0 | I104: 60.40060725 | J104: 1.554239445 | K104: 1.120869697 | L104: 0.4686821206 | M104: 1.000303191 | N104: 0.02462170357 | O104: 1 | P104: 4.3652e-06 | Q104: 1 | R104: 4.3652e-06 | S104: 1.000008345 | T104: 0.01300503791 | U104: 26.50883646 | V104: -111.2181292 | W104: 68.78187081 | Y104: 1000000000 | Z104: 19054971.04 | AB104: 30.3476633 | AC104: -63.60857291 | AE104: 29.00247622 | AF104: -46.8646726 | AH104: 0 | AI104: 0
A105: 4786.3 | B105: 4.7863 | C105: 1.5233916 | D105: 0.854719642 | E105: 1.000009377 | F105: 0.004330515141 | G105: 1 | H105: 0 | I105: 66.22577689 | J105: 1.555695892 | K105: 1.14376271 | L105: 0.506789656 | M105: 1.000364497 | N105: 0.02699579505 | O105: 1 | P105: 4.7863e-06 | Q105: 1 | R105: 4.7863e-06 | S105: 1.000010034 | T105: 0.01425965883 | U105: 25.44716639 | V105: -112.0021159 | W105: 67.99788409 | Y105: 1000000000 | Z105: 22908667.69 | AB105: 29.72303193 | AC105: -61.64464564 | AE105: 28.56543752 | AF105: -49.54072624 | AH105: 0 | AI105: 0
A106: 5248.1 | B106: 5.2481 | C106: 1.608686741 | D106: 0.8999807274 | E106: 1.000011273 | F106: 0.004748333321 | G106: 1 | H106: 0 | I106: 72.614093 | J106: 1.55702446 | K106: 1.170697816 | L106: 0.5468026128 | M106: 1.00043821 | N106: 0.02959899546 | O106: 1 | P106: 5.2481e-06 | Q106: 1 | R106: 5.2481e-06 | S106: 1.000012064 | T106: 0.01563555912 | U106: 24.3756271 | V106: -112.6617861 | W106: 67.33821387 | Y106: 1000000000 | Z106: 27542553.61 | AB106: 29.12469232 | AC106: -59.5773458 | AE106: 28.09223784 | AF106: -52.18888947 | AH106: 0 | AI106: 0
A107: 5370.3 | B107: 5.3703 | C107: 1.631772032 | D107: 0.9111584947 | E107: 1.000011805 | F107: 0.004858894724 | G107: 1 | H107: 0 | I107: 74.30456735 | J107: 1.557337798 | K107: 1.178129757 | L107: 0.5570792845 | M107: 1.00045885 | N107: 0.03028778011 | O107: 1 | P107: 5.3703e-06 | Q107: 1 | R107: 5.3703e-06 | S107: 1.000012633 | T107: 0.01599964874 | U107: 24.10676201 | V107: -112.8062124 | W107: 67.19378762 | Y107: 1000000000 | Z107: 28840122.09 | AB107: 28.97958762 | AC107: -59.04595326 | AE107: 27.96847745 | AF107: -52.84385446 | AH107: 0 | AI107: 0
A108: 5432.85 | B108: 5.43285 | C108: 1.643665813 | D108: 0.9167581638 | E108: 1.000012081 | F108: 0.004915487279 | G108: 1 | H108: 0 | I108: 75.16986607 | J108: 1.557492731 | K108: 1.181981598 | L108: 0.5622892758 | M108: 1.000469599 | N108: 0.03064033434 | O108: 1 | P108: 5.43285e-06 | Q108: 1 | R108: 5.43285e-06 | S108: 1.000012929 | T108: 0.01618601435 | U108: 23.97137425 | V108: -112.875726 | W108: 67.124274 | Y108: 1000000000 | Z108: 29515859.12 | AB108: 28.90728076 | AC108: -58.77651966 | AE108: 27.90539654 | AF108: -53.17212731 | AH108: 0 | AI108: 0
A109: 5495.4 | B109: 5.4954 | C109: 1.655610392 | D109: 0.922277205 | E109: 1.000012361 | F109: 0.004972079803 | G109: 1 | H109: 0 | I109: 76.03516656 | J109: 1.557644138 | K109: 1.185865314 | L109: 0.5674652814 | M109: 1.000480472 | N109: 0.03099288094 | O109: 1 | P109: 5.4954e-06 | Q109: 1 | R109: 5.4954e-06 | S109: 1.000013229 | T109: 0.01637238034 | U109: 23.83746577 | V109: -112.9423648 | W109: 67.0576352 | Y109: 1000000000 | Z109: 30199421.16 | AB109: 28.83626489 | AC109: -58.50883081 | AE109: 27.84250395 | AF109: -53.49578056 | AH109: 0 | AI109: 0
A110: 5559.4 | B110: 5.5594 | C110: 1.667883302 | D110: 0.9278421925 | E110: 1.000012651 | F110: 0.00502998419 | G110: 1 | H110: 0 | I110: 76.92052773 | J110: 1.55779553 | K110: 1.189871726 | L110: 0.572726157 | M110: 1.000491725 | N110: 0.03135359211 | O110: 1 | P110: 5.5594e-06 | Q110: 1 | R110: 5.5594e-06 | S110: 1.000013539 | T110: 0.01656306699 | U110: 23.70195805 | V110: -113.0076602 | W110: 66.99233983 | Y110: 1000000000 | Z110: 30906928.36 | AB110: 28.76490769 | AC110: -58.23674615 | AE110: 27.77835342 | AF110: -53.82223872 | AH110: 0 | AI110: 0
A111: 5623.4 | B111: 5.6234 | C111: 1.68020711 | D111: 0.9333257129 | E111: 1.000012943 | F111: 0.005087888544 | G111: 1 | H111: 0 | I111: 77.80589063 | J111: 1.557943476 | K111: 1.193910848 | L111: 0.5779515802 | M111: 1.000503109 | N111: 0.03171429512 | O111: 1 | P111: 5.6234e-06 | Q111: 1 | R111: 5.6234e-06 | S111: 1.000013852 | T111: 0.01675375406 | U111: 23.5679465 | V111: -113.0701213 | W111: 66.92987873 | Y111: 1000000000 | Z111: 31622627.56 | AB111: 28.69483946 | AC111: -57.96649489 | AE111: 27.71441009 | AF111: -54.14402918 | AH111: 0 | AI111: 0
A112: 5688.9 | B112: 5.6889 | C112: 1.692871298 | D112: 0.9388549159 | E112: 1.000013247 | F112: 0.005147149996 | G112: 1 | H112: 0 | I112: 78.71200594 | J112: 1.558091443 | K112: 1.198078162 | L112: 0.5832628438 | M112: 1.000514895 | N112: 0.03208344356 | O112: 1 | P112: 5.6889e-06 | Q112: 1 | R112: 5.6889e-06 | S112: 1.000014177 | T112: 0.0169489108 | U112: 23.43231656 | V112: -113.131201 | W112: 66.86879905 | Y112: 1000000000 | Z112: 32363583.21 | AB112: 28.62443218 | AC112: -57.69181044 | AE112: 27.64918744 | AF112: -54.4686154 | AH112: 0 | AI112: 0
A113: 5754.4 | B113: 5.7544 | C113: 1.705586471 | D113: 0.9443018428 | E113: 1.000013554 | F113: 0.005206411411 | G113: 1 | H113: 0 | I113: 79.61812293 | J113: 1.558236042 | K113: 1.202279038 | L113: 0.5885371393 | M113: 1.000526816 | N113: 0.03245258325 | O113: 1 | P113: 5.7544e-06 | Q113: 1 | R113: 5.7544e-06 | S113: 1.000014506 | T113: 0.01714406799 | U113: 23.29820023 | V113: -113.1894913 | W113: 66.81050873 | Y113: 1000000000 | Z113: 33113119.36 | AB113: 28.55531206 | AC113: -57.41905065 | AE113: 27.58419123 | AF113: -54.78848758 | AH113: 0 | AI113: 0
A114: 5821.4 | B114: 5.8214 | C114: 1.718644402 | D114: 0.9497899552 | E114: 1.000013871 | F114: 0.005267029921 | G114: 1 | H114: 0 | I114: 80.54499238 | J114: 1.558380587 | K114: 1.206610475 | L114: 0.5938940706 | M114: 1.000539152 | N114: 0.03283016736 | O114: 1 | P114: 5.8214e-06 | Q114: 1 | R114: 5.8214e-06 | S114: 1.000014846 | T114: 0.01734369491 | U114: 23.16255137 | V114: -113.2463217 | W114: 66.7536783 | Y114: 1000000000 | Z114: 33888697.96 | AB114: 28.48590909 | AC114: -57.14203687 | AE114: 27.51794533 | AF114: -55.11089785 | AH114: 0 | AI114: 0
A115: 5888.4 | B115: 5.8884 | C115: 1.731753315 | D115: 0.9551951412 | E115: 1.000014192 | F115: 0.005327648391 | G115: 1 | H115: 0 | I115: 81.47186348 | J115: 1.558521842 | K115: 1.21097629 | L115: 0.5992125279 | M115: 1.000551631 | N115: 0.03320774212 | O115: 1 | P115: 5.8884e-06 | Q115: 1 | R115: 5.8884e-06 | S115: 1.000015189 | T115: 0.01754332232 | U115: 23.02843172 | V115: -113.3004163 | W115: 66.69958372 | Y115: 1000000000 | Z115: 34673254.56 | AB115: 28.41778964 | AC115: -56.86703851 | AE115: 27.45194514 | AF115: -55.42855683 | AH115: 0 | AI115: 0
A116: 5957 | B116: 5.957 | C116: 1.745226901 | D116: 0.9606451114 | E116: 1.000014525 | F116: 0.005389714427 | G116: 1 | H116: 0 | I116: 82.42087045 | J116: 1.55866318 | K116: 1.215481596 | L116: 0.6046182507 | M116: 1.000564555 | N116: 0.03359432376 | O116: 1 | P116: 5.957e-06 | Q116: 1 | R116: 5.957e-06 | S116: 1.000015546 | T116: 0.01774771746 | U116: 22.8926659 | V116: -113.3530609 | W116: 66.64693909 | Y116: 1000000000 | Z116: 35485849 | AB116: 28.34934145 | AC116: -56.58756094 | AE116: 27.38462751 | AF116: -55.74897197 | AH116: 0 | AI116: 0
A117: 6025.6 | B117: 6.0256 | C117: 1.758751529 | D117: 0.9660114194 | E117: 1.000014861 | F117: 0.00545178042 | G117: 1 | H117: 0 | I117: 83.36987904 | J117: 1.558801299 | K117: 1.220022156 | L117: 0.6099838923 | M117: 1.000577629 | N117: 0.03398089537 | O117: 1 | P117: 6.0256e-06 | Q117: 1 | R117: 6.0256e-06 | S117: 1.000015906 | T117: 0.01795211312 | U117: 22.75844753 | V117: -113.4030237 | W117: 66.59697635 | Y117: 1000000000 | Z117: 36307855.36 | AB117: 28.28217507 | AC117: -56.31019491 | AE117: 27.31757552 | AF117: -56.06459366 | AH117: 0 | AI117: 0
A118: 6095.8 | B118: 6.0958 | C118: 1.772643222 | D118: 0.9714179566 | E118: 1.000015209 | F118: 0.005515293974 | G118: 1 | H118: 0 | I118: 84.34102354 | J118: 1.558939423 | K118: 1.224704709 | L118: 0.6154333303 | M118: 1.000591162 | N118: 0.0343764727 | O118: 1 | P118: 6.0958e-06 | Q118: 1 | R118: 6.0958e-06 | S118: 1.000016279 | T118: 0.01816127657 | U118: 22.62267239 | V118: -113.4514697 | W118: 66.54853032 | Y118: 1000000000 | Z118: 37158777.64 | AB118: 28.21473707 | AC118: -56.0285439 | AE118: 27.24923837 | AF118: -56.38271055 | AH118: 0 | AI118: 0
A119: 6166 | B119: 6.166 | C119: 1.786585925 | D119: 0.9767402609 | E119: 1.000015562 | F119: 0.005578807483 | G119: 1 | H119: 0 | I119: 85.31216962 | J119: 1.559074401 | K119: 1.229423354 | L119: 0.620841097 | M119: 1.000604852 | N119: 0.03477203927 | O119: 1 | P119: 6.166e-06 | Q119: 1 | R119: 6.166e-06 | S119: 1.000016656 | T119: 0.01837044058 | U119: 22.48846088 | V119: -113.4972964 | W119: 66.5027036 | Y119: 1000000000 | Z119: 38019556 | AB119: 28.14857726 | AC119: -55.74909969 | AE119: 27.18118668 | AF119: -56.69600128 | AH119: 0 | AI119: 0
A120: 6237.8 | B120: 6.2378 | C120: 1.800897941 | D120: 0.9820984655 | E120: 1.000015926 | F120: 0.005643768547 | G120: 1 | H120: 0 | I120: 86.30545165 | J120: 1.559209314 | K120: 1.234286449 | L120: 0.6263291813 | M120: 1.000619016 | N120: 0.03517661034 | O120: 1 | P120: 6.2378e-06 | Q120: 1 | R120: 6.2378e-06 | S120: 1.000017047 | T120: 0.01858437244 | U120: 22.35277903 | V120: -113.5415537 | W120: 66.45844633 | Y120: 1000000000 | Z120: 38910148.84 | AB120: 28.0821995 | AC120: -55.46556577 | AE120: 27.11188259 | AF120: -57.0115392 | AH120: 0 | AI120: 0
A121: 6309.6 | B121: 6.3096 | C121: 1.815260845 | D121: 0.9873720281 | E121: 1.000016295 | F121: 0.005708729564 | G121: 1 | H121: 0 | I121: 87.29873522 | J121: 1.559341157 | K121: 1.239186427 | L121: 0.6317740266 | M121: 1.000633344 | N121: 0.03558116989 | O121: 1 | P121: 6.3096e-06 | Q121: 1 | R121: 6.3096e-06 | S121: 1.000017442 | T121: 0.01879830491 | U121: 22.21867496 | V121: -113.5832622 | W121: 66.41673778 | Y121: 1000000000 | Z121: 39811052.16 | AB121: 28.01709442 | AC121: -55.18433269 | AE121: 27.04288359 | AF121: -57.32222751 | AH121: 0 | AI121: 0
A122: 6383.05 | B122: 6.38305 | C122: 1.830005223 | D122: 0.9926809734 | E122: 1.000016677 | F122: 0.005775183367 | G122: 1 | H122: 0 | I122: 88.31484647 | J122: 1.55947296 | K122: 1.244236719 | L122: 0.6372994544 | M122: 1.00064817 | N122: 0.03599501436 | O122: 1 | P122: 6.38305e-06 | Q122: 1 | R122: 6.38305e-06 | S122: 1.000017851 | T122: 0.01901715428 | U122: 22.08309223 | V122: -113.6233886 | W122: 66.37661141 | Y122: 1000000000 | Z122: 40743327.3 | AB122: 27.95177771 | AC122: -54.89901234 | AE122: 26.97261757 | AF122: -57.63513929 | AH122: 0 | AI122: 0
A123: 6456.5 | B123: 6.4565 | C123: 1.844800353 | D123: 0.9979049096 | E123: 1.000017063 | F123: 0.005841637119 | G123: 1 | H123: 0 | I123: 89.33095923 | J123: 1.559601766 | K123: 1.249324691 | L123: 0.642780043 | M123: 1.000663168 | N123: 0.0364088465 | O123: 1 | P123: 6.4565e-06 | Q123: 1 | R123: 6.4565e-06 | S123: 1.000018264 | T123: 0.01923600428 | U123: 21.94910153 | V123: -113.661041 | W123: 66.33895905 | Y123: 1000000000 | Z123: 41686392.25 | AB123: 27.88772813 | AC123: -54.61608858 | AE123: 26.90267646 | AF123: -57.94318045 | AH123: 0 | AI123: 0
A124: 6531.7 | B124: 6.5317 | C124: 1.859999306 | D124: 1.003167063 | E124: 1.000017462 | F124: 0.005909674127 | G124: 1 | H124: 0 | I124: 90.37128311 | J124: 1.559730639 | K124: 1.254572445 | L124: 0.6483449842 | M124: 1.000678701 | N124: 0.03683252557 | O124: 1 | P124: 6.5317e-06 | Q124: 1 | R124: 6.5317e-06 | S124: 1.000018692 | T124: 0.01946006922 | U124: 21.81353768 | V124: -113.6971248 | W124: 66.3028752 | Y124: 1000000000 | Z124: 42663104.89 | AB124: 27.82343271 | AC124: -54.32889985 | AE124: 26.83140803 | AF124: -58.25361935 | AH124: 0 | AI124: 0
A125: 6606.9 | B125: 6.6069 | C125: 1.875248926 | D125: 1.008343773 | E125: 1.000017867 | F125: 0.00597771108 | G125: 1 | H125: 0 | I125: 91.41160846 | J125: 1.559856579 | K125: 1.259858726 | L125: 0.6538633949 | M125: 1.000694414 | N125: 0.03725619141 | O125: 1 | P125: 6.6069e-06 | Q125: 1 | R125: 6.6069e-06 | S125: 1.000019126 | T125: 0.01968413485 | U125: 21.67958221 | V125: -113.7308104 | W125: 66.26918961 | Y125: 1000000000 | Z125: 43651127.61 | AB125: 27.76040036 | AC125: -54.0442083 | AE125: 26.76048491 | AF125: -58.55916278 | AH125: 0 | AI125: 0
A126: 6683.85 | B126: 6.68385 | C126: 1.890904596 | D126: 1.013554374 | E126: 1.000018285 | F126: 0.006047331283 | G126: 1 | H126: 0 | I126: 92.47614498 | J126: 1.559982516 | K126: 1.265307406 | L126: 0.6594623187 | M126: 1.000710677 | N126: 0.03768970264 | O126: 1 | P126: 6.68385e-06 | Q126: 1 | R126: 6.68385e-06 | S126: 1.000019574 | T126: 0.01991341549 | U126: 21.54414365 | V126: -113.7628955 | W126: 66.23710453 | Y126: 1000000000 | Z126: 44673850.82 | AB126: 27.6971759 | AC126: -53.75546765 | AE126: 26.68827081 | AF126: -58.86685611 | AH126: 0 | AI126: 0
A127: 6760.8 | B127: 6.7608 | C127: 1.906610761 | D127: 1.018679265 | E127: 1.000018709 | F127: 0.006116951427 | G127: 1 | H127: 0 | I127: 93.54068293 | J127: 1.560105588 | K127: 1.27079541 | L127: 0.6650130567 | M127: 1.00072713 | N127: 0.0381231997 | O127: 1 | P127: 6.7608e-06 | Q127: 1 | R127: 6.7608e-06 | S127: 1.000020028 | T127: 0.02014269687 | U127: 21.41032751 | V127: -113.7926656 | W127: 66.20733439 | Y127: 1000000000 | Z127: 45708416.64 | AB127: 27.63520847 | AC127: -53.46932279 | AE127: 26.6164221 | AF127: -59.16963866 | AH127: 0 | AI127: 0
A128: 6839.55 | B128: 6.83955 | C128: 1.922735311 | D128: 1.023837211 | E128: 1.000019147 | F128: 0.006188200052 | G128: 1 | H128: 0 | I128: 94.63012379 | J128: 1.560228671 | K128: 1.276451973 | L128: 0.6706440409 | M128: 1.000744161 | N128: 0.0385668222 | O128: 1 | P128: 6.83955e-06 | Q128: 1 | R128: 6.83955e-06 | S128: 1.000020497 | T128: 0.02037734232 | U128: 21.27502956 | V128: -113.8208339 | W128: 66.17916605 | Y128: 1000000000 | Z128: 46779444.2 | AB128: 27.57306003 | AC128: -53.179161 | AE128: 26.54327258 | AF128: -59.47452911 | AH128: 0 | AI128: 0
A129: 6918.3 | B129: 6.9183 | C129: 1.938910162 | D129: 1.028909231 | E129: 1.000019591 | F129: 0.006259448613 | G129: 1 | H129: 0 | I129: 95.71956605 | J129: 1.560348952 | K129: 1.282148652 | L129: 0.676225163 | M129: 1.00076139 | N129: 0.03901042951 | O129: 1 | P129: 6.9183e-06 | Q129: 1 | R129: 6.9183e-06 | S129: 1.000020972 | T129: 0.02061198856 | U129: 21.14136782 | V129: -113.8467748 | W129: 66.15322525 | Y129: 1000000000 | Z129: 47862874.89 | AB129: 27.51216227 | AC129: -52.8916947 | AE129: 26.47050861 | AF129: -59.77449649 | AH129: 0 | AI129: 0
A130: 6998.9 | B130: 6.9989 | C130: 1.95551578 | D130: 1.034013384 | E130: 1.00002005 | F130: 0.006332370884 | G130: 1 | H130: 0 | I130: 96.83460295 | J130: 1.560469256 | K130: 1.288020143 | L130: 0.6818860944 | M130: 1.000779227 | N130: 0.03946444216 | O130: 1 | P130: 6.9989e-06 | Q130: 1 | R130: 6.9989e-06 | S130: 1.000021464 | T130: 0.02085214796 | U130: 21.00622836 | V130: -113.8711171 | W130: 66.12888287 | Y130: 1000000000 | Z130: 48984601.21 | AB130: 27.45109585 | AC130: -52.60025316 | AE130: 26.39643557 | AF130: -60.0765249 | AH130: 0 | AI130: 0
A131: 7079.5 | B131: 7.0795 | C131: 1.972171485 | D131: 1.039031454 | E131: 1.000020514 | F131: 0.006405293088 | G131: 1 | H131: 0 | I131: 97.94964123 | J131: 1.560586822 | K131: 1.293932535 | L131: 0.6874954709 | M131: 1.00079727 | N131: 0.03991843854 | O131: 1 | P131: 7.0795e-06 | Q131: 1 | R131: 7.0795e-06 | S131: 1.000021962 | T131: 0.0210923082 | U131: 20.87273856 | V131: -113.8933234 | W131: 66.10667662 | Y131: 1000000000 | Z131: 50119320.25 | AB131: 27.39127334 | AC131: -52.31160763 | AE131: 26.32276828 | AF131: -60.37362113 | AH131: 0 | AI131: 0
A132: 7161.95 | B132: 7.16195 | C132: 1.989259998 | D132: 1.044077626 | E132: 1.000020995 | F132: 0.006479888994 | G132: 1 | H132: 0 | I132: 99.09027418 | J132: 1.560704348 | K132: 1.300022371 | L132: 0.6931806233 | M132: 1.000815941 | N132: 0.04038283839 | O132: 1 | P132: 7.16195e-06 | Q132: 1 | R132: 7.16195e-06 | S132: 1.000022477 | T132: 0.02133798169 | U132: 20.73785897 | V132: -113.9139278 | W132: 66.08607223 | Y132: 1000000000 | Z132: 51293527.8 | AB132: 27.33133154 | AC132: -52.0192143 | AE132: 26.24783049 | AF132: -60.67254752 | AH132: 0 | AI132: 0
A133: 7244.4 | B133: 7.2444 | C133: 2.006398303 | D133: 1.049037715 | E133: 1.000021481 | F133: 0.006554484828 | G133: 1 | H133: 0 | I133: 100.2309085 | J133: 1.560819199 | K133: 1.306153832 | L133: 0.6988125807 | M133: 1.000834828 | N133: 0.04084722082 | O133: 1 | P133: 7.2444e-06 | Q133: 1 | R133: 7.2444e-06 | S133: 1.000022998 | T133: 0.02158365608 | U133: 20.60464004 | V133: -113.9324937 | W133: 66.06750632 | Y133: 1000000000 | Z133: 52481331.36 | AB133: 27.27262496 | AC133: -51.72971455 | AE133: 26.17331814 | AF133: -60.9665418 | AH133: 0 | AI133: 0
A134: 7328.75 | B134: 7.32875 | C134: 2.023981752 | D134: 1.054025055 | E134: 1.000021984 | F134: 0.006630799593 | G134: 1 | H134: 0 | I134: 101.3978292 | J134: 1.560934023 | K134: 1.312469055 | L134: 0.7045196824 | M134: 1.000854374 | N134: 0.04132228636 | O134: 1 | P134: 7.32875e-06 | Q134: 1 | R134: 7.32875e-06 | S134: 1.000023537 | T134: 0.02183499282 | U134: 20.47003634 | V134: -113.9494762 | W134: 66.05052376 | Y134: 1000000000 | Z134: 53710576.56 | AB134: 27.21381039 | AC134: -51.43651989 | AE134: 26.09752901 | AF134: -61.26232332 | AH134: 0 | AI134: 0
A135: 7413.1 | B135: 7.4131 | C135: 2.041614678 | D135: 1.058926366 | E135: 1.000022493 | F135: 0.006707114281 | G135: 1 | H135: 0 | I135: 102.5647512 | J135: 1.561046234 | K135: 1.318826616 | L135: 0.7101719431 | M135: 1.000874145 | N135: 0.04179733323 | O135: 1 | P135: 7.4131e-06 | Q135: 1 | R135: 7.4131e-06 | S135: 1.000024083 | T135: 0.02208633052 | U135: 20.33710385 | V135: -113.9645212 | W135: 66.03547878 | Y135: 1000000000 | Z135: 54954051.61 | AB135: 27.15622195 | AC135: -51.14631661 | AE135: 26.02218496 | AF135: -61.55317582 | AH135: 0 | AI135: 0
A136: 7499.45 | B136: 7.49945 | C136: 2.059715616 | D136: 1.063856842 | E136: 1.00002302 | F136: 0.006785238364 | G136: 1 | H136: 0 | I136: 103.7593431 | J136: 1.561158491 | K136: 1.32537814 | L136: 0.715901866 | M136: 1.000894619 | N136: 0.04228362426 | O136: 1 | P136: 7.49945e-06 | Q136: 1 | R136: 7.49945e-06 | S136: 1.000024648 | T136: 0.02234362863 | U136: 20.20271654 | V136: -113.9780136 | W136: 66.02198636 | Y136: 1000000000 | Z136: 56241750.3 | AB136: 27.09850462 | AC136: -50.85231051 | AE136: 25.94551498 | AF136: -61.8459372 | AH136: 0 | AI136: 0
A137: 7585.8 | B137: 7.5858 | C137: 2.077865752 | D137: 1.068701298 | E137: 1.000023553 | F137: 0.006863362365 | G137: 1 | H137: 0 | I137: 104.9539363 | J137: 1.561268193 | K137: 1.331972749 | L137: 0.7215752358 | M137: 1.00091533 | N137: 0.04276989529 | O137: 1 | P137: 7.5858e-06 | Q137: 1 | R137: 7.5858e-06 | S137: 1.000025219 | T137: 0.02260092779 | U137: 20.07001239 | V137: -113.9896703 | W137: 66.01032966 | Y137: 1000000000 | Z137: 57544361.64 | AB137: 27.04200526 | AC137: -50.56139709 | AE137: 25.86931019 | AF137: -62.1337701 | AH137: 0 | AI137: 0
A138: 7674.15 | B138: 7.67415 | C138: 2.09648586 | D138: 1.073571026 | E138: 1.000024105 | F138: 0.006943295752 | G138: 1 | H138: 0 | I138: 106.1761994 | J138: 1.561377881 | K138: 1.33876403 | L138: 0.7273219703 | M138: 1.000936765 | N138: 0.04326740815 | O138: 1 | P138: 7.67415e-06 | Q138: 1 | R138: 7.67415e-06 | S138: 1.000025811 | T138: 0.02286418748 | U138: 19.93594201 | V138: -113.999794 | W138: 66.00020601 | Y138: 1000000000 | Z138: 58892578.22 | AB138: 26.98542428 | AC138: -50.26692349 | AE138: 25.79182079 | AF138: -62.42328874 | AH138: 0 | AI138: 0
A139: 7762.5 | B139: 7.7625 | C139: 2.115154809 | D139: 1.078354901 | E139: 1.000024663 | F139: 0.007023229051 | G139: 1 | H139: 0 | I139: 107.3984637 | J139: 1.561485072 | K139: 1.345599077 | L139: 0.7330105094 | M139: 1.000958448 | N139: 0.04376489958 | O139: 1 | P139: 7.7625e-06 | Q139: 1 | R139: 7.7625e-06 | S139: 1.000026409 | T139: 0.02312744829 | U139: 19.8035641 | V139: -114.0081889 | W139: 65.99181108 | Y139: 1000000000 | Z139: 60256406.25 | AB139: 26.93005115 | AC139: -49.97563997 | AE139: 25.71481601 | AF139: -62.70788853 | AH139: 0 | AI139: 0
A140: 7852.9 | B140: 7.8529 | C140: 2.134306154 | D140: 1.08316304 | E140: 1.000025241 | F140: 0.007105016962 | G140: 1 | H140: 0 | I140: 108.6490897 | J140: 1.561592254 | K140: 1.352637326 | L140: 0.7387713432 | M140: 1.000980891 | N140: 0.04427391195 | O140: 1 | P140: 7.8529e-06 | Q140: 1 | R140: 7.8529e-06 | S140: 1.000027028 | T140: 0.02339681875 | U140: 19.66983114 | V140: -114.0150852 | W140: 65.98491483 | Y140: 1000000000 | Z140: 61668038.41 | AB140: 26.8746097 | AC140: -49.68087384 | AE140: 25.6365245 | AF140: -62.99412229 | AH140: 0 | AI140: 0
A141: 7943.3 | B141: 7.9433 | C141: =SQRT(1+(A141/pole1)^2) -> 2.153505961 | D141: =ATAN(A141/pole1) -> 1.087885552 | E141: =SQRT(1+(A141/Zero1)^2) -> 1.000025826 | F141: =ATAN(A141/Zero1) -> 0.007186804778 | G141: =IF(VIN_nom>Vout, 1, SQRT(1+(A141/z_RHP)^2)) -> 1 | H141: =IF(VIN_nom>Vout, 0, -ATAN(A141/z_RHP)) -> 0 | I141: =SQRT(1+(A141/Pole2)^2) -> 109.8997169 | J141: =ATAN(A141/Pole2) -> 1.561696997 | K141: =SQRT(1+(A141/Zero2)^2) -> 1.359720001 | L141: =ATAN(A141/Zero2) -> 0.7444723492 | M141: =SQRT(1+(A141/pole4)^2) -> 1.001003593 | N141: =ATAN(A141/pole4) -> 0.04478290137 | O141: =SQRT(1+(A141/Zero3)^2) -> 1 | P141: =ATAN(A141/Zero3) -> 7.9433e-06 | Q141: =SQRT(1+(A141/pole5)^2) -> 1 | R141: =ATAN(A141/pole5) -> 7.9433e-06 | S141: =SQRT((1-(Z141/pterm2))^2+(A141/pterm1)^2) -> 1.000027655 | T141: =IF((ATAN((A141/pterm1)/(1-A141^2/pterm2))>0),ATAN((A141/pterm1)/(1-A141^2/pterm2)),PI()+ATAN((A141/pterm1)/(1-A141^2/pterm2))) -> 0.02366619041 | U141: =20*LOG10(((E141*K141*G141*O141)/(C141*I141*S141*M141*Q141))*Adc) -> 19.53779927 | V141: =((F141+L141+H141+R141)-(D141+J141+T141+N141+T141))*radconv -> -114.0203623 | W141: =IF(V141>0,V141,V141+180) -> 65.97963773 | Y141: =IF(U141<0,A141,1000000000) -> 1000000000 | Z141: =A141^2 -> 63096014.89 | AB141: =20*LOG10((K141/(I141*M141))*AEA) -> 26.82036543 | AC141: =(L141-(J141+N141))*radconv -> -49.38939452 | AE141: =20*LOG10((E141*G141/(C141*S141))*Acs*Am) -> 25.5587369 | AF141: =(F141+H141-(D141+T141))*radconv -> -63.27545004 | AH141: =SUM((U142<0)*(U141>0))*A141 -> 0 | AI141: 0
A142: 8035.8 | B142: =A142/1000 -> 8.0358 | C142: 2.173200607 | D142: 1.092631284 | E142: 1.000026431 | F142: 0.007270492434 | G142: 1 | H142: 0 | I142: 111.1793975 | J142: 1.561801733 | K142: 1.367012471 | L142: 0.7502444478 | M142: 1.001027091 | N142: 0.04530369062 | O142: 1 | P142: 8.0358e-06 | Q142: 1 | R142: 8.0358e-06 | S142: 1.000028303 | T142: 0.02394182084 | U142: 19.40442517 | V142: -114.0241805 | W142: 65.97581952 | Y142: 1000000000 | Z142: 64574081.64 | AB142: 26.7660665 | AC142: -49.09451762 | AE142: 25.47966173 | AF142: -63.55835799 | AH142: 0 | AI142: 0
A143: 8128.3 | B143: 8.1283 | C143: 2.192943318 | D143: 1.09729167 | E143: 1.000027043 | F143: 0.007354179987 | G143: 1 | H143: 0 | I143: 112.4590793 | J143: 1.561904086 | K143: 1.374350001 | L143: 0.7559551017 | M143: 1.00105086 | N143: 0.04582445528 | O143: 1 | P143: 8.1283e-06 | Q143: 1 | R143: 8.1283e-06 | S143: 1.00002896 | T143: 0.02421745255 | U143: 19.27276004 | V143: -114.0264914 | W143: 65.97350862 | Y143: 1000000000 | Z143: 66069260.89 | AB143: 26.71295352 | AC143: -48.80302326 | AE143: 25.40110958 | AF143: -63.83637601 | AH143: 0 | AI143: 0
A144: 8222.95 | B144: 8.22295 | C144: 2.213193325 | D144: 1.101974207 | E144: 1.000027676 | F144: 0.007439812603 | G144: 1 | H144: 0 | I144: 113.7685063 | J144: 1.562006435 | K144: 1.381903975 | L144: 0.7617355216 | M144: 1.001075463 | N144: 0.04635729845 | O144: 1 | P144: 8.22295e-06 | Q144: 1 | R144: 8.22295e-06 | S144: 1.000029639 | T144: 0.02449949218 | U144: 19.139767 | V144: -114.0273887 | W144: 65.97261131 | Y144: 1000000000 | Z144: 67616906.7 | AB144: 26.65979979 | AC144: -48.5082234 | AE144: 25.32127027 | AF144: -64.11591892 | AH144: 0 | AI144: 0
A145: 8270.275 | B145: 8.270275 | C145: 2.223336278 | D145: 1.104283464 | E145: 1.000027996 | F145: 0.007482628871 | G145: 1 | H145: 0 | I145: 114.4232202 | J145: 1.562056731 | K145: 1.385698136 | L145: 0.7646020502 | M145: 1.00108787 | N145: 0.04662371017 | O145: 1 | P145: 8.270275e-06 | Q145: 1 | R145: 8.270275e-06 | S145: 1.000029981 | T145: 0.0246405125 | U145: 19.07391622 | V145: -114.0273092 | W145: 65.97269077 | Y145: 1000000000 | Z145: 68397448.58 | AB145: 26.63366526 | AC145: -48.36212942 | AE145: 25.28155402 | AF145: -64.25385629 | AH145: 0 | AI145: 0
A146: 8317.6 | B146: 8.3176 | C146: 2.233490979 | D146: 1.106571735 | E146: 1.000028317 | F146: 0.007525445111 | G146: 1 | H146: 0 | I146: 115.0779344 | J146: 1.562106454 | K146: 1.38950362 | L146: 0.7674529008 | M146: 1.001100349 | N146: 0.04689011528 | O146: 1 | P146: 8.3176e-06 | Q146: 1 | R146: 8.3176e-06 | S146: 1.000030326 | T146: 0.02478153317 | U146: 19.00848994 | V146: -114.0268925 | W146: 65.9731075 | Y146: 1000000000 | Z146: 69182469.76 | AB146: 26.60782015 | AC146: -48.21690055 | AE146: 25.24197285 | AF146: -64.39059125 | AH146: 0 | AI146: 0
A147: 8366.05 | B147: 8.36605 | C147: 2.24389908 | D147: 1.108892935 | E147: 1.000028648 | F147: 0.007569279141 | G147: 1 | H147: 0 | I147: 115.7482126 | J147: 1.562156777 | K147: 1.393411202 | L147: 0.7703553657 | M147: 1.001113199 | N147: 0.04716284641 | O147: 1 | P147: 8.36605e-06 | Q147: 1 | R147: 8.36605e-06 | S147: 1.000030681 | T147: 0.02492590651 | U147: 18.94194348 | V147: -114.0261277 | W147: 65.97387226 | Y147: 1000000000 | Z147: 69990792.6 | AB147: 26.58165625 | AC147: -48.06911119 | AE147: 25.20159029 | AF147: -64.52934665 | AH147: 0 | AI147: 0
A148: 8414.5 | B148: 8.4145 | C148: 2.254319159 | D148: 1.111192688 | E148: 1.00002898 | F148: 0.007613113142 | G148: 1 | H148: 0 | I148: 116.4184911 | J148: 1.56220652 | K148: =SQRT(1+(A148/Zero2)^2) -> 1.397330456 | L148: =ATAN(A148/Zero2) -> 0.773241573 | M148: 1.001126122 | N148: 0.04743557052 | O148: 1 | P148: 8.4145e-06 | Q148: 1 | R148: 8.4145e-06 | S148: 1.000031038 | T148: 0.02507028022 | U148: 18.87583261 | V148: -114.0250322 | W148: 65.97496785 | Y148: 1000000000 | Z148: 70803810.25 | AB148: 26.55578722 | AC148: -47.92221971 | AE148: 25.16134845 | AF148: -64.6668733 | AH148: 0 | AI148: 0
A149: 8462.95 | B149: 8.46295 | C149: 2.264751051 | D149: 1.113471267 | E149: 1.000029315 | F149: 0.007656947114 | G149: 1 | H149: 0 | I149: 117.0887699 | J149: 1.562255694 | K149: 1.401261286 | L149: 0.7761116113 | M149: 1.001139121 | N149: 0.04770828756 | O149: 1 | P149: 8.46295e-06 | Q149: 1 | R149: 8.46295e-06 | S149: 1.000031396 | T149: 0.0252146543 | U149: 18.81015269 | V149: -114.0236168 | W149: 65.97638322 | Y149: 1000000000 | Z149: 71621522.7 | AB149: 26.53020887 | AC149: -47.77622162 | AE149: 25.12124688 | AF149: -64.80318678 | AH149: 0 | AI149: 0
A150: 8511.4 | B150: 8.5114 | C150: 2.275194594 | D150: 1.115728939 | E150: 1.000029652 | F150: 0.007700781057 | G150: 1 | H150: 0 | I150: 117.759049 | J150: 1.562304308 | K150: 1.405203593 | L150: 0.7789655692 | M150: 1.001152193 | N150: 0.04798099751 | O150: 1 | P150: 8.5114e-06 | Q150: 1 | R150: 8.5114e-06 | S150: 1.000031757 | T150: 0.02535902874 | U150: 18.74489915 | V150: -114.0218925 | W150: 65.97810753 | Y150: 1000000000 | Z150: 72443929.96 | AB150: 26.50491709 | AC150: -47.63111239 | AE150: 25.08128512 | AF150: -64.93830243 | AH150: 0 | AI150: 0
A151: 8560.95 | B151: 8.56095 | C151: 2.285887129 | D151: 1.11801652 | E151: 1.000029998 | F151: 0.007745610166 | G151: 1 | H151: 0 | I151: 118.4445462 | J151: 1.562353457 | K151: 1.409247176 | L151: 0.7818677831 | M151: 1.00116564 | N151: 0.04825989162 | O151: 1 | P151: 8.56095e-06 | Q151: 1 | R151: 8.56095e-06 | S151: 1.000032129 | T151: 0.02550668142 | U151: 18.67860043 | V151: -114.0198205 | W151: 65.98017954 | Y151: 1000000000 | Z151: 73289864.9 | AB151: 26.47934329 | AC151: -47.48362325 | AE151: 25.0405602 | AF151: -65.07526252 | AH151: 0 | AI151: 0
A152: 8610.5 | B152: 8.6105 | C152: 2.296591515 | D152: 1.120282788 | E152: 1.000030346 | F152: 0.007790439245 | G152: 1 | H152: 0 | I152: 119.1300438 | J152: 1.56240204 | K152: 1.413302562 | L152: 0.7847533656 | M152: 1.001179164 | N152: 0.04853877822 | O152: 1 | P152: 8.6105e-06 | Q152: 1 | R152: 8.6105e-06 | S152: 1.000032502 | T152: 0.02565433449 | U152: 18.61273821 | V152: -114.0174474 | W152: 65.98255257 | Y152: 1000000000 | Z152: 74140710.25 | AB152: 26.45406076 | AC152: -47.33705418 | AE152: 24.99998051 | AF152: -65.2110015 | AH152: 0 | AI152: 0
A153: 8660.05 | B153: 8.66005 | C153: 2.307307586 | D153: 1.122528017 | E153: 1.000030696 | F153: 0.007835268292 | G153: 1 | H153: 0 | I153: 119.8155416 | J153: 1.562450067 | K153: 1.417369648 | L153: 0.7876224119 | M153: 1.001192766 | N153: 0.04881765727 | O153: 1 | P153: 8.66005e-06 | Q153: 1 | R153: 8.66005e-06 | S153: 1.000032878 | T153: 0.02580198796 | U153: 18.54730779 | V153: -114.0147841 | W153: 65.98521586 | Y153: 1000000000 | Z153: 74996466 | AB153: 26.42906532 | AC153: -47.19140028 | AE153: 24.95954553 | AF153: -65.34553502 | AH153: 0 | AI153: 0
A154: 8709.6 | B154: 8.7096 | C154: 2.318035181 | D154: 1.124752475 | E154: 1.000031049 | F154: 0.007880097308 | G154: 1 | H154: 0 | I154: 120.5010397 | J154: 1.562497548 | K154: 1.421448334 | L154: 0.7904750166 | M154: 1.001206446 | N154: 0.04909652872 | O154: 1 | P154: 8.7096e-06 | Q154: 1 | R154: 8.7096e-06 | S154: 1.000033256 | T154: 0.02594964182 | U154: 18.48230454 | V154: -114.0118411 | W154: 65.98815886 | Y154: 1000000000 | Z154: 75857132.16 | AB154: 26.40435287 | AC154: -47.04665667 | AE154: 24.91925472 | AF154: -65.47887853 | AH154: 0 | AI154: =IF(AH154>0,W154,0) -> 0
A155: 8760.325 | B155: 8.760325 | C155: 2.329028935 | D155: 1.127008445 | E155: 1.000031411 | F155: 0.00792598934 | G155: 1 | H155: 0 | I155: 121.2027935 | J155: 1.562545598 | K155: 1.425635652 | L155: 0.7933783346 | M155: 1.001220531 | N155: 0.04938200524 | O155: 1 | P155: 8.760325e-06 | Q155: 1 | R155: 8.760325e-06 | S155: 1.000033645 | T155: 0.02610079747 | U155: 18.41619755 | V155: -114.0085493 | W155: 65.99145066 | Y155: 1000000000 | Z155: 76743294.11 | AB155: 26.37934334 | AC155: -46.89941849 | AE155: 24.87815728 | AF155: -65.61416725 | AH155: 0 | AI155: 0
A156: 8811.05 | B156: 8.81105 | C156: 2.34003443 | D156: 1.129243206 | E156: 1.000031776 | F156: 0.007971881339 | G156: 1 | H156: 0 | I156: 121.9045477 | J156: 1.562593095 | K156: 1.429834917 | L156: 0.7962646234 | M156: 1.001234698 | N156: 0.04966747371 | O156: 1 | P156: 8.81105e-06 | Q156: 1 | R156: 8.81105e-06 | S156: 1.000034036 | T156: 0.02625195354 | U156: 18.35052862 | V156: -114.004986 | W156: 65.99501405 | Y156: 1000000000 | Z156: 77634602.1 | AB156: 26.3546219 | AC156: -46.75312384 | AE156: 24.83720978 | AF156: -65.7482408 | AH156: 0 | AI156: 0
A157: 8861.775 | B157: 8.861775 | C157: 2.351051503 | D157: 1.131457034 | E157: 1.000032143 | F157: 0.008017773304 | G157: 1 | H157: 0 | I157: 122.6063021 | J157: 1.562640049 | K157: 1.434046023 | L157: 0.7991339846 | M157: 1.001248946 | N157: 0.04995293408 | O157: 1 | P157: 8.861775e-06 | Q157: 1 | R157: 8.861775e-06 | S157: 1.00003443 | T157: 0.02640311003 | U157: 18.28529296 | V157: -114.0011615 | W157: 65.99883851 | Y157: 1000000000 | Z157: 78531056.15 | AB157: 26.33018438 | AC157: -46.60776746 | AE157: 24.79641163 | AF157: -65.881115 | AH157: 0 | AI157: 0
A158: 8912.5 | B158: 8.9125 | C158: 2.362079991 | D158: 1.133650199 | E158: 1.000032512 | F158: 0.008063665236 | G158: 1 | H158: 0 | I158: 123.3080568 | J158: 1.562686468 | K158: =SQRT(1+(A158/Zero2)^2) -> 1.438268867 | L158: =ATAN(A158/Zero2) -> 0.80198652 | M158: 1.001263276 | N158: 0.0502383863 | O158: 1 | P158: 8.9125e-06 | Q158: 1 | R158: 8.9125e-06 | S158: 1.000034825 | T158: 0.02655426694 | U158: 18.22048587 | V158: -113.9970862 | W158: 66.00291381 | Y158: 1000000000 | Z158: 79432656.25 | AB158: 26.30602668 | AC158: -46.46334404 | AE158: 24.75576225 | AF158: -66.01280537 | AH158: 0 | AI158: 0
A159: 8964.4 | B159: 8.9644 | C159: 2.373375592 | D159: 1.135873061 | E159: 1.000032892 | F159: 0.008110620178 | G159: 1 | H159: 0 | I159: 124.0260673 | J159: 1.562733418 | K159: 1.442601571 | L159: 0.8048878228 | M159: 1.001278022 | N159: 0.05053044229 | O159: 1 | P159: 8.9644e-06 | Q159: 1 | R159: 8.9644e-06 | S159: 1.000035233 | T159: 0.02670892572 | U159: 18.15461632 | V159: -113.9926673 | W159: 66.00733268 | Y159: 1000000000 | Z159: 80360467.36 | AB159: 26.2815948 | AC159: -46.31653528 | AE159: 24.71432459 | AF159: -66.14633694 | AH159: 0 | AI159: 0
A160: 9016.3 | B160: 9.0163 | C160: 2.38468281 | D160: 1.138074853 | E160: 1.000033274 | F160: 0.008157575085 | G160: 1 | H160: 0 | I160: 124.744078 | J160: 1.562779828 | K160: 1.446946345 | L160: 0.8077717261 | M160: 1.001292854 | N160: 0.05082248965 | O160: 1 | P160: 9.0163e-06 | Q160: 1 | R160: 9.0163e-06 | S160: 1.000035643 | T160: 0.02686358494 | U160: 18.08918567 | V160: -113.9880068 | W160: 66.01199322 | Y160: 1000000000 | Z160: 81293665.69 | AB160: 26.25744737 | AC160: -46.17069197 | AE160: 24.67304136 | AF160: -66.27866136 | AH160: 0 | AI160: 0
A161: 9068.2 | B161: 9.0682 | C161: 2.396001479 | D161: 1.140255854 | E161: 1.000033658 | F161: 0.008204529956 | G161: 1 | H161: 0 | I161: 125.462089 | J161: 1.562825707 | K161: 1.451303081 | L161: 0.8106383385 | M161: 1.001307771 | N161: 0.05111452834 | O161: 1 | P161: 9.0682e-06 | Q161: 1 | R161: 9.0682e-06 | S161: 1.000036055 | T161: 0.02701824462 | U161: 18.02418907 | V161: -113.9831148 | W161: 66.01688523 | Y161: 1000000000 | Z161: 82232251.24 | AB161: 26.23358023 | AC161: -46.02580843 | AE161: 24.6319119 | AF161: -66.40979452 | AH161: 0 | AI161: 0
A162: 9120.1 | B162: 9.1201 | C162: 2.407331439 | D162: 1.142416335 | E162: 1.000034044 | F162: 0.008251484791 | G162: 1 | H162: 0 | I162: 126.1801003 | J162: 1.562871064 | K162: 1.455671671 | L162: 0.8134877683 | M162: 1.001322774 | N162: 0.0514065583 | O162: 1 | P162: 9.1201e-06 | Q162: 1 | R162: 9.1201e-06 | S162: 1.000036469 | T162: 0.02717290474 | U162: 17.95962176 | V162: -113.9780012 | W162: 66.02199878 | Y162: 1000000000 | Z162: 83176224.01 | AB162: 26.20998928 | AC162: -45.88187896 | AE162: 24.59093554 | AF162: -66.53975204 | AH162: 0 | AI162: 0
A163: 9173.2 | B163: 9.1732 | C163: 2.418934881 | D163: 1.144605813 | E163: 1.000034442 | F163: 0.008299525249 | G163: 1 | H163: 0 | I163: 126.9147133 | J163: 1.562916938 | K163: 1.460153427 | L163: 0.8163854105 | M163: 1.001338211 | N163: 0.05170533131 | O163: 1 | P163: 9.1732e-06 | Q163: 1 | R163: 9.1732e-06 | S163: 1.000036896 | T163: 0.0273311413 | U163: 17.89400095 | V163: -113.9725502 | W163: 66.02744975 | Y163: 1000000000 | Z163: 84147598.24 | AB163: 26.18613451 | AC163: -45.73560312 | AE163: 24.5491695 | AF163: -66.67151366 | AH163: 0 | AI163: 0
A164: 9226.3 | B164: 9.2263 | C164: 2.430549809 | D164: 1.146774376 | E164: 1.000034842 | F164: 0.008347565668 | G164: 1 | H164: 0 | I164: 127.6493265 | J164: 1.562962284 | K164: 1.464647369 | L164: 0.8192652954 | M164: 1.001353738 | N164: 0.05200409509 | O164: 1 | P164: 9.2263e-06 | Q164: 1 | R164: 9.2263e-06 | S164: 1.000037325 | T164: 0.02748937834 | U164: 17.82881962 | V164: -113.9668876 | W164: 66.03311239 | Y164: 1000000000 | Z164: 85124611.69 | AB164: 26.1625604 | AC164: -45.59031393 | AE164: 24.50756228 | AF164: -66.80207694 | AH164: 0 | AI164: 0
A165: 9279.4 | B165: 9.2794 | C165: 2.442176058 | D165: 1.148922301 | E165: 1.000035244 | F165: 0.008395606049 | G165: 1 | H165: 0 | I165: 128.38394 | J165: 1.563007112 | K165: 1.469153383 | L165: 0.8221275381 | M165: 1.001369355 | N165: 0.05230284957 | O165: 1 | P165: 9.2794e-06 | Q165: 1 | R165: 9.2794e-06 | S165: 1.000037756 | T165: 0.02764761587 | U165: 17.76407286 | V165: -113.9610231 | W165: 66.03897686 | Y165: 1000000000 | Z165: 86107264.36 | AB165: 26.13926278 | AC165: -45.44600529 | AE165: 24.46611315 | AF165: -66.93145782 | AH165: 0 | AI165: 0
A166: 9332.5 | B166: 9.3325 | C166: 2.453813468 | D166: 1.151049862 | E166: 1.000035649 | F166: 0.008443646392 | G166: 1 | H166: 0 | I166: 129.1185538 | J166: 1.563051429 | K166: 1.473671359 | L166: 0.8249722539 | M166: 1.001385061 | N166: 0.05260159471 | O166: 1 | P166: 9.3325e-06 | Q166: 1 | R166: 9.3325e-06 | S166: 1.00003819 | T166: 0.02780585388 | U166: 17.69975586 | V166: -113.9549664 | W166: 66.04503356 | Y166: 1000000000 | Z166: 87095556.25 | AB166: 26.11623756 | AC166: -45.3026711 | AE166: 24.42482136 | AF166: -67.05967198 | AH166: 0 | AI166: 0
A167: 9386.85 | B167: 9.38685 | C167: 2.465736221 | D167: 1.1532067 | E167: 1.000036065 | F167: 0.008492817587 | G167: 1 | H167: 0 | I167: 129.8704609 | J167: 1.56309627 | K167: 1.478307964 | L167: 0.827865905 | M167: 1.001401229 | N167: 0.05290736273 | O167: 1 | P167: 9.38685e-06 | Q167: 1 | R167: 9.38685e-06 | S167: 1.000038637 | T167: 0.02796781739 | U167: 17.63436487 | V167: -113.9485778 | W167: 66.05142217 | Y167: 1000000000 | Z167: 88112952.92 | AB167: 26.09294821 | AC167: -45.15696554 | AE167: 24.38271972 | AF167: -67.18971221 | AH167: 0 | AI167: 0
A168: 9441.2 | B168: 9.4412 | C168: 2.477670333 | D168: 1.155342771 | E168: 1.000036484 | F168: 0.008541988741 | G168: 1 | H168: 0 | I168: 130.6223684 | J168: 1.563140595 | K168: 1.482956871 | L168: 0.8307414375 | M168: 1.00141749 | N168: 0.05321312084 | O168: 1 | P168: 9.4412e-06 | Q168: 1 | R168: 9.4412e-06 | S168: 1.000039087 | T168: 0.02812978142 | U168: 17.56941407 | V168: -113.9420073 | W168: 66.05799265 | Y168: 1000000000 | Z168: 89136257.44 | AB168: 26.0699358 | AC168: -45.01226796 | AE168: 24.34078133 | AF168: -67.31856257 | AH168: 0 | AI168: 0
A169: 9495.55 | B169: 9.49555 | C169: 2.489615643 | D169: 1.157458352 | E169: 1.000036905 | F169: 0.008591159853 | G169: 1 | H169: 0 | I169: 131.3742761 | J169: 1.563184413 | K169: 1.487617962 | L169: 0.8335989738 | M169: 1.001433846 | N169: 0.05351886899 | O169: 1 | P169: 9.49555e-06 | Q169: 1 | R169: 9.49555e-06 | S169: 1.000039539 | T169: 0.02829174598 | U169: 17.5048985 | V169: -113.9352645 | W169: 66.06473551 | Y169: 1000000000 | Z169: 90165469.8 | AB169: 26.04719616 | AC169: -44.86857183 | AE169: 24.2990054 | AF169: -67.44623907 | AH169: 0 | AI169: 0
A170: 9549.9 | B170: 9.5499 | C170: 2.501571988 | D170: 1.159553721 | E170: 1.000037329 | F170: 0.008640330925 | G170: 1 | H170: 0 | I170: 132.126184 | J170: 1.563227732 | K170: 1.492291125 | L170: 0.8364386364 | M170: 1.001450295 | N170: 0.05382460713 | O170: 1 | P170: 9.5499e-06 | Q170: 1 | R170: 9.5499e-06 | S170: 1.000039993 | T170: 0.02845371105 | U170: 17.44081327 | V170: -113.9283585 | W170: 66.07164152 | Y170: 1000000000 | Z170: 91200590.01 | AB170: 26.02472522 | AC170: -44.72587065 | AE170: 24.25739111 | AF170: -67.57275745 | AH170: 0 | AI170: 0
A171: 9605.525 | B171: 9.605525 | C171: 2.513820082 | D171: 1.161677596 | E171: 1.000037765 | F171: 0.00869065546 | G171: 1 | H171: 0 | I171: 132.8957312 | J171: 1.56327156 | K171: 1.497086297 | L171: 0.839326534 | M171: 1.001467227 | N171: 0.05413750717 | O171: 1 | P171: 9.605525e-06 | Q171: 1 | R171: 9.605525e-06 | S171: 1.000040461 | T171: 0.02861947621 | U171: 17.37566521 | V171: -113.9211309 | W171: 66.07886909 | Y171: 1000000000 | Z171: 92266110.53 | AB171: 26.00200117 | AC171: -44.58084529 | AE171: 24.21496711 | AF171: -67.70106078 | AH171: 0 | AI171: 0
A172: 9661.15 | B172: 9.66115 | C172: 2.526079405 | D172: 1.163780865 | E172: 1.000038204 | F172: 0.008740979951 | G172: 1 | H172: 0 | I172: 133.6652787 | J172: 1.563314883 | K172: 1.501893875 | L172: 0.8421959671 | M172: 1.001484256 | N172: 0.05445039659 | O172: 1 | P172: 9.66115e-06 | Q172: 1 | R172: 9.66115e-06 | S172: 1.000040932 | T172: 0.02878524193 | U172: 17.31095777 | V172: -113.9137512 | W172: 66.08624877 | Y172: 1000000000 | Z172: 93337819.32 | AB172: 25.97955014 | AC172: -44.43684835 | AE172: 24.17271069 | AF172: -67.82818354 | AH172: 0 | AI172: 0
A173: 9716.775 | B173: 9.716775 | C173: 2.538349795 | D173: 1.165863809 | E173: 1.000038645 | F173: 0.008791304398 | G173: 1 | H173: 0 | I173: 134.4348265 | J173: 1.56335771 | K173: 1.50671374 | L173: 0.8450470654 | M173: 1.001501384 | N173: 0.05476327535 | O173: 1 | P173: 9.716775e-06 | Q173: 1 | R173: 9.716775e-06 | S173: 1.000041406 | T173: 0.0289510082 | U173: 17.24668592 | V173: -113.9062285 | W173: 66.09377147 | Y173: 1000000000 | Z173: 94415716.4 | AB173: 25.95736799 | AC173: -44.29387289 | AE173: 24.13062099 | AF173: -67.95414179 | AH173: 0 | AI173: 0
A174: 9772.4 | B174: 9.7724 | C174: 2.550631091 | D174: 1.167926704 | E174: 1.000039088 | F174: 0.0088416288 | G174: 1 | H174: 0 | I174: 135.2043745 | J174: 1.563400049 | K174: 1.511545774 | L174: 0.847879958 | M174: 1.00151861 | N174: 0.05507614337 | O174: 1 | P174: 9.7724e-06 | Q174: 1 | R174: 9.7724e-06 | S174: 1.000041882 | T174: 0.02911677503 | U174: 17.18284469 | V174: -113.8985717 | W174: 66.10142831 | Y174: 1000000000 | Z174: 95499801.76 | AB174: 25.93545065 | AC174: -44.15191199 | AE174: 24.08869711 | AF174: -68.0789513 | AH174: 0 | AI174: 0
A175: 9829.3 | B175: 9.8293 | C175: 2.563205014 | D175: 1.17001642 | E175: 1.000039545 | F175: 0.008893106659 | G175: 1 | H175: 0 | I175: 135.9915618 | J175: 1.563442863 | K175: 1.516501035 | L175: 0.8507590823 | M175: 1.001536332 | N175: 0.05539617159 | O175: 1 | P175: 9.8293e-06 | Q175: 1 | R175: 9.8293e-06 | S175: 1.000042372 | T175: 0.02928634205 | U175: 17.1179806 | V175: -113.8906095 | W175: 66.10939049 | Y175: 1000000000 | Z175: 96615138.49 | AB175: 25.91330074 | AC175: -44.00773965 | AE175: 24.04598292 | AF175: -68.20544924 | AH175: 0 | AI175: 0
A176: 9886.2 | B176: 9.8862 | C176: 2.57579002 | D176: 1.172085726 | E176: 1.000040004 | F176: 0.008944584471 | G176: 1 | H176: 0 | I176: 136.7787493 | J176: 1.563485184 | K176: 1.521468785 | L176: 0.8536194289 | M176: 1.001554157 | N176: 0.05571618844 | O176: 1 | P176: 9.8862e-06 | Q176: 1 | R176: 9.8862e-06 | S176: 1.000042865 | T176: 0.02945590965 | U176: 17.05355685 | V176: -113.8825249 | W176: 66.11747508 | Y176: 1000000000 | Z176: 97736950.44 | AB176: 25.89141953 | AC176: -43.86461431 | AE176: 24.00344039 | AF176: -68.33077775 | AH176: 0 | AI176: 0
A177: 9943.1 | B177: 9.9431 | C177: 2.588385948 | D177: 1.1741349 | E177: 1.000040466 | F177: 0.008996062236 | G177: 1 | H177: 0 | I177: 137.5659371 | J177: 1.563527021 | K177: 1.526448902 | L177: 0.8564611346 | M177: 1.001572084 | N177: 0.05603619387 | O177: 1 | P177: 9.9431e-06 | Q177: 1 | R177: 9.9431e-06 | S177: 1.00004336 | T177: 0.02962547785 | U177: 16.98956837 | V177: -113.8743266 | W177: 66.12567338 | Y177: 1000000000 | Z177: 98865237.61 | AB177: 25.86980288 | AC177: -43.72252861 | AE177: 23.96106854 | AF177: -68.45495286 | AH177: 0 | AI177: 0
A178: 10000 | B178: 10 | C178: 2.60099264 | D178: 1.176164218 | E178: 1.00004093 | F178: 0.009047539953 | G178: 1 | H178: 0 | I178: 138.3531252 | J178: 1.563568382 | K178: 1.531441266 | L178: 0.8592843356 | M178: 1.001590114 | N178: 0.05635618781 | O178: 1 | P178: 1e-05 | Q178: 1 | R178: 1e-05 | S178: 1.000043859 | T178: 0.02979504665 | U178: 16.92601015 | V178: -113.866023 | W178: 66.13397696 | Y178: 1000000000 | Z178: 100000000 | AB178: 25.84844676 | AC178: -43.58147522 | AE178: 23.91886645 | AF178: -68.57799036 | AH178: 0 | AI178: 0
A179: 10058.25 | B179: 10.05825 | C179: 2.613909424 | D179: 1.178221398 | E179: 1.000041409 | F179: 0.009100238972 | G179: 1 | H179: 0 | I179: 139.1589901 | J179: 1.56361024 | K179: 1.536564638 | L179: 0.8621554924 | M179: 1.001608678 | N179: 0.05668376191 | O179: 1 | P179: 1.005825e-05 | Q179: 1 | R179: 1.005825e-05 | S179: 1.000044372 | T179: 0.02996863924 | U179: 16.86138452 | V179: -113.857422 | W179: 66.14257802 | Y179: 1000000000 | Z179: 101168393.1 | AB179: 25.82684966 | AC179: -43.43813692 | AE179: 23.87583792 | AF179: -68.7027848 | AH179: 0 | AI179: 0
A180: 10116.5 | B180: 10.1165 | C180: 2.626837161 | D180: 1.180258339 | E180: 1.00004189 | F180: 0.00915293794 | G180: 1 | H180: 0 | I180: 139.9648553 | J180: 1.563651615 | K180: 1.541700593 | L180: 0.8650075429 | M180: 1.001627349 | N180: 0.05701132383 | O180: 1 | P180: 1.01165e-05 | Q180: 1 | R180: 1.01165e-05 | S180: 1.000044889 | T180: 0.03014223245 | U180: 16.79719943 | V180: -113.8487277 | W180: 66.15127228 | Y180: 1000000000 | Z180: 102343572.2 | AB180: 25.80551722 | AC180: -43.29586502 | AE180: 23.83298528 | AF180: -68.82641962 | AH180: 0 | AI180: 0
A181: 10174.75 | B181: 10.17475 | C181: 2.63977569 | D181: 1.18227532 | E181: 1.000042373 | F181: 0.009205636858 | G181: 1 | H181: 0 | I181: 140.7707208 | J181: 1.563692517 | K181: 1.546849004 | L181: 0.8678406312 | M181: 1.001646128 | N181: 0.05733887351 | O181: 1 | P181: 1.017475e-05 | Q181: 1 | R181: 1.017475e-05 | S181: 1.000045408 | T181: 0.03031582631 | U181: 16.73344977 | V181: -113.8399486 | W181: 66.16005144 | Y181: 1000000000 | Z181: 103525537.6 | AB181: 25.78444534 | AC181: -43.15465173 | AE181: 23.79030749 | AF181: -68.9489109 | AH181: 0 | AI181: 0
A182: 10233 | B182: 10.233 | C182: 2.652724853 | D182: 1.184272618 | E182: 1.00004286 | F182: 0.009258335725 | G182: 1 | H182: 0 | I182: 141.5765865 | J182: 1.563732953 | K182: 1.552009749 | L182: 0.8706549008 | M182: 1.001665014 | N182: 0.05766641087 | O182: 1 | P182: 1.0233e-05 | Q182: 1 | R182: 1.0233e-05 | S182: 1.000045931 | T182: 0.03048942081 | U182: 16.67013047 | V182: -113.8310925 | W182: 66.16890746 | Y182: 1000000000 | Z182: 104714289 | AB182: 25.76362997 | AC182: -43.01448929 | AE182: 23.74780356 | AF182: -69.07027443 | AH182: 0 | AI182: 0
A183: 10292.5 | B183: 10.2925 | C183: 2.665962714 | D183: 1.186292736 | E183: 1.00004336 | F183: 0.009312165415 | G183: 1 | H183: 0 | I183: 142.3997457 | J183: 1.563773785 | K183: 1.557293846 | L183: 0.8735102821 | M183: 1.001684417 | N183: 0.05800096413 | O183: 1 | P183: 1.02925e-05 | Q183: 1 | R183: 1.02925e-05 | S183: 1.000046467 | T183: 0.03066674118 | U183: 16.60589152 | V183: -113.8219752 | W183: 66.17802476 | Y183: 1000000000 | Z183: 105935556.2 | AB183: 25.74262864 | AC183: -42.87239595 | AE183: 23.70456594 | AF183: -69.19309417 | AH183: 0 | AI183: 0
A184: 10352 | B184: 10.352 | C184: 2.679211346 | D184: 1.188292883 | E184: 1.000043863 | F184: 0.009365995051 | G184: 1 | H184: 0 | I184: 143.2229051 | J184: 1.563814147 | K184: 1.562590553 | L184: 0.8763463286 | M184: 1.001703932 | N184: 0.0583355044 | O184: 1 | P184: 1.0352e-05 | Q184: 1 | R184: 1.0352e-05 | S184: 1.000047007 | T184: 0.03084406222 | U184: 16.54209117 | V184: -113.8127939 | W184: 66.18720606 | Y184: 1000000000 | Z184: 107163904 | AB184: 25.72188666 | AC184: -42.73138277 | AE184: 23.66150757 | AF184: -69.31476971 | AH184: 0 | AI184: 0
A185: 10411.5 | B185: 10.4115 | C185: 2.692470592 | D185: 1.190273339 | E185: 1.000044368 | F185: 0.009419824634 | G185: 1 | H185: 0 | I185: 144.0460647 | J185: 1.563854047 | K185: 1.567899743 | L185: 0.8791631909 | M185: 1.001723558 | N185: 0.0586700316 | O185: 1 | P185: 1.04115e-05 | Q185: 1 | R185: 1.04115e-05 | S185: 1.00004755 | T185: 0.03102138395 | U185: 16.47872427 | V185: -113.8035565 | W185: 66.19644354 | Y185: 1000000000 | Z185: 108399332.2 | AB185: 25.70139998 | AC185: -42.59144159 | AE185: 23.61862735 | AF185: -69.43531703 | AH185: 0 | AI185: 0
A186: 10471 | B186: 10.471 | C186: 2.705740294 | D186: 1.192234376 | E186: 1.000044877 | F186: 0.009473654161 | G186: 1 | H186: 0 | I186: 144.8692246 | J186: 1.563893495 | K186: 1.57322129 | L186: 0.8819610188 | M186: 1.001743297 | N186: 0.05900454565 | O186: 1 | P186: 1.0471e-05 | Q186: 1 | R186: 1.0471e-05 | S186: 1.000048096 | T186: 0.03119870636 | U186: 16.41578575 | V186: -113.7942704 | W186: 66.20572964 | Y186: 1000000000 | Z186: 109641841 | AB186: 25.6811646 | AC186: -42.45256426 | AE186: 23.57592421 | AF186: -69.55475183 | AH186: 0 | AI186: 0
A187: 10532 | B187: 10.532 | C187: 2.719355222 | D187: 1.194224976 | E187: 1.000045401 | F187: 0.009528840679 | G187: 1 | H187: 0 | I187: 145.7131366 | J187: 1.563933474 | K187: 1.578689691 | L187: 0.8848097758 | M187: 1.00176365 | N187: 0.05934747911 | O187: 1 | P187: 1.0532e-05 | Q187: 1 | R187: 1.0532e-05 | S187: 1.000048659 | T187: 0.0313804998 | U187: 16.35170002 | V187: -113.7847074 | W187: 66.21529264 | Y187: 1000000000 | Z187: 110923024 | AB187: 25.66067586 | AC187: -42.31128178 | AE187: 23.53232721 | AF187: -69.67605882 | AH187: 0 | AI187: 0
A188: 10593 | B188: 10.593 | C188: 2.732980818 | D188: 1.196195734 | E188: 1.000045929 | F188: 0.009584027138 | G188: 1 | H188: 0 | I188: 146.5570489 | J188: 1.563972992 | K188: 1.584170815 | L188: 0.8876388425 | M188: 1.00178412 | N188: 0.05969039859 | O188: 1 | P188: 1.0593e-05 | Q188: 1 | R188: 1.0593e-05 | S188: 1.000049226 | T188: 0.03156229397 | U188: 16.28805397 | V188: -113.7751086 | W188: 66.22489137 | Y188: 1000000000 | Z188: 112211649 | AB188: 25.64044299 | AC188: -42.17110029 | AE188: 23.48891405 | AF188: -69.79622904 | AH188: 0 | AI188: 0
A189: 10654 | B189: 10.654 | C189: 2.746616923 | D189: 1.198146931 | E189: 1.000046459 | F189: 0.009639213539 | G189: 1 | H189: 0 | I189: 147.4009613 | J189: 1.564012058 | K189: 1.589664531 | L189: 0.8904483778 | M189: 1.001804709 | N189: 0.06003330401 | O189: 1 | P189: 1.0654e-05 | Q189: 1 | R189: 1.0654e-05 | S189: 1.000049796 | T189: 0.03174408888 | U189: 16.22484239 | V189: -113.7654816 | W189: 66.23451842 | Y189: 1000000000 | Z189: 113507716 | AB189: 25.62046191 | AC189: -42.03201114 | AE189: 23.44568354 | AF189: -69.91527855 | AH189: 0 | AI189: 0
A190: 10715 | B190: 10.715 | C190: 2.760263382 | D190: 1.200078843 | E190: 1.000046993 | F190: 0.009694399881 | G190: 1 | H190: 0 | I190: 148.2448741 | J190: 1.56405068 | K190: 1.595170709 | L190: 0.8932385391 | M190: 1.001825415 | N190: 0.0603761953 | O190: 1 | P190: 1.0715e-05 | Q190: 1 | R190: 1.0715e-05 | S190: 1.000050369 | T190: 0.03192588452 | U190: 16.16206012 | V190: -113.7558334 | W190: 66.24416663 | Y190: 1000000000 | Z190: 114811225 | AB190: 25.60072863 | AC190: -41.89400573 | AE190: 23.40263455 | AF190: -70.03322312 | AH190: 0 | AI190: 0
A191: 10777.5 | B191: 10.7775 | C191: 2.774255988 | D191: 1.202038541 | E191: 1.000047542 | F191: 0.009750943204 | G191: 1 | H191: 0 | I191: 149.1095389 | J191: 1.564089797 | K191: 1.600825074 | L191: 0.8960773804 | M191: 1.001846752 | N191: 0.0607275036 | O191: 1 | P191: 1.07775e-05 | Q191: 1 | R191: 1.07775e-05 | S191: 1.000050959 | T191: 0.03211215131 | U191: 16.09817401 | V191: -113.7459332 | W191: 66.25406678 | Y191: 1000000000 | Z191: 116154506.2 | AB191: 25.58076303 | AC191: -41.75372186 | AE191: 23.35871404 | AF191: -70.15293812 | AH191: 0 | AI191: 0
A192: 10840 | B192: 10.84 | C192: 2.788259141 | D192: 1.203978561 | E192: 1.000048095 | F192: 0.009807486464 | G192: 1 | H192: 0 | I192: 149.9742041 | J192: 1.564128464 | K192: 1.60649225 | L192: 0.8988962153 | M192: 1.001868214 | N192: 0.0610787969 | O192: 1 | P192: 1.084e-05 | Q192: 1 | R192: 1.084e-05 | S192: 1.000051553 | T192: 0.03229841889 | U192: 16.0347279 | V192: -113.7360254 | W192: 66.26397464 | Y192: 1000000000 | Z192: 117505600 | AB192: 25.56104934 | AC192: -41.61455757 | AE192: 23.31498163 | AF192: -70.27152578 | AH192: 0 | AI192: 0
A193: 10902.5 | B193: 10.9025 | C193: 2.802272684 | D193: 1.205899186 | E193: 1.000048652 | F193: 0.009864029661 | G193: 1 | H193: 0 | I193: 150.8388694 | J193: 1.564166687 | K193: 1.612172101 | L193: 0.9016952103 | M193: 1.001889798 | N193: 0.0614300751 | O193: 1 | P193: 1.09025e-05 | Q193: 1 | R193: 1.09025e-05 | S193: 1.000052151 | T193: 0.03248468725 | U193: 15.97171651 | V193: -113.7261168 | W193: 66.27388323 | Y193: 1000000000 | Z193: 118864506.2 | AB193: 25.54158348 | AC193: -41.47650377 | AE193: 23.27143609 | AF193: -70.38900218 | AH193: 0 | AI193: 0
A194: 10965 | B194: 10.965 | C194: 2.816296461 | D194: 1.207800691 | E194: 1.000049211 | F194: 0.009920572795 | G194: 1 | H194: 0 | I194: 151.7035349 | J194: 1.564204475 | K194: 1.617864493 | L194: 0.9044745305 | M194: 1.001911507 | N194: 0.06178133812 | O194: 1 | P194: 1.0965e-05 | Q194: 1 | R194: 1.0965e-05 | S194: 1.000052751 | T194: 0.0326709564 | U194: 15.90913464 | V194: -113.7162142 | W194: 66.28378582 | Y194: 1000000000 | Z194: 120231225 | AB194: 25.52236149 | AC194: -41.3395514 | AE194: 23.22807621 | AF194: -70.50538311 | AH194: 0 | AI194: 0
A195: 11028.75 | B195: 11.02875 | C195: 2.830611099 | D195: 1.209720807 | E195: 1.000049785 | F195: 0.009978246726 | G195: 1 | H195: 0 | I195: 152.585494 | J195: 1.564242577 | K195: 1.623683517 | L195: 0.9072893387 | M195: 1.001933777 | N195: 0.06213961067 | O195: 1 | P195: 1.102875e-05 | Q195: 1 | R195: 1.102875e-05 | S195: 1.000053368 | T195: 0.03286095176 | U195: 15.84573831 | V195: -113.7061265 | W195: 66.29387352 | Y195: 1000000000 | Z195: 121633326.6 | AB195: 25.50300224 | AC195: -41.20098537 | AE195: 23.18403913 | AF195: -70.62297916 | AH195: 0 | AI195: 0
A196: 11092.5 | B196: 11.0925 | C196: 2.844936068 | D196: 1.211621595 | E196: 1.000050362 | F196: 0.01003592059 | G196: 1 | H196: 0 | I196: 153.4674533 | J196: 1.564280241 | K196: 1.629515314 | L196: 0.9100840213 | M196: 1.001956175 | N196: 0.06249786726 | O196: 1 | P196: 1.10925e-05 | Q196: 1 | R196: 1.10925e-05 | S196: 1.000053988 | T196: 0.03305094795 | U196: 15.78277816 | V196: -113.6960585 | W196: 66.30394153 | Y196: 1000000000 | Z196: 123043556.2 | AB196: 25.48388859 | AC196: -41.06354644 | AE196: 23.14019263 | AF196: -70.73946776 | AH196: 0 | AI196: 0
A197: 11156.25 | B197: 11.15625 | C197: 2.859271212 | D197: 1.213503329 | E197: 1.000050942 | F197: 0.01009359439 | G197: 1 | H197: 0 | I197: 154.3494128 | J197: 1.564317475 | K197: 1.635359747 | L197: 0.9128587502 | M197: 1.001978702 | N197: 0.06285610778 | O197: 1 | P197: 1.115625e-05 | Q197: 1 | R197: 1.115625e-05 | S197: 1.000054612 | T197: 0.03324094498 | U197: 15.72024893 | V197: -113.6860166 | W197: 66.31398339 | Y197: 1000000000 | Z197: 124461914.1 | AB197: 25.46501654 | AC197: -40.92722519 | AE197: 23.09653545 | AF197: -70.85486477 | AH197: 0 | AI197: 0
A198: 11220 | B198: 11.22 | C198: 2.87361638 | D198: 1.215366283 | E198: 1.000051526 | F198: 0.01015126812 | G198: 1 | H198: 0 | I198: 155.2313726 | J198: 1.564354285 | K198: 1.641216681 | L198: 0.9156136961 | M198: 1.002001358 | N198: 0.06321433214 | O198: 1 | P198: 1.122e-05 | Q198: 1 | R198: 1.122e-05 | S198: 1.000055239 | T198: 0.03343094285 | U198: 15.65814544 | V198: -113.6760071 | W198: 66.3239929 | Y198: 1000000000 | Z198: 125888400 | AB198: 25.4463822 | AC198: -40.79201225 | AE198: 23.0530663 | AF198: -70.96918578 | AH198: 0 | AI198: 0
A199: 11285.5 | B199: 11.2855 | C199: 2.88836562 | D199: 1.217261096 | E199: 1.00005213 | F199: 0.01021052498 | G199: 1 | H199: 0 | I199: 156.1375432 | J199: 1.564391673 | K199: 1.647247273 | L199: 0.9184238411 | M199: 1.00202477 | N199: 0.0635823732 | O199: 1 | P199: 1.12855e-05 | Q199: 1 | R199: 1.12855e-05 | S199: 1.000055888 | T199: 0.03362615724 | U199: 15.5947752 | V199: -113.6657628 | W199: 66.33423717 | Y199: 1000000000 | Z199: 127362510.2 | AB199: 25.42747989 | AC199: -40.65423218 | AE199: 23.00859838 | AF199: -71.08554037 | AH199: 0 | AI199: 0
A200: 11351 | B200: 11.351 | C200: 2.903125125 | D200: 1.21913665 | E200: 1.000052737 | F200: 0.01026978177 | G200: 1 | H200: 0 | I200: 157.043714 | J200: 1.56442863 | K200: 1.65329078 | L200: 0.9212134632 | M200: 1.002048317 | N200: 0.06395039701 | O200: 1 | P200: 1.1351e-05 | Q200: 1 | R200: 1.1351e-05 | S200: 1.00005654 | T200: 0.03382137252 | U200: 15.53184355 | V200: -113.6555653 | W200: 66.34443469 | Y200: 1000000000 | Z200: 128845201 | AB200: 25.40882038 | AC200: -40.51760227 | AE200: 22.96432624 | AF200: -71.2007915 | AH200: 0 | AI200: 0
A201: 11416.5 | B201: 11.4165 | C201: 2.917894738 | D201: 1.220993222 | E201: 1.000053347 | F201: 0.01032903849 | G201: 1 | H201: 0 | I201: 157.949885 | J201: 1.564465162 | K201: 1.659347058 | L201: 0.9239827437 | M201: 1.002072 | N201: 0.06431840347 | O201: 1 | P201: 1.14165e-05 | Q201: 1 | R201: 1.14165e-05 | S201: 1.000057196 | T201: 0.03401658871 | U201: 15.46934513 | V201: -113.6454206 | W201: 66.35457941 | Y201: 1000000000 | Z201: 130336472.2 | AB201: 25.39039968 | AC201: -40.38211255 | AE201: 22.92024851 | AF201: -71.31495519 | AH201: 0 | AI201: 0
A202: 11482 | B202: 11.482 | C202: 2.932674308 | D202: 1.222831088 | E202: 1.000053961 | F202: 0.01038829513 | G202: 1 | H202: 0 | I202: 158.8560563 | J202: 1.564501278 | K202: 1.665415969 | L202: 0.9267318622 | M202: 1.002095819 | N202: 0.06468639248 | O202: 1 | P202: 1.1482e-05 | Q202: 1 | R202: 1.1482e-05 | S202: 1.000057855 | T202: 0.03421180581 | U202: 15.40727465 | V202: -113.6353345 | W202: 66.3646655 | Y202: 1000000000 | Z202: 131836324 | AB202: 25.37221387 | AC202: -40.24775316 | AE202: 22.87636384 | AF202: -71.42804712 | AH202: 0 | AI202: 0
... 433 more rows

Sheet Bode Plot Management (hidden)
J1: Single or dual output (MODE) | N1: 3.3V or 5V fixed (FB1/2)
A2: =CHOOSE(BODE_PLOT_TYPE, "BODE_PLOT_Ch1", "BODE_PLOT_Ch2") -> BODE_PLOT_Ch1 | J2: With/without dither (DITH) | N2: With/without VOUT connected to VCCX
J3: FPWM or DEM (DEMB)
J4: Shunt or inductor DCR current sensing
F6: =INDIRECT(A2) -> 0

Sheet Efficiency Calculations
A1: BUCK CONTROLLER POWER DESIGN TOOL | AO1: =Ext_VCC -> 1
H2: =AV19 -> 0.8650039772 | I2: 10% load
H3: =AV59 -> 0.9352546981 | I3: 50% load | AN3: =IF(MODE=1, (Qg_Q1+Qg_Q2)*Fsw*Vin, (Qg_Q1+Qg_Q2+Qg_Q3+Qg_Q4)*Fsw*Vin) -> 0.432
H4: =AV109 -> 0.9178241469 | I4: 100% load | U4: 3 | AG4: 1 | AK4: 2 | AM4: I_VCC | AN4: =(Qg_Q1+Qg_Q2)*Fsw*1000 -> 18 | AO4: mA | AP4: =AN4*5/1000 -> 0.09
AP5: =VCC -> 3.3
A6: Enter the values of your design and MOSFET datasheet specifications below. Note that thermal resistance (θJA) will change when components are placed on the PCB
G7: Operating Point Condtions | R7: Filter Inductor | V7: Cout | Y7: Cin | AB7: High-side BUCK "Control" MOSFET Losses | AH7: Low-side BUCK "Sync" MOSFET Losses | AL7: Diode/FET | AM7: "Controller" Losses | AT7: RESULTS | AZ7: Consolidated Buck/Boost Efficiency & Losses
A8: Input Parameters | G8: Step | H8: Vin | I8: Mode | J8: Iout | K8: Iout/ phase | L8: Iin | M8: Duty Cycle BUCK Leg | N8: Ripple Current pk-pk | O8: Peak Inductor Current | P8: Valley Inductor Current | Q8: SW node voltage at Q1 turn-on | R8: Irms Lf | S8: DCR Loss | T8: Core Loss | U8: Total Inductor Loss | V8: Irms Cout | W8: Cout ESR Loss | X8: Total Cout Loss | Y8: Irms Cin | Z8: Cin ESR Loss | AA8: Total Cin Loss | AB8: Irms | AC8: RDS(on) Loss | AD8: Transition Loss (not including capacitive loss) | AE8: MOSFET Output Capacitance Loss | AF8: Dead Time Loss | AG8: Total Control MOSFET Loss | AH8: Irms | AI8: RDS(on) Loss | AJ8: Deadtime Loss | AK8: Total Sync MOSFET Loss | AL8: Reverse Recovery Loss | AM8: IQ Loss | AN8: Switching Current Loss | AO8: Switching Current Diss from VCC | AP8: LDO Loss Saved from Gate Drive Current (ext VCC = Vout) | AQ8: Total "Control" Loss | AR8: Total Loss (not considering total loss) | AS8: Total Loss (considering total loss) | AT8: Total Loss | AU8: Pout | AV8: EFF, h | AW8: =IF(Vin>Vout, "Buck ''CONTROL'' MOSFET Temp Rise", "Boost ''CONTROL'' MOSFET Temp Rise") -> Buck ''CONTROL'' MOSFET Temp Rise | AX8: =IF(Vin>Vout, "Buck ''SYNC'' MOSFET Temp Rise", "Boost ''SYNC'' MOSFET Temp Rise") -> Buck ''SYNC'' MOSFET Temp Rise | AZ8: h | BA8: Inductor Cu & Core Loss | BB8: Total MOSFET Loss | BC8: Control MOSFET Loss | BD8: SYNC MOSFET Loss | BE8: Power Loss
A9: Design | B9: Input Value | C9: Units | D9: Description | G9: 0 | H9: =Vin -> 24 | I9: =MODE -> 1 | J9: 0 | K9: =Iout*G9/100/Number_of_Phases -> 0 | L9: =Vout*K9/(Vin*Efficiency) -> 0 | M9: =(Vout+(Rdson2+Rs+Rdcr)*K9)/(Vin+(Rs+Rdson2-Rdson1)*K9) -> 0.2083333333 | N9: =(Vin-(Rdson1+Rdcr)*K9-Vout)*M9/(Fsw*Lf) -> 2.371821759 | O9: =K9+N9/2 -> 1.185910879 | P9: =K9-N9/2 -> -1.185910879 | Q9: =IF(MIN(Vin, -P9/(Coss_Q1+Coss_Q2)*0.00000002)<0, 0, MIN(Vin, -P9/(Coss_Q1+Coss_Q2)*0.00000002)) -> 24 | R9: =SQRT(K9^2+(N9^2)/12) -> 0.6846859655 | S9: =R9^2*Rdcr -> 0.006188092301 | T9: =Core_Loss -> 0.3959070267 | U9: =(T9+S9*(1+Ltc*(Ta-25)))/(1-S9*Ltc*ThetaCa) -> 0.4023103641 | V9: =N9/SQRT(12) -> 0.6846859655 | W9: =RCoutEsr*V9^2 -> 0.0009375897426 | X9: =W9 -> 0.0009375897426 | Y9: =SQRT(M9*(1-M9))*SQRT(K9^2+(N9^2)/12) -> 0.2780622207 | Z9: =RCinEsr*Y9^2 -> 7.731859857e-05 | AA9: =Z9 -> 7.731859857e-05 | AB9: =SQRT(M9)*SQRT(K9^2+(N9^2)/12) -> 0.3125149567 | AC9: =Rdson1*AB9^2 -> 0.002050977562 | AD9: =(Vin*K9/2)*Fsw*(Tr_buck+Tf_buck) -> 0 | AE9: =(0.5*Coss_Q1*(Vin-Q9)^2-0.5*Coss_Q2*(Vin-Q9)^2+(Qoss_Q2*(Vin-Q9)/Vin)*Vin)*Fsw -> 0 | AF9: =IF(K9>N9/2,0,ABS(K9-N9/2)*Vsd_Q1*Deadtime*Fsw) -> 0.006641100925 | AG9: =(AF9+AE9+AD9+AC9*(1+RdsonTC*(Ta-25))/(1-AC9*RdsonTC*ThetaJA_Q1)) -> 0.008692448726 | AH9: =SQRT((1-M9))*SQRT(K9^2+(N9^2)/12) -> 0.6092038026 | AI9: =Rdson2*AH9^2 -> 0.004824680551 | AJ9: =IF(K9<N9/2,Deadtime*Fsw*Vsd_Q2*(K9+N9/2),2*Deadtime*Fsw*Vsd_Q2*K9) -> 0.006641100925 | AK9: =(AJ9+AI9*(1+RdsonTC*(Ta-25)))/(1-AI9*RdsonTC*ThetaJA_Q2) -> 0.01147065159 | AL9: =Qrr_Q2*K9/Iout*Fsw*Vin -> 0 | AM9: =Iq*Vin -> 0.00084 | AN9: =IF(Ext_VCC=1, (Qg_Q1+Qg_Q2)*Fsw*Vout, (Qg_Q1+Qg_Q2)*Fsw*Vin) -> 0.09 | AO9: =(Vin-VCC)*Fsw*(Qg_Q1+Qg_Q2) -> 0.3726 | AP9: =(Qg_Q1+Qg_Q2)*Fsw*(Vin-Vout) -> 0.342 | AQ9: =SUM(AM9:AN9) -> 0.09084 | AR9: =SUM(S9,T9,AC9,AD9,AE9,AF9,AI9,AJ9,AQ9, AL9) -> 0.513092979 | AS9: =((T9+S9*(1+Ltc*(Ta-25))) + (AF9+AE9+AD9+AC9*(1+RdsonTC*(Ta-25))) + (AJ9+AI9*(1+RdsonTC*(Ta-25))) + AQ9 + AL9) / (1-S9*Ltc*ThetaCa-AC9*RdsonTC*ThetaJA_Q1 -AI9*RdsonTC*ThetaJA_Q2) -> 0.5136786139 | AT9: =AS9 -> 0.5136786139 | AU9: =Vout*K9 -> 0 | AV9: =AU9/(AU9+AT9) -> 0 | AW9: =ThetaJA_Q1*BC9 -> 0.191233872 | AX9: =ThetaJA_Q2*BD9 -> 0.252354335 | AZ9: =AV9*100 -> 0 | BA9: =U9 -> 0.4023103641 | BB9: =AG9+AK9+AL9 -> 0.02016310032 | BC9: =AG9+AL9*0.66 -> 0.008692448726 | BD9: =AK9+AL9*0.33 -> 0.01147065159 | BE9: =BA9+BB9 -> 0.4224734644
G10: 1 | H10: 24 | I10: 1 | J10: =Iout*G10/100 -> 0.08 | K10: =Iout*G10/100/Number_of_Phases -> 0.08 | L10: 0.01851851852 | M10: 0.2084816325 | N10: =(Vin-(Rdson1+Rdcr)*K10-Vout)*M10/(Fsw*Lf) -> 2.373168321 | O10: =K10+N10/2 -> 1.266584161 | P10: =K10-N10/2 -> -1.106584161 | Q10: 24 | R10: =SQRT(K10^2+(N10^2)/12) -> 0.6897298916 | S10: 0.006279600668 | T10: 0.3959070267 | U10: 0.4024051069 | V10: =N10/SQRT(12) -> 0.6850746845 | W10: 0.0009386546467 | X10: =W10 -> 0.0009386546467 | Y10: =SQRT(M10*(1-M10))*SQRT(K10^2+(N10^2)/12) -> 0.2801840741 | Z10: 7.850311541e-05 | AA10: =Z10 -> 7.850311541e-05 | AB10: =SQRT(M10)*SQRT(K10^2+(N10^2)/12) -> 0.3149292126 | AC10: 0.002082788589 | AD10: 0.005245805122 | AE10: 0 | AF10: 0.006196871299 | AG10: =(AF10+AE10+AD10+AC10*(1+RdsonTopTc*Ta-RdsonTopTc*25))/(1-AC10*RdsonTopTc*ThetaJA_Q1) -> 0.01352794448 | AH10: 0.6136341861 | AI10: 0.004895109887 | AJ10: 0.007092871299 | AK10: =(AJ10+AI10*(1+RdsonBotTc*Ta-RdsonBotTc*25))/(1-AI10*RdsonBotTc*ThetaJA_Q2) -> 0.01199314747 | AL10: 0.00072 | AM10: 0.00084 | AN10: 0.09 | AO10: 0.3726 | AP10: 0.342 | AQ10: 0.09084 | AR10: =SUM(S10,T10,AC10,AD10,AE10,AF10,AI10,AJ10,AQ10, AL10) -> 0.5192600736 | AS10: 0.5198615479 | AT10: =AS10 -> 0.5198615479 | AU10: 0.4 | AV10: =AU10/(AU10+AT10) -> 0.4348480496 | AW10: 0.3080691787 | AX10: 0.2690764443 | AZ10: =AV10*100 -> 43.48480496 | BA10: 0.4024051069 | BB10: 0.02624109195 | BC10: 0.01400314448 | BD10: 0.01223074747 | BE10: =BA10+BB10 -> 0.4286461989
A11: Vin | B11: =Vin -> 24 | C11: V | D11: Vin | G11: 2 | H11: 24 | I11: 1 | J11: 0.16 | K11: 0.16 | L11: 0.03703703704 | M11: 0.2086299187 | N11: 2.374514251 | O11: 1.347257125 | P11: -1.027257125 | Q11: 24 | R11: 0.7038890731 | S11: 0.00654006972 | T11: 0.3959070267 | U11: 0.4026747907 | V11: 0.6854632209 | W11: 0.0009397196545 | X11: 0.0009397196545 | Y11: 0.2860107333 | Z11: 8.180213958e-05 | AA11: 8.180213958e-05 | AB11: 0.3215085434 | AC11: 0.002170722614 | AD11: 0.01049161024 | AE11: 0 | AF11: 0.005752639902 | AG11: 0.01841849113 | AH11: 0.6261725671 | AI11: 0.005097197089 | AJ11: 0.007544639902 | AK11: 0.01264751007 | AL11: 0.00144 | AM11: 0.00084 | AN11: 0.09 | AO11: 0.3726 | AP11: 0.342 | AQ11: 0.09084 | AR11: 0.5257839062 | AS11: 0.5264182567 | AT11: 0.5264182567 | AU11: 0.8 | AV11: 0.6031280073 | AW11: 0.4261156048 | AX11: 0.2886996216 | AZ11: 60.31280073 | BA11: 0.4026747907 | BB11: 0.0325060012 | BC11: 0.01936889113 | BD11: 0.01312271007 | BE11: 0.4351807919
A12: Vout | B12: =Vout -> 5 | C12: V | D12: Vout | G12: 3 | H12: 24 | I12: 1 | J12: 0.24 | K12: 0.24 | L12: 0.05555555556 | M12: 0.2087781922 | N12: 2.375859548 | O12: 1.427929774 | P12: -0.947929774 | Q12: 24 | R12: 0.7266308435 | S12: 0.006969499451 | T12: 0.3959070267 | U12: 0.4031194391 | V12: 0.6858515748 | W12: 0.0009407847654 | X12: 0.0009407847654 | Y12: 0.2953286086 | Z12: 8.721898706e-05 | AA12: 8.721898706e-05 | AB12: 0.3320139984 | AC12: 0.002314899198 | AD12: 0.01573741537 | AE12: 0 | AF12: 0.005308406735 | AG12: 0.02336548111 | AH12: 0.646342856 | AI12: 0.005430868138 | AJ12: 0.007996406735 | AK12: 0.01343369506 | AL12: 0.00216 | AM12: 0.00084 | AN12: 0.09 | AO12: 0.3726 | AP12: 0.342 | AQ12: 0.09084 | AR12: 0.5326645224 | AS12: 0.5333494553 | AT12: 0.5333494553 | AU12: 1.2 | AV12: 0.6923012531 | AW12: 0.5454037844 | AX12: 0.3112228912 | AZ12: 69.23012531 | BA12: 0.4031194391 | BB12: 0.03895917616 | BC12: 0.02479108111 | BD12: 0.01414649506 | BE12: 0.4420786153
A13: Fsw | B13: =Fsw/1000 -> 1000 | C13: kHz | D13: Switching Frequency | G13: 4 | H13: 24 | I13: 1 | J13: 0.32 | K13: 0.32 | L13: 0.07407407407 | M13: 0.2089264527 | N13: 2.377204213 | O13: 1.508602107 | P13: -0.8686021065 | Q13: 24 | R13: 0.7571822695 | S13: 0.007567889857 | T13: 0.3959070267 | U13: 0.4037390911 | V13: 0.6862397462 | W13: 0.0009418499784 | X13: 0.0009418499784 | Y13: 0.3078262008 | Z13: 9.47569699e-05 | AA13: 9.47569699e-05 | AB13: 0.3460964551 | AC13: 0.002515437882 | AD13: 0.02098322049 | AE13: 0 | AF13: 0.004864171796 | AG13: 0.02836910991 | AH13: 0.6734554424 | AI13: 0.005896049028 | AJ13: 0.008448171796 | AK13: 0.01435166722 | AL13: 0.00288 | AM13: 0.00084 | AN13: 0.09 | AO13: 0.3726 | AP13: 0.342 | AQ13: 0.09084 | AR13: 0.5399019676 | AS13: 0.5406559288 | AT13: 0.5406559288 | AU13: 1.6 | AV13: 0.7474344562 | AW13: 0.665938018 | AX13: 0.3366454788 | AZ13: 74.74344562 | BA13: 0.4037390911 | BB13: 0.04560077713 | BC13: 0.03026990991 | BD13: 0.01530206722 | BE13: 0.4493398682
A14: Iout | B14: =Iout -> 8 | C14: A | D14: Max Output Current | G14: 5 | H14: 24 | I14: 1 | J14: 0.4 | K14: 0.4 | L14: 0.09259259259 | M14: 0.2090747005 | N14: 2.378548246 | O14: 1.589274123 | P14: -0.7892741228 | Q14: 24 | R14: 0.7946430937 | S14: 0.008335240933 | T14: 0.3959070267 | U14: 0.404533801 | V14: 0.686627735 | W14: 0.0009429152929 | X14: 0.0009429152929 | Y14: 0.3231399019 | Z14: 0.0001044193962 | AA14: 0.0001044193962 | AB14: 0.3633480677 | AC14: 0.002772458184 | AD14: 0.02622902561 | AE14: 0 | AF14: 0.004419935088 | AG14: 0.03342957491 | AH14: 0.7067077388 | AI14: 0.006492665766 | AJ14: 0.008899935088 | AK14: 0.01540140051 | AL14: 0.0036 | AM14: 0.00084 | AN14: 0.09 | AO14: 0.3726 | AP14: 0.342 | AQ14: 0.09084 | AR14: 0.5474962874 | AS14: 0.5483385331 | AT14: 0.5483385331 | AU14: 2 | AV14: 0.7848250827 | AW14: 0.787722648 | AX14: 0.3649668113 | AZ14: 78.48250827 | BA14: 0.404533801 | BB14: 0.05243097542 | BC14: 0.03580557491 | BD14: 0.01658940051 | BE14: 0.4569647764
A15: Ta | B15: =Ta -> 25 | C15: °C | D15: Ambient Temperature | G15: 6 | H15: 24 | I15: 1 | J15: 0.48 | K15: 0.48 | L15: 0.1111111111 | M15: 0.2092229354 | N15: 2.379891646 | O15: 1.669945823 | P15: -0.7099458231 | Q15: 23.66486077 | R15: 0.8380873188 | S15: 0.009271552672 | T15: 0.3959070267 | U15: 0.4055036386 | V15: 0.6870155413 | W15: 0.0009439807079 | X15: 0.0009439807079 | Y15: 0.3408952479 | Z15: 0.00011620957 | AA15: 0.00011620957 | AB15: 0.3833486294 | AC15: 0.003086079604 | AD15: 0.03147483073 | AE15: 0.00132932509 | AF15: 0.003975696609 | AG15: 0.03987676157 | AH15: 0.7452745684 | AI15: 0.00722064437 | AJ15: 0.009351696609 | AK15: 0.01658287802 | AL15: 0.00432 | AM15: 0.00084 | AN15: 0.09 | AO15: 0.3726 | AP15: 0.342 | AQ15: 0.09084 | AR15: 0.5567768524 | AS15: 0.5577297952 | AT15: 0.5577297952 | AU15: 2.4 | AV15: 0.8114331484 | AW15: 0.9400151545 | AX15: 0.3961865164 | AZ15: 81.14331484 | BA15: 0.4055036386 | BB15: 0.06077963959 | BC15: 0.04272796157 | BD15: 0.01800847802 | BE15: 0.4662832782
A16: Vcc | B16: =VCC -> 3.3 | C16: V | D16: Subregulated VCC Voltage | G16: 7 | H16: 24 | I16: 1 | J16: 0.56 | K16: 0.56 | L16: 0.1296296296 | M16: 0.2093711574 | N16: 2.381234415 | O16: 1.750617207 | P16: -0.6306172073 | Q16: 21.02057358 | R16: 0.8866358392 | S16: 0.01037682507 | T16: 0.3959070267 | U16: 0.406648689 | V16: 0.6874031651 | W16: 0.0009450462229 | X16: 0.0009450462229 | Y16: 0.3607364573 | Z16: 0.0001301307917 | AA16: 0.0001301307917 | AB16: 0.4056987869 | AC16: 0.00345642162 | AD16: 0.03672063586 | AE16: 0.01103000751 | AF16: 0.003531456361 | AG16: 0.05475517596 | AH16: 0.7883727581 | AI16: 0.008079910874 | AJ16: 0.009803456361 | AK16: 0.01789609193 | AL16: 0.00504 | AM16: 0.00084 | AN16: 0.09 | AO16: 0.3726 | AP16: 0.342 | AQ16: 0.09084 | AR16: 0.5747857404 | AS16: 0.5758870539 | AT16: 0.5758870539 | AU16: 2.8 | AV16: 0.8294116347 | AW16: 1.277794671 | AX16: 0.4303044225 | AZ16: 82.94116347 | BA16: 0.406648689 | BB16: 0.0776912679 | BC16: 0.05808157596 | BD16: 0.01955929193 | BE16: 0.4843399569
A17: Components | B17: Input Value | C17: Units | D17: Description | G17: 8 | H17: 24 | I17: 1 | J17: 0.64 | K17: 0.64 | L17: 0.1481481481 | M17: 0.2095193666 | N17: 2.382576551 | O17: 1.831288275 | P17: -0.5512882755 | Q17: 18.37627585 | R17: 0.9394976947 | S17: 0.01165105812 | T17: 0.3959070267 | U17: 0.4079690527 | V17: 0.6877906065 | W17: 0.0009461118369 | X17: 0.0009461118369 | Y17: 0.3823432454 | Z17: 0.0001461863573 | AA17: 0.0001461863573 | AB17: 0.4300389622 | AC17: 0.003883603688 | AD17: 0.04196644098 | AE17: 0.01933226927 | AF17: 0.003087214343 | AG17: 0.06829286785 | AH17: 0.8352977969 | AI17: 0.009070391323 | AJ17: 0.01025521434 | AK17: 0.01934104358 | AL17: 0.00576 | AM17: 0.00084 | AN17: 0.09 | AO17: 0.3726 | AP17: 0.342 | AQ17: 0.09084 | AR17: 0.5917532188 | AS17: 0.5930266261 | AT17: 0.5930266261 | AU17: 3.2 | AV17: 0.8436534502 | AW17: 1.586078293 | AX17: 0.4673205587 | AZ17: 84.36534502 | BA17: 0.4079690527 | BB17: 0.09339391143 | BC17: 0.07209446785 | BD17: 0.02124184358 | BE17: 0.5013629641
A18: L | B18: =Lf*1000000 -> 1.6689 | C18: uH | D18: Filter Inductance | G18: 9 | H18: 24 | I18: 1 | J18: 0.72 | K18: 0.72 | L18: 0.1666666667 | M18: 0.209667563 | N18: 2.383918055 | O18: 1.911959028 | P18: -0.4719590277 | Q18: 15.73196759 | R18: 0.9959863325 | S18: 0.01309425182 | T18: 0.3959070267 | U18: 0.4094648456 | V18: 0.6881778655 | W18: 0.0009471775491 | X18: 0.0009471775491 | Y18: 0.4054374912 | Z18: 0.0001643795593 | AA18: 0.0001643795593 | AB18: 0.4560568702 | AC18: 0.004367745246 | AD18: 0.0472122461 | AE18: 0.02623609365 | AF18: 0.002642970555 | AG18: 0.08048999281 | AH18: 0.8854382563 | AI18: 0.01019201177 | AJ18: 0.01070697056 | AK18: 0.02091774339 | AL18: 0.00648 | AM18: 0.00084 | AN18: 0.09 | AO18: 0.3726 | AP18: 0.342 | AQ18: 0.09084 | AR18: 0.6076793164 | AS18: 0.6091494301 | AT18: 0.6091494301 | AU18: 3.6 | AV18: 0.8552796853 | AW18: 1.864869442 | AX18: 0.5072351546 | AZ18: 85.52796853 | BA18: 0.4094648456 | BB18: 0.1078877362 | BC18: 0.08476679281 | BD18: 0.02305614339 | BE18: 0.5173525818
A19: Rdcr | B19: =Rdcr*1000 -> 13.2 | C19: mW | D19: Inductor DCR at 25°C | G19: 10 | H19: 24 | I19: 1 | J19: 0.8 | K19: 0.8 | L19: 0.1851851852 | M19: 0.2098157465 | N19: 2.385258928 | O19: 1.992629464 | P19: -0.392629464 | Q19: 13.0876488 | R19: 1.055519625 | S19: 0.01470640617 | T19: 0.3959070267 | U19: 0.4111361991 | V19: 0.6885649421 | W19: 0.0009482433589 | X19: 0.0009482433589 | Y19: 0.4297833011 | Z19: 0.0001847136859 | AA19: 0.0001847136859 | AB19: 0.483487613 | AC19: 0.004908965709 | AD19: 0.05245805122 | AE19: 0.03174146393 | AF19: 0.002198724998 | AG19: 0.09134666661 | AH19: 0.9382757631 | AI19: 0.0114446983 | AJ19: 0.011158725 | AK19: 0.02262621091 | AL19: 0.0072 | AM19: 0.00084 | AN19: 0.09 | AO19: 0.3726 | AP19: 0.342 | AQ19: 0.09084 | AR19: 0.6225640621 | AS19: 0.6242561948 | AT19: 0.6242561948 | AU19: 4 | AV19: 0.8650039772 | AW19: 2.114170665 | AX19: 0.55004864 | AZ19: 86.50039772 | BA19: 0.4111361991 | BB19: 0.1211728775 | BC19: 0.09609866661 | BD19: 0.02500221091 | BE19: 0.5323090766
A20: LTc | B20: 3930 | C20: ppm | D20: Inductor Series Resistance Temp Co | G20: 11 | H20: 24 | I20: 1 | J20: 0.88 | K20: 0.88 | L20: 0.2037037037 | M20: 0.2099639172 | N20: 2.386599169 | O20: 2.073299584 | P20: -0.3132995844 | Q20: 10.44331948 | R20: 1.117611128 | S20: 0.01648752115 | T20: 0.3959070267 | U20: 0.4129832601 | V20: 0.6889518363 | W20: 0.0009493092654 | X20: 0.0009493092654 | Y20: 0.4551835033 | Z20: 0.0002071920217 | AA20: 0.0002071920217 | AB20: 0.5121097573 | AC20: 0.005507384473 | AD20: 0.05770385634 | AE20: 0.03584836341 | AF20: 0.001754477673 | AG20: 0.1008629651 | AH20: 0.9933771838 | AI20: 0.01282837698 | AJ20: 0.01161047767 | AK20: 0.02446647479 | AL20: 0.00792 | AM20: 0.00084 | AN20: 0.09 | AO20: 0.3726 | AP20: 0.342 | AQ20: 0.09084 | AR20: 0.6364074844 | AS20: 0.6383474595 | AT20: 0.6383474595 | AU20: 4.4 | AV20: 0.8733022157 | AW20: 2.333983633 | AX20: 0.5957616453 | AZ20: 87.33022157 | BA20: 0.4129832601 | BB20: 0.1332494399 | BC20: 0.1060901651 | BD20: 0.02708007479 | BE20: 0.5462327
A21: ThetaCa | B21: =ThetaCa -> 22 | C21: °C/W | D21: Core to Ambient Thermal Resistance | G21: 12 | H21: 24 | I21: 1 | J21: 0.96 | K21: 0.96 | L21: 0.2222222222 | M21: 0.2101120751 | N21: 2.387938778 | O21: 2.153969389 | P21: -0.2339693889 | Q21: 7.798979631 | R21: 1.181857705 | S21: 0.01843759677 | T21: 0.3959070267 | U21: 0.415006191 | V21: 0.6893385481 | W21: 0.0009503752678 | X21: 0.0009503752678 | Y21: 0.4814746588 | Z21: 0.000231817847 | AA21: 0.000231817847 | AB21: 0.5417397421 | AC21: 0.006163120912 | AD21: 0.06294966147 | AE21: 0.03855677538 | AF21: 0.001310228578 | AG21: 0.1090389241 | AH21: 1.05038359 | AI21: 0.01434297391 | AJ21: 0.01206222858 | AK21: 0.02643857278 | AL21: 0.00864 | AM21: 0.00084 | AN21: 0.09 | AO21: 0.3726 | AP21: 0.342 | AQ21: 0.09084 | AR21: 0.6492096123 | AS21: 0.6514235737 | AT21: 0.6514235737 | AU21: 4.8 | AV21: 0.8805039519 | AW21: 2.52430913 | AX21: 0.6443750011 | AZ21: 88.05039519 | BA21: 0.415006191 | BB21: 0.1441174969 | BC21: 0.1147413241 | BD21: 0.02928977278 | BE21: 0.5591236878
A22: Cin | B22: =Cin*1000000 -> 25 | C22: μF | D22: Input Capacitance | G22: 13 | H22: 24 | I22: 1 | J22: 1.04 | K22: 1.04 | L22: 0.2407407407 | M22: 0.2102602201 | N22: 2.389277755 | O22: 2.234638878 | P22: -0.1546388777 | Q22: 5.154629256 | R22: 1.247926553 | S22: 0.02055663301 | T22: 0.3959070267 | U22: 0.4172051696 | V22: 0.6897250776 | W22: 0.0009514413654 | X22: 0.0009514413654 | Y22: 0.5085218172 | Z22: 0.0002585944385 | AA22: 0.0002585944385 | AB22: 0.5722259951 | AC22: 0.006876294379 | AD22: 0.06819546659 | AE22: 0.03986668313 | AF22: 0.000865977715 | AG22: 0.1158745391 | AH22: 1.108998689 | AI22: 0.01598841521 | AJ22: 0.01251397772 | AK22: 0.02854255174 | AL22: 0.00936 | AM22: 0.00084 | AN22: 0.09 | AO22: 0.3726 | AP22: 0.342 | AQ22: 0.09084 | AR22: 0.6609704745 | AS22: 0.6634846973 | AT22: 0.6634846973 | AU22: 5.2 | AV22: 0.8868446442 | AW22: 2.68514706 | AX22: 0.6958897383 | AZ22: 88.68446442 | BA22: 0.4172051696 | BB22: 0.1537770908 | BC22: 0.1220521391 | BD22: 0.03163135174 | BE22: 0.5709822604
A23: RCinEsr | B23: =RCinEsr*1000 -> 1 | C23: mW | D23: Input Capacitor ESR | G23: 14 | H23: 24 | I23: 1 | J23: 1.12 | K23: 1.12 | L23: 0.2592592593 | M23: 0.2104083523 | N23: 2.390616101 | O23: 2.315308051 | P23: -0.07530805067 | Q23: 2.510268356 | R23: 1.31554315 | S23: 0.02284462988 | T23: 0.3959070267 | U23: 0.4195803894 | V23: 0.6901114248 | W23: 0.0009525075573 | X23: 0.0009525075573 | Y23: 0.536213641 | Z23: 0.0002875250688 | AA23: 0.0002875250688 | AB23: 0.6034434604 | AC23: 0.007647024208 | AD23: 0.07344127171 | AE23: 0.03977806996 | AF23: 0.0004217250838 | AG23: 0.1213697653 | AH23: 1.168978087 | AI23: 0.01776462699 | AJ23: 0.01296572508 | AK23: 0.03077846766 | AL23: 0.01008 | AM23: 0.00084 | AN23: 0.09 | AO23: 0.3726 | AP23: 0.342 | AQ23: 0.09084 | AR23: 0.6716900997 | AS23: 0.6745307998 | AT23: 0.6745307998 | AU23: 5.6 | AV23: 0.8924970135 | AW23: 2.816496437 | AX23: 0.7503070885 | AZ23: 89.24970135 | BA23: 0.4195803894 | BB23: 0.162228233 | BC23: 0.1280225653 | BD23: 0.03410486766 | BE23: 0.5818086224
A24: Cout | B24: =Cout*1000000 -> 72 | C24: μF | D24: Output Capcitance | G24: 15 | H24: 24 | I24: 1 | J24: 1.2 | K24: 1.2 | L24: 0.2777777778 | M24: 0.2105564716 | N24: 2.391953816 | O24: 2.395976908 | P24: 0.004023092063 | Q24: 0 | R24: 1.384480741 | S24: 0.02530158736 | T24: 0.3959070267 | U24: 0.4221320598 | V24: 0.6904975897 | W24: 0.0009535738429 | X24: 0.0009535738429 | Y24: 0.564458153 | Z24: 0.0003186130065 | AA24: 0.0003186130065 | AB24: 0.6352888249 | AC24: 0.008475429712 | AD24: 0.07868707683 | AE24: 0.0384 | AF24: 0 | AG24: 0.1256562257 | AH24: 1.230119925 | AI24: 0.0196715354 | AJ24: 0.01344 | AK24: 0.03316895401 | AL24: 0.0108 | AM24: 0.00084 | AN24: 0.09 | AO24: 0.3726 | AP24: 0.342 | AQ24: 0.09084 | AR24: 0.6815226561 | AS24: 0.6847165219 | AT24: 0.6847165219 | AU24: 6 | AV24: 0.8975698491 | AW24: 2.921252966 | AX24: 0.8081249882 | AZ24: 89.75698491 | BA24: 0.4221320598 | BB24: 0.1696251797 | BC24: 0.1327842257 | BD24: 0.03673295401 | BE24: 0.5917572395
A25: RCoutEsr | B25: =Cout_ESR*1000 -> 2 | C25: mW | D25: Output Capacitor ESR | G25: 16 | H25: 24 | I25: 1 | J25: 1.28 | K25: 1.28 | L25: 0.2962962963 | M25: 0.2107045782 | N25: 2.393290899 | O25: 2.47664545 | P25: 0.08335455048 | Q25: 0 | R25: 1.454551515 | S25: 0.02792750546 | T25: 0.3959070267 | U25: 0.4248604053 | V25: 0.6908835724 | W25: 0.0009546402212 | X25: 0.0009546402212 | Y25: 0.5931791604 | Z25: 0.0003518615163 | AA25: 0.0003518615163 | AB25: 0.6676765036 | AC25: 0.009361630182 | AD25: 0.08393288195 | AE25: 0.0384 | AF25: 0 | AG25: 0.1318030946 | AH25: 1.292257017 | AI25: 0.02170906656 | AJ25: 0.014336 | AK25: 0.03611405878 | AL25: 0.01152 | AM25: 0.00084 | AN25: 0.09 | AO25: 0.3726 | AP25: 0.342 | AQ25: 0.09084 | AR25: 0.6939341109 | AS25: 0.6975255538 | AT25: 0.6975255538 | AU25: 6.4 | AV25: 0.9017227133 | AW25: 3.066938482 | AX25: 0.8781444933 | AZ25: 90.17227133 | BA25: 0.4248604053 | BB25: 0.1794371534 | BC25: 0.1394062946 | BD25: 0.03991565878 | BE25: 0.6042975587
A26: Top Driver | B26: Input Value | C26: Units | D26: Description | G26: 17 | H26: 24 | I26: 1 | J26: 1.36 | K26: 1.36 | L26: 0.3148148148 | M26: 0.2108526719 | N26: 2.394627351 | O26: 2.557313675 | P26: 0.1626863245 | Q26: 0 | R26: 1.52559934 | S26: 0.03072238416 | T26: 0.3959070267 | U26: 0.4277656666 | V26: 0.6912693728 | W26: 0.0009557066916 | X26: 0.0009557066916 | Y26: 0.6223133127 | Z26: 0.0003872738592 | AA26: 0.0003872738592 | AB26: 0.7005353357 | AC26: 0.01030574489 | AD26: 0.08917868708 | AE26: 0.0384 | AF26: 0 | AG26: 0.1380095936 | AH26: 1.355250379 | AI26: 0.02387714666 | AJ26: 0.015232 | AK26: 0.0391914954 | AL26: 0.01224 | AM26: 0.00084 | AN26: 0.09 | AO26: 0.3726 | AP26: 0.342 | AQ26: 0.09084 | AR26: 0.7067029895 | AS26: 0.7107288075 | AT26: 0.7107288075 | AU26: 6.8 | AV26: 0.9053715258 | AW26: 3.21393586 | AX26: 0.9510752987 | AZ26: 90.53715258 | BA26: 0.4277656666 | BB26: 0.189441089 | BC26: 0.1460879936 | BD26: 0.0432306954 | BE26: 0.6172067556
A27: RdsonDRT | B27: 1 | C27: W | D27: Drain to Source Resistance of pullup Top FET Driver | G27: 18 | H27: 24 | I27: 1 | J27: 1.44 | K27: 1.44 | L27: 0.3333333333 | M27: 0.2110007527 | N27: 2.395963172 | O27: 2.637981586 | P27: 0.2420184142 | Q27: 0 | R27: 1.597493858 | S27: 0.03368622347 | T27: 0.3959070267 | U27: 0.4308481 | V27: 0.691654991 | W27: 0.0009567732533 | X27: 0.0009567732533 | Y27: 0.6518077109 | Z27: 0.000424853292 | AA27: 0.000424853292 | AB27: 0.7338059002 | AC27: 0.01130789308 | AD27: 0.0944244922 | AE27: 0.0384 | AF27: 0 | AG27: 0.1442759535 | AH27: 1.418983977 | AI27: 0.02617570186 | AJ27: 0.016128 | AK27: 0.0424013718 | AL27: 0.01296 | AM27: 0.00084 | AN27: 0.09 | AO27: 0.3726 | AP27: 0.342 | AQ27: 0.09084 | AR27: 0.7198293374 | AS27: 0.7243281884 | AT27: 0.7243281884 | AU27: 7.2 | AV27: 0.9085943728 | AW27: 3.362250177 | AX27: 1.026919779 | AZ27: 90.85943728 | BA27: 0.4308481 | BB27: 0.1996373253 | BC27: 0.1528295535 | BD27: 0.0466781718 | BE27: 0.6304854253
A28: RdsonDRT2 | B28: 1 | C28: W | D28: Drain to Source Resistance of pulldown Top FET Driver | G28: 19 | H28: 24 | I28: 1 | J28: 1.52 | K28: 1.52 | L28: 0.3518518519 | M28: 0.2111488208 | N28: 2.397298361 | O28: 2.718649181 | P28: 0.3213508194 | Q28: 0 | R28: 1.67012573 | S28: 0.03681902338 | T28: 0.3959070267 | U28: 0.4341079776 | V28: 0.6920404271 | W28: 0.0009578399054 | X28: 0.0009578399054 | Y28: 0.6816179777 | Z28: 0.0004646030675 | AA28: 0.0004646030675 | AB28: 0.7674383486 | AC28: 0.012368194 | AD28: 0.09967029732 | AE28: 0.0384 | AF28: 0 | AG28: 0.1506024071 | AH28: 1.483360487 | AI28: 0.02860465834 | AJ28: 0.017024 | AK28: 0.0457438051 | AL28: 0.01368 | AM28: 0.00084 | AN28: 0.09 | AO28: 0.3726 | AP28: 0.342 | AQ28: 0.09084 | AR28: 0.7333131998 | AS28: 0.7383256808 | AT28: 0.7383256808 | AU28: 7.6 | AV28: 0.9114539646 | AW28: 3.511886557 | AX28: 1.105680512 | AZ28: 91.14539646 | BA28: 0.4341079776 | BB28: 0.2100262122 | BC28: 0.1596312071 | BD28: 0.0502582051 | BE28: 0.6441341899
A29: Bottom Driver | B29: Input Value | C29: Units | D29: Description | G29: 20 | H29: 24 | I29: 1 | J29: 1.6 | K29: 1.6 | L29: 0.3703703704 | M29: 0.211296876 | N29: 2.39863292 | O29: 2.79931646 | P29: 0.4006835401 | Q29: 0 | R29: 1.7434028 | S29: 0.04012078387 | T29: 0.3959070267 | U29: 0.4375455876 | V29: 0.6924256809 | W29: 0.0009589066473 | X29: 0.0009589066473 | Y29: 0.7117067057 | Z29: 0.000506526435 | AA29: 0.000506526435 | AB29: 0.8013906614 | AC29: 0.01348676684 | AD29: 0.1049161024 | AE29: 0.0384 | AF29: 0 | AG29: 0.1569891896 | AH29: 1.548297882 | AI29: 0.03116394231 | AJ29: 0.01792 | AK29: 0.0492189216 | AL29: 0.0144 | AM29: 0.00084 | AN29: 0.09 | AO29: 0.3726 | AP29: 0.342 | AQ29: 0.09084 | AR29: 0.7471546222 | AS29: 0.7527233489 | AT29: 0.7527233489 | AU29: 8 | AV29: 0.9140012407 | AW29: 3.662850172 | AX29: 1.187360275 | AZ29: 91.40012407 | BA29: 0.4375455876 | BB29: 0.2206081112 | BC29: 0.1664931896 | BD29: 0.0539709216 | BE29: 0.6581536988
A30: RdsonDRB | B30: 1 | C30: W | D30: Drain to Source Resistance of pullup Bottom FET Driver | G30: 21 | H30: 24 | I30: 1 | J30: 1.68 | K30: 1.68 | L30: 0.3888888889 | M30: 0.2114449185 | N30: 2.399966847 | O30: 2.879983424 | P30: 0.4800165764 | Q30: 0 | R30: 1.817247022 | S30: 0.04359150495 | T30: 0.3959070267 | U30: 0.4411612338 | V30: 0.6928107527 | W30: 0.000959973478 | X30: 0.000959973478 | Y30: 0.7420422087 | Z30: 0.0005506266395 | AA30: 0.0005506266395 | AB30: 0.8356272463 | AC30: 0.01466373079 | AD30: 0.1101619076 | AE30: 0.0384 | AF30: 0 | AG30: 0.1634365382 | AH30: 1.613726694 | AI30: 0.03385347998 | AJ30: 0.018816 | AK30: 0.05282685679 | AL30: 0.01512 | AM30: 0.00084 | AN30: 0.09 | AO30: 0.3726 | AP30: 0.342 | AQ30: 0.09084 | AR30: 0.76135365 | AS30: 0.7675233373 | AT30: 0.7675233373 | AU30: 8.4 | AV30: 0.9162780056 | AW30: 3.815146241 | AX30: 1.271962049 | AZ30: 91.62780056 | BA30: 0.4411612338 | BB30: 0.231383395 | BC30: 0.1734157382 | BD30: 0.05781645679 | BE30: 0.6725446288
A31: RdsonDRB2 | B31: 1 | C31: W | D31: Drain to Source Resistance of pulldown Bottom FET Driver | G31: 22 | H31: 24 | I31: 1 | J31: 1.76 | K31: 1.76 | L31: 0.4074074074 | M31: 0.2115929481 | N31: 2.401300144 | O31: 2.960650072 | P31: 0.559349928 | Q31: 0 | R31: 1.891591975 | S31: 0.04723118662 | T31: 0.3959070267 | U31: 0.4449552363 | V31: 0.6931956423 | W31: 0.0009610403969 | X31: 0.0009610403969 | Y31: 0.7725975162 | Z31: 0.0005969069221 | AA31: 0.0005969069221 | AB31: 0.8701178089 | AC31: 0.01589920503 | AD31: 0.1154077127 | AE31: 0.0384 | AF31: 0 | AG31: 0.1699446924 | AH31: 1.679587806 | AI31: 0.03667319756 | AJ31: 0.019712 | AK31: 0.05656775536 | AL31: 0.01584 | AM31: 0.00084 | AN31: 0.09 | AO31: 0.3726 | AP31: 0.342 | AQ31: 0.09084 | AR31: 0.7759103286 | AS31: 0.7827278726 | AT31: 0.7827278726 | AU31: 8.8 | AV31: 0.9183188876 | AW31: 3.968780034 | AX31: 1.359489018 | AZ31: 91.83188876 | BA31: 0.4449552363 | BB31: 0.2423524478 | BC31: 0.1803990924 | BD31: 0.06179495536 | BE31: 0.6873076841
A32: Deadtime | B32: Input Value | C32: Units | D32: Description | G32: 23 | H32: 24 | I32: 1 | J32: 1.84 | K32: 1.84 | L32: 0.4259259259 | M32: 0.2117409648 | N32: 2.40263281 | O32: 3.041316405 | P32: 0.638683595 | Q32: 0 | R32: 1.966380864 | S32: 0.05103982886 | T32: 0.3959070267 | U32: 0.4489279313 | V32: 0.6935803498 | W32: 0.0009621074032 | X32: 0.0009621074032 | Y32: 0.8033495629 | Z32: 0.0006453705201 | AA32: 0.0006453705201 | AB32: 0.9048364413 | AC32: 0.01719330869 | AD32: 0.1206535178 | AE32: 0.0384 | AF32: 0 | AG32: 0.176513894 | AH32: 1.745830667 | AI32: 0.03962302131 | AJ32: 0.020608 | AK32: 0.06044177124 | AL32: 0.01656 | AM32: 0.00084 | AN32: 0.09 | AO32: 0.3726 | AP32: 0.342 | AQ32: 0.09084 | AR32: 0.7908247034 | AS32: 0.7983392639 | AT32: 0.7983392639 | AU32: 9.2 | AV32: 0.9201528131 | AW32: 4.123756868 | AX32: 1.449944567 | AZ32: 92.01528131 | BA32: 0.4489279313 | BB32: 0.2535156652 | BC32: 0.187443494 | BD32: 0.06590657124 | BE32: 0.7024435965
A33: Deadtime | B33: 15 | C33: ns | D33: Total Deadtime | G33: 24 | H33: 24 | I33: 1 | J33: 1.92 | K33: 1.92 | L33: 0.4444444444 | M33: 0.2118889688 | N33: 2.403964845 | O33: 3.121982423 | P33: 0.7180175774 | Q33: 0 | R33: 2.041564902 | S33: 0.05501743167 | T33: 0.3959070267 | U33: 0.453079671 | V33: 0.6939648752 | W33: 0.0009631744961 | X33: 0.0009631744961 | Y33: 0.8342785308 | Z33: 0.000696020667 | AA33: 0.000696020667 | AB33: 0.9397608845 | AC33: 0.01854616092 | AD33: 0.1258993229 | AE33: 0.0384 | AF33: 0 | AG33: 0.1831443869 | AH33: 1.812411854 | AI33: 0.04270287746 | AJ33: 0.021504 | AK33: 0.0644490676 | AL33: 0.01728 | AM33: 0.00084 | AN33: 0.09 | AO33: 0.3726 | AP33: 0.342 | AQ33: 0.09084 | AR33: 0.8060968197 | AS33: 0.8143599037 | AT33: 0.8143599037 | AU33: 9.6 | AV33: 0.9218041328 | AW33: 4.280082111 | AX33: 1.543332287 | AZ33: 92.18041328 | BA33: 0.453079671 | BB33: 0.2648734545 | BC33: 0.1945491869 | BD33: 0.0701514676 | BE33: 0.7179531255
A34: IQ | B34: Input Value | C34: Units | D34: Description | G34: 25 | H34: 24 | I34: 1 | J34: 2 | K34: 2 | L34: 0.462962963 | M34: 0.21203696 | N34: 2.40529625 | O34: 3.202648125 | P34: 0.7973518751 | Q34: 0 | R34: 2.11710199 | S34: 0.05916399505 | T34: 0.3959070267 | U34: 0.4574108241 | V34: 0.6943492186 | W34: 0.0009642416748 | X34: 0.0009642416748 | Y34: 0.8653673163 | Z34: 0.0007488605921 | AA34: 0.0007488605921 | AB34: 0.9748719283 | AC34: 0.01995788081 | AD34: 0.1311451281 | AE34: 0.0384 | AF34: 0 | AG34: 0.1898364173 | AH34: 1.8792939 | AI34: 0.04591269229 | AJ34: 0.0224 | AK34: 0.06858981689 | AL34: 0.018 | AM34: 0.00084 | AN34: 0.09 | AO34: 0.3726 | AP34: 0.342 | AQ34: 0.09084 | AR34: 0.821726723 | AS34: 0.8307922696 | AT34: 0.8307922696 | AU34: 10 | AV34: 0.9232934905 | AW34: 4.437761181 | AX34: 1.639655972 | AZ34: 92.32934905 | BA34: 0.4574108241 | BB34: 0.2764262342 | BC34: 0.2017164173 | BD34: 0.07452981689 | BE34: 0.7338370583
A35: IQ | B35: =Iq*1000 -> 0.035 | C35: mA | D35: Quiescent Current Of Controller (Not Switching!) | G35: 26 | H35: 24 | I35: 1 | J35: 2.08 | K35: 2.08 | L35: 0.4814814815 | M35: 0.2121849383 | N35: 2.406627024 | O35: 3.283313512 | P35: 0.8766864881 | Q35: 0 | R35: 2.192955647 | S35: 0.06347951899 | T35: 0.3959070267 | U35: 0.4619217753 | V35: 0.69473338 | W35: 0.0009653089386 | X35: 0.0009653089386 | Y35: 0.8966010935 | Z35: 0.0008038935209 | AA35: 0.0008038935209 | AB35: 1.010152922 | AC35: 0.02142858744 | AD35: 0.1363909332 | AE35: 0.0384 | AF35: 0 | AG35: 0.1965902339 | AH35: 1.946444334 | AI35: 0.04925239206 | AJ35: 0.023296 | AK35: 0.07286420085 | AL35: 0.01872 | AM35: 0.00084 | AN35: 0.09 | AO35: 0.3726 | AP35: 0.342 | AQ35: 0.09084 | AR35: 0.8377144584 | AS35: 0.8476389247 | AT35: 0.8476389247 | AU35: 10.4 | AV35: 0.9246385014 | AW35: 4.596799546 | AX35: 1.738919619 | AZ35: 92.46385014 | BA35: 0.4619217753 | BB35: 0.2881744348 | BC35: 0.2089454339 | BD35: 0.07904180085 | BE35: 0.7500962101
A36: High-side FET | B36: Input Value | C36: Units | D36: Description | G36: 27 | H36: 24 | I36: 1 | J36: 2.16 | K36: 2.16 | L36: 0.5 | M36: 0.2123329038 | N36: 2.407957167 | O36: 3.363978584 | P36: 0.9560214163 | Q36: 0 | R36: 2.269094124 | S36: 0.06796400349 | T36: 0.3959070267 | U36: 0.4666129261 | V36: 0.6951173594 | W36: 0.0009663762866 | X36: 0.0009663762866 | Y36: 0.9279669579 | Z36: 0.000861122675 | AA36: 0.000861122675 | AB36: 1.045589373 | AC36: 0.02295839989 | AD36: 0.1416367383 | AE36: 0.0384 | AF36: 0 | AG36: 0.2034060875 | AH36: 2.0138349 | AI36: 0.05272190307 | AJ36: 0.024192 | AK36: 0.07727241054 | AL36: 0.01944 | AM36: 0.00084 | AN36: 0.09 | AO36: 0.3726 | AP36: 0.342 | AQ36: 0.09084 | AR36: 0.8540600715 | AS36: 0.8649025192 | AT36: 0.8649025192 | AU36: 10.8 | AV36: 0.9258542866 | AW36: 4.757202725 | AX36: 1.841127432 | AZ36: 92.58542866 | BA36: 0.4666129261 | BB36: 0.300118498 | BC36: 0.2162364875 | BD36: 0.08368761054 | BE36: 0.7667314241
A37: RdsonTop | B37: =Rdson1*1000 -> 21 | C37: mW | D37: Drain-Source Resistance of Top FET | G37: 28 | H37: 24 | I37: 1 | J37: 2.24 | K37: 2.24 | L37: 0.5185185185 | M37: 0.2124808566 | N37: 2.409286681 | O37: 3.44464334 | P37: 1.03535666 | Q37: 0 | R37: 2.345489684 | S37: 0.07261744854 | T37: 0.3959070267 | U37: 0.4714846941 | V37: 0.6955011568 | W37: 0.0009674437182 | X37: 0.0009674437182 | Y37: 0.9594536321 | Z37: 0.0009205512722 | AA37: 0.0009205512722 | AB37: 1.081168618 | AC37: 0.0245474372 | AD37: 0.1468825434 | AE37: 0.0384 | AF37: 0 | AG37: 0.2102842312 | AH37: 2.081440914 | AI37: 0.05632115162 | AJ37: 0.025088 | AK37: 0.08181464639 | AL37: 0.02016 | AM37: 0.00084 | AN37: 0.09 | AO37: 0.3726 | AP37: 0.342 | AQ37: 0.09084 | AR37: 0.8707636075 | AS37: 0.8825857916 | AT37: 0.8825857916 | AU37: 11.2 | AV37: 0.9269538982 | AW37: 4.918976287 | AX37: 1.946283821 | AZ37: 92.69538982 | BA37: 0.4714846941 | BB37: 0.3122588776 | BC37: 0.2235898312 | BD37: 0.08846744639 | BE37: 0.7837435717
A38: RdsonTopTc | B38: =RdsonTopTc*1000000 -> 4000 | C38: ppm | D38: Drain to Source Resistance Temp Co | G38: 29 | H38: 24 | I38: 1 | J38: 2.32 | K38: 2.32 | L38: 0.537037037 | M38: 0.2126287965 | N38: 2.410615563 | O38: 3.525307782 | P38: 1.114692218 | Q38: 0 | R38: 2.422118002 | S38: 0.07743985413 | T38: 0.3959070267 | U38: 0.4765375139 | V38: 0.6958847722 | W38: 0.0009685112325 | X38: 0.0009685112325 | Y38: 0.9910512227 | Z38: 0.0009821825261 | AA38: 0.0009821825261 | AB38: 1.116879547 | AC38: 0.02619581838 | AD38: 0.1521283485 | AE38: 0.0384 | AF38: 0 | AG38: 0.2172249208 | AH38: 2.149240725 | AI38: 0.06005006401 | AJ38: 0.025984 | AK38: 0.08649111816 | AL38: 0.02088 | AM38: 0.00084 | AN38: 0.09 | AO38: 0.3726 | AP38: 0.342 | AQ38: 0.09084 | AR38: 0.8878251118 | AS38: 0.9006915696 | AT38: 0.9006915696 | AU38: 11.6 | AV38: 0.9279486607 | AW38: 5.082125857 | AX38: 2.0543934 | AZ38: 92.79486607 | BA38: 0.4765375139 | BB38: 0.3245960389 | BC38: 0.2310057208 | BD38: 0.09338151816 | BE38: 0.8011335528
A39: QgTop | B39: =Qg_Q1*1000000000 -> 6 | C39: nC | D39: Gate Charge Of Top FET | G39: 30 | H39: 24 | I39: 1 | J39: 2.4 | K39: 2.4 | L39: 0.5555555556 | M39: 0.2127767236 | N39: 2.411943816 | O39: 3.605971908 | P39: 1.194028092 | Q39: 0 | R39: 2.498957666 | S39: 0.08243122027 | T39: 0.3959070267 | U39: 0.4817718365 | V39: 0.6962682058 | W39: 0.0009695788287 | X39: 0.0009695788287 | Y39: 1.022751019 | Z39: 0.001046019647 | AA39: 0.001046019647 | AB39: 1.15271238 | AC39: 0.02790366245 | AD39: 0.1573741537 | AE39: 0.0384 | AF39: 0 | AG39: 0.224228414 | AH39: 2.217215277 | AI39: 0.06390856658 | AJ39: 0.02688 | AK39: 0.09130204507 | AL39: 0.0216 | AM39: 0.00084 | AN39: 0.09 | AO39: 0.3726 | AP39: 0.342 | AQ39: 0.09084 | AR39: 0.9052446297 | AS39: 0.9192227719 | AT39: 0.9192227719 | AU39: 12 | AV39: 0.9288484464 | AW39: 5.246657108 | AX39: 2.165460992 | AZ39: 92.88484464 | BA39: 0.4817718365 | BB39: 0.3371304591 | BC39: 0.238484414 | BD39: 0.09843004507 | BE39: 0.8189022955
A40: QgdTop | B40: =Qgd_Q1*1000000000 -> 2 | C40: nC | D40: Gate to Drain Charge | G40: 31 | H40: 24 | I40: 1 | J40: 2.48 | K40: 2.48 | L40: 0.5740740741 | M40: 0.2129246379 | N40: 2.413271439 | O40: 3.686635719 | P40: 1.273364281 | Q40: 0 | R40: 2.575989762 | S40: 0.08759154694 | T40: 0.3959070267 | U40: 0.4871881299 | V40: 0.6966514574 | W40: 0.0009706465062 | X40: 0.0009706465062 | Y40: 1.054545324 | Z40: 0.00111206584 | AA40: 0.00111206584 | AB40: 1.188658475 | AC40: 0.02967108839 | AD40: 0.1626199588 | AE40: 0.0384 | AF40: 0 | AG40: 0.2312949712 | AH40: 2.285347738 | AI40: 0.06789658567 | AJ40: 0.027776 | AK40: 0.09624765574 | AL40: 0.02232 | AM40: 0.00084 | AN40: 0.09 | AO40: 0.3726 | AP40: 0.342 | AQ40: 0.09084 | AR40: 0.9230222065 | AS40: 0.9381824091 | AT40: 0.9381824091 | AU40: 12.4 | AV40: 0.9296618999 | AW40: 5.412575767 | AX40: 2.279491626 | AZ40: 92.96618999 | BA40: 0.4871881299 | BB40: 0.349862627 | BC40: 0.2460261712 | BD40: 0.1036132557 | BE40: 0.8370507568
A41: QgsTop | B41: =Qgs_Q1*1000000000 -> 2 | C41: nC | G41: 32 | H41: =Vin -> 24 | I41: =MODE -> 1 | J41: 2.56 | K41: =Iout*G41/100/Number_of_Phases -> 2.56 | L41: =Vout*K41/(Vin*Efficiency) -> 0.5925925926 | M41: =(Vout+(Rdson2+Rs+Rdcr)*K41)/(Vin+(Rs+Rdson2-Rdson1)*K41) -> 0.2130725394 | N41: =(Vin-(Rdson1+Rdcr)*K41-Vout)*M41/(Fsw*Lf) -> 2.414598431 | O41: 3.767299216 | P41: 1.352700784 | Q41: =IF(MIN(Vin, -P41/(Coss_Q1+Coss_Q2)*0.00000002)<0, 0, MIN(Vin, -P41/(Coss_Q1+Coss_Q2)*0.00000002)) -> 0 | R41: 2.65319753 | S41: =R41^2*Rdcr -> 0.09292083414 | T41: =Core_Loss -> 0.3959070267 | U41: =(T41+S41*(1+Ltc*(Ta-25)))/(1-S41*Ltc*ThetaCa) -> 0.4927868788 | V41: 0.6970345271 | W41: 0.000971714264 | X41: 0.000971714264 | Y41: 1.086427314 | Z41: 0.001180324308 | AA41: 0.001180324308 | AB41: 1.224710173 | AC41: =Rdson1*AB41^2 -> 0.03149821515 | AD41: =(Vin*K41/2)*Fsw*(Tr_buck+Tf_buck) -> 0.1678657639 | AE41: =(0.5*Coss_Q1*(Vin-Q41)^2-0.5*Coss_Q2*(Vin-Q41)^2+(Qoss_Q2*(Vin-Q41)/Vin)*Vin)*Fsw -> 0.0384 | AF41: =IF(K41>N41/2,0,ABS(K41-N41/2)*Vsd_Q1*Deadtime*Fsw) -> 0 | AG41: =(AF41+AE41+AD41+AC41*(1+RdsonTopTc*Ta-RdsonTopTc*25))/(1-AC41*RdsonTopTc*ThetaJA_Q1) -> 0.2384248553 | AH41: =SQRT((1-M41))*SQRT(K41^2+(N41^2)/12) -> 2.353623191 | AI41: =Rdson2*AH41^2 -> 0.07201404762 | AJ41: =IF(K41<N41/2,Deadtime*Fsw*Vsd_Q2*(K41+N41/2),2*Deadtime*Fsw*Vsd_Q2*K41) -> 0.028672 | AK41: =(AJ41+AI41*(1+RdsonBotTc*Ta-RdsonBotTc*25))/(1-AI41*RdsonBotTc*ThetaJA_Q2) -> 0.1013281883 | AL41: =Qrr_Q2*K41/Iout*Fsw*Vin -> 0.02304 | AM41: =Iq*Vin -> 0.00084 | AN41: =IF(Ext_VCC=1, (Qg_Q1+Qg_Q2)*Fsw*Vout, (Qg_Q1+Qg_Q2)*Fsw*Vin) -> 0.09 | AO41: =(Vin-VCC)*Fsw*(Qg_Q1+Qg_Q2) -> 0.3726 | AP41: =(Qg_Q1+Qg_Q2)*Fsw*(Vin-Vout) -> 0.342 | AQ41: =SUM(AM41:AN41) -> 0.09084 | AR41: 0.9411578876 | AS41: =((T41+S41*(1+Ltc*(Ta-25))) + (AF41+AE41+AD41+AC41*(1+RdsonTC*(Ta-25))) + (AJ41+AI41*(1+RdsonTC*(Ta-25))) + AQ41 + AL41) / (1-S41*Ltc*ThetaCa-AC41*RdsonTC*ThetaJA_Q1 -AI41*RdsonTC*ThetaJA_Q2) -> 0.9575735854 | AT41: 0.9575735854 | AU41: =Vout*K41 -> 12.8 | AV41: 0.9303966227 | AW41: =ThetaJA_Q1*BC41 -> 5.579887617 | AX41: =ThetaJA_Q2*BD41 -> 2.396490542 | AZ41: 93.03966227 | BA41: =U41 -> 0.4927868788 | BB41: =AG41+AK41+AL41 -> 0.3627930436 | BC41: =AG41+AL41*0.66 -> 0.2536312553 | BD41: =AK41+AL41*0.33 -> 0.1089313883 | BE41: 0.8555799224
A42: RGateTop | B42: =Rgate1 -> 1 | C42: W | D42: Gate Resistance | G42: 33 | H42: 24 | I42: 1 | J42: =Iout*G42/100 -> 2.64 | K42: 2.64 | L42: 0.6111111111 | M42: 0.2132204281 | N42: 2.415924794 | O42: 3.847962397 | P42: 1.432037603 | Q42: 0 | R42: 2.730566068 | S42: 0.09841908187 | T42: 0.3959070267 | U42: 0.4985685852 | V42: 0.697417415 | W42: 0.0009727821015 | X42: 0.0009727821015 | Y42: 1.118390919 | Z42: 0.001250798248 | AA42: 0.001250798248 | AB42: 1.26086066 | AC42: 0.03338516168 | AD42: 0.173111569 | AE42: 0.0384 | AF42: 0 | AG42: 0.2456183314 | AH42: 2.422028374 | AI42: 0.07626087881 | AJ42: 0.029568 | AK42: 0.1065438903 | AL42: 0.02376 | AM42: 0.00084 | AN42: 0.09 | AO42: 0.3726 | AP42: 0.342 | AQ42: 0.09084 | AR42: 0.9596517181 | AS42: 0.9773994999 | AT42: 0.9773994999 | AU42: 13.2 | AV42: 0.9310593244 | AW42: 5.748598491 | AX42: 2.516463187 | AZ42: 93.10593244 | BA42: 0.4985685852 | BB42: 0.3759222217 | BC42: 0.2612999314 | BD42: 0.1143846903 | BE42: 0.8744908069
A43: GfsTop | B43: =Gfs_Q1 -> 100 | C43: S | D43: Transconductance of Top FET | G43: 34 | H43: 24 | I43: 1 | J43: 2.72 | K43: 2.72 | L43: 0.6296296296 | M43: 0.213368304 | N43: 2.417250526 | O43: 3.928625263 | P43: 1.511374737 | Q43: 0 | R43: 2.808082087 | S43: 0.1040862901 | T43: 0.3959070267 | U43: 0.5045337679 | V43: 0.6978001211 | W43: 0.0009738500179 | X43: 0.0009738500179 | Y43: 1.150430726 | Z43: 0.001323490856 | AA43: 0.001323490856 | AB43: 1.29710386 | AC43: 0.0353320469 | AD43: 0.1783573742 | AE43: 0.0384 | AF43: 0 | AG43: 0.2528756672 | AH43: 2.490551462 | AI43: 0.08063700561 | AJ43: 0.030464 | AK43: 0.111895019 | AL43: 0.02448 | AM43: 0.00084 | AN43: 0.09 | AO43: 0.3726 | AP43: 0.342 | AQ43: 0.09084 | AR43: 0.9785037435 | AS43: 0.9976634483 | AT43: 0.9976634483 | AU43: 13.6 | AV43: 0.9316559495 | AW43: 5.918714278 | AX43: 2.639415218 | AZ43: 93.16559495 | BA43: 0.5045337679 | BB43: 0.3892506862 | BC43: 0.2690324672 | BD43: 0.119973419 | BE43: 0.8937844541
A44: VthTop | B44: =Vth_Q1 -> 1.5 | C44: V | D44: Threshold Voltage of Top FET | G44: 35 | H44: 24 | I44: 1 | J44: 2.8 | K44: 2.8 | L44: 0.6481481481 | M44: 0.2135161671 | N44: 2.418575629 | O44: 4.009287815 | P44: 1.590712185 | Q44: 0 | R44: 2.885733703 | S44: 0.1099224589 | T44: 0.3959070267 | U44: 0.5106829633 | V44: 0.6981826453 | W44: 0.0009749180124 | X44: 0.0009749180124 | Y44: 1.18254189 | Z44: 0.001398405321 | AA44: 0.001398405321 | AB44: 1.333434336 | AC44: 0.03733898971 | AD44: 0.1836031793 | AE44: 0.0384 | AF44: 0 | AG44: 0.2601971328 | AH44: 2.559181877 | AI44: 0.0851423544 | AJ44: 0.03136 | AK44: 0.117381841 | AL44: 0.0252 | AM44: 0.00084 | AN44: 0.09 | AO44: 0.3726 | AP44: 0.342 | AQ44: 0.09084 | AR44: 0.997714009 | AS44: 1.018368824 | AT44: 1.018368824 | AU44: 14 | AV44: 0.9321917822 | AW44: 6.090240922 | AX44: 2.765352503 | AZ44: 93.21917822 | BA44: 0.5106829633 | BB44: 0.4027789739 | BC44: 0.2768291328 | BD44: 0.125697841 | BE44: 0.9134619372
A45: VspTop | B45: =Vsp_Q1 -> 1.58 | C45: V | G45: 36 | H45: 24 | I45: 1 | J45: 2.88 | K45: 2.88 | L45: 0.6666666667 | M45: 0.2136640175 | N45: 2.419900102 | O45: 4.089950051 | P45: 1.670049949 | Q45: 0 | R45: 2.963510257 | S45: 0.1159275882 | T45: 0.3959070267 | U45: 0.5170167249 | V45: 0.6985649877 | W45: 0.0009759860842 | X45: 0.0009759860842 | Y45: 1.214720062 | Z45: 0.00147554483 | AA45: 0.00147554483 | AB45: 1.369847211 | AC45: 0.03940610899 | AD45: 0.1888489844 | AE45: 0.0384 | AF45: 0 | AG45: 0.267583001 | AH45: 2.627910132 | AI45: 0.0897768516 | AJ45: 0.032256 | AK45: 0.1230046328 | AL45: 0.02592 | AM45: 0.00084 | AN45: 0.09 | AO45: 0.3726 | AP45: 0.342 | AQ45: 0.09084 | AR45: 1.01728256 | AS45: 1.039519121 | AT45: 1.039519121 | AU45: 14.4 | AV45: 0.9326715351 | AW45: 6.263184422 | AX45: 2.894281123 | AZ45: 93.26715351 | BA45: 0.5170167249 | BB45: 0.4165076339 | BC45: 0.284690201 | BD45: 0.1315582328 | BE45: 0.9335243587
A46: VsdTop | B46: =Vsd_Q1 -> 0.7 | C46: V | G46: 37 | H46: 24 | I46: 1 | J46: 2.96 | K46: 2.96 | L46: 0.6851851852 | M46: 0.213811855 | N46: 2.421223946 | O46: 4.170611973 | P46: 1.749388027 | Q46: 0 | R46: 3.041402163 | S46: 0.1221016779 | T46: 0.3959070267 | U46: 0.5235356237 | V46: 0.6989471484 | W46: 0.0009770542326 | X46: 0.0009770542326 | Y46: 1.246961333 | Z46: 0.001554912565 | AA46: 0.001554912565 | AB46: 1.406338095 | AC46: 0.04153352359 | AD46: 0.1940947895 | AE46: 0.0384 | AF46: 0 | AG46: 0.275033547 | AH46: 2.696727698 | AI46: 0.09454042362 | AJ46: 0.033152 | AK46: 0.1287636804 | AL46: 0.02664 | AM46: 0.00084 | AN46: 0.09 | AO46: 0.3726 | AP46: 0.342 | AQ46: 0.09084 | AR46: 1.037209441 | AS46: 1.061117934 | AT46: 1.061117934 | AU46: 14.8 | AV46: 0.9330994235 | AW46: 6.437550834 | AX46: 3.02620737 | AZ46: 93.30994235 | BA46: 0.5235356237 | BB46: 0.4304372274 | BC46: 0.292615947 | BD46: 0.1375548804 | BE46: 0.9539728511
A47: θJATop | B47: =ThetaJA_Q1 -> 22 | C47: °C/W | D47: Junction to Ambient Resistance | G47: 38 | H47: 24 | I47: 1 | J47: 3.04 | K47: 3.04 | L47: 0.7037037037 | M47: 0.2139596797 | N47: 2.42254716 | O47: 4.25127358 | P47: 1.82872642 | Q47: 0 | R47: 3.11940078 | S47: 0.1284447282 | T47: 0.3959070267 | U47: 0.5302402485 | V47: 0.6993291274 | W47: 0.0009781224568 | X47: 0.0009781224568 | Y47: 1.279262172 | Z47: 0.001636511705 | AA47: 0.001636511705 | AB47: 1.442903032 | AC47: 0.04372135236 | AD47: 0.1993405946 | AE47: 0.0384 | AF47: 0 | AG47: 0.2825490485 | AH47: 2.765626885 | AI47: 0.09943299689 | AJ47: 0.034048 | AK47: 0.1346592796 | AL47: 0.02736 | AM47: 0.00084 | AN47: 0.09 | AO47: 0.3726 | AP47: 0.342 | AQ47: 0.09084 | AR47: 1.057494699 | AS47: 1.083168959 | AT47: 1.083168959 | AU47: 15.2 | AV47: 0.9334792286 | AW47: 6.613346268 | AX47: 3.16113775 | AZ47: 93.34792286 | BA47: 0.5302402485 | BB47: 0.4445683281 | BC47: 0.3006066485 | BD47: 0.1436880796 | BE47: 0.9748085766
A48: Low-side FET | B48: Input Value | C48: Units | D48: Description | G48: 39 | H48: 24 | I48: 1 | J48: 3.12 | K48: 3.12 | L48: 0.7222222222 | M48: 0.2141074917 | N48: 2.423869744 | O48: 4.331934872 | P48: 1.908065128 | Q48: 0 | R48: 3.1974983 | S48: 0.134956739 | T48: 0.3959070267 | U48: 0.5371312058 | V48: 0.6997109246 | W48: 0.0009791907561 | X48: 0.0009791907561 | Y48: 1.31161939 | Z48: 0.001720345425 | AA48: 0.001720345425 | AB48: 1.479538443 | AC48: 0.04596971411 | AD48: 0.2045863998 | AE48: 0.0384 | AF48: 0 | AG48: 0.290129786 | AH48: 2.834600743 | AI48: 0.1044544978 | AJ48: 0.034944 | AK48: 0.1406917357 | AL48: 0.02808 | AM48: 0.00084 | AN48: 0.09 | AO48: 0.3726 | AP48: 0.342 | AQ48: 0.09084 | AR48: 1.078138377 | AS48: 1.105676002 | AT48: 1.105676002 | AU48: 15.6 | AV48: 0.9338143514 | AW48: 6.790576892 | AX48: 3.299078985 | AZ48: 93.38143514 | BA48: 0.5371312058 | BB48: 0.4589015217 | BC48: 0.308662586 | BD48: 0.1499581357 | BE48: 0.9960327275
A49: RdsonBot | B49: =Rdson2*1000 -> 13 | C49: mW | D49: Drain-Source Resistance of Low-side FET | G49: 40 | H49: 24 | I49: 1 | J49: 3.2 | K49: 3.2 | L49: 0.7407407407 | M49: 0.2142552908 | N49: 2.425191699 | O49: 4.41259585 | P49: 1.98740415 | Q49: 0 | R49: 3.275687648 | S49: 0.1416377103 | T49: 0.3959070267 | U49: 0.5442091199 | V49: 0.7000925402 | W49: 0.0009802591296 | X49: 0.0009802591296 | Y49: 1.344030095 | Z49: 0.001806416896 | AA49: 0.001806416896 | AB49: 1.516241086 | AC49: 0.04827872764 | AD49: 0.2098322049 | AE49: 0.0384 | AF49: 0 | AG49: 0.2977760424 | AH49: 2.903642976 | AI49: 0.1096048529 | AJ49: 0.03584 | AK49: 0.1468613641 | AL49: 0.0288 | AM49: 0.00084 | AN49: 0.09 | AO49: 0.3726 | AP49: 0.342 | AQ49: 0.09084 | AR49: 1.099140522 | AS49: 1.128642969 | AT49: 1.128642969 | AU49: 16 | AV49: 0.9341078583 | AW49: 6.969248933 | AX49: 3.440038011 | AZ49: 93.41078583 | BA49: 0.5442091199 | BB49: 0.4734374065 | BC49: 0.3167840424 | BD49: 0.1563653641 | BE49: 1.017646526
A50: RdsonBotTc | B50: =RdsonBotTc*1000000 -> 4000 | C50: ppm | D50: Drain To Source Resitance Temp Co | G50: 41 | H50: 24 | I50: 1 | J50: 3.28 | K50: 3.28 | L50: 0.7592592593 | M50: 0.2144030772 | N50: 2.426513025 | O50: 4.493256512 | P50: 2.066743488 | Q50: 0 | R50: 3.353962401 | S50: 0.148487642 | T50: 0.3959070267 | U50: 0.5514746333 | V50: 0.700473974 | W50: 0.0009813275766 | X50: 0.0009813275766 | Y50: 1.376491658 | Z50: 0.001894729284 | AA50: 0.001894729284 | AB50: 1.553008014 | AC50: 0.05064851173 | AD50: 0.21507801 | AE50: 0.0384 | AF50: 0 | AG50: 0.3054881033 | AH50: 2.97274787 | AI50: 0.1148839887 | AJ50: 0.036736 | AK50: 0.1531684901 | AL50: 0.02952 | AM50: 0.00084 | AN50: 0.09 | AO50: 0.3726 | AP50: 0.342 | AQ50: 0.09084 | AR50: 1.120501179 | AS50: 1.152073881 | AT50: 1.152073881 | AU50: 16.4 | AV50: 0.934362521 | AW50: 7.149368673 | AX50: 3.584021982 | AZ50: 93.4362521 | BA50: 0.5514746333 | BB50: 0.4881765934 | BC50: 0.3249713033 | BD50: 0.1629100901 | BE50: 1.039651227
A51: QgBot | B51: =Qg_Q2*1000000000 -> 12 | C51: nC | D51: Gate Charge Of Top FET | G51: 42 | H51: 24 | I51: 1 | J51: 3.36 | K51: 3.36 | L51: 0.7777777778 | M51: 0.2145508508 | N51: 2.427833721 | O51: 4.573916861 | P51: 2.146083139 | Q51: 0 | R51: 3.432316717 | S51: 0.1555065342 | T51: 0.3959070267 | U51: 0.5589284065 | V51: 0.7008552263 | W51: 0.0009823960964 | X51: 0.0009823960964 | Y51: 1.409001686 | Z51: 0.001985285752 | AA51: 0.001985285752 | AB51: 1.589836546 | AC51: 0.05307918513 | AD51: 0.2203238151 | AE51: 0.0384 | AF51: 0 | AG51: 0.313266257 | AH51: 3.041910223 | AI51: 0.1202918315 | AJ51: 0.037632 | AK51: 0.1596134485 | AL51: 0.03024 | AM51: 0.00084 | AN51: 0.09 | AO51: 0.3726 | AP51: 0.342 | AQ51: 0.09084 | AR51: 1.142220393 | AS51: 1.175972865 | AT51: 1.175972865 | AU51: 16.8 | AV51: 0.93458085 | AW51: 7.330942454 | AX51: 3.731038268 | AZ51: 93.458085 | BA51: 0.5589284065 | BB51: 0.5031197055 | BC51: 0.333224657 | BD51: 0.1695926485 | BE51: 1.062048112
A52: RGateBot | B52: =Rgate2 -> 1 | C52: W | D52: Gate Resistance | G52: 43 | H52: 24 | I52: 1 | J52: 3.44 | K52: 3.44 | L52: 0.7962962963 | M52: 0.2146986116 | N52: 2.429153789 | O52: 4.654576894 | P52: 2.225423106 | Q52: 0 | R52: 3.510745269 | S52: 0.1626943869 | T52: 0.3959070267 | U52: 0.5665711184 | V52: 0.7012362969 | W52: 0.0009834646882 | X52: 0.0009834646882 | Y52: 1.441557998 | Z52: 0.002078089461 | AA52: 0.002078089461 | AB52: 1.626724237 | AC52: 0.05557086657 | AD52: 0.2255696203 | AE52: 0.0384 | AF52: 0 | AG52: 0.3211107945 | AH52: 3.111125295 | AI52: 0.1258283078 | AJ52: 0.038528 | AK52: 0.1661965845 | AL52: 0.03096 | AM52: 0.00084 | AN52: 0.09 | AO52: 0.3726 | AP52: 0.342 | AQ52: 0.09084 | AR52: 1.164298208 | AS52: 1.200344164 | AT52: 1.200344164 | AU52: 17.2 | AV52: 0.9347651243 | AW52: 7.513976679 | AX52: 3.881094459 | AZ52: 93.47651243 | BA52: 0.5665711184 | BB52: 0.518267379 | BC52: 0.3415443945 | BD52: 0.1764133845 | BE52: 1.084838497
A53: VsdBot | B53: =Vsd_Q2 -> 0.7 | C53: V | D53: Diode Forward Voltage of Bottom FET Body Diode | G53: 44 | H53: 24 | I53: 1 | J53: 3.52 | K53: 3.52 | L53: 0.8148148148 | M53: 0.2148463596 | N53: 2.430473227 | O53: 4.735236613 | P53: 2.304763387 | Q53: 0 | R53: 3.58924319 | S53: 0.1700512001 | T53: 0.3959070267 | U53: 0.5744034666 | V53: 0.7016171859 | W53: 0.0009845333511 | X53: 0.0009845333511 | Y53: 1.474158595 | Z53: 0.002173143564 | AA53: 0.002173143564 | AB53: 1.663668848 | AC53: 0.05812367478 | AD53: 0.2308154254 | AE53: 0.0384 | AF53: 0 | AG53: 0.3290220094 | AH53: 3.180388756 | AI53: 0.1314933443 | AJ53: 0.039424 | AK53: 0.172918253 | AL53: 0.03168 | AM53: 0.00084 | AN53: 0.09 | AO53: 0.3726 | AP53: 0.342 | AQ53: 0.09084 | AR53: 1.186734671 | AS53: 1.225192135 | AT53: 1.225192135 | AU53: 17.6 | AV53: 0.9349174167 | AW53: 7.698477806 | AX53: 4.034198367 | AZ53: 93.49174167 | BA53: 0.5744034666 | BB53: 0.5336202624 | BC53: 0.3499308094 | BD53: 0.183372653 | BE53: 1.108023729
A54: QrrBot | B54: =Qrr_Q2*1000000000 -> 3 | C54: nC | D54: Reverse Recovery Charge of Body Diode | G54: 45 | H54: 24 | I54: 1 | J54: 3.6 | K54: 3.6 | L54: 0.8333333333 | M54: 0.2149940948 | N54: 2.431792036 | O54: 4.815896018 | P54: 2.384103982 | Q54: 0 | R54: 3.667806026 | S54: 0.1775769738 | T54: 0.3959070267 | U54: 0.5824261672 | V54: 0.7019978933 | W54: 0.0009856020845 | X54: 0.0009856020845 | Y54: 1.506801651 | Z54: 0.002270451214 | AA54: 0.002270451214 | AB54: 1.700668334 | AC54: 0.06073772845 | AD54: 0.2360612305 | AE54: 0.0384 | AF54: 0 | AG54: 0.3370001981 | AH54: 3.249696641 | AI54: 0.1372868674 | AJ54: 0.04032 | AK54: 0.1797788192 | AL54: 0.0324 | AM54: 0.00084 | AN54: 0.09 | AO54: 0.3726 | AP54: 0.342 | AQ54: 0.09084 | AR54: 1.209529827 | AS54: 1.25052125 | AT54: 1.25052125 | AU54: 18 | AV54: 0.9350396161 | AW54: 7.884452358 | AX54: 4.190358023 | AZ54: 93.50396161 | BA54: 0.5824261672 | BB54: 0.5491790173 | BC54: 0.3583841981 | BD54: 0.1904708192 | BE54: 1.131605184
A55: TrrBot | B55: =Trr_Q2*1000000000 -> 40 | C55: ns | D55: Reverse Recovery Time of Body Diode | G55: 46 | H55: 24 | I55: 1 | J55: 3.68 | K55: 3.68 | L55: 0.8518518519 | M55: 0.2151418173 | N55: 2.433110217 | O55: 4.896555108 | P55: 2.463444892 | Q55: 0 | R55: 3.746429693 | S55: 0.1852717079 | T55: 0.3959070267 | U55: 0.590639955 | V55: 0.7023784192 | W55: 0.0009866708876 | X55: 0.0009866708876 | Y55: 1.539485485 | Z55: 0.002370015558 | AA55: 0.002370015558 | AB55: 1.737720815 | AC55: 0.06341314624 | AD55: 0.2413070356 | AE55: 0.0384 | AF55: 0 | AG55: 0.3450456598 | AH55: 3.319045317 | AI55: 0.1432088036 | AJ55: 0.041216 | AK55: 0.1867786582 | AL55: 0.03312 | AM55: 0.00084 | AN55: 0.09 | AO55: 0.3726 | AP55: 0.342 | AQ55: 0.09084 | AR55: 1.23268372 | AS55: 1.276336104 | AT55: 1.276336104 | AU55: 18.4 | AV55: 0.9351334467 | AW55: 8.071906915 | AX55: 4.349581681 | AZ55: 93.51334467 | BA55: 0.590639955 | BB55: 0.564944318 | BC55: 0.3669048598 | BD55: 0.1977082582 | BE55: 1.155584273
A56: θJABot | B56: =ThetaJA_Q2 -> 22 | C56: °C/W | D56: Junction to Ambient Resistance | G56: 47 | H56: 24 | I56: 1 | J56: 3.76 | K56: 3.76 | L56: 0.8703703704 | M56: 0.215289527 | N56: 2.434427768 | O56: 4.977213884 | P56: 2.542786116 | Q56: 0 | R56: 3.82511044 | S56: 0.1931354024 | T56: 0.3959070267 | U56: 0.599045584 | V56: 0.7027587636 | W56: 0.0009877397596 | X56: 0.0009877397596 | Y56: 1.572208555 | Z56: 0.00247183974 | AA56: 0.00247183974 | AB56: 1.774824563 | AC56: 0.06615004682 | AD56: 0.2465528407 | AE56: 0.0384 | AF56: 0 | AG56: 0.3531586964 | AH56: 3.388431444 | AI56: 0.1492590795 | AJ56: 0.042112 | AK56: 0.1939181554 | AL56: 0.03384 | AM56: 0.00084 | AN56: 0.09 | AO56: 0.3726 | AP56: 0.342 | AQ56: 0.09084 | AR56: 1.256196396 | AS56: 1.302641411 | AT56: 1.302641411 | AU56: 18.8 | AV56: 0.9352004851 | AW56: 8.260848121 | AX56: 4.51187782 | AZ56: 93.52004851 | BA56: 0.599045584 | BB56: 0.5809168519 | BC56: 0.3754930964 | BD56: 0.2050853554 | BE56: 1.179962436
G57: 48 | H57: 24 | I57: 1 | J57: 3.84 | K57: 3.84 | L57: 0.8888888889 | M57: 0.2154372239 | N57: 2.435744691 | O57: 5.057872345 | P57: 2.622127655 | Q57: 0 | R57: 3.903844816 | S57: 0.2011680574 | T57: 0.3959070267 | U57: 0.6076438273 | V57: 0.7031389265 | W57: 0.0009888086998 | X57: 0.0009888086998 | Y57: 1.604969439 | Z57: 0.002575926899 | AA57: 0.002575926899 | AB57: 1.811977988 | AC57: 0.06894854882 | AD57: 0.2517986459 | AE57: 0.0384 | AF57: 0 | AG57: 0.3613396128 | AH57: 3.457851952 | AI57: 0.1554376216 | AJ57: 0.043008 | AK57: 0.2011977065 | AL57: 0.03456 | AM57: 0.00084 | AN57: 0.09 | AO57: 0.3726 | AP57: 0.342 | AQ57: 0.09084 | AR57: 1.2800679 | AS57: 1.329442012 | AT57: 1.329442012 | AU57: 19.2 | AV57: 0.9352421751 | AW57: 8.451282681 | AX57: 4.677255144 | AZ57: 93.52421751 | BA57: 0.6076438273 | BB57: 0.5970973193 | BC57: 0.3841492128 | BD57: 0.2126025065 | BE57: 1.204741147
G58: 49 | H58: 24 | I58: 1 | J58: 3.92 | K58: 3.92 | L58: 0.9074074074 | M58: 0.215584908 | N58: 2.437060985 | O58: 5.138530492 | P58: 2.701469508 | Q58: 0 | R58: 3.982629641 | S58: 0.2093696729 | T58: 0.3959070267 | U58: 0.6164354775 | V58: 0.7035189078 | W58: 0.0009898777074 | X58: 0.0009898777074 | Y58: 1.637766824 | Z58: 0.002682280171 | AA58: 0.002682280171 | AB58: 1.849179623 | AC58: 0.07180877084 | AD58: 0.257044451 | AE58: 0.0384 | AF58: 0 | AG58: 0.3695887164 | AH58: 3.52730401 | AI58: 0.1617443565 | AJ58: 0.043904 | AK58: 0.2086177175 | AL58: 0.03528 | AM58: 0.00084 | AN58: 0.09 | AO58: 0.3726 | AP58: 0.342 | AQ58: 0.09084 | AR58: 1.304298278 | AS58: 1.356742871 | AT58: 1.356742871 | AU58: 19.6 | AV58: 0.9352598407 | AW58: 8.643217362 | AX58: 4.845722584 | AZ58: 93.52598407 | BA58: 0.6164354775 | BB58: 0.6134864339 | BC58: 0.3928735164 | BD58: 0.2202601175 | BE58: 1.229921911
G59: 50 | H59: 24 | I59: 1 | J59: 4 | K59: 4 | L59: 0.9259259259 | M59: 0.2157325794 | N59: 2.43837665 | O59: 5.219188325 | P59: 2.780811675 | Q59: 0 | R59: 4.061461977 | S59: 0.2177402488 | T59: 0.3959070267 | U59: 0.6254213464 | V59: 0.7038987078 | W59: 0.0009909467816 | X59: 0.0009909467816 | Y59: 1.6705995 | Z59: 0.002790902688 | AA59: 0.002790902688 | AB59: 1.886428112 | AC59: 0.07473083149 | AD59: 0.2622902561 | AE59: 0.0384 | AF59: 0 | AG59: 0.3779063179 | AH59: 3.596785004 | AI59: 0.1681792108 | AJ59: 0.0448 | AK59: 0.2161786045 | AL59: 0.036 | AM59: 0.00084 | AN59: 0.09 | AO59: 0.3726 | AP59: 0.342 | AQ59: 0.09084 | AR59: 1.328887574 | AS59: 1.384549086 | AT59: 1.384549086 | AU59: 20 | AV59: 0.9352546981 | AW59: 8.836658994 | AX59: 5.0172893 | AZ59: 93.52546981 | BA59: 0.6254213464 | BB59: 0.6300849224 | BC59: 0.4016663179 | BD59: 0.2280586045 | BE59: 1.255506269
G60: 51 | H60: 24 | I60: 1 | J60: 4.08 | K60: 4.08 | L60: 0.9444444444 | M60: 0.215880238 | N60: 2.439691687 | O60: 5.299845844 | P60: 2.860154156 | Q60: 0 | R60: 4.140339112 | S60: 0.2262797851 | T60: 0.3959070267 | U60: 0.6346022659 | V60: 0.7042783263 | W60: 0.0009920159217 | X60: 0.0009920159217 | Y60: 1.703466342 | Z60: 0.002901797579 | AA60: 0.002901797579 | AB60: 1.923722202 | AC60: 0.07771484932 | AD60: 0.2675360612 | AE60: 0.0384 | AF60: 0 | AG60: 0.3862927305 | AH60: 3.666292521 | AI60: 0.1747421111 | AJ60: 0.045696 | AK60: 0.2238807945 | AL60: 0.03672 | AM60: 0.00084 | AN60: 0.09 | AO60: 0.3726 | AP60: 0.342 | AQ60: 0.09084 | AR60: 1.353835833 | AS60: 1.412865882 | AT60: 1.412865882 | AU60: 20.4 | AV60: 0.9352278655 | AW60: 9.031614471 | AX60: 5.191964679 | AZ60: 93.52278655 | BA60: 0.6346022659 | BB60: 0.646893525 | BC60: 0.4105279305 | BD60: 0.2359983945 | BE60: 1.281495791
A61: Controller | B61: Input Value | C61: Units | D61: Std Units | G61: 52 | H61: 24 | I61: 1 | J61: 4.16 | K61: 4.16 | L61: 0.962962963 | M61: 0.2160278838 | N61: 2.441006096 | O61: 5.380503048 | P61: 2.939496952 | Q61: 0 | R61: 4.219258532 | S61: 0.2349882818 | T61: 0.3959070267 | U61: 0.6439790876 | V61: 0.7046577633 | W61: 0.0009930851269 | X61: 0.0009930851269 | Y61: 1.736366311 | Z61: 0.003014967967 | AA61: 0.003014967967 | AB61: 1.96106073 | AC61: 0.0807609429 | AD61: 0.2727818664 | AE61: 0.0384 | AF61: 0 | AG61: 0.3947482706 | AH61: 3.735824324 | AI61: 0.1814329839 | AJ61: 0.046592 | AK61: 0.2317247246 | AL61: 0.03744 | AM61: 0.00084 | AN61: 0.09 | AO61: 0.3726 | AP61: 0.342 | AQ61: 0.09084 | AR61: 1.379143102 | AS61: 1.441698625 | AT61: 1.441698625 | AU61: 20.8 | AV61: 0.9351803723 | AW61: 9.228090753 | AX61: 5.369758342 | AZ61: 93.51803723 | BA61: 0.6439790876 | BB61: 0.6639129952 | BC61: 0.4194586706 | BD61: 0.2440799246 | BE61: 1.307892083
A62: θJA | B62: 22 | C62: °C/W | D62: Junction to Ambient Resistance | G62: 53 | H62: 24 | I62: 1 | J62: 4.24 | K62: 4.24 | L62: 0.9814814815 | M62: 0.2161755169 | N62: 2.442319876 | O62: 5.461159938 | P62: 3.018840062 | Q62: 0 | R62: 4.29821791 | S62: 0.243865739 | T62: 0.3959070267 | U62: 0.6535526835 | V62: 0.705037019 | W62: 0.0009941543964 | X62: 0.0009941543964 | Y62: 1.769298441 | Z62: 0.003130416973 | AA62: 0.003130416973 | AB62: 1.998442617 | AC62: 0.08386923075 | AD62: 0.2780276715 | AE62: 0.0384 | AF62: 0 | AG62: 0.4032732574 | AH62: 3.805378339 | AI62: 0.188251756 | AJ62: 0.047488 | AK62: 0.2397108428 | AL62: 0.03816 | AM62: 0.00084 | AN62: 0.09 | AO62: 0.3726 | AP62: 0.342 | AQ62: 0.09084 | AR62: 1.404809424 | AS62: 1.471052813 | AT62: 1.471052813 | AU62: 21.2 | AV62: 0.9351131672 | AW62: 9.426094863 | AX62: 5.550680142 | AZ62: 93.51131672 | BA62: 0.6535526835 | BB62: 0.6811441002 | BC62: 0.4284588574 | BD62: 0.2523036428 | BE62: 1.334696784
A63: Theta Ja | B63: 2 | C63: °C/W | D63: Junction to Ambient Resistance | G63: 54 | H63: 24 | I63: 1 | J63: 4.32 | K63: 4.32 | L63: 1 | M63: 0.2163231372 | N63: 2.443633028 | O63: 5.541816514 | P63: 3.098183486 | Q63: 0 | R63: 4.377215081 | S63: 0.2529121566 | T63: 0.3959070267 | U63: 0.6633239455 | V63: 0.7054160934 | W63: 0.0009952237296 | X63: 0.0009952237296 | Y63: 1.802261833 | Z63: 0.003248147714 | AA63: 0.003248147714 | AB63: 2.035866861 | AC63: 0.08703983138 | AD63: 0.2832734766 | AE63: 0.0384 | AF63: 0 | AG63: 0.4118680131 | AH63: 3.874952644 | AI63: 0.1951983539 | AJ63: 0.048384 | AK63: 0.2478396076 | AL63: 0.03888 | AM63: 0.00084 | AN63: 0.09 | AO63: 0.3726 | AP63: 0.342 | AQ63: 0.09084 | AR63: 1.430834845 | AS63: 1.500934089 | AT63: 1.500934089 | AU63: 21.6 | AV63: 0.9350271256 | AW63: 9.625633889 | AX63: 5.734740167 | AZ63: 93.50271256 | BA63: 0.6633239455 | BB63: 0.6985876208 | BC63: 0.4375288131 | BD63: 0.2606700076 | BE63: 1.361911566
G64: 55 | H64: 24 | I64: 1 | J64: 4.4 | K64: 4.4 | L64: 1.018518519 | M64: 0.2164707447 | N64: 2.444945552 | O64: 5.622472776 | P64: 3.177527224 | Q64: 0 | R64: 4.456248036 | S64: 0.2621275346 | T64: 0.3959070267 | U64: 0.6732937865 | V64: 0.7057949864 | W64: 0.0009962931256 | X64: 0.0009962931256 | Y64: 1.83525565 | Z64: 0.003368163302 | AA64: 0.003368163302 | AB64: 2.073332529 | AC64: 0.09027286328 | AD64: 0.2885192817 | AE64: 0.0384 | AF64: 0 | AG64: 0.4205328631 | AH64: 3.944545448 | AI64: 0.2022727042 | AJ64: 0.04928 | AK64: 0.2561114882 | AL64: 0.0396 | AM64: 0.00084 | AN64: 0.09 | AO64: 0.3726 | AP64: 0.342 | AQ64: 0.09084 | AR64: 1.457219411 | AS64: 1.531348237 | AT64: 1.531348237 | AU64: 22 | AV64: 0.9349230558 | AW64: 9.826714988 | AX64: 5.921948741 | AZ64: 93.49230558 | BA64: 0.6732937865 | BB64: 0.7162443513 | BC64: 0.4466688631 | BD64: 0.2691794882 | BE64: 1.389538138
G65: 56 | H65: 24 | I65: 1 | J65: 4.48 | K65: 4.48 | L65: 1.037037037 | M65: 0.2166183395 | N65: 2.446257448 | O65: 5.703128724 | P65: 3.256871276 | Q65: 0 | R65: 4.535314905 | S65: 0.2715118731 | T65: 0.3959070267 | U65: 0.68346314 | V65: 0.706173698 | W65: 0.0009973625836 | X65: 0.0009973625836 | Y65: 1.868279113 | Z65: 0.003490466845 | AA65: 0.003490466845 | AB65: 2.110838751 | AC65: 0.09356844492 | AD65: 0.2937650868 | AE65: 0.0384 | AF65: 0 | AG65: 0.4292681355 | AH65: 4.014155086 | AI65: 0.2094747337 | AJ65: 0.050176 | AK65: 0.2645269647 | AL65: 0.04032 | AM65: 0.00084 | AN65: 0.09 | AO65: 0.3726 | AP65: 0.342 | AQ65: 0.09084 | AR65: 1.483963165 | AS65: 1.562301191 | AT65: 1.562301191 | AU65: 22.4 | AV65: 0.9348017046 | AW65: 10.02934538 | AX65: 6.112316424 | AZ65: 93.48017046 | BA65: 0.68346314 | BB65: 0.7341151002 | BC65: 0.4558793355 | BD65: 0.2778325647 | BE65: 1.41757824
A66: Outputs | G66: 57 | H66: 24 | I66: 1 | J66: 4.56 | K66: 4.56 | L66: 1.055555556 | M66: 0.2167659215 | N66: 2.447568716 | O66: 5.783784358 | P66: 3.336215642 | Q66: 0 | R66: 4.614413945 | S66: 0.2810651719 | T66: 0.3959070267 | U66: 0.6938329604 | V66: 0.7065522284 | W66: 0.000998432103 | X66: 0.000998432103 | Y66: 1.901331494 | Z66: 0.00361506145 | AA66: 0.00361506145 | AB66: 2.148384717 | AC66: 0.09692669475 | AD66: 0.299010892 | AE66: 0.0384 | AF66: 0 | AG66: 0.4380741618 | AH66: 4.083780009 | AI66: 0.2168043691 | AJ66: 0.051072 | AK66: 0.2730865281 | AL66: 0.04104 | AM66: 0.00084 | AN66: 0.09 | AO66: 0.3726 | AP66: 0.342 | AQ66: 0.09084 | AR66: 1.511066154 | AS66: 1.593799032 | AT66: 1.593799032 | AU66: 22.8 | AV66: 0.9346637631 | AW66: 10.23353236 | AX66: 6.305854018 | AZ66: 93.46637631 | BA66: 0.6938329604 | BB66: 0.7522006899 | BC66: 0.4651605618 | BD66: 0.2866297281 | BE66: 1.44603365
A67: Design | B67: Value | C67: Units | G67: 58 | H67: 24 | I67: 1 | J67: 4.64 | K67: 4.64 | L67: 1.074074074 | M67: 0.2169134908 | N67: 2.448879356 | O67: 5.864439678 | P67: 3.415560322 | Q67: 0 | R67: 4.693543527 | S67: 0.2907874311 | T67: 0.3959070267 | U67: 0.7044042235 | V67: 0.7069305776 | W67: 0.000999501683 | X67: 0.000999501683 | Y67: 1.934412111 | Z67: 0.003741950216 | AA67: 0.003741950216 | AB67: 2.185969668 | AC67: 0.1003477312 | AD67: 0.3042566971 | AE67: 0.0384 | AF67: 0 | AG67: 0.4469512764 | AH67: 4.153418767 | AI67: 0.2242615369 | AJ67: 0.051968 | AK67: 0.2817906802 | AL67: 0.04176 | AM67: 0.00084 | AN67: 0.09 | AO67: 0.3726 | AP67: 0.342 | AQ67: 0.09084 | AR67: 1.538528423 | AS67: 1.625847999 | AT67: 1.625847999 | AU67: 23.2 | AV67: 0.9345098706 | AW67: 10.43928328 | AX67: 6.502572565 | AZ67: 93.45098706 | BA67: 0.7044042235 | BB67: 0.7705019566 | BC67: 0.4745128764 | BD67: 0.2955714802 | BE67: 1.47490618
A68: Dmax | B68: =D1_Vinmin -> 0.4166666667 | C68: index | G68: 59 | H68: 24 | I68: 1 | J68: 4.72 | K68: 4.72 | L68: 1.092592593 | M68: 0.2170610473 | N68: 2.450189367 | O68: 5.945094684 | P68: 3.494905316 | Q68: 0 | R68: 4.772702134 | S68: 0.3006786507 | T68: 0.3959070267 | U68: 0.7151779264 | V68: 0.7073087454 | W68: 0.001000571323 | X68: 0.001000571323 | Y68: 1.967520328 | Z68: 0.003871136241 | AA68: 0.003871136241 | AB68: 2.223592895 | AC68: 0.1038316727 | AD68: 0.3095025022 | AE68: 0.0384 | AF68: 0 | AG68: 0.4558998168 | AH68: 4.223070008 | AI68: 0.2318461639 | AJ68: 0.052864 | AK68: 0.2906399342 | AL68: 0.04248 | AM68: 0.00084 | AN68: 0.09 | AO68: 0.3726 | AP68: 0.342 | AQ68: 0.09084 | AR68: 1.566350016 | AS68: 1.658454485 | AT68: 1.658454485 | AU68: 23.6 | AV68: 0.9343406191 | AW68: 10.64660557 | AX68: 6.702483352 | AZ68: 93.43406191 | BA68: 0.7151779264 | BB68: 0.789019751 | BC68: 0.4839366168 | BD68: 0.3046583342 | BE68: 1.504197677
A69: Dprime | B69: =1-B68 -> 0.5833333333 | C69: index | G69: 60 | H69: 24 | I69: 1 | J69: 4.8 | K69: 4.8 | L69: 1.111111111 | M69: 0.217208591 | N69: 2.451498752 | O69: 6.025749376 | P69: 3.574250624 | Q69: 0 | R69: 4.851888345 | S69: 0.3107388307 | T69: 0.3959070267 | U69: 0.7261550881 | V69: 0.7076867321 | W69: 0.001001641022 | X69: 0.001001641022 | Y69: 2.000655547 | Z69: 0.004002622618 | AA69: 0.004002622618 | AB69: 2.261253735 | AC69: 0.1073786375 | AD69: 0.3147483073 | AE69: 0.0384 | AF69: 0 | AG69: 0.4649201239 | AH69: 4.29273247 | AI69: 0.2395581767 | AJ69: 0.05376 | AK69: 0.2996348141 | AL69: 0.0432 | AM69: 0.00084 | AN69: 0.09 | AO69: 0.3726 | AP69: 0.342 | AQ69: 0.09084 | AR69: 1.594530979 | AS69: 1.691625045 | AT69: 1.691625045 | AU69: 24 | AV69: 0.9341565572 | AW69: 10.85550673 | AX69: 6.90559791 | AZ69: 93.41565572 | BA69: 0.7261550881 | BB69: 0.807754938 | BC69: 0.4934321239 | BD69: 0.3138908141 | BE69: 1.533910026
A70: Ipp | B70: =Iripple_Vinnom -> 2.442175015 | C70: A | G70: 61 | H70: 24 | I70: 1 | J70: 4.88 | K70: 4.88 | L70: 1.12962963 | M70: 0.217356122 | N70: 2.452807508 | O70: 6.106403754 | P70: 3.653596246 | Q70: 0 | R70: 4.931100829 | S70: 0.3209679711 | T70: 0.3959070267 | U70: 0.7373367495 | V70: 0.7080645376 | W70: 0.001002710779 | X70: 0.001002710779 | Y70: 2.033817208 | Z70: 0.004136412436 | AA70: 0.004136412436 | AB70: 2.298951564 | AC70: 0.1109887442 | AD70: 0.3199941125 | AE70: 0.0384 | AF70: 0 | AG70: 0.4740125416 | AH70: 4.362404967 | AI70: 0.2473975022 | AJ70: 0.054656 | AK70: 0.3087758553 | AL70: 0.04392 | AM70: 0.00084 | AN70: 0.09 | AO70: 0.3726 | AP70: 0.342 | AQ70: 0.09084 | AR70: 1.623071357 | AS70: 1.725366399 | AT70: 1.725366399 | AU70: 24.4 | AV70: 0.9339581933 | AW70: 11.06599432 | AX70: 7.111928016 | AZ70: 93.39581933 | BA70: 0.7373367495 | BB70: 0.8267083969 | BC70: 0.5029997416 | BD70: 0.3232694553 | BE70: 1.564045146
A71: Top FET | B71: Value | C71: Units | G71: 62 | H71: 24 | I71: 1 | J71: 4.96 | K71: 4.96 | L71: 1.148148148 | M71: 0.2175036402 | N71: 2.454115637 | O71: 6.187057819 | P71: 3.732942181 | Q71: 0 | R71: 5.010338342 | S71: 0.3313660719 | T71: 0.3959070267 | U71: 0.7487239736 | V71: 0.7084421618 | W71: 0.001003780593 | X71: 0.001003780593 | Y71: 2.067004785 | Z71: 0.004272508782 | AA71: 0.004272508782 | AB71: 2.336685799 | AC71: 0.114662111 | AD71: 0.3252399176 | AE71: 0.0384 | AF71: 0 | AG71: 0.4831774171 | AH71: 4.432086391 | AI71: 0.2553640671 | AJ71: 0.055552 | AK71: 0.3180636044 | AL71: 0.04464 | AM71: 0.00084 | AN71: 0.09 | AO71: 0.3726 | AP71: 0.342 | AQ71: 0.09084 | AR71: 1.651971194 | AS71: 1.759685436 | AT71: 1.759685436 | AU71: 24.8 | AV71: 0.9337459986 | AW71: 11.27807598 | AX71: 7.321485698 | AZ71: 93.37459986 | BA71: 0.7487239736 | BB71: 0.8458810215 | BC71: 0.5126398171 | BD71: 0.3327948044 | BE71: 1.594604995
A72: Tr | B72: =(Qgd_Q1+Qgs_Q1/2)*(RdsonDRT+Rgate1)/(VCC-Vsp_Q1)*1000000000 -> 2.61627907 | C72: ns | D72: Turn on of MOSFET -> Rise time of current | G72: 63 | H72: 24 | I72: 1 | J72: 5.04 | K72: 5.04 | L72: 1.166666667 | M72: 0.2176511457 | N72: 2.455423138 | O72: 6.267711569 | P72: 3.812288431 | Q72: 0 | R72: 5.089599712 | S72: 0.3419331331 | T72: 0.3959070267 | U72: 0.7603178459 | V72: 0.708819605 | W72: 0.001004850465 | X72: 0.001004850465 | Y72: 2.100217783 | Z72: 0.004410914737 | AA72: 0.004410914737 | AB72: 2.374455889 | AC72: 0.1183988562 | AD72: 0.3304857227 | AE72: 0.0384 | AF72: 0 | AG72: 0.4924151007 | AH72: 4.501775701 | AI72: 0.263457798 | AJ72: 0.056448 | AK72: 0.3274986197 | AL72: 0.04536 | AM72: 0.00084 | AN72: 0.09 | AO72: 0.3726 | AP72: 0.342 | AQ72: 0.09084 | AR72: 1.681230537 | AS72: 1.794589218 | AT72: 1.794589218 | AU72: 25.2 | AV72: 0.9335204102 | AW72: 11.49175942 | AX72: 7.534283234 | AZ72: 93.35204102 | BA72: 0.7603178459 | BB72: 0.8652737205 | BC72: 0.5223527007 | BD72: 0.3424674197 | BE72: 1.625591566
A73: Tf | B73: =(Qgd_Q1+Qgs_Q1/2)*(RdsonDRT2+Rgate1)/(Vsp_Q1)*1000000000 -> 2.848101266 | C73: ns | D73: Turn off of MOSFET -> Fall time of current | G73: 64 | H73: =Vin -> 24 | I73: =MODE -> 1 | J73: 5.12 | K73: =Iout*G73/100/Number_of_Phases -> 5.12 | L73: =Vout*K73/(Vin*Efficiency) -> 1.185185185 | M73: =(Vout+(Rdson2+Rs+Rdcr)*K73)/(Vin+(Rs+Rdson2-Rdson1)*K73) -> 0.2177986384 | N73: =(Vin-(Rdson1+Rdcr)*K73-Vout)*M73/(Fsw*Lf) -> 2.456730012 | O73: 6.348365006 | P73: 3.891634994 | Q73: =IF(MIN(Vin, -P73/(Coss_Q1+Coss_Q2)*0.00000002)<0, 0, MIN(Vin, -P73/(Coss_Q1+Coss_Q2)*0.00000002)) -> 0 | R73: 5.168883844 | S73: =R73^2*Rdcr -> 0.3526691546 | T73: =Core_Loss -> 0.3959070267 | U73: =(T73+S73*(1+Ltc*(Ta-25)))/(1-S73*Ltc*ThetaCa) -> 0.7721194747 | V73: 0.709196867 | W73: 0.001005920392 | X73: 0.001005920392 | Y73: 2.133455736 | Z73: 0.004551633379 | AA73: 0.004551633379 | AB73: 2.412261319 | AC73: =Rdson1*AB73^2 -> 0.1221990981 | AD73: =(Vin*K73/2)*Fsw*(Tr_buck+Tf_buck) -> 0.3357315278 | AE73: =(0.5*Coss_Q1*(Vin-Q73)^2-0.5*Coss_Q2*(Vin-Q73)^2+(Qoss_Q2*(Vin-Q73)/Vin)*Vin)*Fsw -> 0.0384 | AF73: =IF(K73>N73/2,0,ABS(K73-N73/2)*Vsd_Q1*Deadtime*Fsw) -> 0 | AG73: =(AF73+AE73+AD73+AC73*(1+RdsonTopTc*Ta-RdsonTopTc*25))/(1-AC73*RdsonTopTc*ThetaJA_Q1) -> 0.5017259463 | AH73: =SQRT((1-M73))*SQRT(K73^2+(N73^2)/12) -> 4.571471921 | AI73: =Rdson2*AH73^2 -> 0.2716786218 | AJ73: =IF(K73<N73/2,Deadtime*Fsw*Vsd_Q2*(K73+N73/2),2*Deadtime*Fsw*Vsd_Q2*K73) -> 0.057344 | AK73: =(AJ73+AI73*(1+RdsonBotTc*Ta-RdsonBotTc*25))/(1-AI73*RdsonBotTc*ThetaJA_Q2) -> 0.3370814708 | AL73: =Qrr_Q2*K73/Iout*Fsw*Vin -> 0.04608 | AM73: =Iq*Vin -> 0.00084 | AN73: =IF(Ext_VCC=1, (Qg_Q1+Qg_Q2)*Fsw*Vout, (Qg_Q1+Qg_Q2)*Fsw*Vin) -> 0.09 | AO73: =(Vin-VCC)*Fsw*(Qg_Q1+Qg_Q2) -> 0.3726 | AP73: =(Qg_Q1+Qg_Q2)*Fsw*(Vin-Vout) -> 0.342 | AQ73: 0.09084 | AR73: 1.710849429 | AS73: =((T73+S73*(1+Ltc*(Ta-25))) + (AF73+AE73+AD73+AC73*(1+RdsonTC*(Ta-25))) + (AJ73+AI73*(1+RdsonTC*(Ta-25))) + AQ73 + AL73) / (1-S73*Ltc*ThetaCa-AC73*RdsonTC*ThetaJA_Q1 -AI73*RdsonTC*ThetaJA_Q2) -> 1.830084982 | AT73: 1.830084982 | AU73: =Vout*K73 -> 25.6 | AV73: 0.9332818333 | AW73: =ThetaJA_Q1*BC73 -> 11.70705242 | AX73: =ThetaJA_Q2*BD73 -> 7.750333157 | AZ73: 93.32818333 | BA73: =U73 -> 0.7721194747 | BB73: =AG73+AK73+AL73 -> 0.8848874171 | BC73: =AG73+AL73*0.66 -> 0.5321387463 | BD73: =AK73+AL73*0.33 -> 0.3522878708 | BE73: 1.657006892
A74: Part Power | B74: Value | C74: Units | G74: 65 | H74: 24 | I74: 1 | J74: =Iout*G74/100 -> 5.2 | K74: 5.2 | L74: 1.203703704 | M74: 0.2179461184 | N74: 2.458036259 | O74: =K74+N74/2 -> 6.429018129 | P74: =K74-N74/2 -> 3.970981871 | Q74: 0 | R74: =SQRT(K74^2+(N74^2)/12) -> 5.248189706 | S74: 0.3635741365 | T74: 0.3959070267 | U74: 0.7841299914 | V74: =N74/SQRT(12) -> 0.7095739479 | W74: =RCoutEsr*V74^2 -> 0.001006990375 | X74: =W74 -> 0.001006990375 | Y74: =SQRT(M74*(1-M74))*SQRT(K74^2+(N74^2)/12) -> 2.166718205 | Z74: =RCinEsr*Y74^2 -> 0.004694667781 | AA74: =Z74 -> 0.004694667781 | AB74: =SQRT(M74)*SQRT(K74^2+(N74^2)/12) -> 2.450101603 | AC74: 0.1260629551 | AD74: 0.3409773329 | AE74: 0.0384 | AF74: 0 | AG74: 0.5111103108 | AH74: 4.641174132 | AI74: 0.2800264652 | AJ74: 0.05824 | AK74: 0.3468127388 | AL74: 0.0468 | AM74: 0.00084 | AN74: 0.09 | AO74: 0.3726 | AP74: 0.342 | AQ74: 0.09084 | AR74: =SUM(S74,T74,AC74,AD74,AE74,AF74,AI74,AJ74,AQ74, AL74) -> 1.740827917 | AS74: 1.866180149 | AT74: =AS74 -> 1.866180149 | AU74: 26 | AV74: =AU74/(AU74+AT74) -> 0.9330306436 | AW74: 11.92396284 | AX74: 7.969648253 | AZ74: =AV74*100 -> 93.30306436 | BA74: 0.7841299914 | BB74: 0.9047230496 | BC74: 0.5419983108 | BD74: 0.3622567388 | BE74: =BA74+BB74 -> 1.688853041
A75: Power Dis | B75: =AQ9 -> 0.09084 | C75: W | G75: 66 | H75: 24 | I75: 1 | J75: 5.28 | K75: 5.28 | L75: 1.222222222 | M75: 0.2180935857 | N75: 2.459341878 | O75: 6.509670939 | P75: 4.050329061 | Q75: 0 | R75: 5.327516326 | S75: 0.3746480787 | T75: 0.3959070267 | U75: 0.7963505505 | V75: 0.7099508477 | W75: 0.001008060412 | X75: 0.001008060412 | Y75: 2.200004776 | Z75: 0.004840021014 | AA75: 0.004840021014 | AB75: 2.487976281 | AC75: 0.1299905455 | AD75: 0.3462231381 | AE75: 0.0384 | AF75: 0 | AG75: 0.5205685547 | AH75: 4.710881471 | AI75: 0.288501255 | AJ75: 0.059136 | AK75: 0.3566930167 | AL75: 0.04752 | AM75: 0.00084 | AN75: 0.09 | AO75: 0.3726 | AP75: 0.342 | AQ75: =SUM(AM75:AN75) -> 0.09084 | AR75: 1.771166044 | AS75: 1.902882324 | AT75: 1.902882324 | AU75: 26.4 | AV75: 0.9327671895 | AW75: 12.1424986 | AX75: 8.192241568 | AZ75: 93.27671895 | BA75: 0.7963505505 | BB75: 0.9247815714 | BC75: 0.5519317547 | BD75: 0.3723746167 | BE75: 1.721132122
A76: Temp rise | B76: =B75*B62 -> 1.99848 | C76: °C | G76: 67 | H76: 24 | I76: 1 | J76: 5.36 | K76: 5.36 | L76: 1.240740741 | M76: 0.2182410402 | N76: 2.46064687 | O76: 6.590323435 | P76: 4.129676565 | Q76: 0 | R76: 5.406862792 | S76: 0.3858909813 | T76: 0.3959070267 | U76: 0.8087823303 | V76: 0.7103275665 | W76: 0.001009130503 | X76: 0.001009130503 | Y76: 2.233315057 | Z76: 0.004987696144 | AA76: 0.004987696144 | AB76: 2.525884921 | AC76: 0.1339819873 | AD76: 0.3514689432 | AE76: 0.0384 | AF76: 0 | AG76: 0.5301010417 | AH76: 4.780593124 | AI76: 0.297102918 | AJ76: 0.060032 | AK76: 0.3667229093 | AL76: 0.04824 | AM76: 0.00084 | AN76: 0.09 | AO76: 0.3726 | AP76: 0.342 | AQ76: 0.09084 | AR76: 1.801863857 | AS76: 1.940199302 | AT76: 1.940199302 | AU76: 26.8 | AV76: 0.9324917937 | AW76: 12.36266772 | AX76: 8.418126405 | AZ76: 93.24917937 | BA76: 0.8087823303 | BB76: 0.945063951 | BC76: 0.5619394417 | BD76: 0.3826421093 | BE76: 1.753846281
A77: Current (switching) | B77: =(Qg_Q1+Qg_Q2)*Fsw+Iq -> 0.018035 | C77: A | G77: 68 | H77: 24 | I77: 1 | J77: 5.44 | K77: 5.44 | L77: 1.259259259 | M77: 0.2183884819 | N77: 2.461951235 | O77: 6.670975618 | P77: 4.209024382 | Q77: 0 | R77: 5.486228242 | S77: 0.3973028443 | T77: 0.3959070267 | U77: 0.8214265328 | V77: 0.7107041042 | W77: 0.001010200647 | X77: 0.001010200647 | Y77: 2.266648679 | Z77: 0.005137696234 | AA77: 0.005137696234 | AB77: 2.563827114 | AC77: 0.1380373989 | AD77: 0.3567147483 | AE77: 0.0384 | AF77: 0 | AG77: 0.5397081391 | AH77: 4.850308325 | AI77: 0.3058313811 | AJ77: 0.060928 | AK77: 0.3769030333 | AL77: 0.04896 | AM77: 0.00084 | AN77: 0.09 | AO77: 0.3726 | AP77: 0.342 | AQ77: 0.09084 | AR77: 1.832921399 | AS77: 1.978139074 | AT77: 1.978139074 | AU77: 27.2 | AV77: 0.9322047554 | AW77: 12.58447826 | AX77: 8.647316332 | AZ77: 93.22047554 | BA77: 0.8214265328 | BB77: 0.9655711724 | BC77: 0.5720217391 | BD77: 0.3930598333 | BE77: 1.786997705
A78: Qrr Current | B78: =Qrr_Q2*Fsw -> 0.003 | C78: A | G78: 69 | H78: 24 | I78: 1 | J78: 5.52 | K78: 5.52 | L78: 1.277777778 | M78: 0.218535911 | N78: 2.463254973 | O78: 6.751627487 | P78: 4.288372513 | Q78: 0 | R78: 5.565611864 | S78: 0.4088836676 | T78: 0.3959070267 | U78: 0.8342843842 | V78: 0.7110804609 | W78: 0.001011270844 | X78: 0.001011270844 | Y78: 2.300005292 | Z78: 0.005290024342 | AA78: 0.005290024342 | AB78: 2.601802475 | AC78: 0.1421568985 | AD78: 0.3619605534 | AE78: 0.0384 | AF78: 0 | AG78: 0.5493902176 | AH78: 4.920026352 | AI78: 0.3146865709 | AJ78: 0.061824 | AK78: 0.3872340173 | AL78: 0.04968 | AM78: 0.00084 | AN78: 0.09 | AO78: 0.3726 | AP78: 0.342 | AQ78: 0.09084 | AR78: 1.864338717 | AS78: 2.016709831 | AT78: 2.016709831 | AU78: 27.6 | AV78: 0.9319063514 | AW78: 12.80793839 | AX78: 8.879825181 | AZ78: 93.19063514 | BA78: 0.8342843842 | BB78: 0.9863042349 | BC78: 0.5821790176 | BD78: 0.4036284173 | BE78: 1.820588619
A79: Diode Current | B79: =Deadtime*Fsw*(Iripple_Vinnom/2)*(Vsd_Q2)/Vin -> 0.0002849204184 | G79: 70 | H79: 24 | I79: 1 | J79: 5.6 | K79: 5.6 | L79: 1.296296296 | M79: 0.2186833272 | N79: 2.464558084 | O79: 6.832279042 | P79: 4.367720958 | Q79: 0 | R79: 5.645012892 | S79: 0.4206334512 | T79: 0.3959070267 | U79: 0.8473571353 | V79: 0.7114566367 | W79: 0.001012341092 | X79: 0.001012341092 | Y79: 2.333384564 | Z79: 0.005444683523 | AA79: 0.005444683523 | AB79: 2.639810637 | AC79: 0.1463406042 | AD79: 0.3672063586 | AE79: 0.0384 | AF79: 0 | AG79: 0.5591476512 | AH79: 4.989746521 | AI79: 0.3236684145 | AJ79: 0.06272 | AK79: 0.3977165022 | AL79: 0.0504 | AM79: 0.00084 | AN79: 0.09 | AO79: 0.3726 | AP79: 0.342 | AQ79: 0.09084 | AR79: 1.896115855 | AS79: 2.055919969 | AT79: 2.055919969 | AU79: 28 | AV79: 0.9315968378 | AW79: 13.03305633 | AX79: 9.115667049 | AZ79: 93.15968378 | BA79: 0.8473571353 | BB79: 1.007264153 | BC79: 0.5924116512 | BD79: 0.4143485022 | BE79: 1.854621289
A80: Total | B80: =SUM(B77:B79) -> 0.02131992042 | C80: A | G80: 71 | H80: 24 | I80: 1 | J80: 5.68 | K80: 5.68 | L80: 1.314814815 | M80: 0.2188307308 | N80: 2.465860568 | O80: 6.912930284 | P80: 4.447069716 | Q80: 0 | R80: 5.7244306 | S80: 0.4325521952 | T80: 0.3959070267 | U80: 0.8606460616 | V80: 0.7118326315 | W80: 0.00101341139 | X80: 0.00101341139 | Y80: 2.366786181 | Z80: 0.005601676828 | AA80: 0.005601676828 | AB80: 2.677851255 | AC80: 0.1505886343 | AD80: 0.3724521637 | AE80: 0.0384 | AF80: 0 | AG80: 0.5689808178 | AH80: 5.059468188 | AI80: 0.3327768385 | AJ80: 0.063616 | AK80: 0.4083511411 | AL80: 0.05112 | AM80: 0.00084 | AN80: 0.09 | AO80: 0.3726 | AP80: 0.342 | AQ80: 0.09084 | AR80: 1.928252858 | AS80: 2.095778093 | AT80: 2.095778093 | AU80: 28.4 | AV80: 0.9312764512 | AW80: 13.25984039 | AX80: 9.354856304 | AZ80: 93.12764512 | BA80: 0.8606460616 | BB80: 1.028451959 | BC80: 0.6027200178 | BD80: 0.4252207411 | BE80: 1.889098021
G81: 72 | H81: 24 | I81: 1 | J81: 5.76 | K81: 5.76 | L81: 1.333333333 | M81: 0.2189781216 | N81: 2.467162426 | O81: 6.993581213 | P81: 4.526418787 | Q81: 0 | R81: 5.803864305 | S81: 0.4446398995 | T81: 0.3959070267 | U81: 0.8741524639 | V81: 0.7122084453 | W81: 0.001014481739 | X81: 0.001014481739 | Y81: 2.400209846 | Z81: 0.005761007304 | AA81: 0.005761007304 | AB81: 2.715924001 | AC81: 0.1549011068 | AD81: 0.3776979688 | AE81: 0.0384 | AF81: 0 | AG81: 0.5788900987 | AH81: 5.129190744 | AI81: 0.34201177 | AJ81: 0.064512 | AK81: 0.4191385994 | AL81: 0.05184 | AM81: 0.00084 | AN81: 0.09 | AO81: 0.3726 | AP81: 0.342 | AQ81: 0.09084 | AR81: 1.960749772 | AS81: 2.136293026 | AT81: 2.136293026 | AU81: 28.8 | AV81: 0.9309454102 | AW81: 13.48829897 | AX81: 9.597407586 | AZ81: 93.09454102 | BA81: 0.8741524639 | BB81: 1.049868698 | BC81: 0.6131044987 | BD81: 0.4362457994 | BE81: 1.924021162
G82: 73 | H82: 24 | I82: 1 | J82: 5.84 | K82: 5.84 | L82: 1.351851852 | M82: 0.2191254997 | N82: 2.468463656 | O82: 7.074231828 | P82: 4.605768172 | Q82: 0 | R82: 5.883313358 | S82: 0.4568965641 | T82: 0.3959070267 | U82: 0.8878776683 | V82: 0.7125840782 | W82: 0.001015552137 | X82: 0.001015552137 | Y82: 2.433655274 | Z82: 0.005922677994 | AA82: 0.005922677994 | AB82: 2.754028563 | AC82: 0.1592781399 | AD82: 0.3829437739 | AE82: 0.0384 | AF82: 0 | AG82: 0.5888758786 | AH82: 5.198913612 | AI82: 0.3513731356 | AJ82: 0.065408 | AK82: 0.430079555 | AL82: 0.05256 | AM82: 0.00084 | AN82: 0.09 | AO82: 0.3726 | AP82: 0.342 | AQ82: 0.09084 | AR82: 1.99360664 | AS82: 2.177473812 | AT82: 2.177473812 | AU82: 29.2 | AV82: 0.9306039159 | AW82: 13.71844053 | AX82: 9.84333581 | AZ82: 93.06039159 | BA82: 0.8878776683 | BB82: 1.071515434 | BC82: 0.6235654786 | BD82: 0.447424355 | BE82: 1.959393102
G83: 74 | H83: 24 | I83: 1 | J83: 5.92 | K83: 5.92 | L83: 1.37037037 | M83: 0.219272865 | N83: 2.46976426 | O83: 7.15488213 | P83: 4.68511787 | Q83: 0 | R83: 5.962777146 | S83: 0.4693221891 | T83: 0.3959070267 | U83: 0.9018230267 | V83: 0.7129595302 | W83: 0.001016622584 | X83: 0.001016622584 | Y83: 2.467122197 | Z83: 0.006086691937 | AA83: 0.006086691937 | AB83: 2.792164646 | AC83: 0.1637198516 | AD83: 0.388189579 | AE83: 0.0384 | AF83: 0 | AG83: 0.5989385461 | AH83: 5.268636245 | AI83: 0.3608608625 | AJ83: 0.066304 | AK83: 0.4411746985 | AL83: 0.05328 | AM83: 0.00084 | AN83: 0.09 | AO83: 0.3726 | AP83: 0.342 | AQ83: 0.09084 | AR83: 2.026823509 | AS83: 2.219329721 | AT83: 2.219329721 | AU83: 29.6 | AV83: 0.9302521536 | AW83: 13.95027361 | AX83: 10.09265617 | AZ83: 93.02521536 | BA83: 0.9018230267 | BB83: 1.093393245 | BC83: 0.6341033461 | BD83: 0.4587570985 | BE83: 1.995216271
G84: 75 | H84: 24 | I84: 1 | J84: 6 | K84: 6 | L84: 1.388888889 | M84: 0.2194202176 | N84: 2.471064238 | O84: 7.235532119 | P84: 4.764467881 | Q84: 0 | R84: 6.042255087 | S84: 0.4819167743 | T84: 0.3959070267 | U84: 0.9159899172 | V84: 0.7133348014 | W84: 0.001017693078 | X84: 0.001017693078 | Y84: 2.500610359 | Z84: 0.00625305217 | AA84: 0.00625305217 | AB84: 2.830331969 | AC84: 0.1682263601 | AD84: 0.3934353842 | AE84: 0.0384 | AF84: 0 | AG84: 0.6090784934 | AH84: 5.338358126 | AI84: 0.3704748773 | AJ84: 0.0672 | AK84: 0.4524247331 | AL84: 0.054 | AM84: 0.00084 | AN84: 0.09 | AO84: 0.3726 | AP84: 0.342 | AQ84: 0.09084 | AR84: 2.060400423 | AS84: 2.261870258 | AT84: 2.261870258 | AU84: 30 | AV84: 0.9298902934 | AW84: 14.18380685 | AX84: 10.34538413 | AZ84: 92.98902934 | BA84: 0.9159899172 | BB84: 1.115503226 | BC84: 0.6447184934 | BD84: 0.4702447331 | BE84: 2.031493144
G85: 76 | H85: 24 | I85: 1 | J85: 6.08 | K85: 6.08 | L85: 1.407407407 | M85: 0.2195675575 | N85: 2.472363589 | O85: 7.316181794 | P85: 4.843818206 | Q85: 0 | R85: 6.121746631 | S85: 0.4946803199 | T85: 0.3959070267 | U85: 0.9303797446 | V85: 0.7137098917 | W85: 0.001018763619 | X85: 0.001018763619 | Y85: 2.534119516 | Z85: 0.006421761723 | AA85: 0.006421761723 | AB85: 2.868530264 | AC85: 0.1727977834 | AD85: 0.3986811893 | AE85: 0.0384 | AF85: 0 | AG85: 0.6192961164 | AH85: 5.408078765 | AI85: 0.3802151071 | AJ85: 0.068096 | AK85: 0.4638303749 | AL85: 0.05472 | AM85: 0.00084 | AN85: 0.09 | AO85: 0.3726 | AP85: 0.342 | AQ85: 0.09084 | AR85: 2.094337426 | AS85: 2.305105166 | AT85: 2.305105166 | AU85: 30.4 | AV85: 0.9295184909 | AW85: 14.41904896 | AX85: 10.60153545 | AZ85: 92.95184909 | BA85: 0.9303797446 | BB85: 1.137846491 | BC85: 0.6554113164 | BD85: 0.4818879749 | BE85: 2.068226236
G86: 77 | H86: 24 | I86: 1 | J86: 6.16 | K86: 6.16 | L86: 1.425925926 | M86: 0.2197148847 | N86: 2.473662313 | O86: 7.396831157 | P86: 4.923168843 | Q86: 0 | R86: 6.201251253 | S86: 0.5076128258 | T86: 0.3959070267 | U86: 0.9449939402 | V86: 0.7140848012 | W86: 0.001019834207 | X86: 0.001019834207 | Y86: 2.567649436 | Z86: 0.006592823625 | AA86: 0.006592823625 | AB86: 2.906759279 | AC86: 0.1774342396 | AD86: 0.4039269944 | AE86: 0.0384 | AF86: 0 | AG86: 0.6295918148 | AH86: 5.477797696 | AI86: 0.3900814788 | AJ86: 0.068992 | AK86: 0.475392353 | AL86: 0.05544 | AM86: 0.00084 | AN86: 0.09 | AO86: 0.3726 | AP86: 0.342 | AQ86: 0.09084 | AR86: 2.128634565 | AS86: 2.349044437 | AT86: 2.349044437 | AU86: 30.8 | AV86: 0.9291368883 | AW86: 14.65600872 | AX86: 10.86112617 | AZ86: 92.91368883 | BA86: 0.9449939402 | BB86: 1.160424168 | BC86: 0.6661822148 | BD86: 0.493687553 | BE86: 2.105418108
G87: 78 | H87: 24 | I87: 1 | J87: 6.24 | K87: 6.24 | L87: 1.444444444 | M87: 0.2198621991 | N87: 2.474960411 | O87: 7.477480206 | P87: 5.002519794 | Q87: 0 | R87: 6.280768458 | S87: 0.5207142919 | T87: 0.3959070267 | U87: 0.9598339629 | V87: 0.7144595299 | W87: 0.00102090484 | X87: 0.00102090484 | Y87: 2.601199896 | Z87: 0.006766240899 | AA87: 0.006766240899 | AB87: 2.94501877 | AC87: 0.1821358467 | AD87: 0.4091727995 | AE87: 0.0384 | AF87: 0 | AG87: 0.639965992 | AH87: 5.547514476 | AI87: 0.4000739192 | AJ87: 0.069888 | AK87: 0.4871114095 | AL87: 0.05616 | AM87: 0.00084 | AN87: 0.09 | AO87: 0.3726 | AP87: 0.342 | AQ87: 0.09084 | AR87: 2.163291884 | AS87: 2.393698314 | AT87: 2.393698314 | AU87: 31.2 | AV87: 0.928745615 | AW87: 14.89469502 | AX87: 11.12417261 | AZ87: 92.8745615 | BA87: 0.9598339629 | BB87: 1.183237401 | BC87: 0.677031592 | BD87: 0.5056442095 | BE87: 2.143071364
G88: 79 | H88: 24 | I88: 1 | J88: 6.32 | K88: 6.32 | L88: 1.462962963 | M88: 0.2200095008 | N88: 2.476257884 | O88: 7.558128942 | P88: 5.081871058 | Q88: 0 | R88: 6.360297773 | S88: 0.5339847184 | T88: 0.3959070267 | U88: 0.9749012991 | V88: 0.7148340778 | W88: 0.001021975518 | X88: 0.001021975518 | Y88: 2.634770686 | Z88: 0.006942016566 | AA88: 0.006942016566 | AB88: 2.983308507 | AC88: 0.1869027226 | AD88: 0.4144186047 | AE88: 0.0384 | AF88: 0 | AG88: 0.6504190554 | AH88: 5.617228686 | AI88: 0.4101923555 | AJ88: 0.070784 | AK88: 0.4989882998 | AL88: 0.05688 | AM88: 0.00084 | AN88: 0.09 | AO88: 0.3726 | AP88: 0.342 | AQ88: 0.09084 | AR88: 2.198309428 | AS88: 2.439077298 | AT88: 2.439077298 | AU88: 31.6 | AV88: 0.928344788 | AW88: 15.13511682 | AX88: 11.3906914 | AZ88: 92.8344788 | BA88: 0.9749012991 | BB88: 1.206287355 | BC88: 0.6879598554 | BD88: 0.5177586998 | BE88: 2.181188654
G89: 80 | H89: 24 | I89: 1 | J89: 6.4 | K89: 6.4 | L89: 1.481481481 | M89: 0.2201567898 | N89: 2.477554729 | O89: 7.638777365 | P89: 5.161222635 | Q89: 0 | R89: 6.43983875 | S89: 0.5474241052 | T89: 0.3959070267 | U89: 0.9901974632 | V89: 0.715208445 | W89: 0.00102304624 | X89: 0.00102304624 | Y89: 2.668361603 | Z89: 0.007120153642 | AA89: 0.007120153642 | AB89: 3.021628269 | AC89: 0.1917349854 | AD89: 0.4196644098 | AE89: 0.0384 | AF89: 0 | AG89: 0.660951416 | AH89: 5.686939926 | AI89: 0.4204367144 | AJ89: 0.07168 | AK89: 0.5110237929 | AL89: 0.0576 | AM89: 0.00084 | AN89: 0.09 | AO89: 0.3726 | AP89: 0.342 | AQ89: 0.09084 | AR89: 2.233687241 | AS89: 2.485192162 | AT89: 2.485192162 | AU89: 32 | AV89: 0.9279345132 | AW89: 15.37728315 | AX89: 11.66069944 | AZ89: 92.79345132 | BA89: 0.9901974632 | BB89: 1.229575209 | BC89: 0.698967416 | BD89: 0.5300317929 | BE89: 2.219772672
G90: 81 | H90: 24 | I90: 1 | J90: 6.48 | K90: 6.48 | L90: 1.5 | M90: 0.2203040661 | N90: 2.478850949 | O90: 7.719425475 | P90: 5.240574525 | Q90: 0 | R90: 6.519390961 | S90: 0.5610324522 | T90: 0.3959070267 | U90: 1.005723998 | V90: 0.7155826314 | W90: 0.001024117005 | X90: 0.001024117005 | Y90: 2.701972454 | Z90: 0.00730065514 | AA90: 0.00730065514 | AB90: 3.059977847 | AC90: 0.1966327529 | AD90: 0.4249102149 | AE90: 0.0384 | AF90: 0 | AG90: 0.6715634891 | AH90: 5.756647816 | AI90: 0.430806923 | AJ90: 0.072576 | AK90: 0.5232186709 | AL90: 0.05832 | AM90: 0.00084 | AN90: 0.09 | AO90: 0.3726 | AP90: 0.342 | AQ90: 0.09084 | AR90: 2.26942537 | AS90: 2.532053949 | AT90: 2.532053949 | AU90: 32.4 | AV90: 0.927514885 | AW90: 15.62120316 | AX90: 11.93421396 | AZ90: 92.7514885 | BA90: 1.005723998 | BB90: 1.25310216 | BC90: 0.7100546891 | BD90: 0.5424642709 | BE90: 2.258826158
G91: 82 | H91: 24 | I91: 1 | J91: 6.56 | K91: 6.56 | L91: 1.518518519 | M91: 0.2204513296 | N91: 2.480146543 | O91: 7.800073272 | P91: 5.319926728 | Q91: 0 | R91: 6.598954001 | S91: 0.5748097596 | T91: 0.3959070267 | U91: 1.021482475 | V91: 0.7159566372 | W91: 0.001025187813 | X91: 0.001025187813 | Y91: 2.735603054 | Z91: 0.007483524069 | AA91: 0.007483524069 | AB91: 3.09835704 | AC91: 0.2015961433 | AD91: 0.43015602 | AE91: 0.0384 | AF91: 0 | AG91: 0.6822556935 | AH91: 5.826351994 | AI91: 0.4413029083 | AJ91: 0.073472 | AK91: 0.5355737298 | AL91: 0.05904 | AM91: 0.00084 | AN91: 0.09 | AO91: 0.3726 | AP91: 0.342 | AQ91: 0.09084 | AR91: 2.305523858 | AS91: 2.579673986 | AT91: 2.579673986 | AU91: 32.8 | AV91: 0.9270859877 | AW91: 15.86688606 | AX91: 12.21125246 | AZ91: 92.70859877 | BA91: 1.021482475 | BB91: 1.276869423 | BC91: 0.7212220935 | BD91: 0.5550569298 | BE91: 2.298351899
G92: 83 | H92: 24 | I92: 1 | J92: 6.64 | K92: 6.64 | L92: 1.537037037 | M92: 0.2205985804 | N92: 2.481441511 | O92: 7.880720756 | P92: 5.399279244 | Q92: 0 | R92: 6.678527482 | S92: 0.5887560272 | T92: 0.3959070267 | U92: 1.037474496 | V92: 0.7163304622 | W92: 0.001026258662 | X92: 0.001026258662 | Y92: 2.769253226 | Z92: 0.007668763432 | AA92: 0.007668763432 | AB92: 3.136765655 | AC92: 0.2066252743 | AD92: 0.4354018251 | AE92: 0.0384 | AF92: 0 | AG92: 0.6930284525 | AH92: 5.896052116 | AI92: 0.4519245972 | AJ92: 0.074368 | AK92: 0.5480897795 | AL92: 0.05976 | AM92: 0.00084 | AN92: 0.09 | AO92: 0.3726 | AP92: 0.342 | AQ92: 0.09084 | AR92: 2.341982751 | AS92: 2.62806389 | AT92: 2.62806389 | AU92: 33.2 | AV92: 0.9266478954 | AW92: 16.11434115 | AX92: 12.49183275 | AZ92: 92.66478954 | BA92: 1.037474496 | BB92: 1.300878232 | BC92: 0.7324700525 | BD92: 0.5678105795 | BE92: 2.338352728
G93: 84 | H93: 24 | I93: 1 | J93: 6.72 | K93: 6.72 | L93: 1.555555556 | M93: 0.2207458186 | N93: 2.482735853 | O93: 7.961367927 | P93: 5.478632073 | Q93: 0 | R93: 6.758111036 | S93: 0.602871255 | T93: 0.3959070267 | U93: 1.053701691 | V93: 0.7167041066 | W93: 0.001027329553 | X93: 0.001027329553 | Y93: 2.802922802 | Z93: 0.007856376232 | AA93: 0.007856376232 | AB93: 3.175203509 | AC93: 0.2117202638 | AD93: 0.4406476303 | AE93: 0.0384 | AF93: 0 | AG93: 0.7038821929 | AH93: 5.965747854 | AI93: 0.4626719169 | AJ93: 0.075264 | AK93: 0.5607676437 | AL93: 0.06048 | AM93: 0.00084 | AN93: 0.09 | AO93: 0.3726 | AP93: 0.342 | AQ93: 0.09084 | AR93: 2.378802093 | AS93: 2.677235579 | AT93: 2.677235579 | AU93: 33.6 | AV93: 0.9262006728 | AW93: 16.36357784 | AX93: 12.77597296 | AZ93: 92.62006728 | BA93: 1.053701691 | BB93: 1.325129837 | BC93: 0.7437989929 | BD93: 0.5807260437 | BE93: 2.378831527
G94: 85 | H94: 24 | I94: 1 | J94: 6.8 | K94: 6.8 | L94: 1.574074074 | M94: 0.220893044 | N94: 2.48402957 | O94: 8.042014785 | P94: 5.557985215 | Q94: 0 | R94: 6.837704311 | S94: 0.6171554432 | T94: 0.3959070267 | U94: 1.07016572 | V94: 0.7170775704 | W94: 0.001028400484 | X94: 0.001028400484 | Y94: 2.836611617 | Z94: 0.008046365465 | AA94: 0.008046365465 | AB94: 3.213670426 | AC94: 0.2168812298 | AD94: 0.4458934354 | AE94: 0.0384 | AF94: 0 | AG94: 0.7148173461 | AH94: 6.035438893 | AI94: 0.4735447942 | AJ94: 0.07616 | AK94: 0.5736081601 | AL94: 0.0612 | AM94: 0.00084 | AN94: 0.09 | AO94: 0.3726 | AP94: 0.342 | AQ94: 0.09084 | AR94: 2.415981929 | AS94: 2.727201275 | AT94: 2.727201275 | AU94: 34 | AV94: 0.9257443753 | AW94: 16.61460561 | AX94: 13.06369152 | AZ94: 92.57443753 | BA94: 1.07016572 | BB94: 1.349625506 | BC94: 0.7552093461 | BD94: 0.5938041601 | BE94: 2.419791227
G95: 86 | H95: 24 | I95: 1 | J95: 6.88 | K95: 6.88 | L95: 1.592592593 | M95: 0.2210402566 | N95: 2.48532266 | O95: 8.12266133 | P95: 5.63733867 | Q95: 0 | R95: 6.917306971 | S95: 0.6316085916 | T95: 0.3959070267 | U95: 1.086868276 | V95: 0.7174508535 | W95: 0.001029471454 | X95: 0.001029471454 | Y95: 2.870319516 | Z95: 0.008238734125 | AA95: 0.008238734125 | AB95: 3.252166238 | AC95: 0.2221082901 | AD95: 0.4511392405 | AE95: 0.0384 | AF95: 0 | AG95: 0.7258343472 | AH95: 6.105124936 | AI95: 0.4845431563 | AJ95: 0.077056 | AK95: 0.5866121811 | AL95: 0.06192 | AM95: 0.00084 | AN95: 0.09 | AO95: 0.3726 | AP95: 0.342 | AQ95: 0.09084 | AR95: 2.453522305 | AS95: 2.777973517 | AT95: 2.777973517 | AU95: 34.4 | AV95: 0.9252790496 | AW95: 16.86743404 | AX95: 13.35500718 | AZ95: 92.52790496 | BA95: 1.086868276 | BB95: 1.374366528 | BC95: 0.7667015472 | BD95: 0.6070457811 | BE95: 2.461234805
G96: 87 | H96: 24 | I96: 1 | J96: 6.96 | K96: 6.96 | L96: 1.611111111 | M96: 0.2211874566 | N96: 2.486615126 | O96: 8.203307563 | P96: 5.716692437 | Q96: 0 | R96: 6.996918696 | S96: 0.6462307003 | T96: 0.3959070267 | U96: 1.103811081 | V96: 0.7178239561 | W96: 0.001030542464 | X96: 0.001030542464 | Y96: 2.90404635 | Z96: 0.008433485202 | AA96: 0.008433485202 | AB96: 3.290690783 | AC96: 0.2274015625 | AD96: 0.4563850456 | AE96: 0.0384 | AF96: 0 | AG96: 0.7369336358 | AH96: 6.174805697 | AI96: 0.4956669302 | AJ96: 0.077952 | AK96: 0.599780573 | AL96: 0.06264 | AM96: 0.00084 | AN96: 0.09 | AO96: 0.3726 | AP96: 0.342 | AQ96: 0.09084 | AR96: 2.491423265 | AS96: 2.82956517 | AT96: 2.82956517 | AU96: 34.8 | AV96: 0.9248047338 | AW96: 17.12207279 | AX96: 13.64993901 | AZ96: 92.48047338 | BA96: 1.103811081 | BB96: 1.399354209 | BC96: 0.7782760358 | BD96: 0.620451773 | BE96: 2.50316529
G97: 88 | H97: 24 | I97: 1 | J97: 7.04 | K97: 7.04 | L97: 1.62962963 | M97: 0.2213346439 | N97: 2.487906965 | O97: 8.283953483 | P97: 5.796046517 | Q97: 0 | R97: 7.076539179 | S97: 0.6610217692 | T97: 0.3959070267 | U97: 1.120995888 | V97: 0.7181968781 | W97: 0.001031613511 | X97: 0.001031613511 | Y97: 2.937791974 | Z97: 0.00863062168 | AA97: 0.00863062168 | AB97: 3.329243907 | AC97: 0.2327611648 | AD97: 0.4616308508 | AE97: 0.0384 | AF97: 0 | AG97: 0.7481156554 | AH97: 6.244480904 | AI97: 0.5069160429 | AJ97: 0.078848 | AK97: 0.613114217 | AL97: 0.06336 | AM97: 0.00084 | AN97: 0.09 | AO97: 0.3726 | AP97: 0.342 | AQ97: 0.09084 | AR97: 2.529684854 | AS97: 2.881989435 | AT97: 2.881989435 | AU97: 35.2 | AV97: 0.9243214581 | AW97: 17.37853162 | AX97: 13.94850637 | AZ97: 92.43214581 | BA97: 1.120995888 | BB97: 1.424589872 | BC97: 0.7899332554 | BD97: 0.634023017 | BE97: 2.545585761
G98: 89 | H98: 24 | I98: 1 | J98: 7.12 | K98: 7.12 | L98: 1.648148148 | M98: 0.2214818185 | N98: 2.48919818 | O98: 8.36459909 | P98: 5.87540091 | Q98: 0 | R98: 7.15616813 | S98: 0.6759817983 | T98: 0.3959070267 | U98: 1.138424484 | V98: 0.7185696195 | W98: 0.001032684596 | X98: 0.001032684596 | Y98: 2.971556249 | Z98: 0.008830146543 | AA98: 0.008830146543 | AB98: 3.36782546 | AC98: 0.2381872149 | AD98: 0.4668766559 | AE98: 0.0384 | AF98: 0 | AG98: 0.7593808541 | AH98: 6.314150297 | AI98: 0.5182904216 | AJ98: 0.079744 | AK98: 0.626614009 | AL98: 0.06408 | AM98: 0.00084 | AN98: 0.09 | AO98: 0.3726 | AP98: 0.342 | AQ98: 0.09084 | AR98: 2.568307117 | AS98: 2.935259856 | AT98: 2.935259856 | AU98: 35.6 | AV98: 0.9238292445 | AW98: 17.63682039 | AX98: 14.250729 | AZ98: 92.38292445 | BA98: 1.138424484 | BB98: 1.450074863 | BC98: 0.8016736541 | BD98: 0.647760409 | BE98: 2.588499347
G99: 90 | H99: 24 | I99: 1 | J99: 7.2 | K99: 7.2 | L99: 1.666666667 | M99: 0.2216289803 | N99: 2.490488769 | O99: 8.445244384 | P99: 5.954755616 | Q99: 0 | R99: 7.235805267 | S99: 0.6911107877 | T99: 0.3959070267 | U99: 1.156098686 | V99: 0.7189421805 | W99: 0.001033755718 | X99: 0.001033755718 | Y99: 3.005339044 | Z99: 0.009032062769 | AA99: 0.009032062769 | AB99: 3.4064353 | AC99: 0.2436798305 | AD99: 0.472122461 | AE99: 0.0384 | AF99: 0 | AG99: 0.770729684 | AH99: 6.383813626 | AI99: 0.5297899933 | AJ99: 0.08064 | AK99: 0.6402808598 | AL99: 0.0648 | AM99: 0.00084 | AN99: 0.09 | AO99: 0.3726 | AP99: 0.342 | AQ99: 0.09084 | AR99: 2.607290099 | AS99: 2.989390334 | AT99: 2.989390334 | AU99: 36 | AV99: 0.9233281078 | AW99: 17.89694905 | AX99: 14.55662692 | AZ99: 92.33281078 | BA99: 1.156098686 | BB99: 1.475810544 | BC99: 0.813497684 | BD99: 0.6616648598 | BE99: 2.63190923
G100: 91 | H100: 24 | I100: 1 | J100: 7.28 | K100: 7.28 | L100: 1.685185185 | M100: 0.2217761295 | N100: 2.491778732 | O100: 8.525889366 | P100: 6.034110634 | Q100: 0 | R100: 7.315450324 | S100: 0.7064087374 | T100: 0.3959070267 | U100: 1.174020348 | V100: 0.7193145609 | W100: 0.001034826875 | X100: 0.001034826875 | Y100: 3.039140229 | Z100: 0.00923637333 | AA100: 0.00923637333 | AB100: 3.445073289 | AC100: 0.2492391294 | AD100: 0.4773682661 | AE100: 0.0384 | AF100: 0 | AG100: 0.7821626017 | AH100: 6.453470653 | AI100: 0.5414146851 | AJ100: 0.081536 | AK100: 0.6541156953 | AL100: 0.06552 | AM100: 0.00084 | AN100: 0.09 | AO100: 0.3726 | AP100: 0.342 | AQ100: 0.09084 | AR100: 2.646633845 | AS100: 3.044395136 | AT100: 3.044395136 | AU100: 36.4 | AV100: 0.922818055 | AW100: 18.15892764 | AX100: 14.8662205 | AZ100: 92.2818055 | BA100: 1.174020348 | BB100: 1.501798297 | BC100: 0.8254058017 | BD100: 0.6757372953 | BE100: 2.675818645
G101: 92 | H101: 24 | I101: 1 | J101: 7.36 | K101: 7.36 | L101: 1.703703704 | M101: 0.2219232659 | N101: 2.493068071 | O101: 8.606534035 | P101: 6.113465965 | Q101: 0 | R101: 7.395103044 | S101: 0.7218756472 | T101: 0.3959070267 | U101: 1.192191352 | V101: 0.7196867609 | W101: 0.001035898068 | X101: 0.001035898068 | Y101: 3.072959681 | Z101: 0.009443081199 | AA101: 0.009443081199 | AB101: 3.483739297 | AC101: 0.2548652292 | AD101: 0.4826140712 | AE101: 0.0384 | AF101: 0 | AG101: 0.7936800683 | AH101: 6.523121151 | AI101: 0.5531644241 | AJ101: 0.082432 | AK101: 0.6681194566 | AL101: 0.06624 | AM101: 0.00084 | AN101: 0.09 | AO101: 0.3726 | AP101: 0.342 | AQ101: 0.09084 | AR101: 2.686338399 | AS101: 3.100288905 | AT101: 3.100288905 | AU101: 36.8 | AV101: 0.9222990863 | AW101: 18.4227663 | AX101: 15.17953044 | AZ101: 92.22990863 | BA101: 1.192191352 | BB101: 1.528039525 | BC101: 0.8373984683 | BD101: 0.6899786566 | BE101: 2.720230877
G102: 93 | H102: 24 | I102: 1 | J102: 7.44 | K102: 7.44 | L102: 1.722222222 | M102: 0.2220703897 | N102: 2.494356784 | O102: 8.687178392 | P102: 6.192821608 | Q102: 0 | R102: 7.474763183 | S102: 0.7375115173 | T102: 0.3959070267 | U102: 1.210613619 | V102: 0.7200587804 | W102: 0.001036969294 | X102: 0.001036969294 | Y102: 3.10679728 | Z102: 0.009652189341 | AA102: 0.009652189341 | AB102: 3.522433194 | AC102: 0.2605582478 | AD102: 0.4878598764 | AE102: 0.0384 | AF102: 0 | AG102: 0.805282549 | AH102: 6.592764901 | AI102: 0.5650391375 | AJ102: 0.083328 | AK102: 0.6822931003 | AL102: 0.06696 | AM102: 0.00084 | AN102: 0.09 | AO102: 0.3726 | AP102: 0.342 | AQ102: 0.09084 | AR102: 2.726403806 | AS102: 3.157086674 | AT102: 3.157086674 | AU102: 37.2 | AV102: 0.9217711948 | AW102: 18.68847528 | AX102: 15.49657781 | AZ102: 92.17711948 | BA102: 1.210613619 | BB102: 1.554535649 | BC102: 0.849476149 | BD102: 0.7043899003 | BE102: 2.765149268
G103: 94 | H103: 24 | I103: 1 | J103: 7.52 | K103: 7.52 | L103: 1.740740741 | M103: 0.2222175007 | N103: 2.495644873 | O103: 8.767822436 | P103: 6.272177564 | Q103: 0 | R103: 7.554430506 | S103: 0.7533163477 | T103: 0.3959070267 | U103: 1.229289102 | V103: 0.7204306195 | W103: 0.001038040555 | X103: 0.001038040555 | Y103: 3.140652913 | Z103: 0.009863700721 | AA103: 0.009863700721 | AB103: 3.561154861 | AC103: 0.2663183028 | AD103: 0.4931056815 | AE103: 0.0384 | AF103: 0 | AG103: 0.8169705139 | AH103: 6.662401694 | AI103: 0.5770387524 | AJ103: 0.084224 | AK103: 0.6966375988 | AL103: 0.06768 | AM103: 0.00084 | AN103: 0.09 | AO103: 0.3726 | AP103: 0.342 | AQ103: 0.09084 | AR103: 2.766830111 | AS103: 3.214803876 | AT103: 3.214803876 | AU103: 37.6 | AV103: 0.9212343667 | AW103: 18.95606491 | AX103: 15.81738397 | AZ103: 92.12343667 | BA103: 1.229289102 | BB103: 1.581288113 | BC103: 0.8616393139 | BD103: 0.7189719988 | BE103: 2.810577215
G104: 95 | H104: 24 | I104: 1 | J104: 7.6 | K104: 7.6 | L104: 1.759259259 | M104: 0.2223645991 | N104: 2.496932336 | O104: 8.848466168 | P104: 6.351533832 | Q104: 0 | R104: 7.634104789 | S104: 0.7692901382 | T104: 0.3959070267 | U104: 1.24821979 | V104: 0.7208022782 | W104: 0.001039111848 | X104: 0.001039111848 | Y104: 3.174526468 | Z104: 0.0100776183 | AA104: 0.0100776183 | AB104: 3.599904177 | AC104: 0.2721455118 | AD104: 0.4983514866 | AE104: 0.0384 | AF104: 0 | AG104: 0.8287444374 | AH104: 6.732031331 | AI104: 0.5891631959 | AJ104: 0.08512 | AK104: 0.71115394 | AL104: 0.0684 | AM104: 0.00084 | AN104: 0.09 | AO104: 0.3726 | AP104: 0.342 | AQ104: 0.09084 | AR104: 2.807617359 | AS104: 3.273456359 | AT104: 3.273456359 | AU104: 38 | AV104: 0.9206885818 | AW104: 19.22554562 | AX104: 16.14197068 | AZ104: 92.06885818 | BA104: 1.24821979 | BB104: 1.608298377 | BC104: 0.8738884374 | BD104: 0.73372594 | BE104: 2.856518167
G105: 96 | H105: 24 | I105: 1 | J105: 7.68 | K105: 7.68 | L105: =Vout*K105/(Vin*Efficiency) -> 1.777777778 | M105: 0.2225116847 | N105: =(Vin-(Rdson1+Rdcr)*K105-Vout)*M105/(Fsw*Lf) -> 2.498219175 | O105: 8.929109587 | P105: 6.430890413 | Q105: =IF(MIN(Vin, -P105/(Coss_Q1+Coss_Q2)*0.00000002)<0, 0, MIN(Vin, -P105/(Coss_Q1+Coss_Q2)*0.00000002)) -> 0 | R105: 7.713785814 | S105: =R105^2*Rdcr -> 0.7854328889 | T105: 0.3959070267 | U105: =(T105+S105*(1+Ltc*(Ta-25)))/(1-S105*Ltc*ThetaCa) -> 1.267407707 | V105: 0.7211737565 | W105: 0.001040183174 | X105: 0.001040183174 | Y105: 3.208417838 | Z105: 0.01029394502 | AA105: 0.01029394502 | AB105: 3.638681031 | AC105: =Rdson1*AB105^2 -> 0.2780399926 | AD105: 0.5035972917 | AE105: 0.0384 | AF105: 0 | AG105: =(AF105+AE105+AD105+AC105*(1+RdsonTopTc*Ta-RdsonTopTc*25))/(1-AC105*RdsonTopTc*ThetaJA_Q1) -> 0.8406047985 | AH105: 6.801653618 | AI105: =Rdson2*AH105^2 -> 0.6014123952 | AJ105: 0.086016 | AK105: =(AJ105+AI105*(1+RdsonBotTc*Ta-RdsonBotTc*25))/(1-AI105*RdsonBotTc*ThetaJA_Q2) -> 0.725843128 | AL105: 0.06912 | AM105: 0.00084 | AN105: 0.09 | AO105: 0.3726 | AP105: 0.342 | AQ105: 0.09084 | AR105: 2.848765595 | AS105: 3.333060396 | AT105: 3.333060396 | AU105: 38.4 | AV105: 0.9201338132 | AW105: 19.49692797 | AX105: 16.47036002 | AZ105: 92.01338132 | BA105: 1.267407707 | BB105: 1.635567926 | BC105: 0.8862239985 | BD105: 0.748652728 | BE105: 2.902975633
G106: 97 | H106: 24 | I106: 1 | J106: 7.76 | K106: 7.76 | L106: =Vout*K106/(Vin*Efficiency) -> 1.796296296 | M106: 0.2226587577 | N106: =(Vin-(Rdson1+Rdcr)*K106-Vout)*M106/(Fsw*Lf) -> 2.499505389 | O106: 9.009752694 | P106: 6.510247306 | Q106: =IF(MIN(Vin, -P106/(Coss_Q1+Coss_Q2)*0.00000002)<0, 0, MIN(Vin, -P106/(Coss_Q1+Coss_Q2)*0.00000002)) -> 0 | R106: 7.793473376 | S106: =R106^2*Rdcr -> 0.8017445999 | T106: 0.3959070267 | U106: =(T106+S106*(1+Ltc*(Ta-25)))/(1-S106*Ltc*ThetaCa) -> 1.286854914 | V106: 0.7215450545 | W106: 0.001041254531 | X106: 0.001041254531 | Y106: 3.242326919 | Z106: 0.01051268385 | AA106: 0.01051268385 | AB106: 3.677485313 | AC106: =Rdson1*AB106^2 -> 0.2840018628 | AD106: 0.5088430969 | AE106: 0.0384 | AF106: 0 | AG106: =(AF106+AE106+AD106+AC106*(1+RdsonTopTc*Ta-RdsonTopTc*25))/(1-AC106*RdsonTopTc*ThetaJA_Q1) -> 0.852552081 | AH106: 6.871268372 | AI106: =Rdson2*AH106^2 -> 0.6137862775 | AJ106: 0.086912 | AK106: =(AJ106+AI106*(1+RdsonBotTc*Ta-RdsonBotTc*25))/(1-AI106*RdsonBotTc*ThetaJA_Q2) -> 0.7407061831 | AL106: 0.06984 | AM106: 0.00084 | AN106: 0.09 | AO106: 0.3726 | AP106: 0.342 | AQ106: 0.09084 | AR106: 2.890274864 | AS106: 3.3936327 | AT106: 3.3936327 | AU106: 38.8 | AV106: 0.9195700279 | AW106: 19.77022258 | AX106: 16.80257443 | AZ106: 91.95700279 | BA106: 1.286854914 | BB106: 1.663098264 | BC106: 0.898646481 | BD106: 0.7637533831 | BE106: 2.949953178
G107: 98 | H107: 24 | I107: 1 | J107: 7.84 | K107: 7.84 | L107: =Vout*K107/(Vin*Efficiency) -> 1.814814815 | M107: 0.222805818 | N107: =(Vin-(Rdson1+Rdcr)*K107-Vout)*M107/(Fsw*Lf) -> 2.500790978 | O107: 9.090395489 | P107: 6.589604511 | Q107: =IF(MIN(Vin, -P107/(Coss_Q1+Coss_Q2)*0.00000002)<0, 0, MIN(Vin, -P107/(Coss_Q1+Coss_Q2)*0.00000002)) -> 0 | R107: 7.873167276 | S107: =R107^2*Rdcr -> 0.8182252711 | T107: 0.3959070267 | U107: =(T107+S107*(1+Ltc*(Ta-25)))/(1-S107*Ltc*ThetaCa) -> 1.306563509 | V107: 0.7219161721 | W107: 0.001042325919 | X107: 0.001042325919 | Y107: 3.276253611 | Z107: 0.01073383773 | AA107: 0.01073383773 | AB107: 3.716316917 | AC107: =Rdson1*AB107^2 -> 0.2900312399 | AD107: 0.514088902 | AE107: 0.0384 | AF107: 0 | AG107: =(AF107+AE107+AD107+AC107*(1+RdsonTopTc*Ta-RdsonTopTc*25))/(1-AC107*RdsonTopTc*ThetaJA_Q1) -> 0.8645867732 | AH107: 6.940875416 | AI107: =Rdson2*AH107^2 -> 0.62628477 | AJ107: 0.087808 | AK107: =(AJ107+AI107*(1+RdsonBotTc*Ta-RdsonBotTc*25))/(1-AI107*RdsonBotTc*ThetaJA_Q2) -> 0.755744142 | AL107: 0.07056 | AM107: 0.00084 | AN107: 0.09 | AO107: 0.3726 | AP107: 0.342 | AQ107: 0.09084 | AR107: 2.93214521 | AS107: 3.455190438 | AT107: 3.455190438 | AU107: 39.2 | AV107: 0.9189971865 | AW107: 20.04544021 | AX107: 17.13863672 | AZ107: 91.89971865 | BA107: 1.306563509 | BB107: 1.690890915 | BC107: 0.9111563732 | BD107: 0.779028942 | BE107: 2.997454424
G108: 99 | H108: 24 | I108: 1 | J108: 7.92 | K108: 7.92 | L108: =Vout*K108/(Vin*Efficiency) -> 1.833333333 | M108: 0.2229528655 | N108: =(Vin-(Rdson1+Rdcr)*K108-Vout)*M108/(Fsw*Lf) -> 2.502075942 | O108: 9.171037971 | P108: 6.668962029 | Q108: =IF(MIN(Vin, -P108/(Coss_Q1+Coss_Q2)*0.00000002)<0, 0, MIN(Vin, -P108/(Coss_Q1+Coss_Q2)*0.00000002)) -> 0 | R108: 7.952867324 | S108: =R108^2*Rdcr -> 0.8348749024 | T108: 0.3959070267 | U108: =(T108+S108*(1+Ltc*(Ta-25)))/(1-S108*Ltc*ThetaCa) -> 1.326535627 | V108: 0.7222871094 | W108: 0.001043397337 | X108: 0.001043397337 | Y108: 3.310197819 | Z108: 0.0109574096 | AA108: 0.0109574096 | AB108: 3.75517574 | AC108: =Rdson1*AB108^2 -> 0.2961282416 | AD108: 0.5193347071 | AE108: 0.0384 | AF108: 0 | AG108: =(AF108+AE108+AD108+AC108*(1+RdsonTopTc*Ta-RdsonTopTc*25))/(1-AC108*RdsonTopTc*ThetaJA_Q1) -> 0.8767093682 | AH108: 7.01047458 | AI108: =Rdson2*AH108^2 -> 0.6389077998 | AJ108: 0.088704 | AK108: =(AJ108+AI108*(1+RdsonBotTc*Ta-RdsonBotTc*25))/(1-AI108*RdsonBotTc*ThetaJA_Q2) -> 0.7709580581 | AL108: 0.07128 | AM108: 0.00084 | AN108: 0.09 | AO108: 0.3726 | AP108: 0.342 | AQ108: 0.09084 | AR108: 2.974376678 | AS108: 3.517751244 | AT108: 3.517751244 | AU108: 39.6 | AV108: 0.9184152433 | AW108: 20.3225917 | AX108: 17.47857008 | AZ108: 91.84152433 | BA108: 1.326535627 | BB108: 1.718947426 | BC108: 0.9237541682 | BD108: 0.7944804581 | BE108: 3.045483053
G109: 100 | H109: 24 | I109: 1 | J109: 8 | K109: 8 | L109: =Vout*K109/(Vin*Efficiency) -> 1.851851852 | M109: 0.2230999004 | N109: =(Vin-(Rdson1+Rdcr)*K109-Vout)*M109/(Fsw*Lf) -> 2.503360282 | O109: 9.251680141 | P109: 6.748319859 | Q109: =IF(MIN(Vin, -P109/(Coss_Q1+Coss_Q2)*0.00000002)<0, 0, MIN(Vin, -P109/(Coss_Q1+Coss_Q2)*0.00000002)) -> 0 | R109: 8.032573336 | S109: =R109^2*Rdcr -> 0.851693494 | T109: 0.3959070267 | U109: =(T109+S109*(1+Ltc*(Ta-25)))/(1-S109*Ltc*ThetaCa) -> 1.346773442 | V109: 0.7226578665 | W109: 0.001044468784 | X109: 0.001044468784 | Y109: 3.344159447 | Z109: 0.0111834024 | AA109: 0.0111834024 | AB109: 3.794061685 | AC109: =Rdson1*AB109^2 -> 0.3022929854 | AD109: 0.5245805122 | AE109: 0.0384 | AF109: 0 | AG109: =(AF109+AE109+AD109+AC109*(1+RdsonTopTc*Ta-RdsonTopTc*25))/(1-AC109*RdsonTopTc*ThetaJA_Q1) -> 0.888920364 | AH109: 7.080065701 | AI109: =Rdson2*AH109^2 -> 0.6516552942 | AJ109: 0.0896 | AK109: =(AJ109+AI109*(1+RdsonBotTc*Ta-RdsonBotTc*25))/(1-AI109*RdsonBotTc*ThetaJA_Q2) -> 0.7863490013 | AL109: 0.072 | AM109: 0.00084 | AN109: 0.09 | AO109: 0.3726 | AP109: 0.342 | AQ109: 0.09084 | AR109: 3.016969313 | AS109: 3.581333239 | AT109: 3.581333239 | AU109: 40 | AV109: 0.9178241469 | AW109: 20.60168801 | AX109: 17.82239803 | AZ109: 91.78241469 | BA109: 1.346773442 | BB109: 1.747269365 | BC109: 0.936440364 | BD109: 0.8101090013 | BE109: 3.094042807

Sheet Efficiency Plot Management
A2: ="EFF_Ch1" -> EFF_Ch1
A3: ="EFF_Ch2" -> EFF_Ch2

Sheet Standard Value Calculator (hidden)
A2: Capacitors | B2: Css | C2: Cc1ea | D2: Cc2ea | E2: Cout | F2: Cin | G2: Cres | H2: Cdither | I2: Cc3ea | J2: Cc4ea
A3: Inputs | B3: =Css ->  | C3: =Cc1ea -> 3.703259645e-11 | D3: =Cc2ea -> -2.756139373e-14 | E3: =Cout -> 7.2e-05 | F3: =Cin -> 2.5e-05 | G3: =Cres ->  | H3: =Cdither_init ->  | I3: =Cc3ea ->  | J3: =Cc4ea ->  | M3: Resistors | N3: inputs | O3: Standard Result
A4: Standard Result | B4: =SUM(B6:B158)/1000000000000 ->  | C4: =IF(C3="OPEN","OPEN",SUM(C6:C158)/1000000000000) -> 3.9e-11 | D4: =SUM(D6:D158)/1000000000000 -> 0 | E4: =SUM(E6:E158)/1000000000000 -> 6.8e-05 | F4: =SUM(F6:F158)/1000000000000 -> 2.7e-05 | G4: =SUM(G6:G158)/1000000000000 ->  | H4: =IF(H3="OPEN","OPEN",SUM(H6:H158)/1000000000000) ->  | I4: =IF(I3="OPEN","OPEN",SUM(I6:I158)/1000000000000) ->  | J4: =IF(J3="OPEN","OPEN",SUM(J6:J158)/1000000000000) ->  | M4: Rt | N4: =Rfadj -> 15.8 | O4: =IF(N4>(INT(0.5+100*POWER(10,IF(96*(LOG(N4)-INT(LOG(N4)))-ROUND(96*(LOG(N4)-INT(LOG(N4))),0)<0,ROUND(96*(LOG(N4)-INT(LOG(N4))),0)-1,ROUND(96*(LOG(N4)-INT(LOG(N4))),0))/96))*POWER(10,INT(LOG(N4))-2)+INT(0.5+100*POWER(10,(IF(96*(LOG(N4)-INT(LOG(N4)))-ROUND(96*(LOG(N4)-INT(LOG(N4))),0)<0,ROUND(96*(LOG(N4)-INT(LOG(N4))),0)-1,ROUND(96*(LOG(N4)-INT(LOG(N4))),0))+1)/96))*POWER(10,INT(LOG(N4))-2))/2,INT(0.5+100*POWER(10,(IF(96*(LOG(N4)-INT(LOG(N4)))-ROUND(96*(LOG(N4)-INT(LOG(N4))),0)<0,ROUND(96*(LOG(N4)-INT(LOG(N4))),0)-1,ROUND(96*(LOG(N4)-INT(LOG(N4))),0))+1)/96))*POWER(10,INT(LOG(N4))-2),INT(0.5+100*POWER(10,IF(96*(LOG(N4)-INT(LOG(N4)))-ROUND(96*(LOG(N4)-INT(LOG(N4))),0)<0,ROUND(96*(LOG(N4)-INT(LOG(N4))),0)-1,ROUND(96*(LOG(N4)-INT(LOG(N4))),0))/96))*POWER(10,INT(LOG(N4))-2)) -> 15.8 | P4: Ω
A5: (pF)
A6: 0.47 | B6: =IF(IF((B$3*10^12-$A7)*(B$3*10^12-$A6)*-1<0,0,1)*IF(ABS(B$3*10^12-$A7)>(B$3*10^12-$A6),$A6,$A7)=B7,0,IF((B$3*10^12-$A7)*(B$3*10^12-$A6)*-1<0,0,1)*IF(ABS(B$3*10^12-$A7)>(B$3*10^12-$A6),$A6,$A7)) ->  | C6: 0 | D6: 0 | E6: 0 | F6: 0
A7: 0.56 | B7: =IF(IF((B$3*10^12-$A8)*(B$3*10^12-$A7)*-1<0,0,1)*IF(ABS(B$3*10^12-$A8)>(B$3*10^12-$A7),$A7,$A8)=B8,0,IF((B$3*10^12-$A8)*(B$3*10^12-$A7)*-1<0,0,1)*IF(ABS(B$3*10^12-$A8)>(B$3*10^12-$A7),$A7,$A8)) ->  | C7: =IF(IF((C$3*10^12-$A8)*(C$3*10^12-$A7)*-1<0,0,1)*IF(ABS(C$3*10^12-$A8)>(C$3*10^12-$A7),$A7,$A8)=C8,0,IF((C$3*10^12-$A8)*(C$3*10^12-$A7)*-1<0,0,1)*IF(ABS(C$3*10^12-$A8)>(C$3*10^12-$A7),$A7,$A8)) -> 0 | D7: =IF(IF((D$3*10^12-$A8)*(D$3*10^12-$A7)*-1<0,0,1)*IF(ABS(D$3*10^12-$A8)>(D$3*10^12-$A7),$A7,$A8)=D8,0,IF((D$3*10^12-$A8)*(D$3*10^12-$A7)*-1<0,0,1)*IF(ABS(D$3*10^12-$A8)>(D$3*10^12-$A7),$A7,$A8)) -> 0 | E7: =IF(IF((E$3*10^12-$A8)*(E$3*10^12-$A7)*-1<0,0,1)*IF(ABS(E$3*10^12-$A8)>(E$3*10^12-$A7),$A7,$A8)=E8,0,IF((E$3*10^12-$A8)*(E$3*10^12-$A7)*-1<0,0,1)*IF(ABS(E$3*10^12-$A8)>(E$3*10^12-$A7),$A7,$A8)) -> 0 | F7: =IF(IF((F$3*10^12-$A8)*(F$3*10^12-$A7)*-1<0,0,1)*IF(ABS(F$3*10^12-$A8)>(F$3*10^12-$A7),$A7,$A8)=F8,0,IF((F$3*10^12-$A8)*(F$3*10^12-$A7)*-1<0,0,1)*IF(ABS(F$3*10^12-$A8)>(F$3*10^12-$A7),$A7,$A8)) -> 0 | G7: =IF(IF((G$3*10^12-$A8)*(G$3*10^12-$A7)*-1<0,0,1)*IF(ABS(G$3*10^12-$A8)>(G$3*10^12-$A7),$A7,$A8)=G8,0,IF((G$3*10^12-$A8)*(G$3*10^12-$A7)*-1<0,0,1)*IF(ABS(G$3*10^12-$A8)>(G$3*10^12-$A7),$A7,$A8)) ->  | M7: Renb | N7: =Renb -> 49858.77137 | O7: =IF(N7>(INT(0.5+100*POWER(10,IF(96*(LOG(N7)-INT(LOG(N7)))-ROUND(96*(LOG(N7)-INT(LOG(N7))),0)<0,ROUND(96*(LOG(N7)-INT(LOG(N7))),0)-1,ROUND(96*(LOG(N7)-INT(LOG(N7))),0))/96))*POWER(10,INT(LOG(N7))-2)+INT(0.5+100*POWER(10,(IF(96*(LOG(N7)-INT(LOG(N7)))-ROUND(96*(LOG(N7)-INT(LOG(N7))),0)<0,ROUND(96*(LOG(N7)-INT(LOG(N7))),0)-1,ROUND(96*(LOG(N7)-INT(LOG(N7))),0))+1)/96))*POWER(10,INT(LOG(N7))-2))/2,INT(0.5+100*POWER(10,(IF(96*(LOG(N7)-INT(LOG(N7)))-ROUND(96*(LOG(N7)-INT(LOG(N7))),0)<0,ROUND(96*(LOG(N7)-INT(LOG(N7))),0)-1,ROUND(96*(LOG(N7)-INT(LOG(N7))),0))+1)/96))*POWER(10,INT(LOG(N7))-2),INT(0.5+100*POWER(10,IF(96*(LOG(N7)-INT(LOG(N7)))-ROUND(96*(LOG(N7)-INT(LOG(N7))),0)<0,ROUND(96*(LOG(N7)-INT(LOG(N7))),0)-1,ROUND(96*(LOG(N7)-INT(LOG(N7))),0))/96))*POWER(10,INT(LOG(N7))-2)) -> 49900 | P7: Ω
A8: 0.68 | C8: 0 | D8: 0 | E8: 0 | F8: 0 | M8: Rc1ea | N8: =Rcea2 -> 0 | O8: =IF(N8>(INT(0.5+100*POWER(10,IF(96*(LOG(N8)-INT(LOG(N8)))-ROUND(96*(LOG(N8)-INT(LOG(N8))),0)<0,ROUND(96*(LOG(N8)-INT(LOG(N8))),0)-1,ROUND(96*(LOG(N8)-INT(LOG(N8))),0))/96))*POWER(10,INT(LOG(N8))-2)+INT(0.5+100*POWER(10,(IF(96*(LOG(N8)-INT(LOG(N8)))-ROUND(96*(LOG(N8)-INT(LOG(N8))),0)<0,ROUND(96*(LOG(N8)-INT(LOG(N8))),0)-1,ROUND(96*(LOG(N8)-INT(LOG(N8))),0))+1)/96))*POWER(10,INT(LOG(N8))-2))/2,INT(0.5+100*POWER(10,(IF(96*(LOG(N8)-INT(LOG(N8)))-ROUND(96*(LOG(N8)-INT(LOG(N8))),0)<0,ROUND(96*(LOG(N8)-INT(LOG(N8))),0)-1,ROUND(96*(LOG(N8)-INT(LOG(N8))),0))+1)/96))*POWER(10,INT(LOG(N8))-2),INT(0.5+100*POWER(10,IF(96*(LOG(N8)-INT(LOG(N8)))-ROUND(96*(LOG(N8)-INT(LOG(N8))),0)<0,ROUND(96*(LOG(N8)-INT(LOG(N8))),0)-1,ROUND(96*(LOG(N8)-INT(LOG(N8))),0))/96))*POWER(10,INT(LOG(N8))-2)) ->  | P8: Ω
A9: 0.82 | C9: 0 | D9: 0 | E9: 0 | F9: 0
A10: 1 | C10: 0 | D10: 0 | E10: 0 | F10: 0 | M10: Rfb1 | N10: =Rfb1_ -> 100000 | O10: =IF(N10>(INT(0.5+100*POWER(10,IF(96*(LOG(N10)-INT(LOG(N10)))-ROUND(96*(LOG(N10)-INT(LOG(N10))),0)<0,ROUND(96*(LOG(N10)-INT(LOG(N10))),0)-1,ROUND(96*(LOG(N10)-INT(LOG(N10))),0))/96))*POWER(10,INT(LOG(N10))-2)+INT(0.5+100*POWER(10,(IF(96*(LOG(N10)-INT(LOG(N10)))-ROUND(96*(LOG(N10)-INT(LOG(N10))),0)<0,ROUND(96*(LOG(N10)-INT(LOG(N10))),0)-1,ROUND(96*(LOG(N10)-INT(LOG(N10))),0))+1)/96))*POWER(10,INT(LOG(N10))-2))/2,INT(0.5+100*POWER(10,(IF(96*(LOG(N10)-INT(LOG(N10)))-ROUND(96*(LOG(N10)-INT(LOG(N10))),0)<0,ROUND(96*(LOG(N10)-INT(LOG(N10))),0)-1,ROUND(96*(LOG(N10)-INT(LOG(N10))),0))+1)/96))*POWER(10,INT(LOG(N10))-2),INT(0.5+100*POWER(10,IF(96*(LOG(N10)-INT(LOG(N10)))-ROUND(96*(LOG(N10)-INT(LOG(N10))),0)<0,ROUND(96*(LOG(N10)-INT(LOG(N10))),0)-1,ROUND(96*(LOG(N10)-INT(LOG(N10))),0))/96))*POWER(10,INT(LOG(N10))-2)) -> 100000 | P10: Ω
A11: 1.2 | C11: 0 | D11: 0 | E11: 0 | F11: 0 | M11: Rfb2 | N11: =Rfb2_ -> 25000 | O11: =IF(N11="OPEN","OPEN",IF(N11>(INT(0.5+100*POWER(10,IF(96*(LOG(N11)-INT(LOG(N11)))-ROUND(96*(LOG(N11)-INT(LOG(N11))),0)<0,ROUND(96*(LOG(N11)-INT(LOG(N11))),0)-1,ROUND(96*(LOG(N11)-INT(LOG(N11))),0))/96))*POWER(10,INT(LOG(N11))-2)+INT(0.5+100*POWER(10,(IF(96*(LOG(N11)-INT(LOG(N11)))-ROUND(96*(LOG(N11)-INT(LOG(N11))),0)<0,ROUND(96*(LOG(N11)-INT(LOG(N11))),0)-1,ROUND(96*(LOG(N11)-INT(LOG(N11))),0))+1)/96))*POWER(10,INT(LOG(N11))-2))/2,INT(0.5+100*POWER(10,(IF(96*(LOG(N11)-INT(LOG(N11)))-ROUND(96*(LOG(N11)-INT(LOG(N11))),0)<0,ROUND(96*(LOG(N11)-INT(LOG(N11))),0)-1,ROUND(96*(LOG(N11)-INT(LOG(N11))),0))+1)/96))*POWER(10,INT(LOG(N11))-2),INT(0.5+100*POWER(10,IF(96*(LOG(N11)-INT(LOG(N11)))-ROUND(96*(LOG(N11)-INT(LOG(N11))),0)<0,ROUND(96*(LOG(N11)-INT(LOG(N11))),0)-1,ROUND(96*(LOG(N11)-INT(LOG(N11))),0))/96))*POWER(10,INT(LOG(N11))-2))) -> 24900 | P11: Ω
A12: 1.5 | C12: 0 | D12: 0 | E12: 0 | F12: 0 | M12: Rt1 | N12: ='Variable Management'!B25*1000 -> 15767 | O12: =IF(N12>(INT(0.5+100*POWER(10,IF(96*(LOG(N12)-INT(LOG(N12)))-ROUND(96*(LOG(N12)-INT(LOG(N12))),0)<0,ROUND(96*(LOG(N12)-INT(LOG(N12))),0)-1,ROUND(96*(LOG(N12)-INT(LOG(N12))),0))/96))*POWER(10,INT(LOG(N12))-2)+INT(0.5+100*POWER(10,(IF(96*(LOG(N12)-INT(LOG(N12)))-ROUND(96*(LOG(N12)-INT(LOG(N12))),0)<0,ROUND(96*(LOG(N12)-INT(LOG(N12))),0)-1,ROUND(96*(LOG(N12)-INT(LOG(N12))),0))+1)/96))*POWER(10,INT(LOG(N12))-2))/2,INT(0.5+100*POWER(10,(IF(96*(LOG(N12)-INT(LOG(N12)))-ROUND(96*(LOG(N12)-INT(LOG(N12))),0)<0,ROUND(96*(LOG(N12)-INT(LOG(N12))),0)-1,ROUND(96*(LOG(N12)-INT(LOG(N12))),0))+1)/96))*POWER(10,INT(LOG(N12))-2),INT(0.5+100*POWER(10,IF(96*(LOG(N12)-INT(LOG(N12)))-ROUND(96*(LOG(N12)-INT(LOG(N12))),0)<0,ROUND(96*(LOG(N12)-INT(LOG(N12))),0)-1,ROUND(96*(LOG(N12)-INT(LOG(N12))),0))/96))*POWER(10,INT(LOG(N12))-2)) -> 15800 | P12: Ω
A13: 1.8 | C13: 0 | D13: 0 | E13: 0 | F13: 0 | M13: Rt2 | N13: ='Variable Management'!#REF!*1000 ->  | O13: =IF(N13="OPEN","OPEN",IF(N13>(INT(0.5+100*POWER(10,IF(96*(LOG(N13)-INT(LOG(N13)))-ROUND(96*(LOG(N13)-INT(LOG(N13))),0)<0,ROUND(96*(LOG(N13)-INT(LOG(N13))),0)-1,ROUND(96*(LOG(N13)-INT(LOG(N13))),0))/96))*POWER(10,INT(LOG(N13))-2)+INT(0.5+100*POWER(10,(IF(96*(LOG(N13)-INT(LOG(N13)))-ROUND(96*(LOG(N13)-INT(LOG(N13))),0)<0,ROUND(96*(LOG(N13)-INT(LOG(N13))),0)-1,ROUND(96*(LOG(N13)-INT(LOG(N13))),0))+1)/96))*POWER(10,INT(LOG(N13))-2))/2,INT(0.5+100*POWER(10,(IF(96*(LOG(N13)-INT(LOG(N13)))-ROUND(96*(LOG(N13)-INT(LOG(N13))),0)<0,ROUND(96*(LOG(N13)-INT(LOG(N13))),0)-1,ROUND(96*(LOG(N13)-INT(LOG(N13))),0))+1)/96))*POWER(10,INT(LOG(N13))-2),INT(0.5+100*POWER(10,IF(96*(LOG(N13)-INT(LOG(N13)))-ROUND(96*(LOG(N13)-INT(LOG(N13))),0)<0,ROUND(96*(LOG(N13)-INT(LOG(N13))),0)-1,ROUND(96*(LOG(N13)-INT(LOG(N13))),0))/96))*POWER(10,INT(LOG(N13))-2))) ->  | P13: Ω
A14: 2.2 | B14: =IF(IF((B$3*10^12-$A15)*(B$3*10^12-$A14)*-1<0,0,1)*IF(ABS(B$3*10^12-$A15)>(B$3*10^12-$A14),$A14,$A15)=B15,0,IF((B$3*10^12-$A15)*(B$3*10^12-$A14)*-1<0,0,1)*IF(ABS(B$3*10^12-$A15)>(B$3*10^12-$A14),$A14,$A15)) ->  | C14: 0 | D14: 0 | E14: 0 | F14: 0
A15: 2.7 | C15: 0 | D15: 0 | E15: 0 | F15: 0
A16: 3.3 | C16: 0 | D16: 0 | E16: 0 | F16: 0 | M16: Rs | N16: =Rs_ideal*1000 ->  | O16: =IF(N16=0,0,IF(N16>(INT(0.5+100*POWER(10,IF(96*(LOG(N16)-INT(LOG(N16)))-ROUND(96*(LOG(N16)-INT(LOG(N16))),0)<0,ROUND(96*(LOG(N16)-INT(LOG(N16))),0)-1,ROUND(96*(LOG(N16)-INT(LOG(N16))),0))/96))*POWER(10,INT(LOG(N16))-2)+INT(0.5+100*POWER(10,(IF(96*(LOG(N16)-INT(LOG(N16)))-ROUND(96*(LOG(N16)-INT(LOG(N16))),0)<0,ROUND(96*(LOG(N16)-INT(LOG(N16))),0)-1,ROUND(96*(LOG(N16)-INT(LOG(N16))),0))+1)/96))*POWER(10,INT(LOG(N16))-2))/2,INT(0.5+100*POWER(10,(IF(96*(LOG(N16)-INT(LOG(N16)))-ROUND(96*(LOG(N16)-INT(LOG(N16))),0)<0,ROUND(96*(LOG(N16)-INT(LOG(N16))),0)-1,ROUND(96*(LOG(N16)-INT(LOG(N16))),0))+1)/96))*POWER(10,INT(LOG(N16))-2),INT(0.5+100*POWER(10,IF(96*(LOG(N16)-INT(LOG(N16)))-ROUND(96*(LOG(N16)-INT(LOG(N16))),0)<0,ROUND(96*(LOG(N16)-INT(LOG(N16))),0)-1,ROUND(96*(LOG(N16)-INT(LOG(N16))),0))/96))*POWER(10,INT(LOG(N16))-2))) ->  | P16: mΩ
A17: 3.9 | C17: 0 | D17: 0 | E17: 0 | F17: 0 | M17: Cres | N17: =Cres ->  | O17: =G4*1000000000000 ->  | P17: pF
A18: 4.7 | C18: 0 | D18: 0 | E18: 0 | F18: 0
A19: 5.6 | C19: 0 | D19: 0 | E19: 0 | F19: 0
A20: 6.8 | C20: 0 | D20: 0 | E20: 0 | F20: 0
A21: 8.2 | C21: 0 | D21: 0 | E21: 0 | F21: 0
A22: 10 | C22: 0 | D22: 0 | E22: 0 | F22: 0 | M22: Cdither | N22: =Cdither_init ->  | O22: =H4 -> 
A23: 12 | C23: 0 | D23: 0 | E23: 0 | F23: 0
A24: 15 | C24: 0 | D24: 0 | E24: 0 | F24: 0
A25: 18 | C25: 0 | D25: 0 | E25: 0 | F25: 0
A26: 22 | C26: 0 | D26: 0 | E26: 0 | F26: 0
A27: 27 | C27: 0 | D27: 0 | E27: 0 | F27: 0
A28: 33 | C28: 39 | D28: 0 | E28: 0 | F28: 0
A29: 39 | C29: 0 | D29: 0 | E29: 0 | F29: 0
A30: 47 | C30: 0 | D30: 0 | E30: 0 | F30: 0 | M30: Rc1 | N30: =O7/1000&" kΩ" -> 49.9 kΩ | O30: =O7/1000 -> 49.9 | P30: kΩ
A31: 56 | C31: 0 | D31: 0 | E31: 0 | F31: 0 | M31: Cc1 | N31: =C4*1000000000&" nF" -> 0.039 nF | O31: =C4*1000000000 -> 0.039 | P31: nF
A32: 68 | C32: 0 | D32: 0 | E32: 0 | F32: 0 | M32: Cc2 | N32: =D4*1000000000000&" pF" -> 0 pF | O32: =D4*1000000000000 -> 0 | P32: pF
A33: 82 | C33: 0 | D33: 0 | E33: 0 | F33: 0
A34: =A22*10 -> 100 | C34: 0 | D34: 0 | E34: 0 | F34: 0 | M34: Rc2 | N34: =O8/1000&" kΩ" ->  | O34: =O8/1000 ->  | P34: kΩ
A35: =A23*10 -> 120 | C35: 0 | D35: 0 | E35: 0 | F35: 0 | M35: Cc3 | N35: =I4*1000000000&" nF" ->  | O35: =I4*1000000000 ->  | P35: nF
A36: 150 | C36: 0 | D36: 0 | E36: 0 | F36: 0 | M36: Cc4 | N36: =J4*1000000000000&" pF" ->  | O36: =J4*1000000000000 ->  | P36: pF
A37: 180 | C37: 0 | D37: 0 | E37: 0 | F37: 0
A38: 220 | C38: 0 | D38: 0 | E38: 0 | F38: 0
A39: 270 | C39: =IF(IF((C$3*10^12-$A40)*(C$3*10^12-$A39)*-1<0,0,1)*IF(ABS(C$3*10^12-$A40)>(C$3*10^12-$A39),$A39,$A40)=C40,0,IF((C$3*10^12-$A40)*(C$3*10^12-$A39)*-1<0,0,1)*IF(ABS(C$3*10^12-$A40)>(C$3*10^12-$A39),$A39,$A40)) -> 0 | D39: 0 | E39: 0 | F39: 0
A40: 330 | C40: 0 | D40: 0 | E40: 0 | F40: 0
A41: 390 | C41: 0 | D41: 0 | E41: 0 | F41: 0
A42: 470 | C42: 0 | D42: 0 | E42: 0 | F42: 0
A43: 560 | C43: 0 | D43: 0 | E43: 0 | F43: 0
A44: 680 | C44: 0 | D44: 0 | E44: 0 | F44: 0
A45: =A33*10 -> 820 | C45: 0 | D45: 0 | E45: 0 | F45: 0
A46: 1000 | C46: 0 | D46: 0 | E46: 0 | F46: 0
A47: 1200 | C47: 0 | D47: 0 | E47: 0 | F47: 0
A48: 1500 | C48: 0 | D48: 0 | E48: 0 | F48: 0
A49: 1800 | C49: 0 | D49: 0 | E49: 0 | F49: 0
A50: 2200 | C50: 0 | D50: 0 | E50: 0 | F50: 0
A51: 2700 | C51: 0 | D51: 0 | E51: 0 | F51: 0
A52: 3300 | C52: 0 | D52: 0 | E52: 0 | F52: 0
A53: 3900 | C53: 0 | D53: 0 | E53: 0 | F53: 0
A54: 4700 | C54: 0 | D54: 0 | E54: 0 | F54: 0
A55: 5600 | C55: 0 | D55: 0 | E55: 0 | F55: 0
A56: 6800 | C56: 0 | D56: 0 | E56: 0 | F56: 0
A57: 8200 | C57: 0 | D57: 0 | E57: 0 | F57: 0
A58: 10000 | C58: 0 | D58: 0 | E58: 0 | F58: 0
A59: 12000 | C59: 0 | D59: 0 | E59: 0 | F59: 0
A60: 15000 | C60: 0 | D60: 0 | E60: 0 | F60: 0
A61: 18000 | C61: 0 | D61: 0 | E61: 0 | F61: 0
A62: 22000 | C62: 0 | D62: 0 | E62: 0 | F62: 0
A63: 27000 | C63: 0 | D63: 0 | E63: 0 | F63: 0
A64: 33000 | C64: 0 | D64: 0 | E64: 0 | F64: 0
A65: 39000 | C65: 0 | D65: 0 | E65: 0 | F65: 0
A66: 47000 | C66: 0 | D66: 0 | E66: 0 | F66: 0
A67: 56000 | C67: 0 | D67: 0 | E67: 0 | F67: 0
A68: 68000 | C68: 0 | D68: 0 | E68: 0 | F68: 0
A69: 82000 | C69: 0 | D69: 0 | E69: 0 | F69: 0 | J69: =IF(IF((J$3*10^12-$A70)*(J$3*10^12-$A69)*-1<0,0,1)*IF(ABS(J$3*10^12-$A70)>(J$3*10^12-$A69),$A69,$A70)=J70,0,IF((J$3*10^12-$A70)*(J$3*10^12-$A69)*-1<0,0,1)*IF(ABS(J$3*10^12-$A70)>(J$3*10^12-$A69),$A69,$A70)) -> 
A70: 100000 | C70: 0 | D70: =IF(IF((D$3*10^12-$A71)*(D$3*10^12-$A70)*-1<0,0,1)*IF(ABS(D$3*10^12-$A71)>(D$3*10^12-$A70),$A70,$A71)=D71,0,IF((D$3*10^12-$A71)*(D$3*10^12-$A70)*-1<0,0,1)*IF(ABS(D$3*10^12-$A71)>(D$3*10^12-$A70),$A70,$A71)) -> 0 | E70: 0 | F70: 0
A71: 120000 | B71: =IF(IF((B$3*10^12-$A72)*(B$3*10^12-$A71)*-1<0,0,1)*IF(ABS(B$3*10^12-$A72)>(B$3*10^12-$A71),$A71,$A72)=B72,0,IF((B$3*10^12-$A72)*(B$3*10^12-$A71)*-1<0,0,1)*IF(ABS(B$3*10^12-$A72)>(B$3*10^12-$A71),$A71,$A72)) ->  | C71: =IF(IF((C$3*10^12-$A72)*(C$3*10^12-$A71)*-1<0,0,1)*IF(ABS(C$3*10^12-$A72)>(C$3*10^12-$A71),$A71,$A72)=C72,0,IF((C$3*10^12-$A72)*(C$3*10^12-$A71)*-1<0,0,1)*IF(ABS(C$3*10^12-$A72)>(C$3*10^12-$A71),$A71,$A72)) -> 0 | D71: 0 | E71: 0 | F71: =IF(IF((F$3*10^12-$A72)*(F$3*10^12-$A71)*-1<0,0,1)*IF(ABS(F$3*10^12-$A72)>(F$3*10^12-$A71),$A71,$A72)=F72,0,IF((F$3*10^12-$A72)*(F$3*10^12-$A71)*-1<0,0,1)*IF(ABS(F$3*10^12-$A72)>(F$3*10^12-$A71),$A71,$A72)) -> 0 | G71: =IF(IF((G$3*10^12-$A72)*(G$3*10^12-$A71)*-1<0,0,1)*IF(ABS(G$3*10^12-$A72)>(G$3*10^12-$A71),$A71,$A72)=G72,0,IF((G$3*10^12-$A72)*(G$3*10^12-$A71)*-1<0,0,1)*IF(ABS(G$3*10^12-$A72)>(G$3*10^12-$A71),$A71,$A72)) ->  | H71: =IF(IF((H$3*10^12-$A72)*(H$3*10^12-$A71)*-1<0,0,1)*IF(ABS(H$3*10^12-$A72)>(H$3*10^12-$A71),$A71,$A72)=H72,0,IF((H$3*10^12-$A72)*(H$3*10^12-$A71)*-1<0,0,1)*IF(ABS(H$3*10^12-$A72)>(H$3*10^12-$A71),$A71,$A72)) ->  | I71: =IF(IF((I$3*10^12-$A72)*(I$3*10^12-$A71)*-1<0,0,1)*IF(ABS(I$3*10^12-$A72)>(I$3*10^12-$A71),$A71,$A72)=I72,0,IF((I$3*10^12-$A72)*(I$3*10^12-$A71)*-1<0,0,1)*IF(ABS(I$3*10^12-$A72)>(I$3*10^12-$A71),$A71,$A72)) -> 
A72: 150000 | C72: 0 | D72: 0 | E72: 0 | F72: 0
A73: 180000 | C73: 0 | D73: 0 | E73: 0 | F73: 0
A74: 220000 | C74: 0 | D74: 0 | E74: 0 | F74: 0
A75: 270000 | C75: 0 | D75: 0 | E75: 0 | F75: 0
A76: 330000 | C76: 0 | D76: 0 | E76: 0 | F76: 0
A77: 390000 | C77: 0 | D77: 0 | E77: 0 | F77: 0
A78: 470000 | C78: 0 | D78: 0 | E78: 0 | F78: 0
A79: 560000 | C79: 0 | D79: 0 | E79: 0 | F79: 0
A80: 680000 | C80: 0 | D80: 0 | E80: 0 | F80: 0
A81: 820000 | C81: 0 | D81: 0 | E81: 0 | F81: 0
A82: 1000000 | C82: 0 | D82: 0 | E82: 0 | F82: 0
A83: 1200000 | C83: 0 | D83: 0 | E83: 0 | F83: 0
A84: 1500000 | C84: 0 | D84: 0 | E84: 0 | F84: 0
A85: 1800000 | C85: 0 | D85: 0 | E85: 0 | F85: 0
A86: 2200000 | C86: 0 | D86: 0 | E86: 0 | F86: 0
A87: 2700000 | C87: 0 | D87: 0 | E87: 0 | F87: 0
A88: 3300000 | C88: 0 | D88: 0 | E88: 0 | F88: 0
A89: 3900000 | C89: 0 | D89: 0 | E89: 0 | F89: 0
A90: 4700000 | C90: 0 | D90: 0 | E90: 0 | F90: 0
A91: 5600000 | C91: 0 | D91: 0 | E91: 0 | F91: 0
A92: 6800000 | C92: 0 | D92: 0 | E92: 0 | F92: 0
A93: 8200000 | C93: 0 | D93: 0 | E93: 0 | F93: 0
A94: 10000000 | C94: 0 | D94: 0 | E94: 0 | F94: 0
A95: 12000000 | C95: 0 | D95: 0 | E95: 0 | F95: 0
A96: 15000000 | C96: 0 | D96: 0 | E96: 0 | F96: 0
A97: 18000000 | C97: 0 | D97: 0 | E97: 0 | F97: 0
A98: 22000000 | C98: 0 | D98: 0 | E98: 0 | F98: 27000000
A99: =A87*10 -> 27000000 | C99: 0 | D99: 0 | E99: 0 | F99: 0
A100: 33000000 | C100: 0 | D100: 0 | E100: 0 | F100: 0
A101: 39000000 | C101: 0 | D101: 0 | E101: 0 | F101: 0
A102: 47000000 | C102: 0 | D102: 0 | E102: 0 | F102: 0
A103: 56000000 | C103: 0 | D103: 0 | E103: 0 | F103: =IF(IF((F$3*10^12-$A104)*(F$3*10^12-$A103)*-1<0,0,1)*IF(ABS(F$3*10^12-$A104)>(F$3*10^12-$A103),$A103,$A104)=F104,0,IF((F$3*10^12-$A104)*(F$3*10^12-$A103)*-1<0,0,1)*IF(ABS(F$3*10^12-$A104)>(F$3*10^12-$A103),$A103,$A104)) -> 0 | G103: =IF(IF((G$3*10^12-$A104)*(G$3*10^12-$A103)*-1<0,0,1)*IF(ABS(G$3*10^12-$A104)>(G$3*10^12-$A103),$A103,$A104)=G104,0,IF((G$3*10^12-$A104)*(G$3*10^12-$A103)*-1<0,0,1)*IF(ABS(G$3*10^12-$A104)>(G$3*10^12-$A103),$A103,$A104)) ->  | H103: =IF(IF((H$3*10^12-$A104)*(H$3*10^12-$A103)*-1<0,0,1)*IF(ABS(H$3*10^12-$A104)>(H$3*10^12-$A103),$A103,$A104)=H104,0,IF((H$3*10^12-$A104)*(H$3*10^12-$A103)*-1<0,0,1)*IF(ABS(H$3*10^12-$A104)>(H$3*10^12-$A103),$A103,$A104)) ->  | I103: =IF(IF((I$3*10^12-$A104)*(I$3*10^12-$A103)*-1<0,0,1)*IF(ABS(I$3*10^12-$A104)>(I$3*10^12-$A103),$A103,$A104)=I104,0,IF((I$3*10^12-$A104)*(I$3*10^12-$A103)*-1<0,0,1)*IF(ABS(I$3*10^12-$A104)>(I$3*10^12-$A103),$A103,$A104)) -> 
A104: 68000000 | C104: 0 | D104: 0 | E104: 68000000 | F104: 0
A105: 82000000 | C105: 0 | D105: 0 | E105: 0 | F105: 0
A106: 100000000 | C106: 0 | D106: 0 | E106: 0 | F106: 0
A107: 120000000 | C107: 0 | D107: 0 | E107: 0 | F107: 0
A108: 150000000 | C108: 0 | D108: 0 | E108: 0 | F108: 0
A109: 180000000 | C109: 0 | D109: 0 | E109: 0 | F109: 0
A110: 220000000 | C110: 0 | D110: 0 | E110: 0 | F110: 0
A111: 270000000 | C111: 0 | D111: 0 | E111: 0 | F111: 0
A112: 330000000 | C112: 0 | D112: 0 | E112: 0 | F112: 0
A113: 390000000 | C113: 0 | D113: 0 | E113: 0 | F113: 0
A114: 470000000 | C114: 0 | D114: 0 | E114: 0 | F114: 0
A115: 560000000 | C115: 0 | D115: 0 | E115: 0 | F115: 0
A116: 680000000 | C116: 0 | D116: 0 | E116: 0 | F116: 0
A117: 820000000 | C117: 0 | D117: 0 | E117: 0 | F117: 0
A118: 1000000000 | C118: 0 | D118: 0 | E118: 0 | F118: 0
A119: 1200000000 | C119: 0 | D119: 0 | E119: 0 | F119: 0
A120: 1500000000 | C120: 0 | D120: 0 | E120: 0 | F120: 0
A121: 1800000000 | C121: 0 | D121: 0 | E121: 0 | F121: 0
A122: 2200000000 | C122: 0 | D122: 0 | E122: 0 | F122: 0
A123: 2700000000 | C123: 0 | D123: 0 | E123: 0 | F123: 0
A124: 3300000000 | C124: 0 | D124: 0 | E124: 0 | F124: 0
A125: 3900000000 | C125: 0 | D125: 0 | E125: 0 | F125: 0
A126: 4700000000 | C126: 0 | D126: 0 | E126: 0 | F126: 0
A127: 5600000000 | C127: 0 | D127: 0 | E127: 0 | F127: 0
A128: 6800000000 | C128: 0 | D128: 0 | E128: 0 | F128: 0
A129: 8200000000 | C129: 0 | D129: 0 | E129: 0 | F129: 0
A130: 10000000000 | C130: 0 | D130: 0 | E130: 0 | F130: 0
A131: 12000000000 | C131: 0 | D131: 0 | E131: 0 | F131: 0
A132: 15000000000 | C132: 0 | D132: 0 | E132: 0 | F132: 0
A133: 18000000000 | C133: 0 | D133: 0 | E133: 0 | F133: 0 | J133: =IF(IF((J$3*10^12-$A134)*(J$3*10^12-$A133)*-1<0,0,1)*IF(ABS(J$3*10^12-$A134)>(J$3*10^12-$A133),$A133,$A134)=J134,0,IF((J$3*10^12-$A134)*(J$3*10^12-$A133)*-1<0,0,1)*IF(ABS(J$3*10^12-$A134)>(J$3*10^12-$A133),$A133,$A134)) -> 
A134: 22000000000 | C134: 0 | D134: 0 | E134: =IF(IF((E$3*10^12-$A135)*(E$3*10^12-$A134)*-1<0,0,1)*IF(ABS(E$3*10^12-$A135)>(E$3*10^12-$A134),$A134,$A135)=E135,0,IF((E$3*10^12-$A135)*(E$3*10^12-$A134)*-1<0,0,1)*IF(ABS(E$3*10^12-$A135)>(E$3*10^12-$A134),$A134,$A135)) -> 0 | F134: 0 | J134: =IF(IF((J$3*10^12-$A135)*(J$3*10^12-$A134)*-1<0,0,1)*IF(ABS(J$3*10^12-$A135)>(J$3*10^12-$A134),$A134,$A135)=J135,0,IF((J$3*10^12-$A135)*(J$3*10^12-$A134)*-1<0,0,1)*IF(ABS(J$3*10^12-$A135)>(J$3*10^12-$A134),$A134,$A135)) -> 
A135: 27000000000 | B135: =IF(IF((B$3*10^12-$A136)*(B$3*10^12-$A135)*-1<0,0,1)*IF(ABS(B$3*10^12-$A136)>(B$3*10^12-$A135),$A135,$A136)=B136,0,IF((B$3*10^12-$A136)*(B$3*10^12-$A135)*-1<0,0,1)*IF(ABS(B$3*10^12-$A136)>(B$3*10^12-$A135),$A135,$A136)) ->  | C135: =IF(IF((C$3*10^12-$A136)*(C$3*10^12-$A135)*-1<0,0,1)*IF(ABS(C$3*10^12-$A136)>(C$3*10^12-$A135),$A135,$A136)=C136,0,IF((C$3*10^12-$A136)*(C$3*10^12-$A135)*-1<0,0,1)*IF(ABS(C$3*10^12-$A136)>(C$3*10^12-$A135),$A135,$A136)) -> 0 | D135: 0 | E135: 0 | F135: 0
A136: 33000000000 | C136: 0 | D136: 0 | E136: 0 | F136: 0
A137: 39000000000 | C137: 0 | D137: 0 | E137: 0 | F137: 0
A138: 47000000000 | C138: 0 | D138: 0 | E138: 0 | F138: 0
A139: 56000000000 | C139: 0 | D139: 0 | E139: 0 | F139: 0
A140: 68000000000 | C140: 0 | D140: 0 | E140: 0 | F140: 0
A141: 82000000000 | C141: 0 | D141: 0 | E141: 0 | F141: 0
A142: 100000000000 | C142: 0 | D142: 0 | E142: 0 | F142: 0
A143: 120000000000 | C143: 0 | D143: 0 | E143: 0 | F143: 0
A144: 150000000000 | C144: 0 | D144: 0 | E144: 0 | F144: 0
A145: 180000000000 | C145: 0 | D145: 0 | E145: 0 | F145: 0
A146: 220000000000 | C146: 0 | D146: 0 | E146: 0 | F146: 0
A147: 270000000000 | C147: 0 | D147: 0 | E147: 0 | F147: 0
A148: 330000000000 | C148: 0 | D148: 0 | E148: 0 | F148: 0
A149: 390000000000 | C149: 0 | D149: 0 | E149: 0 | F149: 0
A150: 470000000000 | C150: 0 | D150: 0 | E150: 0 | F150: 0
A151: 560000000000 | C151: 0 | D151: 0 | E151: 0 | F151: 0
A152: 680000000000 | C152: 0 | D152: 0 | E152: 0 | F152: 0
A153: 820000000000 | C153: 0 | D153: 0 | E153: 0 | F153: 0
A154: 1000000000000 | C154: 0 | D154: 0 | E154: 0 | F154: 0
A155: 1200000000000 | C155: 0 | D155: 0 | E155: 0 | F155: 0
A156: 1500000000000 | C156: 0 | D156: 0 | E156: 0 | F156: 0
A157: 1800000000000 | C157: 0 | D157: 0 | E157: 0 | F157: 0
A158: 2200000000000 | C158: 0 | D158: 0 | E158: 0 | F158: 0
A159: 2700000000000 | C159: 2700000000000 | D159: 0 | E159: 2700000000000 | F159: 2700000000000

Sheet Snubber (hidden)
C1: UNITS | D1: STD UNITS
A2: Frequency of Ringing | B2: 85 | C2: MHz | D2: =B2*1000000 -> 85000000 | E2: Hz
A3: SW capacitance | B3: 3000 | C3: pF | D3: =B3*0.000000000001 -> 3e-09 | E3: F
A4: Lpar | B4: =1000000000*1/((D2*2*3.14159)^2*D3) -> 1.168643077 | C4: nH | D4: =B4/1000000000 -> 1.168643077e-09 | E4: H
A5: Csnub | B5: =4*B3 -> 12000 | C5: pF | D5: =B5*0.000000000001 -> 1.2e-08 | E5: F
A6: Rsnub | B6: =SQRT(D4/D3) -> 0.6241375589 | C6: Ω | D6: =B6 -> 0.6241375589 | E6: Ω

Sheet Parallel Output Caps (hidden)
A4: Fsw | B4: =Fsw -> 1000000
A6: C1 | B6: 20 | C6: uF | D6: =B6/1000000 -> 2e-05 | E6: F
A7: R1 | B7: 0.5 | C7: mOhms | D7: =B7/1000 -> 0.0005 | E7: Ohms
A9: C2 | B9: 68 | C9: uF | D9: =B9/1000000 -> 6.8e-05 | E9: F
A10: R2 | B10: 20 | C10: mOhms | D10: =B10/1000 -> 0.02 | E10: Ohms
A13: I1 | B13: =(D6/(D6+D9))*SQRT((D10*D9*B4)^2+1)/SQRT((((D7+D10)*D6*D9/(D9+D6))*B4)^2+1) -> 0.365737222 | C13: %
A14: I2 | B14: =1-B13 -> 0.634262778 | C14: %
A16: I1 | B16: =B13*(Iripple1/(2*SQRT(3))) ->  | C16: A
A17: I2 | B17: =B14*(Iripple1/(2*SQRT(3))) ->  | C17: A
